Workbook

Sheet Abertura
D3: UNIVERSIDADE FEDERAL DO PARANÁ / SETOR DE CIÊNCIAS AGRÁRIAS
D4: DEPARTAMENTO DE SOLOS E ENGENHARIA AGRÍCOLA
D6: LAMOSA - LABORATÓRIO DE MODELAGEM DE SISTEMAS AMBIENTAIS
C8: PLATAFORMA MORETTI: MÓDULO - VALOR PROVÁVEL DECENDIAL DAS COMPONENTES HÍDRICAS DA CANA-DE-AÇÚCAR PARA O ESTADO DE SÃO PAULO.
C13: Autores:
C14: Orientador: Jorge Luiz Moretti de Souza (LAMOSA / DSEA / SCA / UFPR)
C15: Pós-Graduanda: Yohanne Larissa Rita (Pós-Graduação em Ciência do Solo / DSEA / SCA / UFPR)
C16: Co-Orientador: Alexandre Cândido Xavier (DER / UFES)
B18: Endereço:
B19: Rua dos Funcionários, 1540 - Curitiba, PR
B20: CEP: 80035-050
B21: Telefone: (041) 3350-5689 Celular: (041) 99938-0155
B22: e-mail: jmoretti@ufpr.br | H22: Versão: 2024/1.0
B23: Site: http://www.moretti.agrarias.ufpr.br/

Sheet ValorProvável
W1: Cultura (23) | X1: Componente hídrica (24) | Y1: Local (25) | Z1: fdp (26) | AA1: Probabilidade (27) | AB1: 28 | AC1: Longitude (29) | AD1: Latitude (30) | AE1: 31 | AF1: 32 | AG1: 33
C2: VALOR PROVÁVEL DECENDIAL DAS COMPONENTES HÍDRICAS PARA O ESTADO DE SÃO PAULO | S2: =AC2 -> -47.625 | T2: =AD2 -> -22.375 | W2: 1 | X2: 1 | Y2: 185 | Z2: 1 | AA2: 75 | AC2: -47.625 | AD2: -22.375
W3: Cana-de-açúcar | X3: Precipitação (P) | Y3: P.001: -19,875 S; -50,125 W | Z3: fdp planilha | AA3: Prob. 1% | AC3: -50.125 | AD3: -19.875
C4: Figura 1 – Principais cidades no Estado de São Paulo, e suas macrorregiões. | I4: Figura 2 – Mapa espacializado do Estado de São Paulo, contendo os pontos interpolados. | O4: Figura 3 – Valores prováveis obtidos para a componente hídrica, conforme fdp e nível de probabilidade escolhido. | X4: Evapotranspiração de referência (ETo) | Y4: P.002: -19,875 S; -50,375 W | Z4: Exponencial | AA4: Prob. 2% | AC4: -50.375 | AD4: -19.875
C5: Decêndio | D5: Parâmetros das fdp's | K5: Dmax Tabela-do 5% | L5: Dmax | M5: Melhor fdp (1) | N5: P(X = 0) | O5: Valor x | P5: P(X ³ x) | Q5: Número de | R5: Amostra | S5: Amostra | T5: P(X = 0) | W5: Melhor | X5: Evapotranspiração da cultura (ETc) | Y5: P.003: -19,875 S; -50,625 W | Z5: Gama | AA5: Prob. 3% | AC5: -50.625 | AD5: -19.875
D6: Menor valor | E6: Maior valor | F6: Média | G6: Des. Pad. | H6: Moda | I6: Alfa | J6: Beta | L6: calculado (ad.) | N6: ( % ) | O6: (mm decêndio-1) | P6: (%) | Q6: decêndios (unidade) | R6: dados (unidade) | S6: zeros (unidade) | T6: (%) | W6: fdp (1) | X6: Armazenamento de água no solo (S) | Y6: P.004: -20,125 S; -47,375 W | Z6: Normal | AA6: Prob. 4% | AC6: -47.375 | AD6: -20.125
C7: 1 | D7: 18.64586639 | E7: 292.2243042 | F7: 102.7019653 | G7: 65.18203552 | H7: 41.44406891 | I7: 2.54139185 | J7: 40.4117012 | K7: 0.2283333391 | L7: 0.07187780738 | M7: G | N7: 0 | O7: 55.32847824 | P7: =(1-((N7/100)+(1-(N7/100))*GAMMADIST(O7,I7,J7,TRUE)))*100 -> 75.00008533 | Q7: 36 | R7: 36 | S7: 0 | T7: 0 | W7: G | X7: Evapotranspiração de real (ETr) | Y7: P.005: -20,125 S; -47,625 W | Z7: Triangular | AA7: Prob. 5% | AC7: -47.625 | AD7: -20.125
C8: 2 | D8: 12.34700584 | E8: 196.2460938 | F8: 81.28167725 | G8: 44.73306517 | H8: 58.32177734 | I8: 2.760638952 | J8: 29.44306755 | K8: 0.2283333391 | L8: 0.06900852919 | M8: G | N8: 0 | O8: 45.31718912 | P8: =(1-((N8/100)+(1-(N8/100))*GAMMADIST(O8,I8,J8,TRUE)))*100 -> 74.99997103 | Q8: 36 | R8: 36 | S8: 0 | T8: 0 | W8: G | X8: Deficiência hídrica (Def) | Y8: P.006: -20,125 S; -47,875 W | Z8: Uniforme | AA8: Prob. 6% | AC8: -47.875 | AD8: -20.125
C9: 3 | D9: 27.68688965 | E9: 198.3798828 | F9: 89.05757141 | G9: 45.0397936 | H9: 41.91130447 | I9: 3.856298447 | J9: 23.09405518 | K9: 0.2283333391 | L9: 0.08038270473 | M9: G | N9: 0 | O9: 55.82724018 | P9: =(1-((N9/100)+(1-(N9/100))*GAMMADIST(O9,I9,J9,TRUE)))*100 -> 75.00025322 | Q9: 36 | R9: 36 | S9: 0 | T9: 0 | W9: G | X9: Excedente hídrico (Exc) | Y9: P.007: -20,125 S; -48,125 W | AA9: Prob. 7% | AC9: -48.125 | AD9: -20.125
C10: 4 | D10: 0.6903305054 | E10: 319.0449219 | F10: 73.35671997 | G10: 57.20035716 | H10: 80.27897644 | I10: 1.669115782 | J10: 43.94945145 | K10: 0.2283333391 | L10: 0.08165633678 | M10: G | N10: 0 | O10: 31.78938691 | P10: =(1-((N10/100)+(1-(N10/100))*GAMMADIST(O10,I10,J10,TRUE)))*100 -> 74.99999038 | Q10: 36 | R10: 36 | S10: 0 | T10: 0 | W10: G | X10: Temperatura mínima (Tmin) | Y10: P.008: -20,125 S; -48,375 W | AA10: Prob. 8% | AC10: -48.375 | AD10: -20.125
C11: 5 | D11: 5.621574402 | E11: 180.4648438 | F11: 82.21836853 | G11: 46.72668724 | H11: 78.47293854 | I11: 2.22133112 | J11: 37.0131073 | K11: 0.2283333391 | L11: 0.0901080966 | M11: N | N11: 0 | O11: 50.70167388 | P11: =(1-((N11/100)+(1-(N11/100))*NORMDIST(O11,F11,G11,TRUE)))*100 -> 75.00001567 | Q11: 36 | R11: 36 | S11: 0 | T11: 0 | W11: N | X11: Temperatura máxima (Tmax) | Y11: P.009: -20,125 S; -48,625 W | Z11: fdp planilha | AA11: Prob. 9% | AC11: -48.625 | AD11: -20.125
C12: 6 | D12: 10.34716797 | E12: 187.4746094 | F12: 63.62585449 | G12: 38.85589739 | H12: 25.10778809 | I12: 2.634861708 | J12: 24.14770126 | K12: 0.2283333391 | L12: 0.02506768703 | M12: G | N12: 0 | O12: 34.80419926 | P12: =(1-((N12/100)+(1-(N12/100))*GAMMADIST(O12,I12,J12,TRUE)))*100 -> 75.00028189 | Q12: 36 | R12: 36 | S12: 0 | T12: 0 | W12: G | X12: Temperatura média (Tmed) | Y12: P.010: -20,125 S; -49,375 W | AA12: Prob. 10% | AC12: -49.375 | AD12: -20.125
C13: 7 | D13: 2.696304321 | E13: 170.4416504 | F13: 65.97576904 | G13: 40.53961881 | H13: 44.63264084 | I13: 2.14538312 | J13: 30.75244141 | K13: 0.2283333391 | L13: 0.0384837389 | M13: G | N13: 0 | O13: 32.86927747 | P13: =(1-((N13/100)+(1-(N13/100))*GAMMADIST(O13,I13,J13,TRUE)))*100 -> 75.00050524 | Q13: 36 | R13: 36 | S13: 0 | T13: 0 | W13: G | Y13: P.011: -20,125 S; -49,625 W | AA13: Prob. 11% | AC13: -49.625 | AD13: -20.125
C14: 8 | D14: 3.019577026 | E14: 145.0970459 | F14: 58.25364304 | G14: 35.09151505 | H14: 38.53894424 | I14: 2.171669006 | J14: 26.82436562 | K14: 0.2283333391 | L14: 0.0515769273 | M14: G | N14: 0 | O14: 29.19811139 | P14: =(1-((N14/100)+(1-(N14/100))*GAMMADIST(O14,I14,J14,TRUE)))*100 -> 74.99912956 | Q14: 36 | R14: 36 | S14: 0 | T14: 0 | W14: G | Y14: P.012: -20,125 S; -49,875 W | AA14: Prob. 12% | AC14: -49.875 | AD14: -20.125
C15: 9 | D15: 1.465576172 | E15: 249.5073242 | F15: 42.26079178 | G15: 43.82750807 | H15: 22.13572121 | I15: 1.189823031 | J15: 35.51855087 | K15: 0.2283333391 | L15: 0.04390656948 | M15: G | N15: 0 | O15: 14.30080681 | P15: =(1-((N15/100)+(1-(N15/100))*GAMMADIST(O15,I15,J15,TRUE)))*100 -> 75.00013158 | Q15: 36 | R15: 36 | S15: 0 | T15: 0 | W15: G | Y15: P.013: -20,125 S; -50,125 W | AA15: Prob. 13% | AC15: -50.125 | AD15: -20.125
C16: 10 | D16: 4.458320618 | E16: 103.5827484 | F16: 32.3467865 | G16: 23.13656014 | H16: 29.23942947 | I16: 1.899969459 | J16: 17.02489853 | K16: 0.2283333391 | L16: 0.07452780008 | M16: G | N16: 0 | O16: 15.12247251 | P16: =(1-((N16/100)+(1-(N16/100))*GAMMADIST(O16,I16,J16,TRUE)))*100 -> 74.99999442 | Q16: 36 | R16: 36 | S16: 0 | T16: 0 | W16: G | Y16: P.014: -20,125 S; -50,375 W | AA16: Prob. 14% | AC16: -50.375 | AD16: -20.125
C17: 11 | D17: 0.01420974731 | E17: 90.86824036 | F17: 25.69031334 | G17: 22.92622552 | H17: 7.585379124 | I17: 0.7653749585 | J17: 33.56565857 | K17: 0.2315722704 | L17: 0.0274900496 | M17: E | N17: 2.702702703 | O17: 6.686889916 | P17: =(1-((N17/100)+(1-(N17/100))* (1-(1/(EXP(O17/F17))))))*100 -> 74.99960423 | Q17: 36 | R17: 36 | S17: 1 | T17: 2.702702703 | W17: E | Y17: P.015: -20,125 S; -50,625 W | AA17: Prob. 15% | AC17: -50.625 | AD17: -20.125
C18: 12 | D18: 0.01176452637 | E18: 99.90185547 | F18: 24.59759903 | G18: 25.78995237 | H18: 8.335938454 | I18: 0.533256948 | J18: 46.12710571 | K18: 0.2283333391 | L18: 0.02416270971 | M18: E | N18: 0 | O18: 7.076254025 | P18: =(1-((N18/100)+(1-(N18/100))* (1-(1/(EXP(O18/F18))))))*100 -> 75.0001044 | Q18: 36 | R18: 36 | S18: 0 | T18: 0 | W18: E | Y18: P.016: -20,125 S; -50,875 W | AA18: Prob. 16% | AC18: -50.875 | AD18: -20.125
C19: 13 | D19: 0.02164459229 | E19: 59.99863434 | F19: 17.2816124 | G19: 16.88323638 | H19: 5.01972723 | I19: 0.580997169 | J19: 29.74474525 | K19: 0.2283333391 | L19: 0.03614217043 | M19: E | N19: 0 | O19: 4.971614245 | P19: =(1-((N19/100)+(1-(N19/100))* (1-(1/(EXP(O19/F19))))))*100 -> 74.99998188 | Q19: 36 | R19: 36 | S19: 0 | T19: 0 | W19: E | Y19: P.017: -20,375 S; -47,375 W | AA19: Prob. 17% | AC19: -47.375 | AD19: -20.375
C20: 14 | D20: 0.0170135498 | E20: 101.4292374 | F20: 21.40467262 | G20: 24.44244226 | H20: 8.468031883 | I20: 0.4595296383 | J20: 46.57952499 | K20: 0.2315722704 | L20: 0.04963380098 | M20: E | N20: 0 | O20: 6.157738259 | P20: =(1-((N20/100)+(1-(N20/100))* (1-(1/(EXP(O20/F20))))))*100 -> 75.00000813 | Q20: 36 | R20: 36 | S20: 0 | T20: 0 | W20: E | Y20: P.018: -20,375 S; -47,625 W | AA20: Prob. 18% | AC20: -47.625 | AD20: -20.375
C21: 15 | D21: 0.0266418457 | E21: 125.4863281 | F21: 26.39016151 | G21: 33.29832858 | H21: 10.48161602 | I21: 0.5935286283 | J21: 44.46316528 | K21: 0.2283333391 | L21: 0.02328062057 | M21: G | N21: 0 | O21: 3.744341238 | P21: =(1-((N21/100)+(1-(N21/100))*GAMMADIST(O21,I21,J21,TRUE)))*100 -> 75.00000317 | Q21: 36 | R21: 36 | S21: 0 | T21: 0 | W21: G | Y21: P.019: -20,375 S; -47,875 W | AA21: Prob. 19% | AC21: -47.875 | AD21: -20.375
C22: 16 | D22: 0.04049682617 | E22: 157.2216797 | F22: 21.28905296 | G22: 30.7756231 | H22: 13.13892841 | I22: 0.4660274088 | J22: 45.68197632 | K22: 0.2283333391 | L22: 0.04221940041 | M22: G | N22: 0 | O22: 1.847265017 | P22: =(1-((N22/100)+(1-(N22/100))*GAMMADIST(O22,I22,J22,TRUE)))*100 -> 75.00065715 | Q22: 36 | R22: 36 | S22: 0 | T22: 0 | W22: G | Y22: P.020: -20,375 S; -48,125 W | AA22: Prob. 20% | AC22: -48.125 | AD22: -20.375
C23: 17 | D23: 0.0252532959 | E23: 59.66760254 | F23: 12.11289215 | G23: 16.75139464 | H23: 4.995449066 | I23: 0.4293887913 | J23: 28.2096138 | K23: 0.2283333391 | L23: 0.05221557617 | M23: G | N23: 0 | O23: 0.8612689505 | P23: =(1-((N23/100)+(1-(N23/100))*GAMMADIST(O23,I23,J23,TRUE)))*100 -> 75.00002575 | Q23: 36 | R23: 36 | S23: 0 | T23: 0 | W23: G | Y23: P.021: -20,375 S; -48,375 W | AA23: Prob. 21% | AC23: -48.375 | AD23: -20.375
C24: 18 | D24: 0.01036834717 | E24: 100.948761 | F24: 16.79203796 | G24: 25.15111555 | H24: 8.421900749 | I24: 0.3838819265 | J24: 43.74271393 | K24: 0.2315722704 | L24: 0.02307403088 | M24: G | N24: 2.702702703 | O24: 0.6999709673 | P24: =(1-((N24/100)+(1-(N24/100))*GAMMADIST(O24,I24,J24,TRUE)))*100 -> 75.00000999 | Q24: 36 | R24: 36 | S24: 1 | T24: 2.702702703 | W24: G | Y24: P.022: -20,375 S; -48,625 W | AA24: Prob. 22% | AC24: -48.625 | AD24: -20.375
C25: 19 | D25: 0.005184173584 | E25: 33.59741974 | F25: 5.220262527 | G25: 8.431802366 | H25: 2.804537058 | I25: 0.401309371 | J25: 13.00807571 | K25: 0.2315722704 | L25: 0.03914141655 | M25: G | N25: 2.702702703 | O25: 0.2489980724 | P25: =(1-((N25/100)+(1-(N25/100))*GAMMADIST(O25,I25,J25,TRUE)))*100 -> 75.00000137 | Q25: 36 | R25: 36 | S25: 1 | T25: 2.702702703 | W25: G | Y25: P.023: -20,375 S; -48,875 W | AA25: Prob. 23% | AC25: -48.875 | AD25: -20.375
C26: 20 | D26: 0.0245475769 | E26: 76.44971466 | F26: 11.65323925 | G26: 16.91868983 | H26: 6.393311501 | I26: 0.3802996874 | J26: 30.64225388 | K26: 0.2315722704 | L26: 0.03851318359 | M26: G | N26: 2.702702703 | O26: 0.4717364453 | P26: =(1-((N26/100)+(1-(N26/100))*GAMMADIST(O26,I26,J26,TRUE)))*100 -> 74.9996652 | Q26: 36 | R26: 36 | S26: 1 | T26: 2.702702703 | W26: G | Y26: P.024: -20,375 S; -49,125 W | AA26: Prob. 24% | AC26: -49.125 | AD26: -20.375
C27: 21 | D27: 0.002952575684 | E27: 76.15237427 | F27: 12.35338402 | G27: 17.4254682 | H27: 6.348737717 | I27: 0.3968756795 | J27: 31.1265831 | K27: 0.2349530607 | L27: 0.06073600054 | M27: G | N27: 5.405405405 | O27: 0.4406226763 | P27: =(1-((N27/100)+(1-(N27/100))*GAMMADIST(O27,I27,J27,TRUE)))*100 -> 74.99999893 | Q27: 36 | R27: 36 | S27: 2 | T27: 5.405405405 | W27: G | Y27: P.025: -20,375 S; -49,375 W | AA27: Prob. 25% | AC27: -49.375 | AD27: -20.375
C28: 22 | D28: 0.00958442688 | E28: 82.5526123 | F28: 8.549607277 | G28: 19.06275695 | H28: 6.888170242 | I28: 0.2852077484 | J28: 29.9767704 | K28: 0.2349530607 | L28: 0.04296129942 | M28: G | N28: 5.405405405 | O28: 0.08311954127 | P28: =(1-((N28/100)+(1-(N28/100))*GAMMADIST(O28,I28,J28,TRUE)))*100 -> 74.99990763 | Q28: 36 | R28: 36 | S28: 2 | T28: 5.405405405 | W28: G | Y28: P.026: -20,375 S; -49,625 W | AA28: Prob. 26% | AC28: -49.625 | AD28: -20.375
C29: 23 | D29: 0.008369445801 | E29: 36.28674316 | F29: 5.329941273 | G29: 8.910037657 | H29: 3.636206865 | I29: 0.3085390031 | J29: 17.27477264 | K29: 0.2460592687 | L29: 0.06891477108 | M29: G | N29: 13.51351351 | O29: 0.01745235279 | P29: =(1-((N29/100)+(1-(N29/100))*GAMMADIST(O29,I29,J29,TRUE)))*100 -> 74.99999275 | Q29: 36 | R29: 36 | S29: 5 | T29: 13.51351351 | W29: G | Y29: P.027: -20,375 S; -49,875 W | AA29: Prob. 27% | AC29: -49.875 | AD29: -20.375
C30: 24 | D30: 0.002944946289 | E30: 103.2769089 | F30: 16.83943367 | G30: 25.96899443 | H30: 10.33034134 | I30: 0.3633588552 | J30: 46.34381104 | K30: 0.2501266301 | L30: 0.05012571812 | M30: G | N30: 16.21621622 | O30: 0.06782695169 | P30: =(1-((N30/100)+(1-(N30/100))*GAMMADIST(O30,I30,J30,TRUE)))*100 -> 74.99992527 | Q30: 36 | R30: 36 | S30: 6 | T30: 16.21621622 | W30: G | Y30: P.028: -20,375 S; -50,125 W | AA30: Prob. 28% | AC30: -50.125 | AD30: -20.375
C31: 25 | D31: 0.001472473145 | E31: 107.0111542 | F31: 16.21657753 | G31: 25.47819275 | H31: 8.918946266 | I31: 0.3419443667 | J31: 47.42460632 | K31: 0.2349530607 | L31: 0.03861057758 | M31: G | N31: 5.405405405 | O31: 0.3416956795 | P31: =(1-((N31/100)+(1-(N31/100))*GAMMADIST(O31,I31,J31,TRUE)))*100 -> 75.00004889 | Q31: 36 | R31: 36 | S31: 2 | T31: 5.405405405 | W31: G | Y31: P.029: -20,375 S; -50,375 W | AA31: Prob. 29% | AC31: -50.375 | AD31: -20.375
C32: 26 | D32: 0.002944946289 | E32: 101.7748413 | F32: 27.88959122 | G32: 31.06365535 | H32: 8.48393631 | I32: 0.4139676094 | J32: 67.37143707 | K32: 0.2421840727 | L32: 0.1049185395 | M32: G | N32: 10.81081081 | O32: 0.5975716125 | P32: =(1-((N32/100)+(1-(N32/100))*GAMMADIST(O32,I32,J32,TRUE)))*100 -> 74.99975203 | Q32: 36 | R32: 36 | S32: 4 | T32: 10.81081081 | W32: G | Y32: P.030: -20,375 S; -50,625 W | AA32: Prob. 30% | AC32: -50.625 | AD32: -20.375
C33: 27 | D33: 0.01292419434 | E33: 108.5049515 | F33: 27.56960297 | G33: 26.55037637 | H33: 9.053926468 | I33: 0.885610342 | J33: 31.13062477 | K33: 0.2315722704 | L33: 0.06186047196 | M33: E | N33: 2.702702703 | O33: 7.175594837 | P33: =(1-((N33/100)+(1-(N33/100))* (1-(1/(EXP(O33/F33))))))*100 -> 75.00083473 | Q33: 36 | R33: 36 | S33: 1 | T33: 2.702702703 | W33: E | Y33: P.031: -20,375 S; -50,875 W | AA33: Prob. 31% | AC33: -50.875 | AD33: -20.375
C34: 28 | D34: 0.7917480469 | E34: 125.3164062 | F34: 31.47367096 | G34: 31.0758772 | H34: 11.16880322 | I34: 0.9375142455 | J34: 33.57140732 | K34: 0.2283333391 | L34: 0.02414095402 | M34: E | N34: 0 | O34: 9.054421356 | P34: =(1-((N34/100)+(1-(N34/100))* (1-(1/(EXP(O34/F34))))))*100 -> 74.99997506 | Q34: 36 | R34: 36 | S34: 0 | T34: 0 | W34: E | Y34: P.032: -20,375 S; -51,125 W | AA34: Prob. 32% | AC34: -51.125 | AD34: -20.375
C35: 29 | D35: 0.08387756348 | E35: 189.1259766 | F35: 37.21689224 | G35: 39.40504651 | H35: 15.83738613 | I35: 0.7598986626 | J35: 48.97612381 | K35: 0.2315722704 | L35: 0.03758853674 | M35: E | N35: 2.702702703 | O35: 9.686956364 | P35: =(1-((N35/100)+(1-(N35/100))* (1-(1/(EXP(O35/F35))))))*100 -> 74.99994288 | Q35: 36 | R35: 36 | S35: 1 | T35: 2.702702703 | W35: E | Y35: P.033: -20,375 S; -51,375 W | AA35: Prob. 33% | AC35: -51.375 | AD35: -20.375
C36: 30 | D36: 2.522583008 | E36: 113.0517578 | F36: 39.02051544 | G36: 26.60421472 | H36: 11.73334789 | I36: 1.735093594 | J36: 22.48899841 | K36: 0.2283333391 | L36: 0.049710989 | M36: G | N36: 0 | O36: 17.31426892 | P36: =(1-((N36/100)+(1-(N36/100))*GAMMADIST(O36,I36,J36,TRUE)))*100 -> 74.99999692 | Q36: 36 | R36: 36 | S36: 0 | T36: 0 | W36: G | Y36: P.034: -20,625 S; -47,125 W | AA36: Prob. 34% | AC36: -47.125 | AD36: -20.625
C37: 31 | D37: 0.2791290283 | E37: 123.3702393 | F37: 42.634655 | G37: 32.09206688 | H37: 31.05190659 | I37: 1.5197469 | J37: 28.05378723 | K37: 0.2283333391 | L37: 0.03319865465 | M37: G | N37: 0 | O37: 17.38636582 | P37: =(1-((N37/100)+(1-(N37/100))*GAMMADIST(O37,I37,J37,TRUE)))*100 -> 74.99969175 | Q37: 36 | R37: 36 | S37: 0 | T37: 0 | W37: G | Y37: P.035: -20,625 S; -47,375 W | AA37: Prob. 35% | AC37: -47.375 | AD37: -20.625
C38: 32 | D38: 0.009544372559 | E38: 116.407959 | F38: 48.16339874 | G38: 27.02265262 | H38: 48.50888443 | I38: 1.521045446 | J38: 31.66466713 | K38: 0.2283333391 | L38: 0.02648892999 | M38: N | N38: 0 | O38: 29.93659952 | P38: =(1-((N38/100)+(1-(N38/100))*NORMDIST(O38,F38,G38,TRUE)))*100 -> 75.00034926 | Q38: 36 | R38: 36 | S38: 0 | T38: 0 | W38: N | Y38: P.036: -20,625 S; -47,625 W | AA38: Prob. 36% | AC38: -47.625 | AD38: -20.625
C39: 33 | D39: 0.4251098633 | E39: 133.7719727 | F39: 56.51073456 | G39: 37.46543492 | H39: 55.98630524 | I39: 1.365613699 | J39: 41.38119888 | K39: 0.2283333391 | L39: 0.08637291193 | M39: N | N39: 0 | O39: 31.24069159 | P39: =(1-((N39/100)+(1-(N39/100))*NORMDIST(O39,F39,G39,TRUE)))*100 -> 74.99999248 | Q39: 36 | R39: 36 | S39: 0 | T39: 0 | W39: N | Y39: P.037: -20,625 S; -47,875 W | AA39: Prob. 37% | AC39: -47.875 | AD39: -20.625
C40: 34 | D40: 15.54022217 | E40: 147.7075195 | F40: 61.68448257 | G40: 34.31839267 | H40: 70.60993195 | I40: 3.286412954 | J40: 18.76954651 | K40: 0.2283333391 | L40: 0.04911893606 | M40: G | N40: 0 | O40: 36.70272999 | P40: =(1-((N40/100)+(1-(N40/100))*GAMMADIST(O40,I40,J40,TRUE)))*100 -> 74.99993724 | Q40: 36 | R40: 36 | S40: 0 | T40: 0 | W40: G | Y40: P.038: -20,625 S; -48,125 W | AA40: Prob. 38% | AC40: -48.125 | AD40: -20.625
C41: 35 | D41: 8.334136963 | E41: 135.7109375 | F41: 72.0504303 | G41: 35.23972901 | H41: 40.1783371 | I41: 3.260914087 | J41: 22.09516335 | K41: 0.2283333391 | L41: 0.05555555969 | M41: U | N41: 0 | O41: 40.1783371 | P41: =(1-((N41/100)+(1-(N41/100))*((O41-D41)/(E41-D41))))*100 -> 75 | Q41: 36 | R41: 36 | S41: 0 | T41: 0 | W41: U | Y41: P.039: -20,625 S; -48,375 W | AA41: Prob. 39% | AC41: -48.375 | AD41: -20.625
C42: 36 | D42: 10.44042969 | E42: 140.0705414 | F42: 68.9539566 | G42: 33.82129333 | H42: 107.6630096 | I42: 3.257854462 | J42: 21.16545105 | K42: 0.2283333391 | L42: 0.06659340858 | M42: N | N42: 0 | O42: 46.14143028 | P42: =(1-((N42/100)+(1-(N42/100))*NORMDIST(O42,F42,G42,TRUE)))*100 -> 75.00038581 | Q42: 36 | R42: 36 | S42: 0 | T42: 0 | W42: N | Y42: P.040: -20,625 S; -48,625 W | AA42: Prob. 40% | AC42: -48.625 | AD42: -20.625
C43: 37 | D43: 2.308609009 | E43: 142.9960938 | F43: 43.02309036 | G43: 32.12457061 | H43: 14.03256607 | I43: 1.58605814 | J43: 27.12579727 | K43: 0.2283333391 | L43: 0.0168389082 | M43: G | N43: 0 | O43: 18.04905081 | P43: =(1-((N43/100)+(1-(N43/100))*GAMMADIST(O43,I43,J43,TRUE)))*100 -> 74.99999404 | Q43: 36 | R43: 36 | S43: 0 | T43: 0 | W43: G | Y43: P.041: -20,625 S; -48,875 W | AA43: Prob. 41% | AC43: -48.875 | AD43: -20.625
C44: ( 1 ) E - exponencial; G - gama; N - normal; T - triangular; U - uniforme | S44: -53.125 | T44: -25.125 | Y44: P.042: -20,625 S; -49,125 W | AA44: Prob. 42% | AC44: -49.125 | AD44: -20.625
S45: -44.375 | T45: -19.875 | Y45: P.043: -20,625 S; -49,375 W | AA45: Prob. 43% | AC45: -49.375 | AD45: -20.625
Y46: P.044: -20,625 S; -49,625 W | AA46: Prob. 44% | AC46: -49.625 | AD46: -20.625
Y47: P.045: -20,625 S; -49,875 W | AA47: Prob. 45% | AC47: -49.875 | AD47: -20.625
Y48: P.046: -20,625 S; -50,125 W | AA48: Prob. 46% | AC48: -50.125 | AD48: -20.625
Y49: P.047: -20,625 S; -50,375 W | AA49: Prob. 47% | AC49: -50.375 | AD49: -20.625
Y50: P.048: -20,625 S; -50,625 W | AA50: Prob. 48% | AC50: -50.625 | AD50: -20.625
Y51: P.049: -20,625 S; -50,875 W | AA51: Prob. 49% | AC51: -50.875 | AD51: -20.625
Y52: P.050: -20,625 S; -51,125 W | AA52: Prob. 50% | AC52: -51.125 | AD52: -20.625
Y53: P.051: -20,625 S; -51,375 W | AA53: Prob. 51% | AC53: -51.375 | AD53: -20.625
Y54: P.052: -20,875 S; -47,375 W | AA54: Prob. 52% | AC54: -47.375 | AD54: -20.875
Y55: P.053: -20,875 S; -47,625 W | AA55: Prob. 53% | AC55: -47.625 | AD55: -20.875
Y56: P.054: -20,875 S; -47,875 W | AA56: Prob. 54% | AC56: -47.875 | AD56: -20.875
Y57: P.055: -20,875 S; -48,125 W | AA57: Prob. 55% | AC57: -48.125 | AD57: -20.875
Y58: P.056: -20,875 S; -48,375 W | AA58: Prob. 56% | AC58: -48.375 | AD58: -20.875
Y59: P.057: -20,875 S; -48,625 W | AA59: Prob. 57% | AC59: -48.625 | AD59: -20.875
Y60: P.058: -20,875 S; -48,875 W | AA60: Prob. 58% | AC60: -48.875 | AD60: -20.875
Y61: P.059: -20,875 S; -49,125 W | AA61: Prob. 59% | AC61: -49.125 | AD61: -20.875
Y62: P.060: -20,875 S; -49,375 W | AA62: Prob. 60% | AC62: -49.375 | AD62: -20.875
Y63: P.061: -20,875 S; -49,625 W | AA63: Prob. 61% | AC63: -49.625 | AD63: -20.875
Y64: P.062: -20,875 S; -49,875 W | AA64: Prob. 62% | AC64: -49.875 | AD64: -20.875
Y65: P.063: -20,875 S; -50,125 W | AA65: Prob. 63% | AC65: -50.125 | AD65: -20.875
Y66: P.064: -20,875 S; -50,375 W | AA66: Prob. 64% | AC66: -50.375 | AD66: -20.875
Y67: P.065: -20,875 S; -50,625 W | AA67: Prob. 65% | AC67: -50.625 | AD67: -20.875
Y68: P.066: -20,875 S; -50,875 W | AA68: Prob. 66% | AC68: -50.875 | AD68: -20.875
Y69: P.067: -20,875 S; -51,125 W | AA69: Prob. 67% | AC69: -51.125 | AD69: -20.875
Y70: P.068: -20,875 S; -51,375 W | AA70: Prob. 68% | AC70: -51.375 | AD70: -20.875
Y71: P.069: -20,875 S; -51,625 W | AA71: Prob. 69% | AC71: -51.625 | AD71: -20.875
Y72: P.070: -21,125 S; -47,125 W | AA72: Prob. 70% | AC72: -47.125 | AD72: -21.125
Y73: P.071: -21,125 S; -47,375 W | AA73: Prob. 71% | AC73: -47.375 | AD73: -21.125
Y74: P.072: -21,125 S; -47,625 W | AA74: Prob. 72% | AC74: -47.625 | AD74: -21.125
Y75: P.073: -21,125 S; -47,875 W | AA75: Prob. 73% | AC75: -47.875 | AD75: -21.125
Y76: P.074: -21,125 S; -48,125 W | AA76: Prob. 74% | AC76: -48.125 | AD76: -21.125
Y77: P.075: -21,125 S; -48,375 W | AA77: Prob. 75% | AC77: -48.375 | AD77: -21.125
Y78: P.076: -21,125 S; -48,625 W | AA78: Prob. 76% | AC78: -48.625 | AD78: -21.125
Y79: P.077: -21,125 S; -48,875 W | AA79: Prob. 77% | AC79: -48.875 | AD79: -21.125
Y80: P.078: -21,125 S; -49,125 W | AA80: Prob. 78% | AC80: -49.125 | AD80: -21.125
Y81: P.079: -21,125 S; -49,375 W | AA81: Prob. 79% | AC81: -49.375 | AD81: -21.125
Y82: P.080: -21,125 S; -49,625 W | AA82: Prob. 80% | AC82: -49.625 | AD82: -21.125
Y83: P.081: -21,125 S; -49,875 W | AA83: Prob. 81% | AC83: -49.875 | AD83: -21.125
Y84: P.082: -21,125 S; -50,125 W | AA84: Prob. 82% | AC84: -50.125 | AD84: -21.125
Y85: P.083: -21,125 S; -50,375 W | AA85: Prob. 83% | AC85: -50.375 | AD85: -21.125
Y86: P.084: -21,125 S; -50,625 W | AA86: Prob. 84% | AC86: -50.625 | AD86: -21.125
Y87: P.085: -21,125 S; -50,875 W | AA87: Prob. 85% | AC87: -50.875 | AD87: -21.125
Y88: P.086: -21,125 S; -51,125 W | AA88: Prob. 86% | AC88: -51.125 | AD88: -21.125
Y89: P.087: -21,125 S; -51,375 W | AA89: Prob. 87% | AC89: -51.375 | AD89: -21.125
Y90: P.088: -21,125 S; -51,625 W | AA90: Prob. 88% | AC90: -51.625 | AD90: -21.125
Y91: P.089: -21,125 S; -51,875 W | AA91: Prob. 89% | AC91: -51.875 | AD91: -21.125
Y92: P.090: -21,375 S; -46,625 W | AA92: Prob. 90% | AC92: -46.625 | AD92: -21.375
Y93: P.091: -21,375 S; -46,875 W | AA93: Prob. 91% | AC93: -46.875 | AD93: -21.375
Y94: P.092: -21,375 S; -47,125 W | AA94: Prob. 92% | AC94: -47.125 | AD94: -21.375
Y95: P.093: -21,375 S; -47,375 W | AA95: Prob. 93% | AC95: -47.375 | AD95: -21.375
Y96: P.094: -21,375 S; -47,625 W | AA96: Prob. 94% | AC96: -47.625 | AD96: -21.375
Y97: P.095: -21,375 S; -47,875 W | AA97: Prob. 95% | AC97: -47.875 | AD97: -21.375
Y98: P.096: -21,375 S; -48,125 W | AA98: Prob. 96% | AC98: -48.125 | AD98: -21.375
Y99: P.097: -21,375 S; -48,375 W | AA99: Prob. 97% | AC99: -48.375 | AD99: -21.375
Y100: P.098: -21,375 S; -48,625 W | AA100: Prob. 98% | AC100: -48.625 | AD100: -21.375
Y101: P.099: -21,375 S; -48,875 W | AA101: Prob. 99% | AC101: -48.875 | AD101: -21.375
Y102: P.100: -21,375 S; -49,125 W | AC102: -49.125 | AD102: -21.375
Y103: P.101: -21,375 S; -49,375 W | AC103: -49.375 | AD103: -21.375
Y104: P.102: -21,375 S; -49,625 W | AC104: -49.625 | AD104: -21.375
Y105: P.103: -21,375 S; -49,875 W | AC105: -49.875 | AD105: -21.375
Y106: P.104: -21,375 S; -50,125 W | AC106: -50.125 | AD106: -21.375
Y107: P.105: -21,375 S; -50,375 W | AC107: -50.375 | AD107: -21.375
Y108: P.106: -21,375 S; -50,625 W | AC108: -50.625 | AD108: -21.375
Y109: P.107: -21,375 S; -50,875 W | AC109: -50.875 | AD109: -21.375
Y110: P.108: -21,375 S; -51,125 W | AC110: -51.125 | AD110: -21.375
Y111: P.109: -21,375 S; -51,375 W | AC111: -51.375 | AD111: -21.375
Y112: P.110: -21,375 S; -51,625 W | AC112: -51.625 | AD112: -21.375
Y113: P.111: -21,375 S; -51,875 W | AC113: -51.875 | AD113: -21.375
Y114: P.112: -21,625 S; -46,625 W | AC114: -46.625 | AD114: -21.625
Y115: P.113: -21,625 S; -46,875 W | AC115: -46.875 | AD115: -21.625
Y116: P.114: -21,625 S; -47,125 W | AC116: -47.125 | AD116: -21.625
Y117: P.115: -21,625 S; -47,375 W | AC117: -47.375 | AD117: -21.625
Y118: P.116: -21,625 S; -47,625 W | AC118: -47.625 | AD118: -21.625
Y119: P.117: -21,625 S; -47,875 W | AC119: -47.875 | AD119: -21.625
Y120: P.118: -21,625 S; -48,125 W | AC120: -48.125 | AD120: -21.625
Y121: P.119: -21,625 S; -48,375 W | AC121: -48.375 | AD121: -21.625
Y122: P.120: -21,625 S; -48,625 W | AC122: -48.625 | AD122: -21.625
Y123: P.121: -21,625 S; -48,875 W | AC123: -48.875 | AD123: -21.625
Y124: P.122: -21,625 S; -49,125 W | AC124: -49.125 | AD124: -21.625
Y125: P.123: -21,625 S; -49,375 W | AC125: -49.375 | AD125: -21.625
Y126: P.124: -21,625 S; -49,625 W | AC126: -49.625 | AD126: -21.625
Y127: P.125: -21,625 S; -49,875 W | AC127: -49.875 | AD127: -21.625
Y128: P.126: -21,625 S; -50,125 W | AC128: -50.125 | AD128: -21.625
Y129: P.127: -21,625 S; -50,375 W | AC129: -50.375 | AD129: -21.625
Y130: P.128: -21,625 S; -50,625 W | AC130: -50.625 | AD130: -21.625
Y131: P.129: -21,625 S; -50,875 W | AC131: -50.875 | AD131: -21.625
Y132: P.130: -21,625 S; -51,125 W | AC132: -51.125 | AD132: -21.625
Y133: P.131: -21,625 S; -51,375 W | AC133: -51.375 | AD133: -21.625
Y134: P.132: -21,625 S; -51,625 W | AC134: -51.625 | AD134: -21.625
Y135: P.133: -21,625 S; -51,875 W | AC135: -51.875 | AD135: -21.625
Y136: P.134: -21,875 S; -46,625 W | AC136: -46.625 | AD136: -21.875
Y137: P.135: -21,875 S; -46,875 W | AC137: -46.875 | AD137: -21.875
Y138: P.136: -21,875 S; -47,125 W | AC138: -47.125 | AD138: -21.875
Y139: P.137: -21,875 S; -47,375 W | AC139: -47.375 | AD139: -21.875
Y140: P.138: -21,875 S; -47,625 W | AC140: -47.625 | AD140: -21.875
Y141: P.139: -21,875 S; -47,875 W | AC141: -47.875 | AD141: -21.875
Y142: P.140: -21,875 S; -48,125 W | AC142: -48.125 | AD142: -21.875
Y143: P.141: -21,875 S; -48,375 W | AC143: -48.375 | AD143: -21.875
Y144: P.142: -21,875 S; -48,625 W | AC144: -48.625 | AD144: -21.875
Y145: P.143: -21,875 S; -48,875 W | AC145: -48.875 | AD145: -21.875
Y146: P.144: -21,875 S; -49,125 W | AC146: -49.125 | AD146: -21.875
Y147: P.145: -21,875 S; -49,375 W | AC147: -49.375 | AD147: -21.875
Y148: P.146: -21,875 S; -49,625 W | AC148: -49.625 | AD148: -21.875
Y149: P.147: -21,875 S; -49,875 W | AC149: -49.875 | AD149: -21.875
Y150: P.148: -21,875 S; -50,125 W | AC150: -50.125 | AD150: -21.875
Y151: P.149: -21,875 S; -50,375 W | AC151: -50.375 | AD151: -21.875
Y152: P.150: -21,875 S; -50,625 W | AC152: -50.625 | AD152: -21.875
Y153: P.151: -21,875 S; -50,875 W | AC153: -50.875 | AD153: -21.875
Y154: P.152: -21,875 S; -51,125 W | AC154: -51.125 | AD154: -21.875
Y155: P.153: -21,875 S; -51,375 W | AC155: -51.375 | AD155: -21.875
Y156: P.154: -21,875 S; -51,625 W | AC156: -51.625 | AD156: -21.875
Y157: P.155: -21,875 S; -51,875 W | AC157: -51.875 | AD157: -21.875
Y158: P.156: -21,875 S; -52,125 W | AC158: -52.125 | AD158: -21.875
Y159: P.157: -22,125 S; -46,625 W | AC159: -46.625 | AD159: -22.125
Y160: P.158: -22,125 S; -46,875 W | AC160: -46.875 | AD160: -22.125
Y161: P.159: -22,125 S; -47,125 W | AC161: -47.125 | AD161: -22.125
Y162: P.160: -22,125 S; -47,375 W | AC162: -47.375 | AD162: -22.125
Y163: P.161: -22,125 S; -47,625 W | AC163: -47.625 | AD163: -22.125
Y164: P.162: -22,125 S; -47,875 W | AC164: -47.875 | AD164: -22.125
Y165: P.163: -22,125 S; -48,125 W | AC165: -48.125 | AD165: -22.125
Y166: P.164: -22,125 S; -48,375 W | AC166: -48.375 | AD166: -22.125
Y167: P.165: -22,125 S; -48,625 W | AC167: -48.625 | AD167: -22.125
Y168: P.166: -22,125 S; -48,875 W | AC168: -48.875 | AD168: -22.125
Y169: P.167: -22,125 S; -49,125 W | AC169: -49.125 | AD169: -22.125
Y170: P.168: -22,125 S; -49,375 W | AC170: -49.375 | AD170: -22.125
Y171: P.169: -22,125 S; -49,625 W | AC171: -49.625 | AD171: -22.125
Y172: P.170: -22,125 S; -49,875 W | AC172: -49.875 | AD172: -22.125
Y173: P.171: -22,125 S; -50,125 W | AC173: -50.125 | AD173: -22.125
Y174: P.172: -22,125 S; -50,375 W | AC174: -50.375 | AD174: -22.125
Y175: P.173: -22,125 S; -50,625 W | AC175: -50.625 | AD175: -22.125
Y176: P.174: -22,125 S; -50,875 W | AC176: -50.875 | AD176: -22.125
Y177: P.175: -22,125 S; -51,125 W | AC177: -51.125 | AD177: -22.125
Y178: P.176: -22,125 S; -51,375 W | AC178: -51.375 | AD178: -22.125
Y179: P.177: -22,125 S; -51,625 W | AC179: -51.625 | AD179: -22.125
Y180: P.178: -22,125 S; -51,875 W | AC180: -51.875 | AD180: -22.125
Y181: P.179: -22,125 S; -52,125 W | AC181: -52.125 | AD181: -22.125
Y182: P.180: -22,125 S; -52,375 W | AC182: -52.375 | AD182: -22.125
Y183: P.181: -22,375 S; -46,625 W | AC183: -46.625 | AD183: -22.375
Y184: P.182: -22,375 S; -46,875 W | AC184: -46.875 | AD184: -22.375
Y185: P.183: -22,375 S; -47,125 W | AC185: -47.125 | AD185: -22.375
Y186: P.184: -22,375 S; -47,375 W | AC186: -47.375 | AD186: -22.375
Y187: P.185: -22,375 S; -47,625 W | AC187: -47.625 | AD187: -22.375
Y188: P.186: -22,375 S; -47,875 W | AC188: -47.875 | AD188: -22.375
Y189: P.187: -22,375 S; -48,125 W | AC189: -48.125 | AD189: -22.375
Y190: P.188: -22,375 S; -48,375 W | AC190: -48.375 | AD190: -22.375
Y191: P.189: -22,375 S; -48,625 W | AC191: -48.625 | AD191: -22.375
Y192: P.190: -22,375 S; -48,875 W | AC192: -48.875 | AD192: -22.375
Y193: P.191: -22,375 S; -49,125 W | AC193: -49.125 | AD193: -22.375
Y194: P.192: -22,375 S; -49,375 W | AC194: -49.375 | AD194: -22.375
Y195: P.193: -22,375 S; -49,625 W | AC195: -49.625 | AD195: -22.375
Y196: P.194: -22,375 S; -49,875 W | AC196: -49.875 | AD196: -22.375
Y197: P.195: -22,375 S; -50,125 W | AC197: -50.125 | AD197: -22.375
Y198: P.196: -22,375 S; -50,375 W | AC198: -50.375 | AD198: -22.375
Y199: P.197: -22,375 S; -50,625 W | AC199: -50.625 | AD199: -22.375
Y200: P.198: -22,375 S; -50,875 W | AC200: -50.875 | AD200: -22.375
... 170 more rows

Sheet fdp_cana (hidden)
A1: 1 | B1: =A1+1 -> 2 | C1: =B1+1 -> 3 | D1: 4 | E1: 5 | F1: 6 | G1: 7 | H1: 8 | I1: 9 | J1: 10 | K1: 11 | L1: 12 | M1: 13 | N1: 14 | O1: 15 | P1: 16 | Q1: 17 | R1: 18 | S1: =R1+1 -> 19 | T1: 20 | U1: 21 | V1: 22 | W1: 23 | X1: 24 | Y1: 25 | Z1: 26 | AA1: 27 | AB1: 28 | AC1: 29 | AD1: 30 | AE1: 31 | AF1: 32 | AG1: 33 | AH1: 34 | AI1: 35 | AJ1: 36 | AK1: =AJ1+1 -> 37 | AL1: 38 | AM1: 39 | AN1: 40 | AO1: 41 | AP1: 42 | AQ1: 43 | AR1: 44 | AS1: 45 | AT1: 46 | AU1: 47 | AV1: 48 | AW1: 49 | AX1: 50 | AY1: 51 | AZ1: 52 | BA1: 53 | BB1: 54 | BC1: 55 | BD1: 56 | BE1: 57 | BF1: 58 | BG1: 59 | BH1: 60 | BI1: 61 | BJ1: 62 | BK1: 63 | BL1: 64 | BM1: 65 | BN1: 66 | BO1: =BN1+1 -> 67 | BP1: 68 | BQ1: 69 | BR1: 70 | BS1: 71 | BT1: 72 | BU1: 73 | BV1: 74 | BW1: 75 | BX1: 76 | BY1: 77 | BZ1: 78 | CA1: 79 | CB1: 80 | CC1: 81 | CD1: 82 | CE1: 83 | CF1: 84 | CG1: 85 | CH1: 86 | CI1: 87 | CJ1: 88 | CK1: 89 | CL1: 90 | CM1: 91 | CN1: 92 | CO1: 93 | CP1: 94 | CQ1: 95 | CR1: 96 | CS1: 97 | CT1: 98 | CU1: 99 | CV1: 100 | CW1: 101 | CX1: 102 | CY1: 103 | CZ1: 104 | DA1: 105 | DB1: 106 | DC1: 107 | DD1: 108 | DE1: =DD1+1 -> 109 | DF1: 110 | DG1: 111 | DH1: 112 | DI1: 113 | DJ1: 114 | DK1: 115 | DL1: 116 | DM1: 117 | DN1: 118 | DO1: 119 | DP1: 120 | DQ1: 121 | DR1: 122 | DS1: 123 | DT1: 124 | DU1: 125 | DV1: 126 | DW1: 127 | DX1: 128 | DY1: 129 | DZ1: 130 | EA1: 131 | EB1: 132 | EC1: 133 | ED1: 134 | EE1: 135 | EF1: 136 | EG1: 137 | EH1: 138 | EI1: 139 | EJ1: 140 | EK1: =EJ1+1 -> 141 | EL1: 142 | EM1: 143 | EN1: 144 | EO1: 145 | EP1: 146 | EQ1: 147 | ER1: 148 | ES1: 149 | ET1: 150 | EU1: 151 | EV1: 152 | EW1: 153 | EX1: 154 | EY1: 155 | EZ1: 156 | FA1: 157 | FB1: 158 | FC1: 159 | FD1: 160 | FE1: 161 | FF1: 162 | FG1: 163 | FH1: 164 | FI1: 165 | FJ1: 166 | FK1: 167 | FL1: 168 | FM1: 169 | FN1: 170 | FO1: 171 | FP1: 172 | FQ1: =FP1+1 -> 173 | FR1: 174 | FS1: 175 | FT1: 176 | FU1: 177 | FV1: 178 | FW1: 179 | FX1: 180
A2: Decêndio | B2: Menor | C2: Maior | D2: Média | E2: Des. Pad. | F2: Moda | G2: Parâmetros | I2: Dmax | J2: Dmax | K2: Melhor | L2: P(X = 0) | M2: Valor x | N2: P(X ³ x) | O2: Número de | P2: Tamanho | Q2: Amostra | R2: P(X = 0) | S2: Decêndio | T2: Menor | U2: Maior | V2: Média | W2: Des. Pad. | X2: Moda | Y2: Parâmetros | AA2: Dmax | AB2: Dmax | AC2: Melhor | AD2: P(X = 0) | AE2: Valor x | AF2: P(X ³ x) | AG2: Número de | AH2: Tamanho | AI2: Amostra | AJ2: P(X = 0) | AK2: Decêndio | AL2: Menor | AM2: Maior | AN2: Média | AO2: Des. Pad. | AP2: Moda | AQ2: Parâmetros | AS2: Dmax | AT2: Dmax | AU2: Melhor | AV2: P(X = 0) | AW2: Valor x | AX2: P(X ³ x) | AY2: Número de | AZ2: Tamanho | BA2: Amostra | BB2: P(X = 0) | BC2: Decêndio | BD2: Menor | BE2: Maior | BF2: Média | BG2: Des. Pad. | BH2: Moda | BI2: Parâmetros | BK2: Dmax | BL2: Dmax | BM2: Melhor | BN2: P(X = 0) | BO2: Valor x | BP2: P(X ³ x) | BQ2: Número de | BR2: Tamanho | BS2: Amostra | BT2: P(X = 0) | BU2: Decêndio | BV2: Menor | BW2: Maior | BX2: Média | BY2: Des. Pad. | BZ2: Moda | CA2: Parâmetros | CC2: Dmax | CD2: Dmax | CE2: Melhor | CF2: P(X = 0) | CG2: Valor x | CH2: P(X ³ x) | CI2: Número de | CJ2: Tamanho | CK2: Amostra | CL2: P(X = 0) | CM2: Decêndio | CN2: Menor | CO2: Maior | CP2: Média | CQ2: Des. Pad. | CR2: Moda | CS2: Parâmetros | CU2: Dmax | CV2: Dmax | CW2: Melhor | CX2: P(X = 0) | CY2: Valor x | CZ2: P(X ³ x) | DA2: Número de | DB2: Tamanho | DC2: Amostra | DD2: P(X = 0) | DE2: Decêndio | DF2: Menor | DG2: Maior | DH2: Média | DI2: Des. Pad. | DJ2: Moda | DK2: Parâmetros | DM2: Dmax | DN2: Dmax | DO2: Melhor | DP2: P(X = 0) | DQ2: Valor x | DR2: P(X ³ x) | DS2: Número de | DT2: Tamanho | DU2: Amostra | DV2: P(X = 0) | DW2: Decêndio | DX2: Menor | DY2: Maior | DZ2: Média | EA2: Des. Pad. | EB2: Moda | EC2: Parâmetros | EE2: Dmax | EF2: Dmax | EG2: Melhor | EH2: P(X = 0) | EI2: Valor x | EJ2: P(X ³ x) | EK2: Número de | EL2: Tamanho | EM2: Amostra | EN2: P(X = 0) | EO2: Decêndio | EP2: Menor | EQ2: Maior | ER2: Média | ES2: Des. Pad. | ET2: Moda | EU2: Parâmetros | EW2: Dmax | EX2: Dmax | EY2: Melhor | EZ2: P(X = 0) | FA2: Valor x | FB2: P(X ³ x) | FC2: Número de | FD2: Tamanho | FE2: Amostra | FF2: P(X = 0) | FG2: Decêndio | FH2: Menor | FI2: Maior | FJ2: Média | FK2: Des. Pad. | FL2: Moda | FM2: Parâmetros | FO2: Dmax | FP2: Dmax | FQ2: Melhor | FR2: P(X = 0) | FS2: Valor x | FT2: P(X ³ x) | FU2: Número de | FV2: Tamanho | FW2: Amostra | FX2: P(X = 0)
B3: valor | C3: valor | G3: Alfa | H3: Beta | I3: Tab. 5% | J3: Calculado | K3: fdp (1) | L3: ( % ) | M3: (unidade) | N3: (%) | O3: Decêndios | P3: Amostra | Q3: Zeros | R3: (%) | T3: valor | U3: valor | Y3: Alfa | Z3: Beta | AA3: Tab. 5% | AB3: Calculado | AC3: fdp (1) | AD3: ( % ) | AE3: (unidade) | AF3: (%) | AG3: Decêndios | AH3: Amostra | AI3: Zeros | AJ3: (%) | AL3: valor | AM3: valor | AQ3: Alfa | AR3: Beta | AS3: Tab. 5% | AT3: Calculado | AU3: fdp (1) | AV3: ( % ) | AW3: (unidade) | AX3: (%) | AY3: Decêndios | AZ3: Amostra | BA3: Zeros | BB3: (%) | BD3: valor | BE3: valor | BI3: Alfa | BJ3: Beta | BK3: Tab. 5% | BL3: Calculado | BM3: fdp (1) | BN3: ( % ) | BO3: (unidade) | BP3: (%) | BQ3: Decêndios | BR3: Amostra | BS3: Zeros | BT3: (%) | BV3: valor | BW3: valor | CA3: Alfa | CB3: Beta | CC3: Tab. 5% | CD3: Calculado | CE3: fdp (1) | CF3: ( % ) | CG3: (unidade) | CH3: (%) | CI3: Decêndios | CJ3: Amostra | CK3: Zeros | CL3: (%) | CN3: valor | CO3: valor | CS3: Alfa | CT3: Beta | CU3: Tab. 5% | CV3: Calculado | CW3: fdp (1) | CX3: ( % ) | CY3: (unidade) | CZ3: (%) | DA3: Decêndios | DB3: Amostra | DC3: Zeros | DD3: (%) | DF3: valor | DG3: valor | DK3: Alfa | DL3: Beta | DM3: Tab. 5% | DN3: Calculado | DO3: fdp (1) | DP3: ( % ) | DQ3: (unidade) | DR3: (%) | DS3: Decêndios | DT3: Amostra | DU3: Zeros | DV3: (%) | DX3: valor | DY3: valor | EC3: Alfa | ED3: Beta | EE3: Tab. 5% | EF3: Calculado | EG3: fdp (1) | EH3: ( % ) | EI3: (unidade) | EJ3: (%) | EK3: Decêndios | EL3: Amostra | EM3: Zeros | EN3: (%) | EP3: valor | EQ3: valor | EU3: Alfa | EV3: Beta | EW3: Tab. 5% | EX3: Calculado | EY3: fdp (1) | EZ3: ( % ) | FA3: (unidade) | FB3: (%) | FC3: Decêndios | FD3: Amostra | FE3: Zeros | FF3: (%) | FH3: valor | FI3: valor | FM3: Alfa | FN3: Beta | FO3: Tab. 5% | FP3: Calculado | FQ3: fdp (1) | FR3: ( % ) | FS3: (unidade) | FT3: (%) | FU3: Decêndios | FV3: Amostra | FW3: Zeros | FX3: (%)
A4: Ponto: | B4: 1 | C4: Componente hídrica: | G4: Precipitação (P) | L4: Ponto 1 lat-19,875 lon-50,125 | S4: Ponto: | T4: =B4 -> 1 | U4: Componente hídrica: | Y4: Evapotranspiração de referência (ETo) | AD4: =L4 -> Ponto 1 lat-19,875 lon-50,125 | AK4: Ponto: | AL4: =B4 -> 1 | AM4: Componente hídrica: | AQ4: Evapotranspiração da cultura (ETc) | AV4: =L4 -> Ponto 1 lat-19,875 lon-50,125 | BC4: Ponto: | BD4: =B4 -> 1 | BE4: Componente hídrica: | BI4: Armazenamento da água no solo (Arm) | BN4: =L4 -> Ponto 1 lat-19,875 lon-50,125 | BU4: Ponto: | BV4: =B4 -> 1 | BW4: Componente hídrica: | CA4: Evapotranspiração Real (ETr) | CF4: =L4 -> Ponto 1 lat-19,875 lon-50,125 | CM4: Ponto: | CN4: =B4 -> 1 | CO4: Componente hídrica: | CS4: Deficiência hídrica (Def) | CX4: =L4 -> Ponto 1 lat-19,875 lon-50,125 | DE4: Ponto: | DF4: =B4 -> 1 | DG4: Componente hídrica: | DK4: Excedente hídrico (Exc) | DP4: =L4 -> Ponto 1 lat-19,875 lon-50,125 | DW4: Ponto: | DX4: =B4 -> 1 | DY4: Componente hídrica: | EC4: Temperatura mínima (Tmin) | EH4: =L4 -> Ponto 1 lat-19,875 lon-50,125 | EO4: Ponto: | EP4: =B4 -> 1 | EQ4: Componente hídrica: | EU4: Temperatura máxima (Tmax) | EZ4: =L4 -> Ponto 1 lat-19,875 lon-50,125 | FG4: Ponto: | FH4: =B4 -> 1 | FI4: Componente hídrica: | FM4: Temperatura média (Tmed) | FR4: =L4 -> Ponto 1 lat-19,875 lon-50,125
A5: 1 | B5: 17.82197571 | C5: 204.4501953 | D5: 91.70988464 | E5: 51.0954606 | F5: 64.47903442 | G5: 3.139152288 | H5: 29.2148571 | I5: 0.2283333391 | J5: 0.04557833076 | K5: G | L5: 0 | M5: 53.52501079 | N5: 74.99995349 | O5: 36 | P5: 36 | Q5: 0 | R5: 0 | S5: 1 | T5: 33.19917297 | U5: 55.5 | V5: 43.66164398 | W5: 5.884088507 | X5: 42.49118423 | Y5: 56.04829788 | Z5: 0.7790003419 | AA5: 0.2283333391 | AB5: 0.05791956186 | AC5: N | AD5: 0 | AE5: 47.63034775 | AF5: 25.00028957 | AG5: 36 | AH5: 36 | AI5: 0 | AJ5: 0 | AK5: 1 | AL5: 18.5 | AM5: 50.40000153 | AN5: 34.57499695 | AO5: 9.335535425 | AP5: 42.42500305 | AQ5: 13.14017868 | AR5: 2.631242514 | AS5: 0.2283333391 | AT5: 0.02777785063 | AU5: U | AV5: 0 | AW5: 42.42500114 | AX5: 25 | AY5: 36 | AZ5: 36 | BA5: 0 | BB5: 0 | BC5: 1 | BD5: 11 | BE5: 32.70000076 | BF5: 18.48888969 | BG5: 5.064429587 | BH5: 16.42499924 | BI5: 15.4075861 | BJ5: 1.1999861 | BK5: 0.2283333391 | BL5: 0.06083774567 | BM5: G | BN5: 0 | BO5: 15.13265605 | BP5: 74.9999179 | BQ5: 36 | BR5: 36 | BS5: 0 | BT5: 0 | BU5: 1 | BV5: 18.60000038 | BW5: 50.40000153 | BX5: 34.57499695 | BY5: 9.338136345 | BZ5: 42.45000076 | CA5: 13.15461159 | CB5: 2.628355503 | CC5: 0.2283333391 | CD5: 0.02777785063 | CE5: U | CF5: 0 | CG5: 42.45000124 | CH5: 25 | CI5: 36 | CJ5: 36 | CK5: 0 | CL5: 0 | CM5: 1 | CN5: 2.299999952 | CO5: 85.80000305 | CP5: 32.1222229 | CQ5: 19.38854114 | CR5: 23.17500114 | CS5: 2.745022058 | CT5: 11.70199108 | CU5: 0.2283333391 | CV5: 0.02321666479 | CW5: G | CX5: 0 | CY5: 42.2665647 | CZ5: 25.00001796 | DA5: 36 | DB5: 36 | DC5: 0 | DD5: 0 | DE5: 1 | DF5: 10.30000019 | DG5: 165.8999939 | DH5: 58.92856979 | DI5: 46.18113539 | DJ5: 23.26666641 | DK5: 1.750813842 | DL5: 33.65781403 | DM5: 0.2315722704 | DN5: 0.06389003992 | DO5: E | DP5: 2.702702703 | DQ5: 80.07769721 | DR5: 25.00002734 | DS5: 36 | DT5: 36 | DU5: 1 | DV5: 2.702702703 | DW5: 1 | EO5: 1 | FG5: 1 | FH5: tmed
A6: 2 | B6: 10.98242188 | C6: 213.6464844 | D6: 86.38327026 | E6: 53.39870439 | F6: 61.6484375 | G6: 2.36325717 | H6: 36.55263138 | I6: 0.2283333391 | J6: 0.03301215172 | K6: G | L6: 0 | M6: 52.69438175 | N6: 75.00000295 | O6: 36 | P6: 36 | Q6: 0 | R6: 0 | S6: 2 | T6: 30.32362747 | U6: 60.36328125 | V6: 44.93407059 | W6: 6.961101355 | X6: 47.8467598 | Y6: 42.28809738 | Z6: 1.062570214 | AA6: 0.2283333391 | AB6: 0.02363574505 | AC6: N | AD6: 0 | AE6: 49.62927743 | AF6: 24.99993 | AG6: 36 | AH6: 36 | AI6: 0 | AJ6: 0 | AK6: 2 | AL6: 11 | AM6: 49.5 | AN6: 32.41388702 | AO6: 9.128796767 | AP6: 33.45833206 | AQ6: 10.52523994 | AR6: 3.079633951 | AS6: 0.2283333391 | AT6: 0.0531411767 | AU6: N | AV6: 0 | AW6: 38.57118566 | AX6: 24.99993463 | AY6: 36 | AZ6: 36 | BA6: 0 | BB6: 0 | BC6: 2 | BD6: 9.899999619 | BE6: 29.39999962 | BF6: 17.88055611 | BG6: 5.64015293 | BH6: 14.77499962 | BI6: 10.37061977 | BJ6: 1.724155068 | BK6: 0.2283333391 | BL6: 0.06746646762 | BM6: G | BN6: 0 | BO6: 13.8907861 | BP6: 75.00000077 | BQ6: 36 | BR6: 36 | BS6: 0 | BT6: 0 | BU6: 2 | BV6: 11 | BW6: 49.59999847 | BX6: 32.44721985 | BY6: 9.157744719 | BZ6: 33.51666641 | CA6: 10.48620701 | CB6: 3.09427619 | CC6: 0.2283333391 | CD6: 0.078386724 | CE6: N | CF6: 0 | CG6: 38.62404323 | CH6: 24.99993603 | CI6: 36 | CJ6: 36 | CK6: 0 | CL6: 0 | CM6: 2 | CN6: 0.200000003 | CO6: 76.90000153 | CP6: 29.7555542 | CQ6: 17.38369555 | CR6: 32.15833282 | CS6: 2.032007217 | CT6: 14.64342976 | CU6: 0.2283333391 | CV6: 0.07514280081 | CW6: N | CX6: 0 | CY6: 41.48065987 | CZ6: 25.00003437 | DA6: 36 | DB6: 36 | DC6: 0 | DD6: 0 | DE6: 2 | DF6: 0.6999999881 | DG6: 161.3000031 | DH6: 58.18000031 | DI6: 46.64957515 | DJ6: 14.08333302 | DK6: 1.204601288 | DL6: 48.29813766 | DM6: 0.2315722704 | DN6: 0.07769340277 | DO6: G | DP6: 2.702702703 | DQ6: 78.93800483 | DR6: 25.00001011 | DS6: 36 | DT6: 36 | DU6: 1 | DV6: 2.702702703 | DW6: 2 | EO6: 2 | FG6: 2
A7: 3 | B7: 7.085723877 | C7: 204.9823303 | D7: 92.46414948 | E7: 53.87691231 | F7: 89.54264832 | G7: 2.374601603 | H7: 38.93880463 | I7: 0.2283333391 | J7: 0.0418806076 | K7: N | L7: 0 | M7: 51.25595967 | N7: 74.99964947 | O7: 36 | P7: 36 | Q7: 0 | R7: 0 | S7: 3 | T7: 29.79763412 | U7: 54.9253273 | V7: 43.25303268 | W7: 7.017259029 | X7: 48.6434021 | Y7: 37.48601532 | Z7: 1.153844476 | AA7: 0.2283333391 | AB7: 0.06127256155 | AC7: N | AD7: 0 | AE7: 47.98609715 | AF7: 25.00002183 | AG7: 36 | AH7: 36 | AI7: 0 | AJ7: 0 | AK7: 3 | AL7: 10.30000019 | AM7: 50.09999847 | AN7: 31.85555267 | AO7: 8.398212661 | AP7: 26.88333321 | AQ7: 12.85042953 | AR7: 2.478948355 | AS7: 0.2283333391 | AT7: 0.05290469527 | AU7: N | AV7: 0 | AW7: 37.52008631 | AX7: 24.99990435 | AY7: 36 | AZ7: 36 | BA7: 0 | BB7: 0 | BC7: 3 | BD7: 9.899999619 | BE7: 35.40000153 | BF7: 18.83333206 | BG7: 6.140823788 | BH7: 12.02499962 | BI7: 10.02173138 | BJ7: 1.879249334 | BK7: 0.2283333391 | BL7: 0.05050504208 | BM7: T | BN7: 0 | BO7: 56.54348896 | BP7: 75.00001943 | BQ7: 36 | BR7: 36 | BS7: 0 | BT7: 0 | BU7: 3 | BV7: 10.30000019 | BW7: 50.09999847 | BX7: 31.83610725 | BY7: 8.384071561 | BZ7: 26.88333321 | CA7: 12.87751961 | CB7: 2.47222352 | CC7: 0.2283333391 | CD7: 0.05290469527 | CE7: N | CF7: 0 | CG7: 37.49110319 | CH7: 24.99990295 | CI7: 36 | CJ7: 36 | CK7: 0 | CL7: 0 | CM7: 3 | CN7: 3.200000048 | CO7: 86.09999847 | CP7: 33.56666946 | CQ7: 23.46689953 | CR7: 37.74166489 | CS7: 1.820873022 | CT7: 18.43438148 | CU7: 0.2283333391 | CV7: 0.08264607191 | CW7: G | CX7: 0 | CY7: 45.46675406 | CZ7: 25.00000414 | DA7: 36 | DB7: 36 | DC7: 0 | DD7: 0 | DE7: 3 | DF7: 5.699999809 | DG7: 151.5 | DH7: 62.59410858 | DI7: 45.44986721 | DJ7: 17.84999847 | DK7: 1.471869826 | DL7: 42.52693176 | DM7: 0.2349530607 | DN7: 0.1140819788 | DO7: T | DP7: 5.405405405 | DQ7: 79.73707463 | DR7: 25.00000502 | DS7: 36 | DT7: 36 | DU7: 2 | DV7: 5.405405405 | DW7: 3 | EO7: 3 | FG7: 3
A8: 4 | B8: 2.584442139 | C8: 311.25 | D8: 75.05632782 | E8: 60.01192508 | F8: 28.30657196 | G8: 1.743374705 | H8: 43.05232239 | I8: 0.2283333391 | J8: 0.03185099363 | K8: E | L8: 0 | M8: 31.74990478 | N8: 75.00000159 | O8: 36 | P8: 36 | Q8: 0 | R8: 0 | S8: 4 | T8: 30.74147797 | U8: 64.22265625 | V8: 45.04854584 | W8: 7.285678025 | X8: 44.69197083 | Y8: 39.57503891 | Z8: 1.138307095 | AA8: 0.2283333391 | AB8: 0.02332657576 | AC8: N | AD8: 0 | AE8: 49.96268924 | AF8: 24.99987679 | AG8: 36 | AH8: 36 | AI8: 0 | AJ8: 0 | AK8: 4 | AL8: 4.199999809 | AM8: 51.29999924 | AN8: 28.72222137 | AO8: 9.66055666 | AP8: 23.82499886 | AQ8: 6.375510216 | AR8: 4.505085945 | AS8: 0.2283333391 | AT8: 0.04330909997 | AU8: N | AV8: 0 | AW8: 35.23803121 | AX8: 25.00044937 | AY8: 36 | AZ8: 36 | BA8: 0 | BB8: 0 | BC8: 4 | BD8: 10 | BE8: 31 | BF8: 17.94166374 | BG8: 5.57470701 | BH8: 15.25 | BI8: 11.48051643 | BJ8: 1.56279242 | BK8: 0.2283333391 | BL8: 0.06739203632 | BM8: G | BN8: 0 | BO8: 14.1451559 | BP8: 74.99923937 | BQ8: 36 | BR8: 36 | BS8: 0 | BT8: 0 | BU8: 4 | BV8: 4.199999809 | BW8: 51.40000153 | BX8: 28.72222137 | BY8: 9.657362 | BZ8: 23.86666679 | CA8: 6.381065369 | CB8: 4.50116396 | CC8: 0.2283333391 | CD8: 0.0338626802 | CE8: N | CF8: 0 | CG8: 35.23587726 | CH8: 25.00044685 | CI8: 36 | CJ8: 36 | CK8: 0 | CL8: 0 | CM8: 4 | CN8: 1.600000024 | CO8: 75.59999847 | CP8: 25.55555534 | CQ8: 17.7438189 | CR8: 20.10000038 | CS8: 1.758420944 | CT8: 14.53324127 | CU8: 0.2283333391 | CV8: 0.07038721442 | CW8: G | CX8: 0 | CY8: 34.68914614 | CZ8: 25.00094759 | DA8: 36 | DB8: 36 | DC8: 0 | DD8: 0 | DE8: 4 | DF8: 0.3000000119 | DG8: 247.5 | DH8: 48.75294113 | DI8: 51.21417383 | DJ8: 20.89999962 | DK8: 0.9574549794 | DL8: 50.91930389 | DM8: 0.2349530607 | DN8: 0.04027915001 | DO8: G | DP8: 5.405405405 | DQ8: 64.82063517 | DR8: 25.00074435 | DS8: 36 | DT8: 36 | DU8: 2 | DV8: 5.405405405 | DW8: 4 | EO8: 4 | FG8: 4
A9: 5 | B9: 1.31980896 | C9: 148.4580078 | D9: 67.06735229 | E9: 39.59152704 | F9: 38.10435867 | G9: 2.022904158 | H9: 33.15399551 | I9: 0.2283333391 | J9: 0.09773921967 | K9: G | L9: 0 | M9: 49.9510215 | N9: 75.00042824 | O9: 36 | P9: 36 | Q9: 0 | R9: 0 | S9: 5 | T9: 35.32038498 | U9: 55.78891754 | V9: 44.37524796 | W9: 5.380849095 | X9: 43.8489418 | Y9: 69.9675827 | Z9: 0.6342258453 | AA9: 0.2283333391 | AB9: 0.02486169338 | AC9: G | AD9: 0 | AE9: 47.82914803 | AF9: 24.9995964 | AG9: 36 | AH9: 36 | AI9: 0 | AJ9: 0 | AK9: 5 | AL9: 2.299999952 | AM9: 51.59999847 | AN9: 29.06110573 | AO9: 10.78057169 | AP9: 22.84166527 | AQ9: 5.295527458 | AR9: 5.487858772 | AS9: 0.2283333391 | AT9: 0.06782367826 | AU9: N | AV9: 0 | AW9: 36.33249378 | AX9: 24.99999132 | AY9: 36 | AZ9: 36 | BA9: 0 | BB9: 0 | BC9: 5 | BD9: 10 | BE9: 39.29999924 | BF9: 20.72777748 | BG9: 7.468203728 | BH9: 12.4416666 | BI9: 8.00001812 | BJ9: 2.590966225 | BK9: 0.2283333391 | BL9: 0.07070705295 | BM9: T | BN9: 0 | BO9: 63.59427237 | BP9: 74.99998257 | BQ9: 36 | BR9: 36 | BS9: 0 | BT9: 0 | BU9: 5 | BV9: 2.299999952 | BW9: 51.29999924 | BX9: 29.01388931 | BY9: 10.72026527 | BZ9: 22.71666718 | CA9: 5.316147804 | CB9: 5.457690716 | CC9: 0.2283333391 | CD9: 0.06782364845 | CE9: N | CF9: 0 | CG9: 36.24460122 | CH9: 24.9999915 | CI9: 36 | CJ9: 36 | CK9: 0 | CL9: 0 | CM9: 5 | CN9: 1 | CO9: 82.5 | CP9: 23.83889008 | CQ9: 16.22427257 | CR9: 7.791666508 | CS9: 1.774120688 | CT9: 13.43701744 | CU9: 0.2283333391 | CV9: 0.06005108356 | CW9: N | CX9: 0 | CY9: 34.78199392 | CZ9: 25.00000333 | DA9: 36 | DB9: 36 | DC9: 0 | DD9: 0 | DE9: 5 | DF9: 6.400000095 | DG9: 132.6000061 | DH9: 42.99999237 | DI9: 30.20095153 | DJ9: 16.91666794 | DK9: 1.964000702 | DL9: 21.89408112 | DM9: 0.2421840727 | DN9: 0.06493908167 | DO9: G | DP9: 10.81081081 | DQ9: 54.52537097 | DR9: 25.00093038 | DS9: 36 | DT9: 36 | DU9: 4 | DV9: 10.81081081 | DW9: 5 | EO9: 5 | FG9: 5
A10: 6 | B10: 10.74819946 | C10: 137.5253906 | D10: 66.87980652 | E10: 37.09792422 | F10: 21.31296539 | G10: 2.644995928 | H10: 25.28540993 | I10: 0.2283333391 | J10: 0.06079006195 | K10: N | L10: 0 | M10: 36.79441802 | N10: 74.99996816 | O10: 36 | P10: 36 | Q10: 0 | R10: 0 | S10: 6 | T10: 34.9982338 | U10: 51.5973053 | V10: 43.80760193 | W10: 5.012807845 | X10: 50.21405029 | Y10: 76.66553497 | Z10: 0.5714119673 | AA10: 0.2283333391 | AB10: 0.0825843811 | AC10: N | AD10: 0 | AE10: 47.18868888 | AF10: 25.00000352 | AG10: 36 | AH10: 36 | AI10: 0 | AJ10: 0 | AK10: 6 | AL10: 10.10000038 | AM10: 39.70000076 | AN10: 24.21111298 | AO10: 7.527540884 | AP10: 22.43333435 | AQ10: 9.942679405 | AR10: 2.435069323 | AS10: 0.2283333391 | AT10: 0.02974283695 | AU10: N | AV10: 0 | AW10: 29.2883873 | AX10: 24.99989382 | AY10: 36 | AZ10: 36 | BA10: 0 | BB10: 0 | BC10: 6 | BD10: 12.5 | BE10: 138.5 | BF10: 65.2527771 | BG10: 32.5621926 | BH10: 65 | BI10: 3.302917957 | BJ10: 19.7560997 | BK10: 0.2283333391 | BL10: 0.064891994 | BM10: N | BN10: 0 | BO10: 43.28991929 | BP10: 74.99999283 | BQ10: 36 | BR10: 36 | BS10: 0 | BT10: 0 | BU10: 6 | BV10: 10.10000038 | BW10: 39.79999924 | BX10: 24.20278168 | BY10: 7.527415205 | BZ10: 22.47500038 | CA10: 9.945680618 | CB10: 2.433496714 | CC10: 0.2283333391 | CD10: 0.03669971228 | CE10: G | CF10: 0 | CG10: 28.84589642 | CH10: 24.99951133 | CI10: 36 | CJ10: 36 | CK10: 0 | CL10: 0 | CM10: 6 | CN10: 0.8999999762 | CO10: 84.59999847 | CP10: 25.89999962 | CQ10: 17.55974299 | CR10: 35.77499771 | CS10: 1.690089107 | CT10: 15.32463551 | CU10: 0.2283333391 | CV10: 0.06272192299 | CW10: N | CX10: 0 | CY10: 37.74386462 | CZ10: 25.00000302 | DA10: 36 | DB10: 36 | DC10: 0 | DD10: 0 | DE10: 6 | DF10: 0.400000006 | DG10: 114.5 | DH10: 45.70588684 | DI10: 32.37605573 | DJ10: 28.92499924 | DK10: 1.154385924 | DL10: 39.59324646 | DM10: 0.2349530607 | DN10: 0.08211952448 | DO10: G | DP10: 5.405405405 | DQ10: 60.86414265 | DR10: 25.00069411 | DS10: 36 | DT10: 36 | DU10: 2 | DV10: 5.405405405 | DW10: 6 | EO10: 6 | FG10: 6
A11: 7 | B11: 8.472915649 | C11: 307.875 | D11: 69.73539734 | E11: 60.42773561 | F11: 33.42308807 | G11: 1.518699169 | H11: 45.91784668 | I11: 0.2283333391 | J11: 0.04979908466 | K11: G | L11: 0 | M11: 32.65467441 | N11: 74.99997182 | O11: 36 | P11: 36 | Q11: 0 | R11: 0 | S11: 7 | T11: 26.47956848 | U11: 53.03738403 | V11: 42.77433395 | W11: 6.607379729 | X11: 41.97162628 | Y11: 39.9140892 | Z11: 1.071660042 | AA11: 0.2283333391 | AB11: 0.05353337526 | AC11: N | AD11: 0 | AE11: 47.23093818 | AF11: 25.00002728 | AG11: 36 | AH11: 36 | AI11: 0 | AJ11: 0 | AK11: 7 | AL11: 8.199999809 | AM11: 37.70000076 | AN11: 18.77500153 | AO11: 7.455826947 | AP11: 20.49166679 | AQ11: 6.284581661 | AR11: 2.987470388 | AS11: 0.2283333391 | AT11: 0.04934501648 | AU11: G | AV11: 0 | AW11: 23.14409405 | AX11: 25.00000276 | AY11: 36 | AZ11: 36 | BA11: 0 | BB11: 0 | BC11: 7 | BD11: 15.69999981 | BE11: 250.1999969 | BF11: 124.9666748 | BG11: 59.21903859 | BH11: 113.4083328 | BI11: 3.080701351 | BJ11: 40.56435776 | BK11: 0.2283333391 | BL11: 0.0548889637 | BM11: N | BN11: 0 | BO11: 85.02398854 | BP11: 75.00002775 | BQ11: 36 | BR11: 36 | BS11: 0 | BT11: 0 | BU11: 7 | BV11: 8.199999809 | BW11: 37.70000076 | BX11: 18.7694416 | BY11: 7.443571289 | BZ11: 20.49166679 | CA11: 6.322612762 | CB11: 2.968621016 | CC11: 0.2283333391 | CD11: 0.05006402731 | CE11: G | CF11: 0 | CG11: 23.12653049 | CH11: 25.00000293 | CI11: 36 | CJ11: 36 | CK11: 0 | CL11: 0 | CM11: 7 | CN11: 1.200000048 | CO11: 170.1000061 | CP11: 32.58055115 | CQ11: 31.70394224 | CR11: 15.27500057 | CS11: 1.186432838 | CT11: 27.46093178 | CU11: 0.2283333391 | CV11: 0.05280399323 | CW11: G | CX11: 0 | CY11: 45.03355118 | CZ11: 25.00000088 | DA11: 36 | DB11: 36 | DC11: 0 | DD11: 0 | DE11: 7 | DF11: 0.1000000015 | DG11: 307.3999939 | DH11: 58.02499771 | DI11: 60.18003385 | DJ11: 25.70833397 | DK11: 0.9063047767 | DL11: 64.02371216 | DM11: 0.2421840727 | DN11: 0.04362714291 | DO11: E | DP11: 10.81081081 | DQ11: 73.80106197 | DR11: 25.00000207 | DS11: 36 | DT11: 36 | DU11: 4 | DV11: 10.81081081 | DW11: 7 | EO11: 7 | FG11: 7
A12: 8 | B12: 3.841119766 | C12: 135.234375 | D12: 59.39512634 | E12: 33.34899758 | F12: 58.58831024 | G12: 2.551523685 | H12: 23.27829742 | I12: 0.2283333391 | J12: 0.05140405893 | K12: N | L12: 0 | M12: 28.37483063 | N12: 75.00000116 | O12: 36 | P12: 36 | Q12: 0 | R12: 0 | S12: 8 | T12: 29.37276268 | U12: 47.4683342 | V12: 39.61086655 | W12: 4.597868027 | X12: 36.9125824 | Y12: 75.63410187 | Z12: 0.5237170458 | AA12: 0.2283333391 | AB12: 0.05564427376 | AC12: N | AD12: 0 | AE12: 42.7121894 | AF12: 24.99925357 | AG12: 36 | AH12: 36 | AI12: 0 | AJ12: 0 | AK12: 8 | AL12: 5 | AM12: 26.10000038 | AN12: 13.93611145 | AO12: 4.897529968 | AP12: 13.79166698 | AQ12: 7.902468204 | AR12: 1.763513803 | AS12: 0.2283333391 | AT12: 0.02809196711 | AU12: G | AV12: 0 | AW12: 16.88562347 | AX12: 24.99999826 | AY12: 36 | AZ12: 36 | BA12: 0 | BB12: 0 | BC12: 8 | BD12: 25 | BE12: 221.1999969 | BF12: 126.8250046 | BG12: 57.42048893 | BH12: 106.75 | BI12: 3.494357347 | BJ12: 36.2942276 | BK12: 0.2283333391 | BL12: 0.08079475164 | BM12: N | BN12: 0 | BO12: 88.09550134 | BP12: 74.99998451 | BQ12: 36 | BR12: 36 | BS12: 0 | BT12: 0 | BU12: 8 | BV12: 4.800000191 | BW12: 26 | BX12: 13.92777729 | BY12: 4.926755393 | BZ12: 10.10000038 | CA12: 7.741403103 | CB12: 1.799128294 | CC12: 0.2283333391 | CD12: 0.04559212923 | CE12: G | CF12: 0 | CG12: 16.90116436 | CH12: 24.99999871 | CI12: 36 | CJ12: 36 | CK12: 0 | CL12: 0 | CM12: 8 | CN12: 2.200000048 | CO12: 69.59999847 | CP12: 25.37222481 | CQ12: 14.67243503 | CR12: 30.28333092 | CS12: 2.688161135 | CT12: 9.438506126 | CU12: 0.2283333391 | CV12: 0.07661640644 | CW12: N | CX12: 0 | CY12: 35.26866005 | CZ12: 24.99993891 | DA12: 36 | DB12: 36 | DC12: 0 | DD12: 0 | DE12: 8 | DF12: 4.800000191 | DG12: 133.1000061 | DH12: 47.75151443 | DI12: 32.43108115 | DJ12: 36.87500381 | DK12: 1.858523965 | DL12: 25.69324684 | DM12: 0.2384863943 | DN12: 0.07033887506 | DO12: G | DP12: 8.108108108 | DQ12: 61.69687703 | DR12: 25.0004518 | DS12: 36 | DT12: 36 | DU12: 3 | DV12: 8.108108108 | DW12: 8 | EO12: 8 | FG12: 8
A13: 9 | B13: 0.62890625 | C13: 119.4258728 | D13: 41.93801498 | E13: 28.02459182 | F13: 10.52865314 | G13: 1.441225648 | H13: 29.09885406 | I13: 0.2283333391 | J13: 0.07070705295 | K13: T | L13: 0 | M13: 14.14485955 | N13: 74.99919373 | O13: 36 | P13: 36 | Q13: 0 | R13: 0 | S13: 9 | T13: 24.80220604 | U13: 48.68755341 | V13: 39.30020142 | W13: 4.642444395 | X13: 38.73532486 | Y13: 69.66601562 | Z13: 0.5641229749 | AA13: 0.2283333391 | AB13: 0.07349318266 | AC13: N | AD13: 0 | AE13: 42.43148597 | AF13: 24.99997677 | AG13: 36 | AH13: 36 | AI13: 0 | AJ13: 0 | AK13: 9 | AL13: 1.899999976 | AM13: 24.89999962 | AN13: 11.79999924 | AO13: 4.523904674 | AP13: 11.48333359 | AQ13: 5.474821568 | AR13: 2.15532136 | AS13: 0.2283333391 | AT13: 0.05169779062 | AU13: N | AV13: 0 | AW13: 14.85128901 | AX13: 25.00026383 | AY13: 36 | AZ13: 36 | BA13: 0 | BB13: 0 | BC13: 9 | BD13: 15.10000038 | BE13: 227.3000031 | BF13: 121.1083145 | BG13: 52.23894592 | BH13: 103.5166702 | BI13: 3.738958836 | BJ13: 32.39091873 | BK13: 0.2283333391 | BL13: 0.02074241638 | BM13: N | BN13: 0 | BO13: 85.87370706 | BP13: 74.99998411 | BQ13: 36 | BR13: 36 | BS13: 0 | BT13: 0 | BU13: 9 | BV13: 1.899999976 | BW13: 25 | BX13: 11.78611088 | BY13: 4.529657544 | BZ13: 11.52499962 | CA13: 5.444777966 | CB13: 2.164663315 | CC13: 0.2283333391 | CD13: 0.06827741861 | CE13: N | CF13: 0 | CG13: 14.8412832 | CH13: 25.0002474 | CI13: 36 | CJ13: 36 | CK13: 0 | CL13: 0 | CM13: 9 | CN13: 1.200000048 | CO13: 58.40000153 | CP13: 21.87428665 | CQ13: 15.05201451 | CR13: 5.966667175 | CS13: 1.690462232 | CT13: 12.93982601 | CU13: 0.2315722704 | CV13: 0.07186149061 | CW13: T | CX13: 2.702702703 | CY13: 30.63987841 | CZ13: 25.00000158 | DA13: 36 | DB13: 36 | DC13: 1 | DD13: 2.702702703 | DE13: 9 | DF13: 0.8000000119 | DG13: 92.69999695 | DH13: 36.28710175 | DI13: 25.18681785 | DJ13: 9.989999771 | DK13: 1.245927572 | DL13: 29.12456703 | DM13: 0.2460592687 | DN13: 0.1161290109 | DO13: T | DP13: 13.51351351 | DQ13: 45.82592752 | DR13: 25.00000349 | DS13: 36 | DT13: 36 | DU13: 5 | DV13: 13.51351351 | DW13: 9 | EO13: 9 | FG13: 9
A14: 10 | B14: 0.1890411377 | C14: 94.69784546 | D14: 33.69490051 | E14: 27.69334994 | F14: 8.064775467 | G14: 1.055943489 | H14: 31.90975761 | I14: 0.2283333391 | J14: 0.08770012856 | K14: E | L14: 0 | M14: 9.067709979 | N14: 74.99999868 | O14: 36 | P14: 36 | Q14: 0 | R14: 0 | S14: 10 | T14: 30.45761681 | U14: 46.56860352 | V14: 38.96902847 | W14: 4.434827833 | X14: 42.54085541 | Y14: 77.87709808 | Z14: 0.5003913641 | AA14: 0.2283333391 | AB14: 0.05375599861 | AC14: N | AD14: 0 | AE14: 41.96025538 | AF14: 25.00013625 | AG14: 36 | AH14: 36 | AI14: 0 | AJ14: 0 | AK14: 10 | AL14: 3.200000048 | AM14: 19.20000076 | AN14: 9.441666603 | AO14: 4.34855463 | AP14: 9.866666794 | AQ14: 4.679860115 | AR14: 2.017510414 | AS14: 0.2283333391 | AT14: 0.07484340668 | AU14: G | AV14: 0 | AW14: 11.91046731 | AX14: 25.0000753 | AY14: 36 | AZ14: 36 | BA14: 0 | BB14: 0 | BC14: 10 | BD14: 7.5 | BE14: 203.5 | BF14: 109.5055618 | BG14: 46.99611437 | BH14: 89.16667175 | BI14: 3.383396626 | BJ14: 32.36557007 | BK14: 0.2283333391 | BL14: 0.04695782065 | BM14: N | BN14: 0 | BO14: 77.80669977 | BP14: 75.00031416 | BQ14: 36 | BR14: 36 | BS14: 0 | BT14: 0 | BU14: 10 | BV14: 3.299999952 | BW14: 19.29999924 | BX14: 9.500002861 | BY14: 4.383280085 | BZ14: 9.966666222 | CA14: 4.643903255 | CB14: 2.045693636 | CC14: 0.2283333391 | CD14: 0.04522389174 | CE14: G | CF14: 0 | CG14: 11.99141054 | CH14: 25.00001839 | CI14: 36 | CJ14: 36 | CK14: 0 | CL14: 0 | CM14: 10 | CN14: 0.6000000238 | CO14: 48.59999847 | CP14: 18.06388664 | CQ14: 13.60790055 | CR14: 4.599999905 | CS14: 1.214244604 | CT14: 14.87664604 | CU14: 0.2283333391 | CV14: 0.1145426929 | CW14: N | CX14: 0 | CY14: 27.24227397 | CZ14: 25.00000493 | DA14: 36 | DB14: 36 | DC14: 0 | DD14: 0 | DE14: 10 | DF14: 1.299999952 | DG14: 78.09999847 | DH14: 32.1071434 | DI14: 22.95609239 | DJ14: 8.979999542 | DK14: 1.494714856 | DL14: 21.48044777 | DM14: 0.2589056492 | DN14: 0.1024145484 | DO14: G | DP14: 21.62162162 | DQ14: 37.60222302 | DR14: 25.00066253 | DS14: 36 | DT14: 36 | DU14: 8 | DV14: 21.62162162 | DW14: 10 | EO14: 10 | FG14: 10
A15: 11 | B15: 0.1107177734 | C15: 124.888916 | D15: 35.60699081 | E15: 27.72521085 | F15: 10.50890064 | G15: 1.153680444 | H15: 30.86382484 | I15: 0.2349530607 | J15: 0.06751871109 | K15: G | L15: 5.405405405 | M15: 7.555789655 | N15: 74.99999873 | O15: 36 | P15: 36 | Q15: 2 | R15: 5.405405405 | S15: 11 | T15: 29.16921997 | U15: 44.88368607 | V15: 37.10729218 | W15: 3.873581904 | X15: 35.71691513 | Y15: 94.32167816 | Z15: 0.393412143 | AA15: 0.2283333391 | AB15: 0.05257743597 | AC15: G | AD15: 0 | AE15: 39.60806809 | AF15: 24.9994132 | AG15: 36 | AH15: 36 | AI15: 0 | AJ15: 0 | AK15: 11 | AL15: 0.1000000015 | AM15: 13.39999962 | AN15: 6.763890266 | AO15: 3.598504148 | AP15: 5.641666889 | AQ15: 1.747707129 | AR15: 3.870150805 | AS15: 0.2283333391 | AT15: 0.03717122972 | AU15: N | AV15: 0 | AW15: 9.191047622 | AX15: 24.99997181 | AY15: 36 | AZ15: 36 | BA15: 0 | BB15: 0 | BC15: 11 | BD15: 10 | BE15: 190.8000031 | BF15: 112.7944565 | BG15: 51.3389472 | BH15: 175.7333374 | BI15: 3.041070461 | BJ15: 37.09037781 | BK15: 0.2283333391 | BL15: 0.07648986578 | BM15: N | BN15: 0 | BO15: 78.16686808 | BP15: 74.99999674 | BQ15: 36 | BR15: 36 | BS15: 0 | BT15: 0 | BU15: 11 | BV15: 0.1000000015 | BW15: 13.30000019 | BX15: 6.799999714 | BY15: 3.595076076 | BZ15: 5.599999905 | CA15: 1.75138998 | CB15: 3.882630348 | CC15: 0.2283333391 | CD15: 0.04602091014 | CE15: N | CF15: 0 | CG15: 9.22484621 | CH15: 24.99995994 | CI15: 36 | CJ15: 36 | CK15: 0 | CL15: 0 | CM15: 11 | CN15: 0.1000000015 | CO15: 42.40000153 | CP15: 18.08856773 | CQ15: 12.07361593 | CR15: 17.72500038 | CS15: 1.122514963 | CT15: 16.11432266 | CU15: 0.2315722704 | CV15: 0.069231987 | CW15: N | CX15: 2.702702703 | CY15: 25.97016499 | CZ15: 24.99997556 | DA15: 36 | DB15: 36 | DC15: 1 | DD15: 2.702702703 | DE15: 11 | DF15: 0.3000000119 | DG15: 93.40000153 | DH15: 30.11333275 | DI15: 24.11701035 | DJ15: 9.61000061 | DK15: 1.140879273 | DL15: 26.39484596 | DM15: 0.2501266301 | DN15: 0.07720977068 | DO15: G | DP15: 16.21621622 | DQ15: 36.6820584 | DR15: 24.99999099 | DS15: 36 | DT15: 36 | DU15: 6 | DV15: 16.21621622 | DW15: 11 | EO15: 11 | FG15: 11
A16: 12 | B16: 0.03268432617 | C16: 69.71875 | D16: 16.1369915 | E16: 15.42515113 | F16: 7.001290798 | G16: 0.6993095875 | H16: 23.07560539 | I16: 0.2460592687 | J16: 0.0387493968 | K16: E | L16: 13.51351351 | M16: 4.499371744 | N16: 75.0000195 | O16: 36 | P16: 36 | Q16: 5 | R16: 13.51351351 | S16: 12 | T16: 28.31672859 | U16: 41.39929581 | V16: 35.83522034 | W16: 3.159592171 | X16: 35.94822693 | Y16: 127.0224991 | Z16: 0.2821170986 | AA16: 0.2283333391 | AB16: 0.08010977507 | AC16: N | AD16: 0 | AE16: 37.96633514 | AF16: 24.99997714 | AG16: 36 | AH16: 36 | AI16: 0 | AJ16: 0 | AK16: 12 | AL16: 0.1000000015 | AM16: 12.5 | AN16: 5.835294247 | AO16: 3.174890447 | AP16: 7.333333015 | AQ16: 2.092275858 | AR16: 2.788969755 | AS16: 0.2349530607 | AT16: 0.07526752353 | AU16: N | AV16: 5.405405405 | AW16: 7.835990474 | AX16: 25.00080319 | AY16: 36 | AZ16: 36 | BA16: 2 | BB16: 5.405405405 | BC16: 12 | BD16: 9.199999809 | BE16: 157.5 | BF16: 100.8027649 | BG16: 40.80295609 | BH16: 95.70833588 | BI16: 3.192756414 | BJ16: 31.57233238 | BK16: 0.2283333391 | BL16: 0.1215382367 | BM16: N | BN16: 0 | BO16: 73.28159778 | BP16: 74.99999334 | BQ16: 36 | BR16: 36 | BS16: 0 | BT16: 0 | BU16: 12 | BV16: 0.1000000015 | BW16: 12.60000038 | BX16: 5.879411697 | BY16: 3.186693875 | BZ16: 7.391667366 | CA16: 2.082162142 | CB16: 2.823704958 | CC16: 0.2349530607 | CD16: 0.08443751931 | CE16: N | CF16: 5.405405405 | CG16: 7.887555999 | CH16: 25.00070611 | CI16: 36 | CJ16: 36 | CK16: 2 | CL16: 5.405405405 | CM16: 12 | CN16: 0.6000000238 | CO16: 30.89999962 | CP16: 12.60937691 | CQ16: 10.11441579 | CR16: 3.125 | CS16: 1.219950438 | CT16: 10.33597469 | CU16: 0.2421840727 | CV16: 0.08437031507 | CW16: G | CX16: 8.108108108 | CY16: 16.45366726 | CZ16: 25.00001726 | DA16: 36 | DB16: 36 | DC16: 3 | DD16: 8.108108108 | DE16: 12 | DF16: 0.1000000015 | DG16: 56.79999924 | DH16: 17.9826107 | DI16: 12.9300793 | DJ16: 17.11000061 | DK16: 1.214166164 | DL16: 14.81066704 | DM16: 0.2856647372 | DN16: 0.04486900568 | DO16: N | DP16: 35.13513514 | DQ16: 21.74894778 | DR16: 25.00000288 | DS16: 36 | DT16: 36 | DU16: 13 | DV16: 35.13513514 | DW16: 12 | EO16: 12 | FG16: 12
A17: 13 | B17: 0.01280975342 | C17: 44.22851562 | D17: 14.89998817 | E17: 13.50332883 | F17: 4.434380531 | G17: 0.5045757294 | H17: 29.52973557 | I17: 0.2501266301 | J17: 0.06576448679 | K17: E | L17: 16.21621622 | M17: 4.259899884 | N17: 75.00006908 | O17: 36 | P17: 36 | Q17: 6 | R17: 16.21621622 | S17: 13 | T17: 27.49987221 | U17: 39.5704689 | V17: 32.50992203 | W17: 3.09385234 | X17: 30.5175209 | Y17: 113.9279022 | Z17: 0.2853552103 | AA17: 0.2283333391 | AB17: 0.03546392918 | AC17: G | AD17: 0 | AE17: 34.50926439 | AF17: 24.99926922 | AG17: 36 | AH17: 36 | AI17: 0 | AJ17: 0 | AK17: 13 | AL17: 0.1000000015 | AM17: 8.699999809 | AN17: 3.77741909 | AO17: 2.336908247 | AP17: 0.9599999785 | AQ17: 1.579946041 | AR17: 2.390853167 | AS17: 0.2460592687 | AT17: 0.06628903747 | AU17: N | AV17: 13.51351351 | AW17: 0 | AX17: 81.9025252 | AY17: 36 | AZ17: 36 | BA17: 5 | BB17: 13.51351351 | BC17: 13 | BD17: 9.199999809 | BE17: 192.8000031 | BF17: 101.5305634 | BG17: 45.98177341 | BH17: 116.3000031 | BI17: 2.661300659 | BJ17: 38.15073013 | BK17: 0.2283333391 | BL17: 0.08740448952 | BM17: N | BN17: 0 | BO17: 70.51635102 | BP17: 74.99998443 | BQ17: 36 | BR17: 36 | BS17: 0 | BT17: 0 | BU17: 13 | BV17: 0.1000000015 | BW17: 8.899999619 | BX17: 3.838709831 | BY17: 2.390770802 | BZ17: 2.739999771 | CA17: 1.56895411 | CB17: 2.44666791 | CC17: 0.2460592687 | CD17: 0.04768437147 | CE17: N | CF17: 13.51351351 | CG17: 5.1682755 | CH17: 25.0000391 | CI17: 36 | CJ17: 36 | CK17: 5 | CL17: 13.51351351 | CM17: 13 | CN17: 0.200000003 | CO17: 25.89999962 | CP17: 10.07333183 | CQ17: 8.476698858 | CR17: 2.769999981 | CS17: 0.9036791325 | CT17: 11.1470232 | CU17: 0.2501266301 | CV17: 0.1080638766 | CW17: E | CX17: 16.21621622 | CY17: 12.18238657 | CZ17: 24.99983822 | DA17: 36 | DB17: 36 | DC17: 6 | DD17: 16.21621622 | DE17: 13 | DF17: 0.200000003 | DG17: 41.5 | DH17: 15.17272663 | DI17: 12.54964203 | DJ17: 4.329999924 | DK17: 0.9881631136 | DL17: 15.35447598 | DM17: 0.2920849919 | DN17: 0.1123017669 | DO17: E | DP17: 37.83783784 | DQ17: 13.82043092 | DR17: 24.99993519 | DS17: 36 | DT17: 36 | DU17: 14 | DV17: 37.83783784 | DW17: 13 | EO17: 13 | FG17: 13
A18: 14 | B18: 0.008071899414 | C18: 74.84374237 | D18: 17.52702522 | E18: 20.33694518 | F18: 7.491639137 | G18: 0.5751626492 | H18: 30.4731636 | I18: 0.2544026077 | J18: 0.04379868507 | K18: G | L18: 18.91891892 | M18: 0.6891257345 | N18: 75.0000172 | O18: 36 | P18: 36 | Q18: 7 | R18: 18.91891892 | S18: 14 | T18: 24.01434708 | U18: 37.62746048 | V18: 30.04045677 | W18: 3.240226723 | X18: 29.68647766 | Y18: 89.84012604 | Z18: 0.3343768418 | AA18: 0.2283333391 | AB18: 0.03197059035 | AC18: G | AD18: 0 | AE18: 32.11319239 | AF18: 24.99943351 | AG18: 36 | AH18: 36 | AI18: 0 | AJ18: 0 | AK18: 14 | AL18: 0.200000003 | AM18: 9 | AN18: 3.543334007 | AO18: 2.185798092 | AP18: 2.839999914 | AQ18: 2.283331394 | AR18: 1.551826477 | AS18: 0.2501266301 | AT18: 0.04657144845 | AU18: G | AV18: 16.21621622 | AW18: 4.321385966 | AX18: 25.00000217 | AY18: 36 | AZ18: 36 | BA18: 6 | BB18: 16.21621622 | BC18: 14 | BD18: 10 | BE18: 200.5 | BF18: 103.0139008 | BG18: 41.88463334 | BH18: 121.125 | BI18: 3.5029037 | BJ18: 29.4081459 | BK18: 0.2283333391 | BL18: 0.02802729607 | BM18: N | BN18: 0 | BO18: 74.76346026 | BP18: 74.99976072 | BQ18: 36 | BR18: 36 | BS18: 0 | BT18: 0 | BU18: 14 | BV18: 0.200000003 | BW18: 8.899999619 | BX18: 3.556667089 | BY18: 2.180111205 | BZ18: 4.549999714 | CA18: 2.298190594 | CB18: 1.547594428 | CC18: 0.2501266301 | CD18: 0.02967625856 | CE18: N | CF18: 16.21621622 | CG18: 4.710044423 | CH18: 24.99999634 | CI18: 36 | CJ18: 36 | CK18: 6 | CL18: 16.21621622 | CM18: 14 | CN18: 0.1000000015 | CO18: 52.29999924 | CP18: 10.08000088 | CQ18: 11.88547094 | CR18: 5.319999695 | CS18: 0.7214055657 | CT18: 13.97272396 | CU18: 0.2501266301 | CV18: 0.02752989531 | CW18: G | CX18: 16.21621622 | CY18: 11.78250113 | CZ18: 24.9999731 | DA18: 36 | DB18: 36 | DC18: 6 | DD18: 16.21621622 | DE18: 14 | DF18: 0.5 | DG18: 70.80000305 | DH18: 20.69444656 | DI18: 21.41289957 | DJ18: 7.53000021 | DK18: 0.8593882918 | DL18: 24.08043861 | DM18: 0.322912097 | DN18: 0.03965896368 | DO18: G | DP18: 48.64864865 | DQ18: 14.00465548 | DR18: 24.99999824 | DS18: 36 | DT18: 36 | DU18: 18 | DV18: 48.64864865 | DW18: 14 | EO18: 14 | FG18: 14
A19: 15 | B19: 0.2600097656 | C19: 105.3110352 | D19: 25.60671616 | E19: 27.47681351 | F19: 10.76511192 | G19: 0.6974454522 | H19: 36.71500778 | I19: 0.2501266301 | J19: 0.06783425808 | K19: G | L19: 16.21621622 | M19: 1.182909314 | N19: 75.00099164 | O19: 36 | P19: 36 | Q19: 6 | R19: 16.21621622 | S19: 15 | T19: 20.8483448 | U19: 32.91793442 | V19: 27.92664719 | W19: 3.238937624 | X19: 27.8889389 | Y19: 73.57125092 | Z19: 0.3795863986 | AA19: 0.2283333391 | AB19: 0.0588067323 | AC19: N | AD19: 0 | AE19: 30.11128539 | AF19: 24.99992173 | AG19: 36 | AH19: 36 | AI19: 0 | AJ19: 0 | AK19: 15 | AL19: 0.400000006 | AM19: 8.899999619 | AN19: 3.591429234 | AO19: 1.81470638 | AP19: 2.524999857 | AQ19: 3.734780312 | AR19: 0.961617291 | AS19: 0.2315722704 | AT19: 0.04177033901 | AU19: G | AV19: 2.702702703 | AW19: 4.564919476 | AX19: 25.00073298 | AY19: 36 | AZ19: 36 | BA19: 1 | BB19: 2.702702703 | BC19: 15 | BD19: 20.20000076 | BE19: 185.5 | BF19: 108.6333313 | BG19: 42.4852025 | BH19: 116.625 | BI19: 4.869095325 | BJ19: 22.31078339 | BK19: 0.2283333391 | BL19: 0.06602314115 | BM19: N | BN19: 0 | BO19: 79.97635927 | BP19: 75.00085149 | BQ19: 36 | BR19: 36 | BS19: 0 | BT19: 0 | BU19: 15 | BV19: 0.400000006 | BW19: 8.899999619 | BX19: 3.591428995 | BY19: 1.826338457 | BZ19: 2.524999857 | CA19: 3.729274511 | CB19: 0.9630368948 | CC19: 0.2315722704 | CD19: 0.04164737463 | CE19: G | CF19: 2.702702703 | CG19: 4.565422752 | CH19: 25.00072389 | CI19: 36 | CJ19: 36 | CK19: 1 | CL19: 2.702702703 | CM19: 15 | CN19: 0.400000006 | CO19: 51.29999924 | CP19: 13.48857117 | CQ19: 14.23582369 | CR19: 4.641666889 | CS19: 0.9284638762 | CT19: 14.52783585 | CU19: 0.2315722704 | CV19: 0.04017090797 | CW19: G | CX19: 2.702702703 | CY19: 18.31498581 | CZ19: 24.99998363 | DA19: 36 | DB19: 36 | DC19: 1 | DD19: 2.702702703 | DE19: 15 | DF19: 0.6999999881 | DG19: 95.59999847 | DH19: 23.99629974 | DI19: 26.54503332 | DJ19: 10.18999958 | DK19: 0.8606832027 | DL19: 27.88052559 | DM19: 0.2636566162 | DN19: 0.04933136702 | DO19: G | DP19: 24.32432432 | DQ19: 26.04945911 | DR19: 24.99966018 | DS19: 36 | DT19: 36 | DU19: 9 | DV19: 24.32432432 | DW19: 15 | EO19: 15 | FG19: 15
A20: 16 | B20: 0.009628295898 | C20: 60.0785141 | D20: 16.22040558 | E20: 18.29457814 | F20: 6.016516685 | G20: 0.474750936 | H20: 34.1661377 | I20: 0.2544026077 | J20: 0.05706274509 | K20: E | L20: 18.91891892 | M20: 0.6329357396 | N20: 75.00005218 | O20: 36 | P20: 36 | Q20: 7 | R20: 18.91891892 | S20: 16 | T20: 17.8836422 | U20: 31.72975349 | V20: 27.32180214 | W20: 3.056873057 | X20: 28.26822472 | Y20: 75.29602051 | Z20: 0.3628585041 | AA20: 0.2283333391 | AB20: 0.07432666421 | AC20: N | AD20: 0 | AE20: 29.38356157 | AF20: 25.00072884 | AG20: 36 | AH20: 36 | AI20: 0 | AJ20: 0 | AK20: 16 | AL20: 0.3000000119 | AM20: 9.699999809 | AN20: 3.106060743 | AO20: 2.293460722 | AP20: 1.083333254 | AQ20: 2.048634052 | AR20: 1.516161799 | AS20: 0.2384863943 | AT20: 0.05986586213 | AU20: G | AV20: 8.108108108 | AW20: 3.996170911 | AX20: 25.00000582 | AY20: 36 | AZ20: 36 | BA20: 3 | BB20: 8.108108108 | BC20: 16 | BD20: 10 | BE20: 173.1000061 | BF20: 101.5416565 | BG20: 44.57904781 | BH20: 105.1416702 | BI20: 3.334033966 | BJ20: 30.45609474 | BK20: 0.2283333391 | BL20: 0.06273504347 | BM20: N | BN20: 0 | BO20: 71.47355513 | BP20: 74.99999326 | BQ20: 36 | BR20: 36 | BS20: 0 | BT20: 0 | BU20: 16 | BV20: 0.3000000119 | BW20: 9.699999809 | BX20: 3.163636684 | BY20: 2.284433417 | BZ20: 1.083333254 | CA20: 2.103457928 | CB20: 1.504017115 | CC20: 0.2384863943 | CD20: 0.04371130466 | CE20: G | CF20: 8.108108108 | CG20: 4.06518726 | CH20: 25.00000697 | CI20: 36 | CJ20: 36 | CK20: 3 | CL20: 8.108108108 | CM20: 16 | CN20: 0.3000000119 | CO20: 25.70000076 | CP20: 9.115151405 | CQ20: 8.705498582 | CR20: 2.416666746 | CS20: 0.783377409 | CT20: 11.63570881 | CU20: 0.2384863943 | CV20: 0.105455637 | CW20: E | CX20: 8.108108108 | CY20: 11.86554376 | CZ20: 24.99996118 | DA20: 36 | DB20: 36 | DC20: 3 | DD20: 8.108108108 | DE20: 16 | DF20: 0.400000006 | DG20: 59.5 | DH20: 20.60000038 | DI20: 17.20455297 | DJ20: 18.12999916 | DK20: 1.042434931 | DL20: 19.76142502 | DM20: 0.3142995536 | DN20: 0.1216830909 | DO20: E | DP20: 45.94594595 | DQ20: 15.88483049 | DR20: 25.0000115 | DS20: 36 | DT20: 36 | DU20: 17 | DV20: 45.94594595 | DW20: 16 | EO20: 16 | FG20: 16
A21: 17 | B21: 0.004634857178 | C21: 59.06298828 | D21: 9.18725872 | E21: 13.44398803 | F21: 5.910470009 | G21: 0.4757321477 | H21: 19.31183052 | I21: 0.2856647372 | J21: 0.04980540276 | K21: G | L21: 35.13513514 | M21: 0.000458207104 | N21: 74.99983448 | O21: 36 | P21: 36 | Q21: 13 | R21: 35.13513514 | S21: 17 | T21: 21.76289558 | U21: 33.73242188 | V21: 27.86354637 | W21: 2.91368121 | X21: 28.74511909 | Y21: 92.86952209 | Z21: 0.30002895 | AA21: 0.2283333391 | AB21: 0.05335116386 | AC21: G | AD21: 0 | AE21: 29.75549685 | AF21: 24.99945117 | AG21: 36 | AH21: 36 | AI21: 0 | AJ21: 0 | AK21: 17 | AL21: 0.3000000119 | AM21: 9.600000381 | AN21: 2.516128778 | AO21: 2.019916903 | AP21: 1.230000019 | AQ21: 1.815402508 | AR21: 1.385989428 | AS21: 0.2460592687 | AT21: 0.02762538195 | AU21: G | AV21: 13.51351351 | AW21: 3.141993997 | AX21: 24.99998152 | AY21: 36 | AZ21: 36 | BA21: 5 | BB21: 13.51351351 | BC21: 17 | BD21: 15.19999981 | BE21: 149 | BF21: 91.8555603 | BG21: 39.76641852 | BH21: 137.8499908 | BI21: 3.643741369 | BJ21: 25.20913315 | BK21: 0.2283333391 | BL21: 0.06078726053 | BM21: N | BN21: 0 | BO21: 65.0336526 | BP21: 74.99989292 | BQ21: 36 | BR21: 36 | BS21: 0 | BT21: 0 | BU21: 17 | BV21: 0.3000000119 | BW21: 9.600000381 | BX21: 2.567741394 | BY21: 2.016165846 | BZ21: 1.230000019 | CA21: 1.913938999 | CB21: 1.341600418 | CC21: 0.2460592687 | CD21: 0.0405806303 | CE21: E | CF21: 13.51351351 | CG21: 3.186857722 | CH21: 24.99997894 | CI21: 36 | CJ21: 36 | CK21: 5 | CL21: 13.51351351 | CM21: 17 | CN21: 0.3000000119 | CO21: 35.29999924 | CP21: 5.713793755 | CQ21: 7.742587328 | CR21: 3.799999952 | CS21: 0.7895311713 | CT21: 7.236945152 | CU21: 0.2544026077 | CV21: 0.02224653959 | CW21: G | CX21: 18.91891892 | CY21: 6.551575151 | CZ21: 24.99964463 | DA21: 36 | DB21: 36 | DC21: 7 | DD21: 18.91891892 | DE21: 17 | DF21: 0.5 | DG21: 52.5 | DH21: 12.67500019 | DI21: 14.01383234 | DJ21: 5.699999809 | DK21: 1.012242198 | DL21: 12.52170658 | DM21: 0.3776043057 | DN21: 0.1019228101 | DO21: E | DP21: 64.86486486 | DQ21: 4.313639768 | DR21: 24.99998005 | DS21: 36 | DT21: 36 | DU21: 24 | DV21: 64.86486486 | DW21: 17 | EO21: 17 | FG21: 17
A22: 18 | B22: 0.001285552979 | C22: 72.09845734 | D22: 10.56747437 | E22: 16.75920103 | F22: 7.211002827 | G22: 0.394257158 | H22: 26.80350685 | I22: 0.273999989 | J22: 0.07324743271 | K22: G | L22: 29.72972973 | M22: 0.0345420038 | N22: 75.00092455 | O22: 36 | P22: 36 | Q22: 11 | R22: 29.72972973 | S22: 18 | T22: 22.50627708 | U22: 34.50561523 | V22: 27.91252518 | W22: 2.879996726 | X22: 27.50600052 | Y22: 96.56604004 | Z22: 0.2890511453 | AA22: 0.2283333391 | AB22: 0.07131797075 | AC22: G | AD22: 0 | AE22: 29.77235353 | AF22: 24.99939706 | AG22: 36 | AH22: 36 | AI22: 0 | AJ22: 0 | AK22: 18 | AL22: 0.1000000015 | AM22: 10.39999962 | AN22: 3.184848547 | AO22: 2.772760615 | AP22: 0.9583333135 | AQ22: 1.128644109 | AR22: 2.821835995 | AS22: 0.2384863943 | AT22: 0.05708664656 | AU22: E | AV22: 8.108108108 | AW22: 4.14584499 | AX22: 24.99992243 | AY22: 36 | AZ22: 36 | BA22: 3 | BB22: 8.108108108 | BC22: 18 | BD22: 21.29999924 | BE22: 149.5 | BF22: 88.89444733 | BG22: 39.60844735 | BH22: 117.4499969 | BI22: 3.705898285 | BJ22: 23.98728752 | BK22: 0.2283333391 | BL22: 0.1388888359 | BM22: U | BN22: 0 | BO22: 53.34999943 | BP22: 75 | BQ22: 36 | BR22: 36 | BS22: 0 | BT22: 0 | BU22: 18 | BV22: 0.1000000015 | BW22: 10.60000038 | BX22: 3.215151072 | BY22: 2.793980043 | BZ22: 0.9750000834 | CA22: 1.210181832 | CB22: 2.656750441 | CC22: 0.2384863943 | CD22: 0.05710411072 | CE22: E | CF22: 8.108108108 | CG22: 4.185284523 | CH22: 24.99997279 | CI22: 36 | CJ22: 36 | CK22: 3 | CL22: 8.108108108 | CM22: 18 | CN22: 0.1000000015 | CO22: 42.59999847 | CP22: 5.843749523 | CQ22: 8.62367172 | CR22: 3.641666412 | CS22: 0.6458112001 | CT22: 9.048696518 | CU22: 0.2421840727 | CV22: 0.02912825346 | CW22: G | CX22: 10.81081081 | CY22: 7.153229725 | CZ22: 24.99999448 | DA22: 36 | DB22: 36 | DC22: 4 | DD22: 10.81081081 | DE22: 18 | DF22: 2.200000048 | DG22: 68.80000305 | DH22: 15.19999981 | DI22: 19.17213764 | DJ22: 8.86000061 | DK22: 1.07940793 | DL22: 14.08179379 | DM22: 0.3776043057 | DN22: 0.1146731377 | DO22: G | DP22: 64.86486486 | DQ22: 5.523059199 | DR22: 25.00004556 | DS22: 36 | DT22: 36 | DU22: 24 | DV22: 64.86486486 | DW22: 18 | EO22: 18 | FG22: 18
A23: 19 | B23: 0.01797485352 | C23: 37.0666275 | D23: 5.60414505 | E23: 8.753731504 | F23: 3.722840071 | G23: 0.453689605 | H23: 12.35237694 | I23: 0.3142995536 | J23: 0.05416744947 | K23: G | L23: 45.94594595 | M23: 3.101590063e-05 | N23: 74.99997197 | O23: 36 | P23: 36 | Q23: 17 | R23: 45.94594595 | S23: 19 | T23: 21.84179688 | U23: 38.5295639 | V23: 29.75273323 | W23: 3.401853612 | X23: 31.57632828 | Y23: 79.38280487 | Z23: 0.3748007417 | AA23: 0.2283333391 | AB23: 0.03109316528 | AC23: G | AD23: 0 | AE23: 31.93196642 | AF23: 24.99952112 | AG23: 36 | AH23: 36 | AI23: 0 | AJ23: 0 | AK23: 19 | AL23: 0.1000000015 | AM23: 8.100000381 | AN23: 2.462962866 | AO23: 2.045661159 | AP23: 0.9000000358 | AQ23: 1.140505314 | AR23: 2.1595366 | AS23: 0.2636566162 | AT23: 0.05790710449 | AU23: E | AV23: 24.32432432 | AW23: 2.727932043 | AX23: 24.9999871 | AY23: 36 | AZ23: 36 | BA23: 9 | BB23: 24.32432432 | BC23: 19 | BD23: 10 | BE23: 154.5 | BF23: 80.45555878 | BG23: 39.69227795 | BH23: 70.20833588 | BI23: 2.895819902 | BJ23: 27.78334427 | BK23: 0.2283333391 | BL23: 0.08333334327 | BM23: U | BN23: 0 | BO23: 46.125 | BP23: 75 | BQ23: 36 | BR23: 36 | BS23: 0 | BT23: 0 | BU23: 19 | BV23: 0.1000000015 | BW23: 8.100000381 | BX23: 2.455555439 | BY23: 2.01691567 | BZ23: 0.9000000358 | CA23: 1.154742956 | CB23: 2.126495361 | CC23: 0.2636566162 | CD23: 0.09494417906 | CE23: E | CF23: 24.32432432 | CG23: 2.719731075 | CH23: 24.99995289 | CI23: 36 | CJ23: 36 | CK23: 9 | CL23: 24.32432432 | CM23: 19 | CN23: 0.1000000015 | CO23: 13.69999981 | CP23: 2.71600008 | CQ23: 3.256107021 | CR23: 1.460000038 | CS23: 0.7794777155 | CT23: 3.484384537 | CU23: 0.273999989 | CV23: 0.05713957548 | CW23: E | CX23: 29.72972973 | CY23: 2.806948614 | CZ23: 24.99966955 | DA23: 36 | DB23: 36 | DC23: 11 | DD23: 29.72972973 | DE23: 19 | DF23: 0.3000000119 | DG23: 22.70000076 | DH23: 6.5 | DI23: 7.981019153 | DJ23: 2.539999962 | DK23: 0.8098855615 | DL23: 8.0258255 | DM23: 0.5063166618 | DN23: 0.07075870037 | DO23: G | DP23: 78.37837838 | DQ23: 0 | DR23: 21.62162162 | DS23: 36 | DT23: 36 | DU23: 29 | DV23: 78.37837838 | DW23: 19 | EO23: 19 | FG23: 19
A24: 20 | B24: 0.0167388916 | C24: 36.64453125 | D24: 6.423377037 | E24: 10.83096554 | F24: 3.679518223 | G24: 0.4901928604 | H24: 13.10377502 | I24: 0.2856647372 | J24: 0.06639790535 | K24: G | L24: 35.13513514 | M24: 0 | N24: 70.27027027 | O24: 36 | P24: 36 | Q24: 13 | R24: 35.13513514 | S24: 20 | T24: 25.71307373 | U24: 38.03834534 | V24: 31.10082626 | W24: 3.103663427 | X24: 28.79439163 | Y24: 103.6185226 | Z24: 0.3001473546 | AA24: 0.2283333391 | AB24: 0.08410519361 | AC24: G | AD24: 0 | AE24: 33.10355045 | AF24: 24.99933948 | AG24: 36 | AH24: 36 | AI24: 0 | AJ24: 0 | AK24: 20 | AL24: 0.1000000015 | AM24: 5.699999809 | AN24: 2.048148155 | AO24: 1.490578308 | AP24: 1.779999971 | AQ24: 1.481117249 | AR24: 1.382840037 | AS24: 0.2636566162 | AT24: 0.05465114117 | AU24: G | AV24: 24.32432432 | AW24: 2.338342146 | AX24: 24.99999818 | AY24: 36 | AZ24: 36 | BA24: 9 | BB24: 24.32432432 | BC24: 20 | BD24: 10 | BE24: 138.3999939 | BF24: 81.62499237 | BG24: 39.390625 | BH24: 127.6999969 | BI24: 2.967488527 | BJ24: 27.50642204 | BK24: 0.2283333391 | BL24: 0.08497691154 | BM24: N | BN24: 0 | BO24: 55.05569506 | BP24: 75.00058447 | BQ24: 36 | BR24: 36 | BS24: 0 | BT24: 0 | BU24: 20 | BV24: 0.1000000015 | BW24: 5.900000095 | BX24: 2.146153927 | BY24: 1.548297036 | BZ24: 1.839999914 | CA24: 1.388661265 | CB24: 1.545484066 | CC24: 0.2686791122 | CD24: 0.05144524574 | CE24: G | CF24: 24.32432432 | CG24: 2.442439409 | CH24: 24.99965992 | CI24: 36 | CJ24: 36 | CK24: 9 | CL24: 24.32432432 | CM24: 20 | CN24: 0.1000000015 | CO24: 18.10000038 | CP24: 2.526087284 | CQ24: 4.123129449 | CR24: 1.900000095 | CS24: 0.6534599066 | CT24: 3.865711212 | CU24: 0.2856647372 | CV24: 0.05717629194 | CW24: G | CX24: 35.13513514 | CY24: 2.141251811 | CZ24: 24.99984298 | DA24: 36 | DB24: 36 | DC24: 13 | DD24: 35.13513514 | DE24: 20 | DF24: 0.1000000015 | DG24: 19.89999962 | DH24: 7.399999619 | DI24: 7.326151568 | DJ24: 2.079999924 | DK24: 0.7696323395 | DL24: 9.614979744 | DM24: 0.4463027716 | DN24: 0.1301102042 | DO24: G | DP24: 72.97297297 | DQ24: 0.3050018578 | DR24: 24.99980621 | DS24: 36 | DT24: 36 | DU24: 27 | DV24: 72.97297297 | DW24: 20 | EO24: 20 | FG24: 20
A25: 21 | B25: 0.02499389648 | C25: 68.20497131 | D25: 10.25309944 | E25: 17.88645899 | F25: 6.842991829 | G25: 0.4184237421 | H25: 24.50410461 | I25: 0.2920849919 | J25: 0.03827375174 | K25: G | L25: 37.83783784 | M25: 0.004723203358 | N25: 75.00001709 | O25: 36 | P25: 36 | Q25: 14 | R25: 37.83783784 | S25: 21 | T25: 25.28173828 | U25: 42.13797379 | V25: 32.9550209 | W25: 4.260110386 | X25: 32.30516815 | Y25: 62.37940598 | Z25: 0.5282996893 | AA25: 0.2283333391 | AB25: 0.0401070118 | AC25: N | AD25: 0 | AE25: 35.8284129 | AF25: 25.00006563 | AG25: 36 | AH25: 36 | AI25: 0 | AJ25: 0 | AK25: 21 | AL25: 0.1000000015 | AM25: 12.30000019 | AN25: 3.415384769 | AO25: 3.608954599 | AP25: 1.320000052 | AQ25: 0.9481050968 | AR25: 3.602327108 | AS25: 0.2686791122 | AT25: 0.05210053921 | AU25: E | AV25: 27.02702703 | AW25: 3.658606586 | AX25: 24.99999307 | AY25: 36 | AZ25: 36 | BA25: 10 | BB25: 27.02702703 | BC25: 21 | BD25: 13.10000038 | BE25: 156.5 | BF25: 83.46389771 | BG25: 40.19334376 | BH25: 96.75 | BI25: 2.962196589 | BJ25: 28.17635345 | BK25: 0.2283333391 | BL25: 0.1111111641 | BM25: U | BN25: 0 | BO25: 48.95000029 | BP25: 75 | BQ25: 36 | BR25: 36 | BS25: 0 | BT25: 0 | BU25: 21 | BV25: 0.1000000015 | BW25: 12.30000019 | BX25: 3.419230938 | BY25: 3.601779757 | BZ25: 1.320000052 | CA25: 0.9527671337 | CB25: 3.588737249 | CC25: 0.2686791122 | CD25: 0.05664181709 | CE25: E | CF25: 27.02702703 | CG25: 3.662726421 | CH25: 24.99999477 | CI25: 36 | CJ25: 36 | CK25: 10 | CL25: 27.02702703 | CM25: 21 | CN25: 0.1000000015 | CO25: 30.39999962 | CP25: 6.600000381 | CQ25: 9.439925331 | CR25: 3.129999876 | CS25: 0.5469039679 | CT25: 12.06793308 | CU25: 0.2796500921 | CV25: 0.07395625114 | CW25: G | CX25: 32.43243243 | CY25: 5.523580469 | CZ25: 24.99994813 | DA25: 36 | DB25: 36 | DC25: 12 | DD25: 32.43243243 | DE25: 21 | DF25: 0.1000000015 | DG25: 56.90000153 | DH25: 19.14444733 | DI25: 20.4330684 | DJ25: 5.78000021 | DK25: 0.6652032733 | DL25: 28.77984619 | DM25: 0.4463027716 | DN25: 0.1380536556 | DO25: E | DP25: 72.97297297 | DQ25: 1.492612593 | DR25: 24.99989296 | DS25: 36 | DT25: 36 | DU25: 27 | DV25: 72.97297297 | DW25: 21 | EO25: 21 | FG25: 21
A26: 22 | B26: 0.01388549805 | C26: 49.64465332 | D26: 7.934475422 | E26: 12.01506051 | F26: 4.97696209 | G26: 0.4153025448 | H26: 19.10528946 | I26: 0.322912097 | J26: 0.0797496438 | K26: G | L26: 48.64864865 | M26: 0 | N26: 72.97297297 | O26: 36 | P26: 36 | Q26: 18 | R26: 48.64864865 | S26: 22 | T26: 28.24658966 | U26: 45.35822678 | V26: 36.74024582 | W26: 3.877845212 | X26: 38.2283783 | Y26: 90.50122833 | Z26: 0.4059640467 | AA26: 0.2283333391 | AB26: 0.09186950326 | AC26: N | AD26: 0 | AE26: 39.35588444 | AF26: 24.99941188 | AG26: 36 | AH26: 36 | AI26: 0 | AJ26: 0 | AK26: 22 | AL26: 0.1000000015 | AM26: 10.69999981 | AN26: 2.976000071 | AO26: 3.039089644 | AP26: 1.159999967 | AQ26: 0.8655110002 | AR26: 3.438431263 | AS26: 0.273999989 | AT26: 0.04468077421 | AU26: E | AV26: 29.72972973 | AW26: 3.075684801 | AX26: 24.99941936 | AY26: 36 | AZ26: 36 | BA26: 11 | BB26: 29.72972973 | BC26: 22 | BD26: 10 | BE26: 150.6000061 | BF26: 80.82223511 | BG26: 40.2523458 | BH26: 115.4500046 | BI26: 2.613600731 | BJ26: 30.92371178 | BK26: 0.2283333391 | BL26: 0.08333337307 | BM26: U | BN26: 0 | BO26: 45.15000153 | BP26: 75 | BQ26: 36 | BR26: 36 | BS26: 0 | BT26: 0 | BU26: 22 | BV26: 0.1000000015 | BW26: 10.69999981 | BX26: 2.984000206 | BY26: 3.054188407 | BZ26: 1.159999967 | CA26: 0.859290123 | CB26: 3.472634077 | CC26: 0.273999989 | CD26: 0.05337488651 | CE26: E | CF26: 29.72972973 | CG26: 3.083911617 | CH26: 24.99976531 | CI26: 36 | CJ26: 36 | CK26: 11 | CL26: 29.72972973 | CM26: 22 | CN26: 0.1000000015 | CO26: 24.5 | CP26: 3.580000401 | CQ26: 5.622754645 | CR26: 2.539999962 | CS26: 0.7560563087 | CT26: 4.735097408 | CU26: 0.3063413203 | CV26: 0.09746563435 | CW26: G | CX26: 43.24324324 | CY26: 2.6624575 | CZ26: 24.99998635 | DA26: 36 | DB26: 36 | DC26: 16 | DD26: 43.24324324 | DE26: 22 | DF26: 0.1000000015 | DG26: 42.79999924 | DH26: 10.23333359 | DI26: 16.25295853 | DJ26: 4.369999886 | DK26: 0.533438623 | DL26: 19.18371391 | DM26: 0.5431278348 | DN26: 0.1984392405 | DO26: G | DP26: 81.08108108 | DQ26: 0 | DR26: 18.91891892 | DS26: 36 | DT26: 36 | DU26: 30 | DV26: 81.08108108 | DW26: 22 | EO26: 22 | FG26: 22
A27: 23 | B27: 0.0006618499756 | C27: 58.36323547 | D27: 6.830889702 | E27: 14.09667018 | F27: 5.836919308 | G27: 0.3281689584 | H27: 20.81516075 | I27: 0.3063413203 | J27: 0.08455836773 | K27: G | L27: 43.24324324 | M27: 0 | N27: 51.35135135 | O27: 36 | P27: 36 | Q27: 16 | R27: 43.24324324 | S27: 23 | T27: 29.95629883 | U27: 49.14560699 | V27: 40.11079407 | W27: 4.788250355 | X27: 41.15006256 | Y27: 70.92503357 | Z27: 0.5655378699 | AA27: 0.2283333391 | AB27: 0.05867229402 | AC27: G | AD27: 0 | AE27: 43.21243883 | AF27: 24.99959526 | AG27: 36 | AH27: 36 | AI27: 0 | AJ27: 0 | AK27: 23 | AL27: 0.1000000015 | AM27: 17.29999924 | AN27: 2.995238066 | AO27: 4.143606818 | AP27: 1.819999933 | AQ27: 0.6953990459 | AR27: 4.307221889 | AS27: 0.2989585102 | AT27: 0.1030130386 | AU27: G | AV27: 40.54054054 | AW27: 2.302302147 | AX27: 24.99965421 | AY27: 36 | AZ27: 36 | BA27: 15 | BB27: 40.54054054 | BC27: 23 | BD27: 10 | BE27: 155.8999939 | BF27: 79.2611084 | BG27: 40.21336375 | BH27: 119.4249954 | BI27: 2.620238304 | BJ27: 30.24958038 | BK27: 0.2283333391 | BL27: 0.09177416563 | BM27: N | BN27: 0 | BO27: 52.13753392 | BP27: 75.00005754 | BQ27: 36 | BR27: 36 | BS27: 0 | BT27: 0 | BU27: 23 | BV27: 0.1000000015 | BW27: 17.29999924 | BX27: 3.004761934 | BY27: 4.144813348 | BZ27: 1.819999933 | CA27: 0.6951031685 | CB27: 4.322756767 | CC27: 0.2989585102 | CD27: 0.05630809069 | CE27: G | CF27: 40.54054054 | CG27: 2.309212303 | CH27: 24.99969018 | CI27: 36 | CJ27: 36 | CK27: 15 | CL27: 40.54054054 | CM27: 23 | CN27: 0.1000000015 | CO27: 36 | CP27: 3.635293961 | CQ27: 8.50102497 | CR27: 3.689999819 | CS27: 0.5536389351 | CT27: 6.566182137 | CU27: 0.3322738111 | CV27: 0.09661763906 | CW27: G | CX27: 51.35135135 | CY27: 1.694950051 | CZ27: 24.99997605 | DA27: 36 | DB27: 36 | DC27: 19 | DD27: 51.35135135 | DE27: 23 | DF27: 18 | DG27: 54 | DH27: 36 | DI27: 25.45584412 | DJ27: 50.39999771 | DK27: 3.635421515 | DL27: 9.902565956 | DM27: 0.8054764271 | DN27: 0.2020584941 | DO27: N | DP27: 91.89189189 | DQ27: 0 | DR27: 7.47040862 | DS27: 36 | DT27: 36 | DU27: 34 | DV27: 91.89189189 | DW27: 23 | EO27: 23 | FG27: 23
A28: 24 | B28: 0.0940246582 | C28: 50.70702362 | D28: 15.2757616 | E28: 16.05543262 | F28: 5.155324459 | G28: 0.7182201147 | H28: 21.26891327 | I28: 0.3142995536 | J28: 0.06074249744 | K28: G | L28: 45.94594595 | M28: 0 | N28: 62.16216216 | O28: 36 | P28: 36 | Q28: 17 | R28: 45.94594595 | S28: 24 | T28: 28.34774971 | U28: 50.09833145 | V28: 41.85934448 | W28: 5.977723412 | X28: 44.66068649 | Y28: 45.70075226 | Z28: 0.9159443378 | AA28: 0.2283333391 | AB28: 0.1100406647 | AC28: G | AD28: 0 | AE28: 45.85306271 | AF28: 24.99989552 | AG28: 36 | AH28: 36 | AI28: 0 | AJ28: 0 | AK28: 24 | AL28: 0.1000000015 | AM28: 16.39999962 | AN28: 5.365217686 | AO28: 4.588385323 | AP28: 1.730000019 | AQ28: 0.9844610691 | AR28: 5.449903488 | AS28: 0.2856647372 | AT28: 0.07100597024 | AU28: E | AV28: 35.13513514 | AW28: 5.115368704 | AX28: 24.99996407 | AY28: 36 | AZ28: 36 | BA28: 13 | BB28: 35.13513514 | BC28: 24 | BD28: 10 | BE28: 159.8000031 | BF28: 79.8833313 | BG28: 38.82283352 | BH28: 72.41667175 | BI28: 2.945058107 | BJ28: 27.12453461 | BK28: 0.2283333391 | BL28: 0.0293732509 | BM28: N | BN28: 0 | BO28: 53.6977068 | BP28: 75.00001737 | BQ28: 36 | BR28: 36 | BS28: 0 | BT28: 0 | BU28: 24 | BV28: 0.1000000015 | BW28: 16.39999962 | BX28: 5.35652113 | BY28: 4.584541901 | BZ28: 1.730000019 | CA28: 0.9849994779 | CB28: 5.43809557 | CC28: 0.2856647372 | CD28: 0.07100597024 | CE28: E | CF28: 35.13513514 | CG28: 5.107075743 | CH28: 24.99997056 | CI28: 36 | CJ28: 36 | CK28: 13 | CL28: 35.13513514 | CM28: 24 | CN28: 0.1000000015 | CO28: 33.79999924 | CP28: 6.877273083 | CQ28: 9.615410325 | CR28: 3.46999979 | CS28: 0.5822672844 | CT28: 11.81119633 | CU28: 0.2920849919 | CV28: 0.06968981028 | CW28: G | CX28: 37.83783784 | CY28: 5.224162927 | CZ28: 25.00000586 | DA28: 36 | DB28: 36 | DC28: 14 | DD28: 37.83783784 | DE28: 24 | DF28: 1.5 | DG28: 43.90000153 | DH28: 16.96999931 | DI28: 15.01806672 | DJ28: 5.740000248 | DK28: 1.13766706 | DL28: 14.9164896 | DM28: 0.4211426675 | DN28: 0.09915202856 | DO28: G | DP28: 70.27027027 | DQ28: 3.492555197 | DR28: 25.00000219 | DS28: 36 | DT28: 36 | DU28: 26 | DV28: 70.27027027 | DW28: 24 | EO28: 24 | FG28: 24
A29: 25 | B29: 0.003910064697 | C29: 70.40332031 | D29: 17.16662788 | E29: 20.67763909 | F29: 7.043850899 | G29: 0.5357818604 | H29: 32.04032898 | I29: 0.2686791122 | J29: 0.05031132698 | K29: G | L29: 27.02702703 | M29: 2.167993888 | N29: 75.0000033 | O29: 36 | P29: 36 | Q29: 10 | R29: 27.02702703 | S29: 25 | T29: 28.7830658 | U29: 57.63017273 | V29: 44.03463745 | W29: 7.159047742 | X29: 45.61054611 | Y29: 36.65926743 | Z29: 1.201187015 | AA29: 0.2283333391 | AB29: 0.04547837377 | AC29: N | AD29: 0 | AE29: 48.86333843 | AF29: 25.00001484 | AG29: 36 | AH29: 36 | AI29: 0 | AJ29: 0 | AK29: 25 | AL29: 0.200000003 | AM29: 18.20000076 | AN29: 5.630768776 | AO29: 4.804978078 | AP29: 2 | AQ29: 1.215803981 | AR29: 4.631312847 | AS29: 0.2686791122 | AT29: 0.03709876537 | AU29: G | AV29: 27.02702703 | AW29: 6.165643496 | AX29: 24.99998817 | AY29: 36 | AZ29: 36 | BA29: 10 | BB29: 27.02702703 | BC29: 25 | BD29: 10.30000019 | BE29: 187.3999939 | BF29: 86.26944733 | BG29: 49.74938658 | BH29: 84.09166718 | BI29: 2.318707228 | BJ29: 37.20583725 | BK29: 0.2283333391 | BL29: 0.05737704039 | BM29: N | BN29: 0 | BO29: 52.71399335 | BP29: 75.00000169 | BQ29: 36 | BR29: 36 | BS29: 0 | BT29: 0 | BU29: 25 | BV29: 0.200000003 | BW29: 18.20000076 | BX29: 5.642308235 | BY29: 4.805511354 | BZ29: 2 | CA29: 1.220215917 | CB29: 4.624024391 | CC29: 0.2686791122 | CD29: 0.03839352727 | CE29: G | CF29: 27.02702703 | CG29: 6.18033587 | CH29: 24.99998779 | CI29: 36 | CJ29: 36 | CK29: 10 | CL29: 27.02702703 | CM29: 25 | CN29: 0.1000000015 | CO29: 38.20000076 | CP29: 8.25 | CQ29: 10.35659849 | CR29: 3.910000086 | CS29: 0.6510976553 | CT29: 12.67090988 | CU29: 0.2796500921 | CV29: 0.04075706005 | CW29: G | CX29: 32.43243243 | CY29: 7.373958223 | CZ29: 25.00049382 | DA29: 36 | DB29: 36 | DC29: 12 | DD29: 32.43243243 | DE29: 25 | DF29: 0.1000000015 | DG29: 53.20000076 | DH29: 19.33333397 | DI29: 16.99306481 | DJ29: 5.409999847 | DK29: 0.8572998047 | DL29: 22.55142784 | DM29: 0.3776043057 | DN29: 0.06426304579 | DO29: E | DP29: 64.86486486 | DQ29: 6.579679874 | DR29: 24.9999387 | DS29: 36 | DT29: 36 | DU29: 24 | DV29: 64.86486486 | DW29: 25 | EO29: 25 | FG29: 25
A30: 26 | B30: 0.03368377686 | C30: 70.00634766 | D30: 22.91422272 | E30: 21.52034702 | F30: 7.030950069 | G30: 0.6853743792 | H30: 33.43314743 | I30: 0.2636566162 | J30: 0.08389681578 | K30: E | L30: 24.32432432 | M30: 0.4011176413 | N30: 75.00019786 | O30: 36 | P30: 36 | Q30: 9 | R30: 24.32432432 | S30: 26 | T30: 30.94031715 | U30: 59.10736465 | V30: 45.94291687 | W30: 8.244561917 | X30: 37.98207855 | Y30: 31.20443344 | Z30: 1.472320199 | AA30: 0.2283333391 | AB30: 0.08258771896 | AC30: G | AD30: 0 | AE30: 51.1911444 | AF30: 24.99990903 | AG30: 36 | AH30: 36 | AI30: 0 | AJ30: 0 | AK30: 26 | AL30: 0.1000000015 | AM30: 17 | AN30: 7.793104172 | AO30: 5.424345569 | AP30: 1.790000081 | AQ30: 1.103729367 | AR30: 7.060701847 | AS30: 0.2544026077 | AT30: 0.1103447974 | AU30: U | AV30: 18.91891892 | AW30: 11.78916667 | AX30: 25 | AY30: 36 | AZ30: 36 | BA30: 7 | BB30: 18.91891892 | BC30: 26 | BD30: 5.199999809 | BE30: 191.3999939 | BF30: 91.93332672 | BG30: 49.2823052 | BH30: 51.75 | BI30: 2.264147758 | BJ30: 40.60394287 | BK30: 0.2283333391 | BL30: 0.06361749768 | BM30: N | BN30: 0 | BO30: 58.69252978 | BP30: 75.00024968 | BQ30: 36 | BR30: 36 | BS30: 0 | BT30: 0 | BU30: 26 | BV30: 0.1000000015 | BW30: 17 | BX30: 7.799999714 | BY30: 5.43934074 | BZ30: 1.790000081 | CA30: 1.099931002 | CB30: 7.091353416 | CC30: 0.2544026077 | CD30: 0.1281324029 | CE30: G | CF30: 18.91891892 | CG30: 9.241081566 | CH30: 24.99954095 | CI30: 36 | CJ30: 36 | CK30: 7 | CL30: 18.91891892 | CM30: 26 | CN30: 0.3000000119 | CO30: 45.29999924 | CP30: 14.22399998 | CQ30: 13.10395215 | CR30: 4.800000191 | CS30: 0.7910933495 | CT30: 17.98017883 | CU30: 0.273999989 | CV30: 0.0476270318 | CW30: E | CX30: 29.72972973 | CY30: 14.70027665 | CZ30: 24.99972421 | DA30: 36 | DB30: 36 | DC30: 11 | DD30: 29.72972973 | DE30: 26 | DF30: 2.200000048 | DG30: 65.69999695 | DH30: 23.70000076 | DI30: 21.26109401 | DJ30: 8.550000191 | DK30: 1.063553214 | DL30: 22.2837944 | DM30: 0.322912097 | DN30: 0.07054042816 | DO30: E | DP30: 48.64864865 | DQ30: 17.05893 | DR30: 25.00073438 | DS30: 36 | DT30: 36 | DU30: 18 | DV30: 48.64864865 | DW30: 26 | EO30: 26 | FG30: 26
A31: 27 | B31: 0.08190917969 | C31: 70.35742188 | D31: 24.0090065 | E31: 21.7861883 | F31: 5.938201904 | G31: 0.7127477527 | H31: 33.6851387 | I31: 0.2349530607 | J31: 0.06385564804 | K31: E | L31: 5.405405405 | M31: 5.155899372 | N31: 74.99999281 | O31: 36 | P31: 36 | Q31: 2 | R31: 5.405405405 | S31: 27 | T31: 32.87354279 | U31: 60.55739594 | V31: 46.02188873 | W31: 7.893773786 | X31: 44.4084816 | Y31: 34.83925247 | Z31: 1.320978045 | AA31: 0.2283333391 | AB31: 0.03981238604 | AC31: G | AD31: 0 | AE31: 51.01402992 | AF31: 24.99990905 | AG31: 36 | AH31: 36 | AI31: 0 | AJ31: 0 | AK31: 27 | AL31: 0.1000000015 | AM31: 21.29999924 | AN31: 8.272222519 | AO31: 5.795940149 | AP31: 5.400000095 | AQ31: 1.158984303 | AR31: 7.137475967 | AS31: 0.2283333391 | AT31: 0.120370388 | AU31: T | AV31: 0 | AW31: 30.47987059 | AX31: 25.00001357 | AY31: 36 | AZ31: 36 | BA31: 0 | BB31: 0 | BC31: 27 | BD31: 15.69999981 | BE31: 186.3000031 | BF31: 98.04724121 | BG31: 50.10159356 | BH31: 115.2166672 | BI31: 3.005558014 | BJ31: 32.62197495 | BK31: 0.2283333391 | BL31: 0.02777779102 | BM31: U | BN31: 0 | BO31: 58.35000062 | BP31: 75 | BQ31: 36 | BR31: 36 | BS31: 0 | BT31: 0 | BU31: 27 | BV31: 0.1000000015 | BW31: 21.10000038 | BX31: 8.261112213 | BY31: 5.776913558 | BZ31: 5.349999905 | CA31: 1.160921812 | CB31: 7.1159935 | CC31: 0.2283333391 | CD31: 0.120370388 | CE31: T | CF31: 0 | CG31: 10.19327067 | CH31: 25.00001829 | CI31: 36 | CJ31: 36 | CK31: 0 | CL31: 0 | CM31: 27 | CN31: 0.1000000015 | CO31: 37.09999847 | CP31: 12.7387104 | CQ31: 11.36132863 | CR31: 3.799999714 | CS31: 0.9351100326 | CT31: 13.62268639 | CU31: 0.2460592687 | CV31: 0.07897561789 | CW31: E | CX31: 13.51351351 | CY31: 15.81019257 | CZ31: 24.99995731 | DA31: 36 | DB31: 36 | DC31: 5 | DD31: 13.51351351 | DE31: 27 | DF31: 0.1000000015 | DG31: 60.59999847 | DH31: 21.95238304 | DI31: 17.37071208 | DJ31: 6.149999619 | DK31: 1.027508497 | DL31: 21.36467361 | DM31: 0.2989585102 | DN31: 0.09206348658 | DO31: T | DP31: 40.54054054 | DQ31: 23.38344679 | DR31: 24.99999835 | DS31: 36 | DT31: 36 | DU31: 15 | DV31: 40.54054054 | DW31: 27 | EO31: 27 | FG31: 27
A32: 28 | B32: 0.004974365234 | C32: 94.84521484 | D32: 24.82759476 | E32: 25.86632743 | F32: 7.908327579 | G32: 0.7322587967 | H32: 33.90549088 | I32: 0.2315722704 | J32: 0.0675034523 | K32: E | L32: 2.702702703 | M32: 8.791383945 | N32: 74.99999745 | O32: 36 | P32: 36 | Q32: 1 | R32: 2.702702703 | S32: 28 | T32: 30.46716499 | U32: 59.21998978 | V32: 46.43305969 | W32: 6.1945631 | X32: 52.03178406 | Y32: 55.3966217 | Z32: 0.8381929994 | AA32: 0.2283333391 | AB32: 0.04850316048 | AC32: G | AD32: 0 | AE32: 50.47509577 | AF32: 24.99971578 | AG32: 36 | AH32: 36 | AI32: 0 | AJ32: 0 | AK32: 28 | AL32: 0.400000006 | AM32: 19.70000076 | AN32: 9.311429024 | AO32: 5.065498877 | AP32: 5.224999905 | AQ32: 2.280856133 | AR32: 4.082427025 | AS32: 0.2315722704 | AT32: 0.07321447879 | AU32: G | AV32: 2.702702703 | AW32: 12.25916565 | AX32: 24.99999416 | AY32: 36 | AZ32: 36 | BA32: 1 | BB32: 2.702702703 | BC32: 28 | BD32: 10 | BE32: 194.8000031 | BF32: 95.47222137 | BG32: 49.25013136 | BH32: 56.20000076 | BI32: 3.131860971 | BJ32: 30.48418236 | BK32: 0.2283333391 | BL32: 0.08333337307 | BM32: U | BN32: 0 | BO32: 56.20000076 | BP32: 75 | BQ32: 36 | BR32: 36 | BS32: 0 | BT32: 0 | BU32: 28 | BV32: 0.400000006 | BW32: 19.70000076 | BX32: 9.294285774 | BY32: 5.075543965 | BZ32: 5.224999905 | CA32: 2.273452759 | CB32: 4.088180542 | CC32: 0.2315722704 | CD32: 0.07429457456 | CE32: G | CF32: 2.702702703 | CG32: 12.2391973 | CH32: 24.99999366 | CI32: 36 | CJ32: 36 | CK32: 1 | CL32: 2.702702703 | CM32: 28 | CN32: 1.100000024 | CO32: 43.90000153 | CP32: 15.390625 | CQ32: 12.78185109 | CR32: 4.666666985 | CS32: 1.084435463 | CT32: 14.19229221 | CU32: 0.2421840727 | CV32: 0.08520388603 | CW32: E | CX32: 10.81081081 | CY32: 19.57468658 | CZ32: 25.00065505 | DA32: 36 | DB32: 36 | DC32: 4 | DD32: 10.81081081 | DE32: 28 | DF32: 0.6999999881 | DG32: 74.40000153 | DH32: 25.02174187 | DI32: 21.78681724 | DJ32: 8.070000648 | DK32: 1.09141314 | DL32: 22.92600441 | DM32: 0.2856647372 | DN32: 0.05327993631 | DO32: E | DP32: 35.13513514 | DQ32: 23.85649982 | DR32: 24.99998652 | DS32: 36 | DT32: 36 | DU32: 13 | DV32: 35.13513514 | DW32: 28 | EO32: 28 | FG32: 28
A33: 29 | B33: 0.08726406097 | C33: 101.0126801 | D33: 27.82736015 | E33: 25.48214156 | F33: 8.497714996 | G33: 0.9864504337 | H33: 28.2095871 | I33: 0.2349530607 | J33: 0.04047197104 | K33: E | L33: 2.702702703 | M33: 8.722689022 | N33: 75.00033602 | O33: 36 | P33: 36 | Q33: 1 | R33: 2.702702703 | S33: 29 | T33: 40.36686707 | U33: 60.2578125 | V33: 49.03172302 | W33: 6.102280187 | X33: 42.02444458 | Y33: 66.85072327 | Z33: 0.7334508896 | AA33: 0.2283333391 | AB33: 0.08601713181 | AC33: N | AD33: 0 | AE33: 53.14762189 | AF33: 25.00013837 | AG33: 36 | AH33: 36 | AI33: 0 | AJ33: 0 | AK33: 29 | AL33: 0.400000006 | AM33: 25.70000076 | AN33: 10.31142998 | AO33: 5.793645653 | AP33: 6.724999905 | AQ33: 2.691228628 | AR33: 3.831495285 | AS33: 0.2315722704 | AT33: 0.08596145362 | AU33: G | AV33: 2.702702703 | AW33: 13.42394451 | AX33: 24.99934511 | AY33: 36 | AZ33: 36 | BA33: 1 | BB33: 2.702702703 | BC33: 29 | BD33: 7 | BE33: 207.8000031 | BF33: 96.28610992 | BG33: 46.32966903 | BH33: 124.1333313 | BI33: 2.993402481 | BJ33: 32.16610718 | BK33: 0.2283333391 | BL33: 0.0272898674 | BM33: N | BN33: 0 | BO33: 65.03709552 | BP33: 75.00008746 | BQ33: 36 | BR33: 36 | BS33: 0 | BT33: 0 | BU33: 29 | BV33: 0.400000006 | BW33: 25.70000076 | BX33: 10.29428673 | BY33: 5.784408449 | BZ33: 6.724999905 | CA33: 2.696277142 | CB33: 3.817963123 | CC33: 0.2315722704 | CD33: 0.08616989106 | CE33: G | CF33: 2.702702703 | CG33: 13.39987846 | CH33: 24.99927343 | CI33: 36 | CJ33: 36 | CK33: 1 | CL33: 2.702702703 | CM33: 29 | CN33: 0.3000000119 | CO33: 44.70000076 | CP33: 13.02424335 | CQ33: 11.60907598 | CR33: 4 | CS33: 1.150728464 | CT33: 11.31825924 | CU33: 0.2384863943 | CV33: 0.0457546711 | CW33: G | CX33: 8.108108108 | CY33: 16.9931872 | CZ33: 24.99967255 | DA33: 36 | DB33: 36 | DC33: 3 | DD33: 8.108108108 | DE33: 29 | DF33: 0.400000006 | DG33: 106 | DH33: 21.13749886 | DI33: 23.03911283 | DJ33: 10.96000004 | DK33: 0.9226381183 | DL33: 22.90984726 | DM33: 0.2796500921 | DN33: 0.02974003553 | DO33: G | DP33: 32.43243243 | DQ33: 20.69976459 | DR33: 24.99990736 | DS33: 36 | DT33: 36 | DU33: 12 | DV33: 32.43243243 | DW33: 29 | EO33: 29 | FG33: 29
A34: 30 | B34: 3.090087891 | C34: 91.2164917 | D34: 36.67832947 | E34: 21.64983093 | F34: 54.49715424 | G34: 2.090051413 | H34: 17.54900742 | I34: 0.2283333391 | J34: 0.03883588314 | K34: N | L34: 0 | M34: 20.47604629 | N34: 74.99993968 | O34: 36 | P34: 36 | Q34: 0 | R34: 0 | S34: 30 | T34: 37.99179077 | U34: 59.21502686 | V34: 48.15170288 | W34: 5.330269033 | X34: 46.83480453 | Y34: 85.138237 | Z34: 0.5655708313 | AA34: 0.2283333391 | AB34: 0.05945974588 | AC34: G | AD34: 0 | AE34: 51.56147095 | AF34: 24.99947358 | AG34: 36 | AH34: 36 | AI34: 0 | AJ34: 0 | AK34: 30 | AL34: 3.200000048 | AM34: 18.39999962 | AN34: 11.31389046 | AO34: 4.247093553 | AP34: 12.0666666 | AQ34: 5.820279598 | AR34: 1.943874002 | AS34: 0.2283333391 | AT34: 0.07545545697 | AU34: N | AV34: 0 | AW34: 14.17848731 | AX34: 25.00018121 | AY34: 36 | AZ34: 36 | BA34: 0 | BB34: 0 | BC34: 30 | BD34: 18.5 | BE34: 189.1000061 | BF34: 108.3083344 | BG34: 45.6270922 | BH34: 118.0166702 | BI34: 4.032376766 | BJ34: 26.85967636 | BK34: 0.2283333391 | BL34: 0.06746032834 | BM34: T | BN34: 0 | BO34: 83.6490632 | BP34: 74.99991578 | BQ34: 36 | BR34: 36 | BS34: 0 | BT34: 0 | BU34: 30 | BV34: 3.400000095 | BW34: 18.39999962 | BX34: 11.31388855 | BY34: 4.248707519 | BZ34: 9.649999619 | CA34: 5.85492754 | CB34: 1.932370424 | CC34: 0.2283333391 | CD34: 0.07221894711 | CE34: N | CF34: 0 | CG34: 14.17957421 | CH34: 25.00017957 | CI34: 36 | CJ34: 36 | CK34: 0 | CL34: 0 | CM34: 30 | CN34: 0.1000000015 | CO34: 52.59999847 | CP34: 19.35555267 | CQ34: 13.39444296 | CR34: 4.474999905 | CS34: 1.094149828 | CT34: 17.69003868 | CU34: 0.2283333391 | CV34: 0.09848490357 | CW34: T | CX34: 0 | CY34: 77.73245752 | CZ34: 24.99999643 | DA34: 36 | DB34: 36 | DC34: 0 | DD34: 0 | DE34: 30 | DF34: 0.8999999762 | DG34: 78.59999847 | DH34: 30.32999802 | DI34: 18.5616237 | DJ34: 24.20999908 | DK34: 1.775399089 | DL34: 17.08348274 | DM34: 0.2501266301 | DN34: 0.04261696339 | DO34: N | DP34: 16.21621622 | DQ34: 40.14992533 | DR34: 25.00001248 | DS34: 36 | DT34: 36 | DU34: 6 | DV34: 16.21621622 | DW34: 30 | EO34: 30 | FG34: 30
A35: 31 | B35: 0.001985549927 | C35: 135.6712036 | D35: 39.95866013 | E35: 33.79266509 | F35: 11.30775356 | G35: 1.019652247 | H35: 39.18851852 | I35: 0.2283333391 | J35: 0.03996196389 | K35: G | L35: 0 | M35: 16.27604551 | N35: 74.9999902 | O35: 36 | P35: 36 | Q35: 0 | R35: 0 | S35: 31 | T35: 36.28912735 | U35: 61.46500397 | V35: 48.26869202 | W35: 6.086715316 | X35: 46.77907562 | Y35: 64.15587616 | Z35: 0.7523658872 | AA35: 0.2283333391 | AB35: 0.05952376127 | AC35: T | AD35: 0 | AE35: 51.85081871 | AF35: 24.99994001 | AG35: 36 | AH35: 36 | AI35: 0 | AJ35: 0 | AK35: 31 | AL35: 2.599999905 | AM35: 23 | AN35: 13.16666698 | AO35: 5.407296669 | AP35: 17.89999962 | AQ35: 5.062566757 | AR35: 2.600788832 | AS35: 0.2283333391 | AT35: 0.05555558205 | AU35: U | AV35: 0 | AW35: 17.89999998 | AX35: 25 | AY35: 36 | AZ35: 36 | BA35: 0 | BB35: 0 | BC35: 31 | BD35: 20.60000038 | BE35: 192.6999969 | BF35: 112.2944489 | BG35: 47.6891408 | BH35: 120.9916611 | BI35: 3.968545675 | BJ35: 28.2961216 | BK35: 0.2283333391 | BL35: 0.03644126654 | BM35: N | BN35: 0 | BO35: 80.12861893 | BP35: 74.99999551 | BQ35: 36 | BR35: 36 | BS35: 0 | BT35: 0 | BU35: 31 | BV35: 2.599999905 | BW35: 23 | BX35: 13.17499924 | BY35: 5.411066985 | BZ35: 17.89999962 | CA35: 5.055777073 | CB35: 2.605929613 | CC35: 0.2283333391 | CD35: 0.05555558205 | CE35: U | CF35: 0 | CG35: 17.89999998 | CH35: 25 | CI35: 36 | CJ35: 36 | CK35: 0 | CL35: 0 | CM35: 31 | CN35: 0.1000000015 | CO35: 60.59999847 | CP35: 17.90277863 | CQ35: 17.01213807 | CR35: 5.141666412 | CS35: 0.9969921112 | CT35: 17.95679092 | CU35: 0.2283333391 | CV35: 0.05138337612 | CW35: E | CX35: 0 | CY35: 24.81852183 | CZ35: 24.99999893 | DA35: 36 | DB35: 36 | DC35: 0 | DD35: 0 | DE35: 31 | DF35: 0.1000000015 | DG35: 110.5 | DH35: 28.703228 | DI35: 29.69243997 | DJ35: 11.14000034 | DK35: 0.8095828891 | DL35: 35.45434189 | DM35: 0.2460592687 | DN35: 0.04982566833 | DO35: G | DP35: 13.51351351 | DQ35: 35.06641966 | DR35: 24.99998424 | DS35: 36 | DT35: 36 | DU35: 5 | DV35: 13.51351351 | DW35: 31 | EO35: 31 | FG35: 31
A36: 32 | B36: 3.191810608 | C36: 170.4249268 | D36: 46.7924881 | E36: 35.86926436 | F36: 17.12790298 | G36: 1.91271317 | H36: 24.46393394 | I36: 0.2283333391 | J36: 0.06191509962 | K36: G | L36: 0 | M36: 26.06260427 | N36: 75.00000043 | O36: 36 | P36: 36 | Q36: 0 | R36: 0 | S36: 32 | T36: 37.43338776 | U36: 63.01250839 | V36: 47.92235184 | W36: 5.378468304 | X36: 48.09135437 | Y36: 81.93637085 | Z36: 0.5848727822 | AA36: 0.2283333391 | AB36: 0.0264057219 | AC36: N | AD36: 0 | AE36: 51.55007499 | AF36: 24.99999166 | AG36: 36 | AH36: 36 | AI36: 0 | AJ36: 0 | AK36: 32 | AL36: 3.599999905 | AM36: 20.79999924 | AN36: 12.61666775 | AO36: 4.758300957 | AP36: 13.63333321 | AQ36: 6.174068451 | AR36: 2.043493271 | AS36: 0.2283333391 | AT36: 0.04653137922 | AU36: N | AV36: 0 | AW36: 15.82609856 | AX36: 24.99996266 | AY36: 36 | AZ36: 36 | BA36: 0 | BB36: 0 | BC36: 32 | BD36: 14.89999962 | BE36: 199.3999939 | BF36: 121.7861023 | BG36: 51.03405821 | BH36: 184.0249939 | BI36: 3.632662058 | BJ36: 33.52530289 | BK36: 0.2283333391 | BL36: 0.05840468407 | BM36: N | BN36: 0 | BO36: 87.36272053 | BP36: 75.00089203 | BQ36: 36 | BR36: 36 | BS36: 0 | BT36: 0 | BU36: 32 | BV36: 3.599999905 | BW36: 20.79999924 | BX36: 12.60555649 | BY36: 4.770800972 | BZ36: 13.63333321 | CA36: 6.126910686 | CB36: 2.057408333 | CC36: 0.2283333391 | CD36: 0.04653137922 | CE36: N | CF36: 0 | CG36: 15.82341807 | CH36: 24.99996519 | CI36: 36 | CJ36: 36 | CK36: 0 | CL36: 0 | CM36: 32 | CN36: 0.5 | CO36: 94.90000153 | CP36: 24.22499847 | CQ36: 18.68868882 | CR36: 8.366666794 | CS36: 1.875860095 | CT36: 12.9140749 | CU36: 0.2283333391 | CV36: 0.03728049994 | CW36: E | CX36: 0 | CY36: 33.58231831 | CZ36: 25.00068162 | DA36: 36 | DB36: 36 | DC36: 0 | DD36: 0 | DE36: 32 | DF36: 0.200000003 | DG36: 150 | DH36: 35.94857407 | DI36: 34.54231299 | DJ36: 12.6833334 | DK36: 1.1276685 | DL36: 31.87867165 | DM36: 0.2315722704 | DN36: 0.04718708992 | DO36: G | DP36: 2.702702703 | DQ36: 48.82715941 | DR36: 24.99999574 | DS36: 36 | DT36: 36 | DU36: 1 | DV36: 2.702702703 | DW36: 32 | EO36: 32 | FG36: 32
A37: 33 | B37: 2.507507324 | C37: 120.7209625 | D37: 53.30908203 | E37: 32.45572969 | F37: 32.06087112 | G37: 1.8224684 | H37: 29.25103188 | I37: 0.2315722704 | J37: 0.05672374368 | K37: N | L37: 2.702702703 | M37: 24.46925193 | N37: 74.99979389 | O37: 36 | P37: 36 | Q37: 1 | R37: 2.702702703 | S37: 33 | T37: 36.41949463 | U37: 59.913414 | V37: 49.08373642 | W37: 5.980384871 | X37: 50.12428284 | Y37: 67.46151733 | Z37: 0.7275812626 | AA37: 0.2283333391 | AB37: 0.04128247499 | AC37: N | AD37: 0 | AE37: 53.11744135 | AF37: 25.00001792 | AG37: 36 | AH37: 36 | AI37: 0 | AJ37: 0 | AK37: 33 | AL37: 3.200000048 | AM37: 27.79999924 | AN37: 13.71388721 | AO37: 5.841484732 | AP37: 17.54999924 | AQ37: 5.192848682 | AR37: 2.640918016 | AS37: 0.2283333391 | AT37: 0.04508709908 | AU37: N | AV37: 0 | AW37: 17.65390813 | AX37: 25.0000036 | AY37: 36 | AZ37: 36 | BA37: 0 | BB37: 0 | BC37: 33 | BD37: 23.29999924 | BE37: 226.5 | BF37: 118.5611191 | BG37: 49.4387247 | BH37: 141.8333435 | BI37: 4.544815063 | BJ37: 26.08711624 | BK37: 0.2283333391 | BL37: 0.04109039158 | BM37: N | BN37: 0 | BO37: 85.21526008 | BP37: 74.99996524 | BQ37: 36 | BR37: 36 | BS37: 0 | BT37: 0 | BU37: 33 | BV37: 3.099999905 | BW37: 27.79999924 | BX37: 13.67499924 | BY37: 5.867458617 | BZ37: 9.274999619 | CA37: 5.103444099 | CB37: 2.679562807 | CC37: 0.2283333391 | CD37: 0.06379461288 | CE37: N | CF37: 0 | CG37: 17.6325394 | CH37: 25.00000288 | CI37: 36 | CJ37: 36 | CK37: 0 | CL37: 0 | CM37: 33 | CN37: 0.3000000119 | CO37: 67.09999847 | CP37: 23.90277863 | CQ37: 16.26583607 | CR37: 17 | CS37: 1.395040393 | CT37: 17.1341114 | CU37: 0.2283333391 | CV37: 0.04690721631 | CW37: N | CX37: 0 | CY37: 34.87391011 | CZ37: 25.00001607 | DA37: 36 | DB37: 36 | DC37: 0 | DD37: 0 | DE37: 33 | DF37: 0.5 | DG37: 126.8000031 | DH37: 41.55624771 | DI37: 30.30453947 | DJ37: 11.02500057 | DK37: 1.35681653 | DL37: 30.62775803 | DM37: 0.2421840727 | DN37: 0.05018395185 | DO37: G | DP37: 10.81081081 | DQ37: 53.11841839 | DR37: 24.99941178 | DS37: 36 | DT37: 36 | DU37: 4 | DV37: 10.81081081 | DW37: 33 | EO37: 33 | FG37: 33
A38: 34 | B38: 11.55503845 | C38: 260.1679688 | D38: 66.37112427 | E38: 48.920827 | F38: 32.27278137 | G38: 2.362244368 | H38: 28.09663773 | I38: 0.2283333391 | J38: 0.02113550901 | K38: G | L38: 0 | M38: 36.76210844 | N38: 74.99995025 | O38: 36 | P38: 36 | Q38: 0 | R38: 0 | S38: 34 | T38: 32.64953613 | U38: 62.487854 | V38: 46.92913818 | W38: 7.21708627 | X38: 45.08216858 | Y38: 42.92541122 | Z38: 1.093271732 | AA38: 0.2283333391 | AB38: 0.05952382088 | AC38: T | AD38: 0 | AE38: 51.09320722 | AF38: 24.99978467 | AG38: 36 | AH38: 36 | AI38: 0 | AJ38: 0 | AK38: 34 | AL38: 4.800000191 | AM38: 31 | AN38: 14.28888988 | AO38: 5.764561004 | AP38: 20.08333397 | AQ38: 5.859271526 | AR38: 2.438680172 | AS38: 0.2283333391 | AT38: 0.05054610968 | AU38: N | AV38: 0 | AW38: 18.17700977 | AX38: 25.00009605 | AY38: 36 | AZ38: 36 | BA38: 0 | BB38: 0 | BC38: 34 | BD38: 29.10000038 | BE38: 237.8999939 | BF38: 129.0694275 | BG38: 49.19603891 | BH38: 150.8999939 | BI38: 5.575930119 | BJ38: 23.14760399 | BK38: 0.2283333391 | BL38: 0.04076439142 | BM38: N | BN38: 0 | BO38: 95.88574449 | BP38: 75.00094242 | BQ38: 36 | BR38: 36 | BS38: 0 | BT38: 0 | BU38: 34 | BV38: 4.800000191 | BW38: 31 | BX38: 14.28888988 | BY38: 5.759751054 | BZ38: 20.08333397 | CA38: 5.883232117 | CB38: 2.428748369 | CC38: 0.2283333391 | CD38: 0.06121714413 | CE38: N | CF38: 0 | CG38: 18.1737653 | CH38: 25.0000973 | CI38: 36 | CJ38: 36 | CK38: 0 | CL38: 0 | CM38: 34 | CN38: 1.299999952 | CO38: 131.5 | CP38: 30.08333015 | CQ38: 23.35643664 | CR38: 33.85000229 | CS38: 1.840040565 | CT38: 16.34927559 | CU38: 0.2283333391 | CV38: 0.09642767906 | CW38: G | CX38: 0 | CY38: 40.72171598 | CZ38: 25.0000592 | DA38: 36 | DB38: 36 | DC38: 0 | DD38: 0 | DE38: 34 | DF38: 0.1000000015 | DG38: 251.5 | DH38: 52.14571762 | DI38: 47.07950442 | DJ38: 21.05000114 | DK38: 1.245340943 | DL38: 41.87264252 | DM38: 0.2315722704 | DN38: 0.04251921177 | DO38: E | DP38: 2.702702703 | DQ38: 70.86054332 | DR38: 25.00001525 | DS38: 36 | DT38: 36 | DU38: 1 | DV38: 2.702702703 | DW38: 34 | EO38: 34 | FG38: 34
A39: 35 | B39: 11.31945801 | C39: 175.3896484 | D39: 71.66931152 | E39: 34.39263752 | F39: 52.33700562 | G39: 4.573835373 | H39: 15.66941261 | I39: 0.2283333391 | J39: 0.06733956188 | K39: G | L39: 0 | M39: 57.6825843 | N39: 75.0001146 | O39: 36 | P39: 36 | Q39: 0 | R39: 0 | S39: 35 | T39: 34.87866211 | U39: 57.01185226 | V39: 43.86408997 | W39: 5.193642714 | X39: 44.10082626 | Y39: 74.81980133 | Z39: 0.5862631202 | AA39: 0.2283333391 | AB39: 0.02316841483 | AC39: N | AD39: 0 | AE39: 47.36714832 | AF39: 25.00000259 | AG39: 36 | AH39: 36 | AI39: 0 | AJ39: 0 | AK39: 35 | AL39: 6.400000095 | AM39: 23.89999962 | AN39: 15.41111088 | AO39: 4.819174757 | AP39: 16.60833359 | AQ39: 8.958996773 | AR39: 1.720182657 | AS39: 0.2283333391 | AT39: 0.05609616637 | AU39: N | AV39: 0 | AW39: 18.66160277 | AX39: 24.99994782 | AY39: 36 | AZ39: 36 | BA39: 0 | BB39: 0 | BC39: 35 | BD39: 24.79999924 | BE39: 229.8000031 | BF39: 139.1111145 | BG39: 51.7996582 | BH39: 178.5500031 | BI39: 5.052479267 | BJ39: 27.53323746 | BK39: 0.2283333391 | BL39: 0.08333331347 | BM39: T | BN39: 0 | BO39: 113.5678816 | BP39: 74.99984424 | BQ39: 36 | BR39: 36 | BS39: 0 | BT39: 0 | BU39: 35 | BV39: 6.300000191 | BW39: 23.89999962 | BX39: 15.39999866 | BY39: 4.835286875 | BZ39: 16.56666565 | CA39: 8.879640579 | CB39: 1.734304309 | CC39: 0.2283333391 | CD39: 0.05609616637 | CE39: N | CF39: 0 | CG39: 18.66135726 | CH39: 24.99995296 | CI39: 36 | CJ39: 36 | CK39: 0 | CL39: 0 | CM39: 35 | CN39: 1.799999952 | CO39: 101.0999985 | CP39: 32.57499695 | CQ39: 19.21095339 | CR39: 26.62499809 | CS39: 2.694726706 | CT39: 12.08842278 | CU39: 0.2283333391 | CV39: 0.04548287392 | CW39: G | CX39: 0 | CY39: 42.923374 | CZ39: 24.99939649 | DA39: 36 | DB39: 36 | DC39: 0 | DD39: 0 | DE39: 35 | DF39: 11.89999962 | DG39: 169.1000061 | DH39: 58.16286087 | DI39: 33.00080454 | DJ39: 51.20000076 | DK39: 3.599195957 | DL39: 16.15995979 | DM39: 0.2315722704 | DN39: 0.09899091721 | DO39: G | DP39: 2.702702703 | DQ39: 74.13346992 | DR39: 25.00003405 | DS39: 36 | DT39: 36 | DU39: 1 | DV39: 2.702702703 | DW39: 35 | EO39: 35 | FG39: 35
A40: 36 | B40: 6.323234558 | C40: 225.7119141 | D40: 69.64606476 | E40: 48.46670742 | F40: 61.17040634 | G40: 2.105678558 | H40: 33.07535553 | I40: 0.2283333391 | J40: 0.06257802248 | K40: G | L40: 0 | M40: 47.35302796 | N40: 75.00017481 | O40: 36 | P40: 36 | Q40: 0 | R40: 0 | S40: 36 | T40: 33.70011139 | U40: 59.03790665 | V40: 47.0046196 | W40: 5.706704049 | X40: 44.2575264 | Y40: 69.42403412 | Z40: 0.6770654917 | AA40: 0.2283333391 | AB40: 0.08469879627 | AC40: G | AD40: 0 | AE40: 50.67690962 | AF40: 24.99959967 | AG40: 36 | AH40: 36 | AI40: 0 | AJ40: 0 | AK40: 36 | AL40: 9.600000381 | AM40: 26.79999924 | AN40: 16.2694416 | AO40: 3.948585286 | AP40: 16.76666641 | AQ40: 17.28364182 | AR40: 0.9413202405 | AS40: 0.2283333391 | AT40: 0.03906279802 | AU40: N | AV40: 0 | AW40: 18.93272478 | AX40: 24.9999769 | AY40: 36 | AZ40: 36 | BA40: 0 | BB40: 0 | BC40: 36 | BD40: 16.89999962 | BE40: 223.1000061 | BF40: 135.1666412 | BG40: 57.91656175 | BH40: 205.9166718 | BI40: 3.549768448 | BJ40: 38.07759476 | BK40: 0.2283333391 | BL40: 0.05685454607 | BM40: N | BN40: 0 | BO40: 96.10120539 | BP40: 75.00071799 | BQ40: 36 | BR40: 36 | BS40: 0 | BT40: 0 | BU40: 36 | BV40: 9.600000381 | BW40: 26.79999924 | BX40: 16.2749958 | BY40: 3.945585155 | BZ40: 16.76666641 | CA40: 17.33477592 | CB40: 0.9388639331 | CC40: 0.2283333391 | CD40: 0.04565948248 | CE40: N | CF40: 0 | CG40: 18.93625547 | CH40: 24.99997647 | CI40: 36 | CJ40: 36 | CK40: 0 | CL40: 0 | CM40: 36 | CN40: 2.5 | CO40: 107.9000015 | CP40: 33.31666565 | CQ40: 25.02618502 | CR40: 28.85000229 | CS40: 1.853665233 | CT40: 17.97340012 | CU40: 0.2283333391 | CV40: 0.06162428856 | CW40: G | CX40: 0 | CY40: 45.07834369 | CZ40: 24.99912765 | DA40: 36 | DB40: 36 | DC40: 0 | DD40: 0 | DE40: 36 | DF40: 0.1000000015 | DG40: 184.8000031 | DH40: 55.72857666 | DI40: 43.61887577 | DJ40: 46.27500153 | DK40: 1.192657709 | DL40: 46.72637939 | DM40: 0.2315722704 | DN40: 0.1376986802 | DO40: G | DP40: 2.702702703 | DQ40: 75.6254497 | DR40: 25.00066488 | DS40: 36 | DT40: 36 | DU40: 1 | DV40: 2.702702703 | DW40: 36 | EO40: 36 | FG40: 36
A41: 37 | B41: 7.340332031 | C41: 112.0117188 | D41: 41.56864929 | E41: 27.01979978 | F41: 16.06294632 | G41: 2.388416052 | H41: 17.40427399 | I41: 0.2283333391 | J41: 0.03607451916 | K41: G | L41: 0 | M41: 20.20496514 | N41: 74.99998514 | O41: 36 | P41: 36 | Q41: 0 | R41: 0 | S41: 37 | T41: 13.9489603 | U41: 31.96504211 | V41: 23.75428772 | W41: 4.26335514 | X41: 24.4583416 | Y41: 30.43239403 | Z41: 0.7805593014 | AA41: 0.2283333391 | AB41: 0.01950222254 | AC41: N | AD41: 0 | AE41: 26.6298896 | AF41: 24.99990654 | AG41: 36 | AH41: 36 | AI41: 0 | AJ41: 0 | AK41: 37 | AL41: 3.400000095 | AM41: 14.80000019 | AN41: 9.294445038 | AO41: 2.911940387 | AP41: 8.149999619 | AQ41: 10.51694965 | AR41: 0.8837586045 | AS41: 0.2283333391 | AT41: 0.1249825954 | AU41: G | AV41: 0 | AW41: 11.03472764 | AX41: 24.99997154 | AY41: 36 | AZ41: 36 | BA41: 0 | BB41: 0 | BC41: 37 | BD41: 10.19999981 | BE41: 120 | BF41: 73.92858124 | BG41: 31.58175368 | BH41: 74.25 | BI41: 8.395552635 | BJ41: 8.80568409 | BK41: 0.2315722704 | BL41: 0.08945292234 | BM41: N | BN41: 0 | BO41: 52.62702 | BP41: 74.99999204 | BQ41: 36 | BR41: 36 | BS41: 0 | BT41: 0 | BU41: 37 | BV41: 3.5 | BW41: 14.80000019 | BX41: 9.294445038 | BY41: 2.905064167 | BZ41: 8.208333015 | CA41: 10.6485157 | CB41: 0.8728395104 | CC41: 0.2283333391 | CD41: 0.1183435917 | CE41: G | CF41: 0 | CG41: 11.02532252 | CH41: 24.99996575 | CI41: 36 | CJ41: 36 | CK41: 0 | CL41: 0 | CM41: 37 | CN41: 1.399999976 | CO41: 60.59999847 | CP41: 17.33333397 | CQ41: 14.63730984 | CR41: 6.333333492 | CS41: 1.299960256 | CT41: 13.33374119 | CU41: 0.2283333391 | CV41: 0.03351402283 | CW41: G | CX41: 0 | CY41: 23.88693958 | CZ41: 24.99990336 | DA41: 36 | DB41: 36 | DC41: 0 | DD41: 0 | DE41: 37 | DF41: 0.200000003 | DG41: 95 | DH41: 32.83234787 | DI41: 27.22195868 | DJ41: 8.100000381 | DK41: 1.093839288 | DL41: 30.01569557 | DM41: 0.2349530607 | DN41: 0.08471649885 | DO41: G | DP41: 5.405405405 | DQ41: 43.72548829 | DR41: 25.00001735 | DS41: 36 | DT41: 36 | DU41: 2 | DV41: 5.405405405 | DW41: 37 | EO41: 37 | FG41: 37
A42: Ponto: | B42: =B4+1 -> 2 | C42: Componente hídrica: | G42: Precipitação (P) | L42: Ponto 2 lat-19,875 lon-50,375 | S42: Ponto: | T42: =B42 -> 2 | U42: Componente hídrica: | Y42: Evapotranspiração de referência (ETo) | AD42: =L42 -> Ponto 2 lat-19,875 lon-50,375 | AK42: Ponto: | AL42: 2 | AM42: Componente hídrica: | AV42: Ponto 2 lat-19,875 lon-50,375 | BC42: Ponto: | BD42: =B42 -> 2 | BE42: Componente hídrica: | BI42: Armazenamento da água no solo (Arm) | BN42: =L42 -> Ponto 2 lat-19,875 lon-50,375 | BU42: Ponto: | BV42: 2 | BW42: Componente hídrica: | CF42: Ponto 2 lat-19,875 lon-50,375 | CM42: Ponto: | CN42: 2 | CO42: Componente hídrica: | CX42: Ponto 2 lat-19,875 lon-50,375 | DE42: Ponto: | DF42: 2 | DG42: Componente hídrica: | DP42: Ponto 2 lat-19,875 lon-50,375 | DW42: Ponto: | DX42: =B42 -> 2 | DY42: Componente hídrica: | EC42: Temperatura mínima (Tmin) | EH42: =L42 -> Ponto 2 lat-19,875 lon-50,375 | EO42: Ponto: | EP42: =B42 -> 2 | EQ42: Componente hídrica: | EU42: Temperatura máxima (Tmax) | EZ42: =L42 -> Ponto 2 lat-19,875 lon-50,375 | FG42: Ponto: | FH42: =B42 -> 2 | FI42: Componente hídrica: | FM42: Temperatura média (Tmed) | FR42: =L42 -> Ponto 2 lat-19,875 lon-50,375
A43: 1 | B43: 15.5836792 | C43: 205.4277344 | D43: 88.36437988 | E43: 51.03404386 | F43: 63.04469299 | G43: 2.904196501 | H43: 30.42644691 | I43: 0.2283333391 | J43: 0.05180990696 | K43: G | L43: 0 | M43: 50.25538268 | N43: 74.99990293 | O43: 36 | P43: 36 | Q43: 0 | R43: 0 | S43: 1 | T43: 33.18971634 | U43: 55.41210938 | V43: 43.80644608 | W43: 5.843056378 | X43: 42.44904709 | Y43: 57.17840958 | Z43: 0.7661361694 | AA43: 0.2283333391 | AB43: 0.0500934124 | AC43: G | AD43: 0 | AE43: 47.56256303 | AF43: 24.99969461 | AG43: 36 | AH43: 36 | AI43: 0 | AJ43: 0 | AK43: 1 | AL43: 18.5 | AM43: 51.90000153 | AN43: 33.69444656 | AO43: 9.09329191 | AP43: 37.98333359 | AQ43: 13.19839954 | AR43: 2.552919149 | AS43: 0.2283333391 | AT43: 0.06168957055 | AU43: N | AV43: 0 | AW43: 39.82804557 | AX43: 24.99906758 | AY43: 36 | AZ43: 36 | BA43: 0 | BB43: 0 | BC43: 1 | BD43: 10.5 | BE43: 33.09999847 | BF43: 18.20555687 | BG43: 4.958567809 | BH43: 19.91666603 | BI43: 15.22318554 | BJ43: 1.195909858 | BK43: 0.2283333391 | BL43: 0.07036107779 | BM43: G | BN43: 0 | BO43: 14.87996942 | BP43: 74.99993398 | BQ43: 36 | BR43: 36 | BS43: 0 | BT43: 0 | BU43: 1 | BV43: 19.79999924 | BW43: 46.59999847 | BX43: 35.07500076 | BY43: 7.124745682 | BZ43: 38.55999756 | CA43: 23.06317711 | CB43: 1.520822644 | CC43: 0.3425000012 | CD43: 0.07678562403 | CE43: T | CF43: 0 | CG43: 33.93948903 | CH43: 25.00005434 | CI43: 16 | CJ43: 16 | CK43: 0 | CL43: 0 | CM43: 1 | CN43: 6.400000095 | CO43: 93.40000153 | CP43: 30.2361145 | CQ43: 19.31621311 | CR43: 28.14999962 | CS43: 2.8181355 | CT43: 10.72912025 | CU43: 0.2283333391 | CV43: 0.04691034555 | CW43: G | CX43: 0 | CY43: 39.7051202 | CZ43: 24.99923736 | DA43: 36 | DB43: 36 | DC43: 0 | DD43: 0 | DE43: 1 | DF43: 0.1000000015 | DG43: 161 | DH43: 54.96665955 | DI43: 46.30093532 | DJ43: 13.50833416 | DK43: 1.163519859 | DL43: 47.24170303 | DM43: 0.2283333391 | DN43: 0.05417996645 | DO43: E | DP43: 0 | DQ43: 76.19997333 | DR43: 24.99999856 | DS43: 36 | DT43: 36 | DU43: 0 | DV43: 0 | DW43: 1 | EO43: 1 | FG43: 1 | FH43: tmed
A44: 2 | B44: 16.75549316 | C44: 233.9936523 | D44: 85.1656189 | E44: 53.27297636 | F44: 71.06503296 | G44: 2.612758636 | H44: 32.59605408 | I44: 0.2283333391 | J44: 0.05108588934 | K44: G | L44: 0 | M44: 46.42337986 | N44: 75.00000496 | O44: 36 | P44: 36 | Q44: 0 | R44: 0 | S44: 2 | T44: 30.38625336 | U44: 60.21484375 | V44: 45.08975983 | W44: 6.886367001 | X44: 47.78626251 | Y44: 43.60107803 | Z44: 1.034143209 | AA44: 0.2283333391 | AB44: 0.02993756533 | AC44: N | AD44: 0 | AE44: 49.73450283 | AF44: 25.000189 | AG44: 36 | AH44: 36 | AI44: 0 | AJ44: 0 | AK44: 2 | AL44: 14.89999962 | AM44: 51.20000076 | AN44: 32.47222137 | AO44: 8.392773344 | AP44: 30.02499962 | AQ44: 14.88210773 | AR44: 2.181963921 | AS44: 0.2283333391 | AT44: 0.02364355326 | AU44: G | AV44: 0 | AW44: 37.68595438 | AX44: 24.99999839 | AY44: 36 | AZ44: 36 | BA44: 0 | BB44: 0 | BC44: 2 | BD44: 10 | BE44: 31 | BF44: 17.90277863 | BG44: 5.581781124 | BH44: 15.25 | BI44: 10.85004139 | BJ44: 1.650019407 | BK44: 0.2283333391 | BL44: 0.06176882982 | BM44: G | BN44: 0 | BO44: 14.00112277 | BP44: 75.00000149 | BQ44: 36 | BR44: 36 | BS44: 0 | BT44: 0 | BU44: 2 | BV44: 22.70000076 | BW44: 41.79999924 | BX44: 33.38124847 | BY44: 6.583739578 | BZ44: 36.06999969 | CA44: 25.84314156 | CB44: 1.291686893 | CC44: 0.3425000012 | CD44: 0.127501905 | CE44: N | CF44: 0 | CG44: 37.82208033 | CH44: 24.99919401 | CI44: 16 | CJ44: 16 | CK44: 0 | CL44: 0 | CM44: 2 | CN44: 1.600000024 | CO44: 98.09999847 | CP44: 28.59722137 | CQ44: 19.27269645 | CR44: 9.641667366 | CS44: 2.178076029 | CT44: 13.12957859 | CU44: 0.2283333391 | CV44: 0.0479246974 | CW44: G | CX44: 0 | CY44: 38.27598171 | CZ44: 25.00007384 | DA44: 36 | DB44: 36 | DC44: 0 | DD44: 0 | DE44: 2 | DF44: 0.1000000015 | DG44: 194.8000031 | DH44: 56.53998947 | DI44: 47.73654353 | DJ44: 16.32500076 | DK44: 1.033609509 | DL44: 54.70149994 | DM44: 0.2315722704 | DN44: 0.05355513096 | DO44: G | DP44: 2.702702703 | DQ44: 76.83801074 | DR44: 24.99986888 | DS44: 36 | DT44: 36 | DU44: 1 | DV44: 2.702702703 | DW44: 2 | EO44: 2 | FG44: 2
A45: 3 | B45: 9.865264893 | C45: 210.6651611 | D45: 89.90816498 | E45: 49.56129067 | F45: 93.53188324 | G45: 2.785082579 | H45: 32.28204727 | I45: 0.2283333391 | J45: 0.05039821565 | K45: N | L45: 0 | M45: 56.47908355 | N45: 75.00031986 | O45: 36 | P45: 36 | Q45: 0 | R45: 0 | S45: 3 | T45: 29.90277481 | U45: 55.04899979 | V45: 43.31778336 | W45: 6.977516579 | X45: 48.76244354 | Y45: 38.06115723 | Z45: 1.138110042 | AA45: 0.2283333391 | AB45: 0.06819945574 | AC45: N | AD45: 0 | AE45: 48.02402815 | AF45: 25.0000848 | AG45: 36 | AH45: 36 | AI45: 0 | AJ45: 0 | AK45: 3 | AL45: 12.39999962 | AM45: 51.20000076 | AN45: 31.71944237 | AO45: 8.588158692 | AP45: 35.03333282 | AQ45: 13.21037579 | AR45: 2.401100636 | AS45: 0.2283333391 | AT45: 0.03575795889 | AU45: N | AV45: 0 | AW45: 37.51218008 | AX45: 24.99958297 | AY45: 36 | AZ45: 36 | BA45: 0 | BB45: 0 | BC45: 3 | BD45: 10 | BE45: 34.40000153 | BF45: 18.88889122 | BG45: 5.975941106 | BH45: 16.10000038 | BI45: 10.84734535 | BJ45: 1.741337657 | BK45: 0.2283333391 | BL45: 0.06823137403 | BM45: G | BN45: 0 | BO45: 14.77179179 | BP45: 75.0000033 | BQ45: 36 | BR45: 36 | BS45: 0 | BT45: 0 | BU45: 3 | BV45: 12.39999962 | BW45: 44.40000153 | BX45: 30.35000038 | BY45: 9.155981691 | BZ45: 41.20000076 | CA45: 10.3879528 | CB45: 2.921653748 | CC45: 0.3425000012 | CD45: 0.1029541492 | CE45: N | CF45: 0 | CG45: 36.52562781 | CH45: 24.99995965 | CI45: 16 | CJ45: 16 | CK45: 0 | CL45: 0 | CM45: 3 | CN45: 3.5 | CO45: 86.80000305 | CP45: 32.08888626 | CQ45: 21.50522639 | CR45: 24.32500076 | CS45: 2.077700138 | CT45: 15.44442654 | CU45: 0.2283333391 | CV45: 0.05133479834 | CW45: G | CX45: 0 | CY45: 43.09077087 | CZ45: 24.99959007 | DA45: 36 | DB45: 36 | DC45: 0 | DD45: 0 | DE45: 3 | DF45: 0.1000000015 | DG45: 156 | DH45: 58.30857468 | DI45: 41.96210041 | DJ45: 13.09166718 | DK45: 1.194313407 | DL45: 48.82183838 | DM45: 0.2315722704 | DN45: 0.04329004884 | DO45: T | DP45: 2.702702703 | DQ45: 80.3398843 | DR45: 24.99948781 | DS45: 36 | DT45: 36 | DU45: 1 | DV45: 2.702702703 | DW45: 3 | EO45: 3 | FG45: 3
A46: 4 | B46: 1.772354126 | C46: 296.3984375 | D46: 71.91390228 | E46: 57.00689548 | F46: 26.32452774 | G46: 1.680037975 | H46: 42.80492783 | I46: 0.2283333391 | J46: 0.04605740309 | K46: G | L46: 0 | M46: 31.29020749 | N46: 74.999983 | O46: 36 | P46: 36 | Q46: 0 | R46: 0 | S46: 4 | T46: 30.35717583 | U46: 63.85546875 | V46: 45.10826111 | W46: 7.271166192 | X46: 49.89784622 | Y46: 39.65768814 | Z46: 1.137440562 | AA46: 0.2283333391 | AB46: 0.01937568188 | AC46: N | AD46: 0 | AE46: 50.01256489 | AF46: 25.00010179 | AG46: 36 | AH46: 36 | AI46: 0 | AJ46: 0 | AK46: 4 | AL46: 3.299999952 | AM46: 51.70000076 | AN46: 28.80555916 | AO46: 10.05302865 | AP46: 31.53333282 | AQ46: 5.458528519 | AR46: 5.277165413 | AS46: 0.2283333391 | AT46: 0.03968253732 | AU46: T | AV46: 0 | AW46: 36.07877318 | AX46: 25.00062139 | AY46: 36 | AZ46: 36 | BA46: 0 | BB46: 0 | BC46: 4 | BD46: 9.899999619 | BE46: 30.5 | BF46: 17.64722443 | BG46: 4.99259362 | BH46: 18.48333359 | BI46: 13.31785679 | BJ46: 1.325079918 | BK46: 0.2283333391 | BL46: 0.03382526338 | BM46: G | BN46: 0 | BO46: 14.19104797 | BP46: 75.00000993 | BQ46: 36 | BR46: 36 | BS46: 0 | BT46: 0 | BU46: 4 | BV46: 3.299999952 | BW46: 51.70000076 | BX46: 29.01249695 | BY46: 13.37444668 | BZ46: 37.18000031 | CA46: 2.948153257 | CB46: 9.84090519 | CC46: 0.3425000012 | CD46: 0.05465596914 | CE46: N | CF46: 0 | CG46: 38.03342522 | CH46: 24.99999746 | CI46: 16 | CJ46: 16 | CK46: 0 | CL46: 0 | CM46: 4 | CN46: 1.399999976 | CO46: 60.20000076 | CP46: 24.65000153 | CQ46: 15.75254099 | CR46: 16.10000038 | CS46: 1.853401184 | CT46: 13.29987335 | CU46: 0.2283333391 | CV46: 0.07844060659 | CW46: G | CX46: 0 | CY46: 33.3518894 | CZ46: 24.99987045 | DA46: 36 | DB46: 36 | DC46: 0 | DD46: 0 | DE46: 4 | DF46: 1 | DG46: 232.1000061 | DH46: 47.01818466 | DI46: 47.90478991 | DJ46: 20.25833321 | DK46: 1.165004134 | DL46: 40.35881424 | DM46: 0.2384863943 | DN46: 0.02721071243 | DO46: G | DP46: 8.108108108 | DQ46: 61.3495532 | DR46: 24.99999752 | DS46: 36 | DT46: 36 | DU46: 3 | DV46: 8.108108108 | DW46: 4 | EO46: 4 | FG46: 4
A47: 5 | B47: 0.8790283203 | C47: 174.8144531 | D47: 66.88874054 | E47: 41.47294746 | F47: 44.36288452 | G47: 1.858130932 | H47: 35.99785995 | I47: 0.2283333391 | J47: 0.05829191208 | K47: G | L47: 0 | M47: 30.88452211 | N47: 75.00081573 | O47: 36 | P47: 36 | Q47: 0 | R47: 0 | S47: 5 | T47: 35.42137146 | U47: 55.54719162 | V47: 44.46120453 | W47: 5.281121789 | X47: 43.80712891 | Y47: 72.94044495 | Z47: 0.6095548868 | AA47: 0.2283333391 | AB47: 0.03165771067 | AC47: G | AD47: 0 | AE47: 47.85323432 | AF47: 24.99957237 | AG47: 36 | AH47: 36 | AI47: 0 | AJ47: 0 | AK47: 5 | AL47: 1.799999952 | AM47: 50.29999924 | AN47: 28.58055305 | AO47: 10.12134439 | AP47: 30.09166527 | AQ47: 5.239131927 | AR47: 5.455207825 | AS47: 0.2283333391 | AT47: 0.04447221756 | AU47: N | AV47: 0 | AW47: 35.40729633 | AX47: 24.99999928 | AY47: 36 | AZ47: 36 | BA47: 0 | BB47: 0 | BC47: 5 | BD47: 9.899999619 | BE47: 31.79999924 | BF47: 19.90555763 | BG47: 6.949447928 | BH47: 11.72499943 | BI47: 8.368266106 | BJ47: 2.378695488 | BK47: 0.2283333391 | BL47: 0.07296486199 | BM47: G | BN47: 0 | BO47: 14.93795141 | BP47: 74.99999114 | BQ47: 36 | BR47: 36 | BS47: 0 | BT47: 0 | BU47: 5 | BV47: 12.89999962 | BW47: 50.40000153 | BX47: 27.59375 | BY47: 10.4400807 | BZ47: 24.14999962 | CA47: 7.371471405 | CB47: 3.743316412 | CC47: 0.3425000012 | CD47: 0.0624999404 | CE47: N | CF47: 0 | CG47: 34.63547769 | CH47: 24.99999918 | CI47: 16 | CJ47: 16 | CK47: 0 | CL47: 0 | CM47: 5 | CN47: 0.8999999762 | CO47: 90.59999847 | CP47: 24.01111031 | CQ47: 18.57738661 | CR47: 23.32499886 | CS47: 1.468540192 | CT47: 16.35032654 | CU47: 0.2283333391 | CV47: 0.0933187902 | CW47: G | CX47: 0 | CY47: 32.9169201 | CZ47: 24.99909152 | DA47: 36 | DB47: 36 | DC47: 0 | DD47: 0 | DE47: 5 | DF47: 4.699999809 | DG47: 131.5 | DH47: 43.84375381 | DI47: 32.50661554 | DJ47: 15.26666641 | DK47: 1.828466654 | DL47: 23.97842598 | DM47: 0.2421840727 | DN47: 0.06153377891 | DO47: G | DP47: 10.81081081 | DQ47: 55.7299508 | DR47: 25.00007208 | DS47: 36 | DT47: 36 | DU47: 4 | DV47: 10.81081081 | DW47: 5 | EO47: 5 | FG47: 5
A48: 6 | B48: 8.546386719 | C48: 139.8769531 | D48: 65.56736755 | E48: 37.14326084 | F48: 19.49060059 | G48: 2.649157286 | H48: 24.75027275 | I48: 0.2283333391 | J48: 0.07578682899 | K48: G | L48: 0 | M48: 35.94720391 | N48: 74.99996209 | O48: 36 | P48: 36 | Q48: 0 | R48: 0 | S48: 6 | T48: 35.87407303 | U48: 52.05321121 | V48: 43.88256454 | W48: 4.964325668 | X48: 48.00842667 | Y48: 78.70418549 | Z48: 0.5575633049 | AA48: 0.2283333391 | AB48: 0.08333341777 | AC48: U | AD48: 0 | AE48: 48.00842667 | AF48: 25 | AG48: 36 | AH48: 36 | AI48: 0 | AJ48: 0 | AK48: 6 | AL48: 7.300000191 | AM48: 37.70000076 | AN48: 23.80555534 | AO48: 6.960375762 | AP48: 19.96666718 | AQ48: 10.72288132 | AR48: 2.220070839 | AS48: 0.2283333391 | AT48: 0.05985710025 | AU48: G | AV48: 0 | AW48: 28.22534876 | AX48: 24.99997987 | AY48: 36 | AZ48: 36 | BA48: 0 | BB48: 0 | BC48: 6 | BD48: 11.39999962 | BE48: 141 | BF48: 60.52778625 | BG48: 32.50395672 | BH48: 43.79999924 | BI48: 3.010786295 | BJ48: 20.10364723 | BK48: 0.2283333391 | BL48: 0.03540289402 | BM48: G | BN48: 0 | BO48: 34.89695362 | BP48: 74.99954638 | BQ48: 36 | BR48: 36 | BS48: 0 | BT48: 0 | BU48: 6 | BV48: 7.300000191 | BW48: 32.29999924 | BX48: 24.21875 | BY48: 6.127122161 | BZ48: 24.79999924 | CA48: 11.37231922 | CB48: 2.129622698 | CC48: 0.3425000012 | CD48: 0.1071965694 | CE48: N | CF48: 0 | CG48: 28.35143188 | CH48: 24.99999593 | CI48: 16 | CJ48: 16 | CK48: 0 | CL48: 0 | CM48: 6 | CN48: 0.5 | CO48: 71.59999847 | CP48: 26.05555153 | CQ48: 16.97758892 | CR48: 18.27499962 | CS48: 1.460506916 | CT48: 17.84007454 | CU48: 0.2283333391 | CV48: 0.04904603958 | CW48: N | CX48: 0 | CY48: 37.50674802 | CZ48: 25.00002474 | DA48: 36 | DB48: 36 | DC48: 0 | DD48: 0 | DE48: 6 | DF48: 1.200000048 | DG48: 113 | DH48: 45.69091034 | DI48: 32.59431927 | DJ48: 10.51666641 | DK48: 1.416958809 | DL48: 32.24575806 | DM48: 0.2384863943 | DN48: 0.07948923111 | DO48: N | DP48: 8.108108108 | DQ48: 65.46255674 | DR48: 25.00000603 | DS48: 36 | DT48: 36 | DU48: 3 | DV48: 8.108108108 | DW48: 6 | EO48: 6 | FG48: 6
A49: 7 | B49: 6.162353516 | C49: 317.453125 | D49: 67.58432007 | E49: 61.26415254 | F49: 32.1032486 | G49: 1.422580481 | H49: 47.50825882 | I49: 0.2283333391 | J49: 0.04325324297 | K49: G | L49: 0 | M49: 26.31759574 | N49: 74.99994222 | O49: 36 | P49: 36 | Q49: 0 | R49: 0 | S49: 7 | T49: 26.48588181 | U49: 52.72354507 | V49: 42.86653137 | W49: 6.653967238 | X49: 50.53707123 | Y49: 39.46015167 | Z49: 1.086324573 | AA49: 0.2283333391 | AB49: 0.07070705295 | AC49: T | AD49: 0 | AE49: 48.240919 | AF49: 25.00057265 | AG49: 36 | AH49: 36 | AI49: 0 | AJ49: 0 | AK49: 7 | AL49: 6.699999809 | AM49: 33.59999847 | AN49: 19.01111221 | AO49: 7.76261343 | AP49: 22.39166641 | AQ49: 5.365702152 | AR49: 3.543080091 | AS49: 0.2283333391 | AT49: 0.08628550172 | AU49: G | AV49: 0 | AW49: 23.72440606 | AX49: 25.00053703 | AY49: 36 | AZ49: 36 | BA49: 0 | BB49: 0 | BC49: 7 | BD49: 13.5 | BE49: 259 | BF49: 117.1972275 | BG49: 62.94146237 | BH49: 115.7916718 | BI49: 2.384123325 | BJ49: 49.15736771 | BK49: 0.2283333391 | BL49: 0.0461704433 | BM49: N | BN49: 0 | BO49: 74.7440645 | BP49: 74.99989486 | BQ49: 36 | BR49: 36 | BS49: 0 | BT49: 0 | BU49: 7 | BV49: 7.900000095 | BW49: 31.5 | BX49: 20.40624809 | BY49: 7.752889033 | BZ49: 24.42000008 | CA49: 6.087529659 | CB49: 3.352139473 | CC49: 0.3425000012 | CD49: 0.09999996424 | CE49: U | CF49: 0 | CG49: 25.60000002 | CH49: 25 | CI49: 16 | CJ49: 16 | CK49: 0 | CL49: 0 | CM49: 7 | CN49: 1 | CO49: 171.3999939 | CP49: 31.04444122 | CQ49: 31.86195831 | CR49: 15.19999981 | CS49: 1.052526832 | CT49: 29.49515343 | CU49: 0.2283333391 | CV49: 0.03159344196 | CW49: G | CX49: 0 | CY49: 43.01634366 | CZ49: 24.99991437 | DA49: 36 | DB49: 36 | DC49: 0 | DD49: 0 | DE49: 7 | DF49: 1.799999952 | DG49: 314.7000122 | DH49: 55.03437805 | DI49: 60.79830858 | DJ49: 27.875 | DK49: 0.9465544224 | DL49: 58.14179993 | DM49: 0.2421840727 | DN49: 0.05222523212 | DO49: E | DP49: 10.81081081 | DQ49: 69.99734843 | DR49: 24.99999864 | DS49: 36 | DT49: 36 | DU49: 4 | DV49: 10.81081081 | DW49: 7 | EO49: 7 | FG49: 7
A50: 8 | B50: 3.74344635 | C50: 126.4429932 | D50: 59.58999252 | E50: 34.48081193 | F50: 54.86825562 | G50: 2.369455099 | H50: 25.14923859 | I50: 0.2283333391 | J50: 0.0480260253 | K50: N | L50: 0 | M50: 36.33304042 | N50: 74.99999804 | O50: 36 | P50: 36 | Q50: 0 | R50: 0 | S50: 8 | T50: 29.1393795 | U50: 47.60199738 | V50: 39.81947327 | W50: 4.539110193 | X50: 36.83213806 | Y50: 77.93569183 | Z50: 0.5109273195 | AA50: 0.2283333391 | AB50: 0.04500117898 | AC50: N | AD50: 0 | AE50: 42.88099145 | AF50: 25.00045587 | AG50: 36 | AH50: 36 | AI50: 0 | AJ50: 0 | AK50: 8 | AL50: 4.5 | AM50: 26.70000076 | AN50: 14.42222214 | AO50: 5.324182568 | AP50: 13.75 | AQ50: 7.332618713 | AR50: 1.966858268 | AS50: 0.2283333391 | AT50: 0.07455036044 | AU50: G | AV50: 0 | AW50: 17.5718441 | AX50: 25.00000824 | AY50: 36 | AZ50: 36 | BA50: 0 | BB50: 0 | BC50: 8 | BD50: 18.39999962 | BE50: 219.6000061 | BF50: 124.7628479 | BG50: 61.66865253 | BH50: 102.2333298 | BI50: 6.968091488 | BJ50: 17.90488052 | BK50: 0.2315722704 | BL50: 0.03333334625 | BM50: U | BN50: 0 | BO50: 68.70000124 | BP50: 75 | BQ50: 36 | BR50: 36 | BS50: 0 | BT50: 0 | BU50: 8 | BV50: 4.5 | BW50: 22.5 | BX50: 13.91250038 | BY50: 5.152329683 | BZ50: 13.5 | CA50: 6.853338718 | CB50: 2.030032396 | CC50: 0.3425000012 | CD50: 0.08386343718 | CE50: G | CF50: 0 | CG50: 17.03710054 | CH50: 25.00036038 | CI50: 16 | CJ50: 16 | CK50: 0 | CL50: 0 | CM50: 8 | CN50: 1.899999976 | CO50: 76.09999847 | CP50: 27.01111412 | CQ50: 15.99960422 | CR50: 32.81666565 | CS50: 2.425750732 | CT50: 11.13515663 | CU50: 0.2283333391 | CV50: 0.03631436825 | CW50: N | CX50: 0 | CY50: 37.80287432 | CZ50: 24.99962035 | DA50: 36 | DB50: 36 | DC50: 0 | DD50: 0 | DE50: 8 | DF50: 3.700000048 | DG50: 129.1999969 | DH50: 48.08485031 | DI50: 33.08088528 | DJ50: 35.07500076 | DK50: 1.671903253 | DL50: 28.76054573 | DM50: 0.2384863943 | DN50: 0.1203086376 | DO50: G | DP50: 8.108108108 | DQ50: 62.37233507 | DR50: 25.00032369 | DS50: 36 | DT50: 36 | DU50: 3 | DV50: 8.108108108 | DW50: 8 | EO50: 8 | FG50: 8
A51: 9 | B51: 3.348876953 | C51: 112.7156372 | D51: 43.40808487 | E51: 27.44985552 | F51: 12.46277332 | G51: 1.864892006 | H51: 23.27646065 | I51: 0.2315722704 | J51: 0.08658006787 | K51: T | L51: 2.702702703 | M51: 20.7827151 | N51: 74.9999149 | O51: 36 | P51: 36 | Q51: 1 | R51: 2.702702703 | S51: 9 | T51: 25.15343475 | U51: 48.51194763 | V51: 39.30619812 | W51: 4.595450988 | X51: 38.77923584 | Y51: 71.48553467 | Z51: 0.5498482585 | AA51: 0.2283333391 | AB51: 0.06096708775 | AC51: G | AD51: 0 | AE51: 42.33412944 | AF51: 24.99968161 | AG51: 36 | AH51: 36 | AI51: 0 | AJ51: 0 | AK51: 9 | AL51: 1 | AM51: 22.29999924 | AN51: 12.02499962 | AO51: 4.450578142 | AP51: 13.42500019 | AQ51: 4.833728313 | AR51: 2.487727642 | AS51: 0.2283333391 | AT51: 0.05024188757 | AU51: N | AV51: 0 | AW51: 15.02686824 | AX51: 25.00000511 | AY51: 36 | AZ51: 36 | BA51: 0 | BB51: 0 | BC51: 9 | BD51: 20.20000076 | BE51: 227.6000061 | BF51: 118.7971573 | BG51: 56.47107598 | BH51: 141.1833344 | BI51: 8.924097061 | BJ51: 13.31195259 | BK51: 0.2315722704 | BL51: 0.06681087613 | BM51: N | BN51: 0 | BO51: 80.70799746 | BP51: 74.99999882 | BQ51: 36 | BR51: 36 | BS51: 0 | BT51: 0 | BU51: 9 | BV51: 4.699999809 | BW51: 22.60000038 | BX51: 13.15625 | BY51: 3.666418689 | BZ51: 13.65000057 | CA51: 11.94049454 | CB51: 1.101817846 | CC51: 0.3425000012 | CD51: 0.08486366272 | CE51: N | CF51: 0 | CG51: 15.62921659 | CH51: 24.99995874 | CI51: 16 | CJ51: 16 | CK51: 0 | CL51: 0 | CM51: 9 | CN51: 1 | CO51: 56 | CP51: 22.44571686 | CQ51: 15.59472702 | CR51: 14.75 | CS51: 1.488098145 | CT51: 15.08349228 | CU51: 0.2315722704 | CV51: 0.05999845266 | CW51: G | CX51: 2.702702703 | CY51: 30.25324138 | CZ51: 25.0000322 | DA51: 36 | DB51: 36 | DC51: 1 | DD51: 2.702702703 | DE51: 9 | DF51: 3.299999952 | DG51: 85.90000153 | DH51: 37.74666595 | DI51: 24.93566674 | DJ51: 11.56000042 | DK51: 1.604560852 | DL51: 23.52460861 | DM51: 0.2501266301 | DN51: 0.08660578728 | DO51: G | DP51: 16.21621622 | DQ51: 46.28713283 | DR51: 25.00001682 | DS51: 36 | DT51: 36 | DU51: 6 | DV51: 16.21621622 | DW51: 9 | EO51: 9 | FG51: 9
A52: 10 | B52: 0.1616210938 | C52: 96.4990387 | D52: 32.39007568 | E52: 27.99851659 | F52: 24.24597549 | G52: 0.9701355696 | H52: 33.38716507 | I52: 0.2283333391 | J52: 0.06569880247 | K52: E | L52: 0 | M52: 9.318051058 | N52: 74.99998389 | O52: 36 | P52: 36 | Q52: 0 | R52: 0 | S52: 10 | T52: 30.68782234 | U52: 46.62611008 | V52: 38.98517227 | W52: 4.401972866 | X52: 39.98515701 | Y52: 79.09805298 | Z52: 0.4928714633 | AA52: 0.2283333391 | AB52: 0.03785648942 | AC52: N | AD52: 0 | AE52: 41.95426322 | AF52: 24.99996125 | AG52: 36 | AH52: 36 | AI52: 0 | AJ52: 0 | AK52: 10 | AL52: 0.6000000238 | AM52: 17.79999924 | AN52: 9.586110115 | AO52: 4.101717584 | AP52: 7.766666412 | AQ52: 3.845941544 | AR52: 2.492526293 | AS52: 0.2283333391 | AT52: 0.03669351339 | AU52: N | AV52: 0 | AW52: 12.35267636 | AX52: 25.00000176 | AY52: 36 | AZ52: 36 | BA52: 0 | BB52: 0 | BC52: 10 | BD52: 9.899999619 | BE52: 235.3000031 | BF52: 106.8000031 | BG52: 53.89024898 | BH52: 141.3833313 | BI52: 5.938059807 | BJ52: 17.9856739 | BK52: 0.2315722704 | BL52: 0.05499625206 | BM52: N | BN52: 0 | BO52: 70.4515982 | BP52: 74.99999073 | BQ52: 36 | BR52: 36 | BS52: 0 | BT52: 0 | BU52: 10 | BV52: 0.6000000238 | BW52: 17.70000076 | BX52: 9.356249809 | BY52: 4.208874255 | BZ52: 12.57000065 | CA52: 2.95200038 | CB52: 3.169461012 | CC52: 0.3425000012 | CD52: 0.04249721766 | CE52: N | CF52: 0 | CG52: 12.19511577 | CH52: 24.99982324 | CI52: 16 | CJ52: 16 | CK52: 0 | CL52: 0 | CM52: 10 | CN52: 0.400000006 | CO52: 49.5 | CP52: 17.17777634 | CQ52: 13.5567823 | CR52: 4.491666794 | CS52: 1.249272108 | CT52: 13.75022793 | CU52: 0.2283333391 | CV52: 0.1084468961 | CW52: G | CX52: 0 | CY52: 23.70593951 | CZ52: 24.99999811 | DA52: 36 | DB52: 36 | DC52: 0 | DD52: 0 | DE52: 10 | DF52: 0.1000000015 | DG52: 77.5 | DH52: 27.82666588 | DI52: 23.95282432 | DJ52: 7.839999676 | DK52: 0.850782454 | DL52: 32.70714569 | DM52: 0.2501266301 | DN52: 0.06905978918 | DO52: E | DP52: 16.21621622 | DQ52: 33.65259923 | DR52: 24.99996322 | DS52: 36 | DT52: 36 | DU52: 6 | DV52: 16.21621622 | DW52: 10 | EO52: 10 | FG52: 10
A53: 11 | B53: 0.03820800781 | C53: 126.1325684 | D53: 34.73648453 | E53: 27.52418592 | F53: 10.54607105 | G53: 1.003462672 | H53: 34.61661911 | I53: 0.2349530607 | J53: 0.06195798516 | K53: E | L53: 5.405405405 | M53: 8.062859332 | N53: 74.99979111 | O53: 36 | P53: 36 | Q53: 2 | R53: 5.405405405 | S53: 11 | T53: 29.18069649 | U53: 44.88679504 | V53: 37.07385635 | W53: 3.879963311 | X53: 35.72490311 | Y53: 94.02815247 | Z53: 0.3942846358 | AA53: 0.2283333391 | AB53: 0.04960238934 | AC53: G | AD53: 0 | AE53: 39.57614707 | AF53: 24.99941183 | AG53: 36 | AH53: 36 | AI53: 0 | AJ53: 0 | AK53: 11 | AL53: 1 | AM53: 22 | AN53: 7.494117737 | AO53: 4.178874684 | AP53: 6.25 | AQ53: 3.359209061 | AR53: 2.230917454 | AS53: 0.2349530607 | AT53: 0.07431446016 | AU53: G | AV53: 5.405405405 | AW53: 9.491482731 | AX53: 25.00079192 | AY53: 36 | AZ53: 36 | BA53: 2 | BB53: 5.405405405 | BC53: 11 | BD53: 10 | BE53: 192.5 | BF53: 106.1722183 | BG53: 54.83496858 | BH53: 177.2916565 | BI53: 2.587183475 | BJ53: 41.03776169 | BK53: 0.2283333391 | BL53: 0.1038289666 | BM53: G | BN53: 0 | BO53: 57.63377888 | BP53: 75.00075203 | BQ53: 36 | BR53: 36 | BS53: 0 | BT53: 0 | BU53: 11 | BV53: 4.699999809 | BW53: 14.19999981 | BX53: 8.36666584 | BY53: 3.076098244 | BZ53: 5.649999619 | CA53: 8.258219719 | CB53: 1.013131857 | CC53: 0.3243176043 | CD53: 0.1024543643 | CE53: G | CF53: 5.882352941 | CG53: 9.945554145 | CH53: 24.99924043 | CI53: 16 | CJ53: 16 | CK53: 1 | CL53: 5.882352941 | CM53: 11 | CN53: 1.600000024 | CO53: 41.40000153 | CP53: 18.60303116 | CQ53: 12.14692578 | CR53: 4.916666985 | CS53: 1.662986279 | CT53: 11.18652153 | CU53: 0.2384863943 | CV53: 0.09161621332 | CW53: N | CX53: 8.108108108 | CY53: 25.97152072 | CZ53: 24.99952998 | DA53: 36 | DB53: 36 | DC53: 3 | DD53: 8.108108108 | DE53: 11 | DF53: 0.1000000015 | DG53: 95.5 | DH53: 29.03666878 | DI53: 24.58703723 | DJ53: 9.640000343 | DK53: 0.86593467 | DL53: 33.53216934 | DM53: 0.2501266301 | DN53: 0.07244586945 | DO53: E | DP53: 16.21621622 | DQ53: 35.11657509 | DR53: 24.99941173 | DS53: 36 | DT53: 36 | DU53: 6 | DV53: 16.21621622 | DW53: 11 | EO53: 11 | FG53: 11
A54: 12 | B54: 0.02867889404 | C54: 69.06506348 | D54: 16.21079636 | E54: 16.5019863 | F54: 6.932317257 | G54: 0.7477044463 | H54: 21.68075371 | I54: 0.2460592687 | J54: 0.03581905365 | K54: G | L54: 13.51351351 | M54: 1.347289847 | N54: 74.9999942 | O54: 36 | P54: 36 | Q54: 5 | R54: 13.51351351 | S54: 12 | T54: 28.32515526 | U54: 41.47208023 | V54: 35.74705505 | W54: 3.146493619 | X54: 35.99419403 | Y54: 127.2921066 | Z54: 0.280826956 | AA54: 0.2283333391 | AB54: 0.05295404792 | AC54: N | AD54: 0 | AE54: 37.86941402 | AF54: 24.99917924 | AG54: 36 | AH54: 36 | AI54: 0 | AJ54: 0 | AK54: 12 | AL54: 0.5 | AM54: 14.60000038 | AN54: 6.137143135 | AO54: 3.835752028 | AP54: 1.675000072 | AQ54: 2.064063549 | AR54: 2.973330498 | AS54: 0.2315722704 | AT54: 0.07354173064 | AU54: G | AV54: 2.702702703 | AW54: 8.131287933 | AX54: 25.00084618 | AY54: 36 | AZ54: 36 | BA54: 1 | BB54: 2.702702703 | BC54: 12 | BD54: 10 | BE54: 175.3000031 | BF54: 94.2555542 | BG54: 42.36277536 | BH54: 106.4250031 | BI54: 2.919397831 | BJ54: 32.28595734 | BK54: 0.2283333391 | BL54: 0.05949319154 | BM54: N | BN54: 0 | BO54: 65.68233994 | BP54: 74.99996736 | BQ54: 36 | BR54: 36 | BS54: 0 | BT54: 0 | BU54: 12 | BV54: 1.200000048 | BW54: 14.80000019 | BX54: 6.873333454 | BY54: 4.473009121 | BZ54: 2.559999943 | CA54: 2.104631186 | CB54: 3.265813828 | CC54: 0.3243176043 | CD54: 0.0930160284 | CE54: G | CF54: 5.882352941 | CG54: 8.942666821 | CH54: 24.99999205 | CI54: 16 | CJ54: 16 | CK54: 1 | CL54: 5.882352941 | CM54: 12 | CN54: 0.200000003 | CO54: 31.89999962 | CP54: 11.36470509 | CQ54: 9.611700208 | CR54: 2.841666698 | CS54: 1.030389667 | CT54: 11.02952194 | CU54: 0.2349530607 | CV54: 0.1333716512 | CW54: E | CX54: 5.405405405 | CY54: 15.12329263 | CZ54: 24.99999776 | DA54: 36 | DB54: 36 | DC54: 2 | DD54: 5.405405405 | DE54: 12 | DF54: 0.400000006 | DG54: 48.29999924 | DH54: 17.05652046 | DI54: 12.13896146 | DJ54: 14.7699995 | DK54: 1.354334354 | DL54: 12.59402466 | DM54: 0.2856647372 | DN54: 0.1315925419 | DO54: G | DP54: 35.13513514 | DQ54: 17.0810496 | DR54: 24.9996346 | DS54: 36 | DT54: 36 | DU54: 13 | DV54: 35.13513514 | DW54: 12 | EO54: 12 | FG54: 12
A55: 13 | B55: 0.03988647461 | C55: 48.62386322 | D55: 16.4113121 | E55: 13.52740917 | F55: 14.61507893 | G55: 0.7028390169 | H55: 23.3500309 | I55: 0.2589056492 | J55: 0.08851087093 | K55: N | L55: 21.62162162 | M55: 0 | N55: 69.5585637 | O55: 36 | P55: 36 | Q55: 8 | R55: 21.62162162 | S55: 13 | T55: 27.24923515 | U55: 39.61214066 | V55: 32.40110397 | W55: 3.12620689 | X55: 32.40044403 | Y55: 110.8728409 | Z55: 0.2922366261 | AA55: 0.2283333391 | AB55: 0.06514976919 | AC55: G | AD55: 0 | AE55: 34.42021515 | AF55: 24.99928895 | AG55: 36 | AH55: 36 | AI55: 0 | AJ55: 0 | AK55: 13 | AL55: 0.1000000015 | AM55: 9.5 | AN55: 3.685293674 | AO55: 2.585288528 | AP55: 0.883333385 | AQ55: 1.244785547 | AR55: 2.960585117 | AS55: 0.2349530607 | AT55: 0.08021390438 | AU55: T | AV55: 5.405405405 | AW55: 0 | AX55: 94.46612752 | AY55: 36 | AZ55: 36 | BA55: 2 | BB55: 5.405405405 | BC55: 13 | BD55: 7 | BE55: 177.3999939 | BF55: 96.68334198 | BG55: 49.34844025 | BH55: 106.4000015 | BI55: 2.243569851 | BJ55: 43.09352875 | BK55: 0.2283333391 | BL55: 0.07516644895 | BM55: N | BN55: 0 | BO55: 63.39834376 | BP55: 74.99998782 | BQ55: 36 | BR55: 36 | BS55: 0 | BT55: 0 | BU55: 13 | BV55: 0.1000000015 | BW55: 7.800000191 | BX55: 3.279999971 | BY55: 2.252363871 | BZ55: 3.950000286 | CA55: 1.213707209 | CB55: 2.702463865 | CC55: 0.3243176043 | CD55: 0.02769818902 | CE55: N | CF55: 5.882352941 | CG55: 0 | CH55: 87.2788647 | CI55: 16 | CJ55: 16 | CK55: 1 | CL55: 5.882352941 | CM55: 13 | CN55: 0.1000000015 | CO55: 24.70000076 | CP55: 9.443750381 | CQ55: 8.547708697 | CR55: 2.149999857 | CS55: 0.7647289634 | CT55: 12.34914684 | CU55: 0.2421840727 | CV55: 0.07543438673 | CW55: E | CX55: 8.108108108 | CY55: 12.29345813 | CZ55: 24.9995259 | DA55: 36 | DB55: 36 | DC55: 3 | DD55: 8.108108108 | DE55: 13 | DF55: 0.1000000015 | DG55: 41.79999924 | DH55: 15.85714245 | DI55: 11.85063676 | DJ55: 4.269999981 | DK55: 1.187296152 | DL55: 13.3556757 | DM55: 0.2989585102 | DN55: 0.08311545849 | DO55: E | DP55: 40.54054054 | DQ55: 13.7390737 | DR55: 24.99977021 | DS55: 36 | DT55: 36 | DU55: 15 | DV55: 40.54054054 | DW55: 13 | EO55: 13 | FG55: 13
A56: 14 | B56: 0.01432800293 | C56: 76.23767853 | D56: 17.26529121 | E56: 20.7084184 | F56: 7.63666296 | G56: 0.5550801754 | H56: 31.10413933 | I56: 0.2501266301 | J56: 0.03358089924 | K56: G | L56: 16.21621622 | M56: 0.4368439624 | N56: 75.00000741 | O56: 36 | P56: 36 | Q56: 6 | R56: 16.21621622 | S56: 14 | T56: 24.10466766 | U56: 37.84632492 | V56: 29.93180656 | W56: 3.277670079 | X56: 29.83035851 | Y56: 87.56501007 | Z56: 0.3418238163 | AA56: 0.2283333391 | AB56: 0.01778697968 | AC56: G | AD56: 0 | AE56: 32.02279646 | AF56: 24.99945496 | AG56: 36 | AH56: 36 | AI56: 0 | AJ56: 0 | AK56: 14 | AL56: 0.400000006 | AM56: 9.699999809 | AN56: 3.909999609 | AO56: 2.316708421 | AP56: 3.190000057 | AQ56: 2.730663538 | AR56: 1.431886315 | AS56: 0.2501266301 | AT56: 0.03209769726 | AU56: G | AV56: 16.21621622 | AW56: 4.741188558 | AX56: 25.00005902 | AY56: 36 | AZ56: 36 | BA56: 6 | BB56: 16.21621622 | BC56: 14 | BD56: 7 | BE56: 186.1999969 | BF56: 97.04166412 | BG56: 43.91191439 | BH56: 111.5333328 | BI56: 3.073045731 | BJ56: 31.57833481 | BK56: 0.2283333391 | BL56: 0.08333340287 | BM56: N | BN56: 0 | BO56: 67.42356038 | BP56: 74.99997653 | BQ56: 36 | BR56: 36 | BS56: 0 | BT56: 0 | BU56: 14 | BV56: 1.200000048 | BW56: 8.199999809 | BX56: 4.193333626 | BY56: 2.165794588 | BZ56: 1.900000095 | CA56: 3.542123795 | CB56: 1.183847308 | CC56: 0.3243176043 | CD56: 0.07516476512 | CE56: G | CF56: 5.882352941 | CG56: 5.281018014 | CH56: 25.00006676 | CI56: 16 | CJ56: 16 | CK56: 1 | CL56: 5.882352941 | CM56: 14 | CN56: 0.3000000119 | CO56: 57.20000076 | CP56: 10.23333454 | CQ56: 12.67632414 | CR56: 5.990000248 | CS56: 0.7591725588 | CT56: 13.47958946 | CU56: 0.2501266301 | CV56: 0.01899570227 | CW56: G | CX56: 16.21621622 | CY56: 12.04737488 | CZ56: 24.99977261 | DA56: 36 | DB56: 36 | DC56: 6 | DD56: 16.21621622 | DE56: 14 | DF56: 0.3000000119 | DG56: 76.30000305 | DH56: 23.71874809 | DI56: 22.27438698 | DJ56: 7.900000572 | DK56: 1.057945848 | DL56: 22.41962433 | DM56: 0.3425000012 | DN56: 0.04726427794 | DO56: E | DP56: 54.05405405 | DQ56: 14.43497198 | DR56: 25.00001686 | DS56: 36 | DT56: 36 | DU56: 20 | DV56: 54.05405405 | DW56: 14 | EO56: 14 | FG56: 14
A57: 15 | B57: 0.3088378906 | C57: 109.2012939 | D57: 25.84863663 | E57: 27.45513141 | F57: 11.19808388 | G57: 0.7513538599 | H57: 34.40274811 | I57: 0.2501266301 | J57: 0.02413421869 | K57: G | L57: 16.21621622 | M57: 1.569012044 | N57: 75.00021105 | O57: 36 | P57: 36 | Q57: 6 | R57: 16.21621622 | S57: 15 | T57: 20.69955444 | U57: 33.2906189 | V57: 27.80198479 | W57: 3.322556973 | X57: 28.04434204 | Y57: 69.73280334 | Z57: 0.3986930549 | AA57: 0.2283333391 | AB57: 0.05880683661 | AC57: N | AD57: 0 | AE57: 30.04305085 | AF57: 24.99966103 | AG57: 36 | AH57: 36 | AI57: 0 | AJ57: 0 | AK57: 15 | AL57: 0.200000003 | AM57: 8.600000381 | AN57: 3.474285603 | AO57: 1.914548415 | AP57: 3.700000286 | AQ57: 2.648181438 | AR57: 1.311951518 | AS57: 0.2315722704 | AT57: 0.06411325932 | AU57: N | AV57: 2.702702703 | AW57: 4.724039468 | AX57: 25.00085943 | AY57: 36 | AZ57: 36 | BA57: 1 | BB57: 2.702702703 | BC57: 15 | BD57: 16.29999924 | BE57: 190.3000031 | BF57: 104.1166687 | BG57: 44.39689573 | BH57: 117.8000031 | BI57: 3.97539258 | BJ57: 26.19028664 | BK57: 0.2283333391 | BL57: 0.04040756822 | BM57: N | BN57: 0 | BO57: 74.17142721 | BP57: 74.99999312 | BQ57: 36 | BR57: 36 | BS57: 0 | BT57: 0 | BU57: 15 | BV57: 0.200000003 | BW57: 5.199999809 | BX57: 2.79333353 | BY57: 1.569106593 | BZ57: 4.699999809 | CA57: 1.917919159 | CB57: 1.456439614 | CC57: 0.3243176043 | CD57: 0.06666664779 | CE57: U | CF57: 5.882352941 | CG57: 3.871874861 | CH57: 25 | CI57: 16 | CJ57: 16 | CK57: 1 | CL57: 5.882352941 | CM57: 15 | CN57: 0.200000003 | CO57: 53.29999924 | CP57: 13.77647018 | CQ57: 14.78753851 | CR57: 4.624999523 | CS57: 0.8258866072 | CT57: 16.68082619 | CU57: 0.2349530607 | CV57: 0.04926651716 | CW57: G | CX57: 2.702702703 | CY57: 18.64575911 | CZ57: 25.0000017 | DA57: 36 | DB57: 36 | DC57: 1 | DD57: 2.702702703 | DE57: 15 | DF57: 0.5 | DG57: 100.6999969 | DH57: 25.04999542 | DI57: 26.81411845 | DJ57: 10.5199995 | DK57: 0.8694360256 | DL57: 28.81177521 | DM57: 0.2686791122 | DN57: 0.03003925085 | DO57: G | DP57: 27.02702703 | DQ57: 26.26802354 | DR57: 24.99982844 | DS57: 36 | DT57: 36 | DU57: 10 | DV57: 27.02702703 | DW57: 15 | EO57: 15 | FG57: 15
A58: 16 | B58: 0.05346679688 | C58: 61.22369385 | D58: 17.82888031 | E58: 19.52745979 | F58: 6.170489311 | G58: 0.5009988546 | H58: 35.58666992 | I58: 0.2589056492 | J58: 0.0804721117 | K58: G | L58: 21.62162162 | M58: 0.05266310388 | N58: 75.00003462 | O58: 36 | P58: 36 | Q58: 8 | R58: 21.62162162 | S58: 16 | T58: 17.79907608 | U58: 31.85373306 | V58: 27.14934349 | W58: 3.021758962 | X58: 28.34006882 | Y58: 76.21811676 | Z58: 0.3562059104 | AA58: 0.2283333391 | AB58: 0.08333334327 | AC58: N | AD58: 0 | AE58: 29.18751228 | AF58: 24.99975451 | AG58: 36 | AH58: 36 | AI58: 0 | AJ58: 0 | AK58: 16 | AL58: 0.400000006 | AM58: 8.300000191 | AN58: 3.125000238 | AO58: 2.048130495 | AP58: 1.058333397 | AQ58: 2.237995625 | AR58: 1.39633882 | AS58: 0.2421840727 | AT58: 0.06317862868 | AU58: G | AV58: 10.81081081 | AW58: 3.94221945 | AX58: 24.99999474 | AY58: 36 | AZ58: 36 | BA58: 4 | BB58: 10.81081081 | BC58: 16 | BD58: 10 | BE58: 180.1999969 | BF58: 98.05278015 | BG58: 47.01796168 | BH58: 109.2833328 | BI58: 2.919533253 | BJ58: 33.58508682 | BK58: 0.2283333391 | BL58: 0.07128147781 | BM58: N | BN58: 0 | BO58: 66.33965132 | BP58: 74.99999703 | BQ58: 36 | BR58: 36 | BS58: 0 | BT58: 0 | BU58: 16 | BV58: 0.400000006 | BW58: 8.399999619 | BX58: 3.500000238 | BY58: 2.514623881 | BZ58: 1.199999928 | CA58: 1.710278988 | CB58: 2.0464499 | CC58: 0.3584900796 | CD58: 0.07711648941 | CE58: G | CF58: 17.64705882 | CG58: 4.244756737 | CH58: 24.99968429 | CI58: 16 | CJ58: 16 | CK58: 3 | CL58: 17.64705882 | CM58: 16 | CN58: 0.3000000119 | CO58: 36.40000153 | CP58: 10.6870966 | CQ58: 10.29137981 | CR58: 3.910000086 | CS58: 0.7905479074 | CT58: 13.51859474 | CU58: 0.2460592687 | CV58: 0.06722038984 | CW58: E | CX58: 13.51351351 | CY58: 13.26426939 | CZ58: 24.99910687 | DA58: 36 | DB58: 36 | DC58: 5 | DD58: 13.51351351 | DE58: 16 | DF58: 1.700000048 | DG58: 57.70000076 | DH58: 23.26666641 | DI58: 17.2417751 | DJ58: 18.5 | DK58: 1.601841927 | DL58: 14.52494526 | DM58: 0.322912097 | DN58: 0.1004315019 | DO58: G | DP58: 48.64864865 | DQ58: 19.18026266 | DR58: 25.00000438 | DS58: 36 | DT58: 36 | DU58: 18 | DV58: 48.64864865 | DW58: 16 | EO58: 16 | FG58: 16
A59: 17 | B59: 0.00140953064 | C59: 63.68716431 | D59: 8.972419739 | E59: 14.1118854 | F59: 6.369985104 | G59: 0.409390986 | H59: 21.91650581 | I59: 0.2796500921 | J59: 0.01872587204 | K59: G | L59: 32.43243243 | M59: 0 | N59: 67.56756757 | O59: 36 | P59: 36 | Q59: 12 | R59: 32.43243243 | S59: 17 | T59: 21.54203987 | U59: 33.70632172 | V59: 27.6498661 | W59: 2.937528732 | X59: 28.63787079 | Y59: 90.42406464 | Z59: 0.3057799637 | AA59: 0.2283333391 | AB59: 0.03647273779 | AC59: N | AD59: 0 | AE59: 29.63120008 | AF59: 24.99998967 | AG59: 36 | AH59: 36 | AI59: 0 | AJ59: 0 | AK59: 17 | AL59: 0.1000000015 | AM59: 7.099999905 | AN59: 2.554838657 | AO59: 1.988104492 | AP59: 2.200000048 | AQ59: 1.571225882 | AR59: 1.62601614 | AS59: 0.2460592687 | AT59: 0.07850241661 | AU59: G | AV59: 13.51351351 | AW59: 3.197521779 | AX59: 25.00001867 | AY59: 36 | AZ59: 36 | BA59: 5 | BB59: 13.51351351 | BC59: 17 | BD59: 10 | BE59: 149.1000061 | BF59: 88.53333282 | BG59: 40.70014235 | BH59: 137.5083313 | BI59: 3.172765017 | BJ59: 27.90415764 | BK59: 0.2283333391 | BL59: 0.09681677818 | BM59: N | BN59: 0 | BO59: 61.081506 | BP59: 74.99999843 | BQ59: 36 | BR59: 36 | BS59: 0 | BT59: 0 | BU59: 17 | BV59: 0.400000006 | BW59: 6.900000095 | BX59: 2.907142639 | BY59: 2.180848281 | BZ59: 1.050000072 | CA59: 1.805223823 | CB59: 1.610405684 | CC59: 0.340793103 | CD59: 0.1002588272 | CE59: E | CF59: 11.76470588 | CG59: 3.666317586 | CH59: 24.99974848 | CI59: 16 | CJ59: 16 | CK59: 2 | CL59: 11.76470588 | CM59: 17 | CN59: 0.1000000015 | CO59: 37.70000076 | CP59: 5.686206818 | CQ59: 7.986225907 | CR59: 3.859999895 | CS59: 0.7877814174 | CT59: 7.218000889 | CU59: 0.2544026077 | CV59: 0.02529942989 | CW59: G | CX59: 18.91891892 | CY59: 6.51783475 | CZ59: 24.99999877 | DA59: 36 | DB59: 36 | DC59: 7 | DD59: 18.91891892 | DE59: 17 | DF59: 1.700000048 | DG59: 56.59999847 | DH59: 13.0666666 | DI59: 14.94440227 | DJ59: 7.18999958 | DK59: 1.215794444 | DL59: 10.7474308 | DM59: 0.3776043057 | DN59: 0.07120633125 | DO59: G | DP59: 64.86486486 | DQ59: 5.208037549 | DR59: 25.00016842 | DS59: 36 | DT59: 36 | DU59: 24 | DV59: 64.86486486 | DW59: 17 | EO59: 17 | FG59: 17
A60: 18 | B60: 0.01260375977 | C60: 75.32056427 | D60: 12.5271368 | E60: 18.7086564 | F60: 7.543399811 | G60: 0.449090302 | H60: 27.89447212 | I60: 0.2856647372 | J60: 0.09280729294 | K60: G | L60: 35.13513514 | M60: 0 | N60: 64.86486486 | O60: 36 | P60: 36 | Q60: 13 | R60: 35.13513514 | S60: 18 | T60: 22.17885017 | U60: 34.61467743 | V60: 27.74329948 | W60: 2.952762481 | X60: 27.36044502 | Y60: 91.42249298 | Z60: 0.3034625053 | AA60: 0.2283333391 | AB60: 0.04401800036 | AC60: G | AD60: 0 | AE60: 29.64144713 | AF60: 24.99942435 | AG60: 36 | AH60: 36 | AI60: 0 | AJ60: 0 | AK60: 18 | AL60: 0.3000000119 | AM60: 11.30000019 | AN60: 3.15625 | AO60: 2.957214914 | AP60: 1.216666698 | AQ60: 1.298454285 | AR60: 2.430774927 | AS60: 0.2421840727 | AT60: 0.02997851372 | AU60: E | AV60: 10.81081081 | AW60: 4.014411072 | AX60: 24.99978483 | AY60: 36 | AZ60: 36 | BA60: 4 | BB60: 10.81081081 | BC60: 18 | BD60: 21.5 | BE60: 143.3000031 | BF60: 85.30001068 | BG60: 39.29675851 | BH60: 133.1500092 | BI60: 3.486872435 | BJ60: 24.46318626 | BK60: 0.2283333391 | BL60: 0.05555558205 | BM60: U | BN60: 0 | BO60: 51.95000076 | BP60: 75 | BQ60: 36 | BR60: 36 | BS60: 0 | BT60: 0 | BU60: 18 | BV60: 0.3000000119 | BW60: 11.30000019 | BX60: 3.693333387 | BY60: 3.946149137 | BZ60: 1.400000095 | CA60: 0.9773541689 | CB60: 3.778909922 | CC60: 0.3243176043 | CD60: 0.1112745404 | CE60: G | CF60: 5.882352941 | CG60: 4.893934203 | CH60: 24.99999702 | CI60: 16 | CJ60: 16 | CK60: 1 | CL60: 5.882352941 | CM60: 18 | CN60: 0.3000000119 | CO60: 44.40000153 | CP60: 6.483870029 | CQ60: 9.769615981 | CR60: 4.710000515 | CS60: 0.6597960591 | CT60: 9.82708168 | CU60: 0.2460592687 | CV60: 0.0443931222 | CW60: G | CX60: 13.51351351 | CY60: 7.719124054 | CZ60: 25.00003868 | DA60: 36 | DB60: 36 | DC60: 5 | DD60: 13.51351351 | DE60: 18 | DF60: 2.200000048 | DG60: 73.09999847 | DH60: 17.60833168 | DI60: 20.69419987 | DJ60: 9.289999962 | DK60: 0.9955229163 | DL60: 17.68752098 | DM60: 0.3776043057 | DN60: 0.06076973677 | DO60: G | DP60: 64.86486486 | DQ60: 5.96855765 | DR60: 25.00007827 | DS60: 36 | DT60: 36 | DU60: 24 | DV60: 64.86486486 | DW60: 18 | EO60: 18 | FG60: 18
A61: 19 | B61: 0.02604675293 | C61: 47.1559639 | D61: 6.363566399 | E61: 11.01551211 | F61: 4.739038467 | G61: 0.4428269565 | H61: 14.37032318 | I61: 0.322912097 | J61: 0.03743946552 | K61: G | L61: 48.64864865 | M61: 0 | N61: 51.35135135 | O61: 36 | P61: 36 | Q61: 18 | R61: 48.64864865 | S61: 19 | T61: 22.07910156 | U61: 39.23927689 | V61: 29.62970734 | W61: 3.478633512 | X61: 26.36914444 | Y61: 76.22029877 | Z61: 0.3887377381 | AA61: 0.2283333391 | AB61: 0.05555558205 | AC61: T | AD61: 0 | AE61: 31.80872018 | AF61: 24.9998826 | AG61: 36 | AH61: 36 | AI61: 0 | AJ61: 0 | AK61: 19 | AL61: 0.1000000015 | AM61: 7.599999905 | AN61: 2.642307758 | AO61: 1.9586062 | AP61: 0.8500000238 | AQ61: 1.18279314 | AR61: 2.23395586 | AS61: 0.2686791122 | AT61: 0.05726495385 | AU61: T | AV61: 27.02702703 | AW61: 3.435412341 | AX61: 25.00005781 | AY61: 36 | AZ61: 36 | BA61: 10 | BB61: 27.02702703 | BC61: 19 | BD61: 10 | BE61: 144.3000031 | BF61: 77.43054962 | BG61: 41.04529879 | BH61: 133.1083374 | BI61: 2.49130106 | BJ61: 31.08036613 | BK61: 0.2283333391 | BL61: 0.02777780592 | BM61: U | BN61: 0 | BO61: 43.57500076 | BP61: 75 | BQ61: 36 | BR61: 36 | BS61: 0 | BT61: 0 | BU61: 19 | BV61: 0.5 | BW61: 5.099999905 | BX61: 2.783333063 | BY61: 1.690526227 | BZ61: 0.9599999785 | CA61: 2.238672256 | CB61: 1.243296385 | CC61: 0.3776043057 | CD61: 0.1111816168 | CE61: G | CF61: 23.52941176 | CG61: 3.22608574 | CH61: 24.99999433 | CI61: 16 | CJ61: 16 | CK61: 4 | CL61: 23.52941176 | CM61: 19 | CN61: 0.1000000015 | CO61: 12.10000038 | CP61: 3.082608461 | CQ61: 3.316577058 | CR61: 1.300000072 | CS61: 0.8059086204 | CT61: 3.825009823 | CU61: 0.2856647372 | CV61: 0.0572308898 | CW61: G | CX61: 35.13513514 | CY61: 2.793133203 | CZ61: 24.99995024 | DA61: 36 | DB61: 36 | DC61: 13 | DD61: 35.13513514 | DE61: 19 | DF61: 0.200000003 | DG61: 31.5 | DH61: 8.566666603 | DI61: 11.62113051 | DJ61: 3.330000162 | DK61: 0.6974492669 | DL61: 12.28285313 | DM61: 0.5431278348 | DN61: 0.09533447027 | DO61: G | DP61: 81.08108108 | DQ61: 0 | DR61: 18.91891892 | DS61: 36 | DT61: 36 | DU61: 30 | DV61: 81.08108108 | DW61: 19 | EO61: 19 | FG61: 19
A62: 20 | B62: 0.0609588623 | C62: 42.015625 | D62: 7.18900013 | E62: 12.12337396 | F62: 4.256425381 | G62: 0.5393443108 | H62: 13.32914829 | I62: 0.2856647372 | J62: 0.1520144939 | K62: G | L62: 35.13513514 | M62: 0 | N62: 64.86486486 | O62: 36 | P62: 36 | Q62: 13 | R62: 35.13513514 | S62: 20 | T62: 24.99466705 | U62: 38.01761627 | V62: 30.97213745 | W62: 3.264177504 | X62: 28.25040436 | Y62: 92.92198944 | Z62: 0.3333133161 | AA62: 0.2283333391 | AB62: 0.07464137673 | AC62: G | AD62: 0 | AE62: 33.07459262 | AF62: 24.99941661 | AG62: 36 | AH62: 36 | AI62: 0 | AJ62: 0 | AK62: 20 | AL62: 0.1000000015 | AM62: 7.199999809 | AN62: 2.235714436 | AO62: 1.648841194 | AP62: 0.8100000024 | AQ62: 1.431095481 | AR62: 1.562239885 | AS62: 0.2589056492 | AT62: 0.05071401596 | AU62: G | AV62: 21.62162162 | AW62: 2.614597743 | AX62: 25.00006618 | AY62: 36 | AZ62: 36 | BA62: 8 | BB62: 21.62162162 | BC62: 20 | BD62: 10 | BE62: 136.5 | BF62: 78.54444122 | BG62: 39.39194979 | BH62: 125.9583359 | BI62: 2.720626354 | BJ62: 28.86998558 | BK62: 0.2283333391 | BL62: 0.06370704621 | BM62: N | BN62: 0 | BO62: 51.97497552 | BP62: 74.99999946 | BQ62: 36 | BR62: 36 | BS62: 0 | BT62: 0 | BU62: 20 | BV62: 0.400000006 | BW62: 4 | BX62: 2.035714388 | BY62: 1.347137749 | BZ62: 0.7599999905 | CA62: 1.871924043 | CB62: 1.087498426 | CC62: 0.340793103 | CD62: 0.115932852 | CE62: G | CF62: 11.76470588 | CG62: 2.569859008 | CH62: 24.99967214 | CI62: 16 | CJ62: 16 | CK62: 2 | CL62: 11.76470588 | CM62: 20 | CN62: 0.1000000015 | CO62: 20.10000038 | CP62: 2.738461494 | CQ62: 4.309346027 | CR62: 2.099999905 | CS62: 0.6985462308 | CT62: 3.920229435 | CU62: 0.2686791122 | CV62: 0.0332967639 | CW62: G | CX62: 27.02702703 | CY62: 2.744593019 | CZ62: 25.0000086 | DA62: 36 | DB62: 36 | DC62: 10 | DD62: 27.02702703 | DE62: 20 | DF62: 0.3000000119 | DG62: 24 | DH62: 8.777777672 | DI62: 9.647830193 | DJ62: 2.669999838 | DK62: 0.7046892643 | DL62: 12.45623875 | DM62: 0.4463027716 | DN62: 0.1475149989 | DO62: E | DP62: 70.27027027 | DQ62: 1.52076969 | DR62: 25.0004869 | DS62: 36 | DT62: 36 | DU62: 26 | DV62: 70.27027027 | DW62: 20 | EO62: 20 | FG62: 20
A63: 21 | B63: 0.09252929688 | C63: 75.01727295 | D63: 10.2656889 | E63: 18.21944598 | F63: 7.585003853 | G63: 0.4657333493 | H63: 22.04198837 | I63: 0.2920849919 | J63: 0.05203831196 | K63: G | L63: 37.83783784 | M63: 0 | N63: 62.16216216 | O63: 36 | P63: 36 | Q63: 14 | R63: 37.83783784 | S63: 21 | T63: 25.51123047 | U63: 42.21090698 | V63: 32.82132339 | W63: 4.316718871 | X63: 35.25270844 | Y63: 60.37129974 | Z63: 0.5436577201 | AA63: 0.2283333391 | AB63: 0.04585254192 | AC63: G | AD63: 0 | AE63: 35.56329474 | AF63: 24.99969995 | AG63: 36 | AH63: 36 | AI63: 0 | AJ63: 0 | AK63: 21 | AL63: 0.1000000015 | AM63: 13.39999962 | AN63: 3.407407522 | AO63: 3.558946008 | AP63: 1.429999948 | AQ63: 0.8796315789 | AR63: 3.873675823 | AS63: 0.2636566162 | AT63: 0.0606059432 | AU63: G | AV63: 24.32432432 | AW63: 3.710931115 | AX63: 25.00083643 | AY63: 36 | AZ63: 36 | BA63: 9 | BB63: 24.32432432 | BC63: 21 | BD63: 10 | BE63: 185.8000031 | BF63: 79.88611603 | BG63: 42.28020341 | BH63: 112.5500031 | BI63: 2.718205452 | BJ63: 29.38928604 | BK63: 0.2283333391 | BL63: 0.06349506974 | BM63: N | BN63: 0 | BO63: 51.36792654 | BP63: 75.00047023 | BQ63: 36 | BR63: 36 | BS63: 0 | BT63: 0 | BU63: 21 | BV63: 0.1000000015 | BW63: 9.899999619 | BX63: 2.3307693 | BY63: 2.915585854 | BZ63: 1.079999924 | CA63: 0.7184146047 | CB63: 3.244323492 | CC63: 0.3584900796 | CD63: 0.07493406534 | CE63: G | CF63: 17.64705882 | CG63: 2.676156341 | CH63: 24.99997761 | CI63: 16 | CJ63: 16 | CK63: 3 | CL63: 17.64705882 | CM63: 21 | CN63: 0.1000000015 | CO63: 31.10000038 | CP63: 7.030434132 | CQ63: 9.419585144 | CR63: 3.200000048 | CS63: 0.5836425424 | CT63: 12.04578781 | CU63: 0.2856647372 | CV63: 0.0545258522 | CW63: G | CX63: 35.13513514 | CY63: 5.698949067 | CZ63: 24.9999275 | DA63: 36 | DB63: 36 | DC63: 13 | DD63: 35.13513514 | DE63: 21 | DF63: 2.400000095 | DG63: 63.90000153 | DH63: 21.9375 | DI63: 21.00972196 | DJ63: 8.550000191 | DK63: 1.16619885 | DL63: 18.81111526 | DM63: 0.474429369 | DN63: 0.07561653852 | DO63: E | DP63: 75.67567568 | DQ63: 0 | DR63: 24.32432432 | DS63: 36 | DT63: 36 | DU63: 28 | DV63: 75.67567568 | DW63: 21 | EO63: 21 | FG63: 21
A64: 22 | B64: 0.009086608887 | C64: 44.21539307 | D64: 8.07511425 | E64: 11.0225045 | F64: 4.429717064 | G64: 0.4776552916 | H64: 16.90573692 | I64: 0.3322738111 | J64: 0.08091402054 | K64: G | L64: 51.35135135 | M64: 0 | N64: 48.64864865 | O64: 36 | P64: 36 | Q64: 19 | R64: 51.35135135 | S64: 22 | T64: 27.99520111 | U64: 45.76006699 | V64: 36.64940643 | W64: 4.102379708 | X64: 38.35803986 | Y64: 80.52882385 | Z64: 0.455109179 | AA64: 0.2283333391 | AB64: 0.03260225058 | AC64: N | AD64: 0 | AE64: 39.41636993 | AF64: 25.00038399 | AG64: 36 | AH64: 36 | AI64: 0 | AJ64: 0 | AK64: 22 | AL64: 0.1000000015 | AM64: 9.899999619 | AN64: 2.674074173 | AO64: 2.734198254 | AP64: 1.079999924 | AQ64: 0.9961783886 | AR64: 2.684332609 | AS64: 0.2636566162 | AT64: 0.0745395422 | AU64: E | AV64: 24.32432432 | AW64: 2.961781675 | AX64: 24.99973786 | AY64: 36 | AZ64: 36 | BA64: 9 | BB64: 24.32432432 | BC64: 22 | BD64: 10 | BE64: 150.8999939 | BF64: 76.4805603 | BG64: 41.14291409 | BH64: 68.70832825 | BI64: 2.479366541 | BJ64: 30.84681511 | BK64: 0.2283333391 | BL64: 0.05716329813 | BM64: N | BN64: 0 | BO64: 48.73008421 | BP64: 75.00000173 | BQ64: 36 | BR64: 36 | BS64: 0 | BT64: 0 | BU64: 22 | BV64: 0.1000000015 | BW64: 7.5 | BX64: 1.99000001 | BY64: 2.343999417 | BZ64: 0.8400000334 | CA64: 0.8699045181 | CB64: 2.287607431 | CC64: 0.4211426675 | CD64: 0.04413765669 | CE64: G | CF64: 35.29411765 | CG64: 1.83412805 | CH64: 24.99999748 | CI64: 16 | CJ64: 16 | CK64: 6 | CL64: 35.29411765 | CM64: 22 | CN64: 0.3000000119 | CO64: 21.39999962 | CP64: 3.045454502 | CQ64: 4.942307848 | CR64: 2.409999847 | CS64: 0.8232876062 | CT64: 3.699137926 | CU64: 0.2920849919 | CV64: 0.0464810133 | CW64: G | CX64: 37.83783784 | CY64: 2.636629987 | CZ64: 24.99947975 | DA64: 36 | DB64: 36 | DC64: 14 | DD64: 37.83783784 | DE64: 22 | DF64: 0.1000000015 | DG64: 37 | DH64: 7.942856789 | DI64: 13.341771 | DJ64: 3.789999962 | DK64: 0.4182899892 | DL64: 18.98887634 | DM64: 0.5063166618 | DN64: 0.08238458633 | DO64: G | DP64: 78.37837838 | DQ64: 0 | DR64: 21.62162162 | DS64: 36 | DT64: 36 | DU64: 29 | DV64: 78.37837838 | DW64: 22 | EO64: 22 | FG64: 22
A65: 23 | B65: 0.02633666992 | C65: 50.39914322 | D65: 6.688256264 | E65: 13.02928092 | F65: 5.063617229 | G65: 0.3576289415 | H65: 18.70166397 | I65: 0.3142995536 | J65: 0.1042455435 | K65: G | L65: 45.94594595 | M65: 0 | N65: 54.05405405 | O65: 36 | P65: 36 | Q65: 17 | R65: 45.94594595 | S65: 23 | T65: 29.92581558 | U65: 49.84101105 | V65: 39.92979813 | W65: 4.92750697 | X65: 41.54301453 | Y65: 66.78582764 | Z65: 0.5978783369 | AA65: 0.2283333391 | AB65: 0.02733826637 | AC65: G | AD65: 0 | AE65: 43.10796033 | AF65: 24.99962015 | AG65: 36 | AH65: 36 | AI65: 0 | AJ65: 0 | AK65: 23 | AL65: 0.1000000015 | AM65: 16 | AN65: 2.840909004 | AO65: 3.97859245 | AP65: 1.690000057 | AQ65: 0.6445654631 | AR65: 4.407479286 | AS65: 0.2920849919 | AT65: 0.02390098572 | AU65: G | AV65: 37.83783784 | AW65: 2.2567616 | AX65: 24.99999344 | AY65: 36 | AZ65: 36 | BA65: 14 | BB65: 37.83783784 | BC65: 23 | BD65: 10 | BE65: 153.3000031 | BF65: 74.90000153 | BG65: 40.55606381 | BH65: 69.70833588 | BI65: 2.454292774 | BJ65: 30.51795769 | BK65: 0.2283333391 | BL65: 0.04868757725 | BM65: N | BN65: 0 | BO65: 47.54535706 | BP65: 74.99999618 | BQ65: 36 | BR65: 36 | BS65: 0 | BT65: 0 | BU65: 23 | BV65: 0.1000000015 | BW65: 16 | BX65: 3.625000238 | BY65: 5.916985338 | BZ65: 1.690000057 | CA65: 0.4729140997 | CB65: 7.665240288 | CC65: 0.474429369 | CD65: 0.08606642485 | CE65: G | CF65: 47.05882353 | CG65: 1.789791191 | CH65: 24.99999355 | CI65: 16 | CJ65: 16 | CK65: 8 | CL65: 47.05882353 | CM65: 23 | CN65: 0.1000000015 | CO65: 31.10000038 | CP65: 3.126315832 | CQ65: 7.016000988 | CR65: 3.200000048 | CS65: 0.5257670879 | CT65: 5.946199417 | CU65: 0.3142995536 | CV65: 0.04972982407 | CW65: G | CX65: 45.94594595 | CY65: 1.751403399 | CZ65: 24.99971508 | DA65: 36 | DB65: 36 | DC65: 17 | DD65: 45.94594595 | DE65: 23 | DF65: 0.1000000015 | DG65: 47.29999924 | DH65: 22.5 | DI65: 23.69134796 | DJ65: 42.57999802 | DK65: 0.4338292181 | DL65: 51.86372757 | DM65: 0.7086513638 | DN65: 0.1067059934 | DO65: N | DP65: 89.18918919 | DQ65: 0 | DR65: 8.9607692 | DS65: 36 | DT65: 36 | DU65: 33 | DV65: 89.18918919 | DW65: 23 | EO65: 23 | FG65: 23
A66: 24 | B66: 0.2008209229 | C66: 46.33655548 | D66: 14.60013103 | E66: 14.88183642 | F66: 4.814394474 | G66: 0.7340240479 | H66: 19.89053535 | I66: 0.3142995536 | J66: 0.05735176802 | K66: G | L66: 45.94594595 | M66: 0 | N66: 54.05405405 | O66: 36 | P66: 36 | Q66: 17 | R66: 45.94594595 | S66: 24 | T66: 28.44665909 | U66: 50.57642746 | V66: 41.65891266 | W66: 5.97184186 | X66: 45.04398346 | Y66: 45.63224792 | Z66: 0.9129270315 | AA66: 0.2283333391 | AB66: 0.07407409698 | AC66: T | AD66: 0 | AE66: 45.04398435 | AF66: 25.00000055 | AG66: 36 | AH66: 36 | AI66: 0 | AJ66: 0 | AK66: 24 | AL66: 0.200000003 | AM66: 15.89999962 | AN66: 5.604545116 | AO66: 4.446986843 | AP66: 1.769999981 | AQ66: 1.200120211 | AR66: 4.669986248 | AS66: 0.2920849919 | AT66: 0.074747473 | AU66: T | AV66: 37.83783784 | AW66: 6.454431981 | AX66: 25.00002506 | AY66: 36 | AZ66: 36 | BA66: 14 | BB66: 37.83783784 | BC66: 24 | BD66: 10 | BE66: 157 | BF66: 75.2416687 | BG66: 39.87732501 | BH66: 71.25 | BI66: 2.680104494 | BJ66: 28.07415581 | BK66: 0.2283333391 | BL66: 0.07222222537 | BM66: T | BN66: 0 | BO66: 57.44403911 | BP66: 75.00000725 | BQ66: 36 | BR66: 36 | BS66: 0 | BT66: 0 | BU66: 24 | BV66: 0.200000003 | BW66: 11.30000019 | BX66: 4.275000095 | BY66: 3.96547594 | BZ66: 1.310000062 | CA66: 0.9430407286 | CB66: 4.53320837 | CC66: 0.474429369 | CD66: 0.154792726 | CE66: E | CF66: 47.05882353 | CG66: 3.207413136 | CH66: 25.00083833 | CI66: 16 | CJ66: 16 | CK66: 8 | CL66: 47.05882353 | CM66: 24 | CN66: 0.200000003 | CO66: 31.89999962 | CP66: 7.26500082 | CQ66: 9.336982241 | CR66: 3.370000124 | CS66: 0.6703049541 | CT66: 10.83835125 | CU66: 0.3063413203 | CV66: 0.1192244291 | CW66: G | CX66: 43.24324324 | CY66: 5.121012075 | CZ66: 24.99983086 | DA66: 36 | DB66: 36 | DC66: 16 | DD66: 43.24324324 | DE66: 24 | DF66: 1.100000024 | DG66: 42.70000076 | DH66: 19.72500038 | DI66: 14.68464016 | DJ66: 5.259999752 | DK66: 2.15119791 | DL66: 9.169309616 | DM66: 0.474429369 | DN66: 0.08557534218 | DO66: N | DP66: 72.97297297 | DQ66: 0 | DR66: 24.60548408 | DS66: 36 | DT66: 36 | DU66: 27 | DV66: 72.97297297 | DW66: 24 | EO66: 24 | FG66: 24
A67: 25 | B67: 0.03720092773 | C67: 70.81982422 | D67: 17.01268196 | E67: 20.3560898 | F67: 7.115463257 | G67: 0.5309277177 | H67: 32.04331207 | I67: 0.2686791122 | J67: 0.04217427969 | K67: E | L67: 27.02702703 | M67: 0 | N67: 72.97297297 | O67: 36 | P67: 36 | Q67: 10 | R67: 27.02702703 | S67: 25 | T67: 28.44225883 | U67: 57.26126862 | V67: 43.87789917 | W67: 7.256171658 | X67: 45.2533493 | Y67: 35.24597931 | Z67: 1.244905114 | AA67: 0.2283333391 | AB67: 0.04567105323 | AC67: N | AD67: 0 | AE67: 48.77214191 | AF67: 24.99987155 | AG67: 36 | AH67: 36 | AI67: 0 | AJ67: 0 | AK67: 25 | AL67: 0.1000000015 | AM67: 19.5 | AN67: 4.942857265 | AO67: 4.94079229 | AP67: 2.039999962 | AQ67: 0.8208382726 | AR67: 6.021718979 | AS67: 0.2589056492 | AT67: 0.05045554042 | AU67: E | AV67: 21.62162162 | AW67: 5.648068853 | AX67: 24.99998544 | AY67: 36 | AZ67: 36 | BA67: 8 | BB67: 21.62162162 | BC67: 25 | BD67: 10 | BE67: 186 | BF67: 82.2638855 | BG67: 50.66422092 | BH67: 24.66666794 | BI67: 2.091682673 | BJ67: 39.32904816 | BK67: 0.2283333391 | BL67: 0.06903906167 | BM67: N | BN67: 0 | BO67: 48.09139 | BP67: 74.99999861 | BQ67: 36 | BR67: 36 | BS67: 0 | BT67: 0 | BU67: 25 | BV67: 0.1000000015 | BW67: 10.60000038 | BX67: 3.672727346 | BY67: 3.349654075 | BZ67: 1.150000095 | CA67: 0.7189031243 | CB67: 5.108793259 | CC67: 0.3983826041 | CD67: 0.0747475028 | CE67: T | CF67: 29.41176471 | CG67: 16.52808661 | CH67: 25.00001174 | CI67: 16 | CJ67: 16 | CK67: 5 | CL67: 29.41176471 | CM67: 25 | CN67: 0.1000000015 | CO67: 38.29999924 | CP67: 8.066666603 | CQ67: 10.37960603 | CR67: 3.919999838 | CS67: 0.5905647874 | CT67: 13.65924072 | CU67: 0.2796500921 | CV67: 0.04304617643 | CW67: G | CX67: 32.43243243 | CY67: 6.9633425 | CZ67: 24.99991284 | DA67: 36 | DB67: 36 | DC67: 12 | DD67: 32.43243243 | DE67: 25 | DF67: 0.200000003 | DG67: 48.70000076 | DH67: 19.77499962 | DI67: 16.53800702 | DJ67: 14.75 | DK67: 0.947234273 | DL67: 20.87656593 | DM67: 0.3776043057 | DN67: 0.1166666746 | DO67: T | DP67: 64.86486486 | DQ67: 14.46745304 | DR67: 24.99999419 | DS67: 36 | DT67: 36 | DU67: 24 | DV67: 64.86486486 | DW67: 25 | EO67: 25 | FG67: 25
A68: 26 | B68: 0.09786987305 | C68: 66.68310547 | D68: 22.66980743 | E68: 20.87938457 | F68: 6.756393433 | G68: 0.7255494595 | H68: 31.24501991 | I68: 0.2636566162 | J68: 0.06998616457 | K68: E | L68: 24.32432432 | M68: 0.2034541621 | N68: 74.9995496 | O68: 36 | P68: 36 | Q68: 9 | R68: 24.32432432 | S68: 26 | T68: 30.9465847 | U68: 59.1065979 | V68: 45.71619415 | W68: 8.273440266 | X68: 37.98658752 | Y68: 30.82579613 | Z68: 1.48304987 | AA68: 0.2283333391 | AB68: 0.08333329111 | AC68: U | AD68: 0 | AE68: 52.0665946 | AF68: 25 | AG68: 36 | AH68: 36 | AI68: 0 | AJ68: 0 | AK68: 26 | AL68: 0.1000000015 | AM68: 18.20000076 | AN68: 7.617242813 | AO68: 5.362639476 | AP68: 1.910000086 | AQ68: 1.09663105 | AR68: 6.946039677 | AS68: 0.2544026077 | AT68: 0.1215189993 | AU68: N | AV68: 18.91891892 | AW68: 10.30180978 | AX68: 24.9992745 | AY68: 36 | AZ68: 36 | BA68: 7 | BB68: 18.91891892 | BC68: 26 | BD68: 3.5 | BE68: 181.6000061 | BF68: 87.44722748 | BG68: 49.9754383 | BH68: 77.70833588 | BI68: 2.040579557 | BJ68: 42.85411453 | BK68: 0.2283333391 | BL68: 0.04498106241 | BM68: N | BN68: 0 | BO68: 53.73930975 | BP68: 74.99999798 | BQ68: 36 | BR68: 36 | BS68: 0 | BT68: 0 | BU68: 26 | BV68: 0.200000003 | BW68: 18.20000076 | BX68: 7.807143211 | BY68: 6.044128267 | BZ68: 2 | CA68: 0.9628631473 | CB68: 8.108258247 | CC68: 0.340793103 | CD68: 0.1079364419 | CE68: T | CF68: 11.76470588 | CG68: 27.28962273 | CH68: 25.00036918 | CI68: 16 | CJ68: 16 | CK68: 2 | CL68: 11.76470588 | CM68: 26 | CN68: 0.6999999881 | CO68: 47.79999924 | CP68: 14.89166641 | CQ68: 13.02231912 | CR68: 5.409999847 | CS68: 1.023490667 | CT68: 14.54988003 | CU68: 0.2796500921 | CV68: 0.06029197574 | CW68: E | CX68: 32.43243243 | CY68: 14.8060854 | CZ68: 24.99997948 | DA68: 36 | DB68: 36 | DC68: 12 | DD68: 32.43243243 | DE68: 26 | DF68: 1.299999952 | DG68: 62.70000076 | DH68: 24.62352562 | DI68: 21.01634597 | DJ68: 7.43999958 | DK68: 1.390293121 | DL68: 17.71103096 | DM68: 0.3322738111 | DN68: 0.06710991263 | DO68: E | DP68: 48.64864865 | DQ68: 17.72432718 | DR68: 25.00006746 | DS68: 36 | DT68: 36 | DU68: 18 | DV68: 48.64864865 | DW68: 26 | EO68: 26 | FG68: 26
A69: 27 | B69: 0.08117675781 | C69: 67.86841583 | D69: 23.12396431 | E69: 21.78114071 | F69: 5.730113506 | G69: 0.6080371141 | H69: 38.03051376 | I69: 0.2315722704 | J69: 0.06231564283 | K69: E | L69: 2.702702703 | M69: 6.018745591 | N69: 75.00010211 | O69: 36 | P69: 36 | Q69: 1 | R69: 2.702702703 | S69: 27 | T69: 32.54031754 | U69: 60.3825798 | V69: 45.88337326 | W69: 7.885819768 | X69: 44.14125824 | Y69: 34.55686951 | Z69: 1.327764153 | AA69: 0.2283333391 | AB69: 0.08333331347 | AC69: U | AD69: 0 | AE69: 53.42201424 | AF69: 25 | AG69: 36 | AH69: 36 | AI69: 0 | AJ69: 0 | AK69: 27 | AL69: 0.1000000015 | AM69: 21 | AN69: 8.397220612 | AO69: 5.689362609 | AP69: 5.324999809 | AQ69: 1.25402236 | AR69: 6.696228981 | AS69: 0.2283333391 | AT69: 0.06421473622 | AU69: N | AV69: 0 | AW69: 12.23464873 | AX69: 24.99993657 | AY69: 36 | AZ69: 36 | BA69: 0 | BB69: 0 | BC69: 27 | BD69: 14.19999981 | BE69: 200.5 | BF69: 91.71109772 | BG69: 52.15875191 | BH69: 60.77499771 | BI69: 2.61747694 | BJ69: 35.03797913 | BK69: 0.2283333391 | BL69: 0.09624117613 | BM69: G | BN69: 0 | BO69: 50.02914093 | BP69: 74.99996297 | BQ69: 36 | BR69: 36 | BS69: 0 | BT69: 0 | BU69: 27 | BV69: 1.600000024 | BW69: 18.89999962 | BX69: 9.0625 | BY69: 5.189203557 | BZ69: 6.789999962 | CA69: 2.664955139 | CB69: 3.400619984 | CC69: 0.3425000012 | CD69: 0.06928053498 | CE69: G | CF69: 0 | CG69: 11.95143267 | CH69: 24.99999807 | CI69: 16 | CJ69: 16 | CK69: 0 | CL69: 0 | CM69: 27 | CN69: 0.8000000119 | CO69: 39.20000076 | CP69: 13.36999989 | CQ69: 10.80843105 | CR69: 4.640000343 | CS69: 1.281018734 | CT69: 10.437006 | CU69: 0.2501266301 | CV69: 0.0651717186 | CW69: E | CX69: 16.21621622 | CY69: 16.16919967 | CZ69: 24.99998548 | DA69: 36 | DB69: 36 | DC69: 6 | DD69: 16.21621622 | DE69: 27 | DF69: 0.1000000015 | DG69: 50.09999847 | DH69: 21.54762077 | DI69: 17.07464905 | DJ69: 5.099999905 | DK69: 0.8756094575 | DL69: 24.60871124 | DM69: 0.2989585102 | DN69: 0.09008508921 | DO69: E | DP69: 40.54054054 | DQ69: 18.66933016 | DR69: 24.99992547 | DS69: 36 | DT69: 36 | DU69: 15 | DV69: 40.54054054 | DW69: 27 | EO69: 27 | FG69: 27
A70: 28 | B70: 0.007266998291 | C70: 96.10253906 | D70: 23.15533638 | E70: 24.77073217 | F70: 8.015206337 | G70: 0.7033648491 | H70: 32.92080307 | I70: 0.2283333391 | J70: 0.05349057913 | K70: G | L70: 0 | M70: 4.323045447 | N70: 74.99976962 | O70: 36 | P70: 36 | Q70: 0 | R70: 0 | S70: 28 | T70: 30.4646244 | U70: 58.90145111 | V70: 46.28483582 | W70: 6.201129737 | X70: 51.79224396 | Y70: 54.99463654 | Z70: 0.841624558 | AA70: 0.2283333391 | AB70: 0.06530886889 | AC70: G | AD70: 0 | AE70: 50.32801312 | AF70: 24.99971631 | AG70: 36 | AH70: 36 | AI70: 0 | AJ70: 0 | AK70: 28 | AL70: 0.5 | AM70: 19.89999962 | AN70: 8.705554962 | AO70: 4.838355229 | AP70: 8.583333015 | AQ70: 2.384966373 | AR70: 3.650179386 | AS70: 0.2283333391 | AT70: 0.03974837065 | AU70: N | AV70: 0 | AW70: 11.96901875 | AX70: 24.99971902 | AY70: 36 | AZ70: 36 | BA70: 0 | BB70: 0 | BC70: 28 | BD70: 10.19999981 | BE70: 187.8999939 | BF70: 90.5194397 | BG70: 50.4221752 | BH70: 54.62499619 | BI70: 2.735868692 | BJ70: 33.08617783 | BK70: 0.2283333391 | BL70: 0.08230316639 | BM70: G | BN70: 0 | BO70: 50.28525444 | BP70: 74.99978323 | BQ70: 36 | BR70: 36 | BS70: 0 | BT70: 0 | BU70: 28 | BV70: 1.100000024 | BW70: 19.89999962 | BX70: 10.08750057 | BY70: 5.450856434 | BZ70: 6.739999771 | CA70: 2.313504219 | CB70: 4.36026907 | CC70: 0.3425000012 | CD70: 0.05465593934 | CE70: N | CF70: 0 | CG70: 13.76404781 | CH70: 24.9999974 | CI70: 16 | CJ70: 16 | CK70: 0 | CL70: 0 | CM70: 28 | CN70: 1.100000024 | CO70: 46.40000153 | CP70: 14.37575912 | CQ70: 12.35106402 | CR70: 4.875 | CS70: 1.098011494 | CT70: 13.09253979 | CU70: 0.2384863943 | CV70: 0.08607578278 | CW70: E | CX70: 8.108108108 | CY70: 18.71382758 | CZ70: 24.99935586 | DA70: 36 | DB70: 36 | DC70: 3 | DD70: 8.108108108 | DE70: 28 | DF70: 0.1000000015 | DG70: 76.19999695 | DH70: 22.05999947 | DI70: 20.35380791 | DJ70: 7.709999561 | DK70: 0.7546953559 | DL70: 29.23033714 | DM70: 0.273999989 | DN70: 0.06543678045 | DO70: E | DP70: 29.72972973 | DQ70: 22.79878606 | DR70: 24.99957782 | DS70: 36 | DT70: 36 | DU70: 11 | DV70: 29.72972973 | DW70: 28 | EO70: 28 | FG70: 28
A71: 29 | B71: 1.194458008 | C71: 110.2951813 | D71: 26.90823936 | E71: 26.41321561 | F71: 10.28618526 | G71: 1.00292325 | H71: 26.82980919 | I71: 0.2315722704 | J71: 0.03426492214 | K71: E | L71: 2.702702703 | M71: 7.003762218 | N71: 74.99999357 | O71: 36 | P71: 36 | Q71: 1 | R71: 2.702702703 | S71: 29 | T71: 40.35611725 | U71: 61.7421875 | V71: 48.8527565 | W71: 5.975723108 | X71: 42.13829041 | Y71: 69.3344574 | Z71: 0.7045956254 | AA71: 0.2283333391 | AB71: 0.04961723089 | AC71: G | AD71: 0 | AE71: 52.67180259 | AF71: 24.99960753 | AG71: 36 | AH71: 36 | AI71: 0 | AJ71: 0 | AK71: 29 | AL71: 1.899999976 | AM71: 25.60000038 | AN71: 10.03714466 | AO71: 5.969485253 | AP71: 3.875 | AQ71: 2.623307705 | AR71: 3.826140881 | AS71: 0.2315722704 | AT71: 0.04329006374 | AU71: T | AV71: 2.702702703 | AW71: 14.09799153 | AX71: 25.00000098 | AY71: 36 | AZ71: 36 | BA71: 1 | BB71: 2.702702703 | BC71: 29 | BD71: 7 | BE71: 167.6999969 | BF71: 92.21943665 | BG71: 45.58626888 | BH71: 100.7416687 | BI71: 2.746872187 | BJ71: 33.57252502 | BK71: 0.2283333391 | BL71: 0.05961889029 | BM71: N | BN71: 0 | BO71: 61.4719663 | BP71: 74.99999947 | BQ71: 36 | BR71: 36 | BS71: 0 | BT71: 0 | BU71: 29 | BV71: 2.200000048 | BW71: 25.60000038 | BX71: 11.95333481 | BY71: 6.490418047 | BZ71: 9.220000267 | CA71: 3.178875923 | CB71: 3.760239601 | CC71: 0.3243176043 | CD71: 0.07619053125 | CE71: T | CF71: 5.882352941 | CG71: 35.69031979 | CH71: 25.00063995 | CI71: 16 | CJ71: 16 | CK71: 1 | CL71: 5.882352941 | CM71: 29 | CN71: 0.1000000015 | CO71: 47.29999924 | CP71: 13.07575798 | CQ71: 12.84112121 | CR71: 4.033333302 | CS71: 0.8991854787 | CT71: 14.54178047 | CU71: 0.2384863943 | CV71: 0.03622597456 | CW71: E | CX71: 8.108108108 | CY71: 17.02121434 | CZ71: 24.99996802 | DA71: 36 | DB71: 36 | DC71: 3 | DD71: 8.108108108 | DE71: 29 | DF71: 0.200000003 | DG71: 111.8000031 | DH71: 22.5363636 | DI71: 25.95273931 | DJ71: 11.35999966 | DK71: 0.9470509291 | DL71: 23.79635811 | DM71: 0.2920849919 | DN71: 0.0419293046 | DO71: E | DP71: 35.13513514 | DQ71: 21.48672293 | DR71: 25.00014255 | DS71: 36 | DT71: 36 | DU71: 13 | DV71: 35.13513514 | DW71: 29 | EO71: 29 | FG71: 29
A72: 30 | B72: 4.010391235 | C72: 79.68948364 | D72: 37.11152267 | E72: 21.73136928 | F72: 22.93016434 | G72: 2.266091108 | H72: 16.37688828 | I72: 0.2283333391 | J72: 0.07418757677 | K72: G | L72: 0 | M72: 18.98621096 | N72: 74.99999428 | O72: 36 | P72: 36 | Q72: 0 | R72: 0 | S72: 30 | T72: 38.00479507 | U72: 58.31097412 | V72: 48.0857048 | W72: 5.092886448 | X72: 46.46570206 | Y72: 92.04737091 | Z72: 0.5224016905 | AA72: 0.2283333391 | AB72: 0.04253688455 | AC72: N | AD72: 0 | AE72: 51.52084048 | AF72: 24.99977555 | AG72: 36 | AH72: 36 | AI72: 0 | AJ72: 0 | AK72: 30 | AL72: 3.599999905 | AM72: 19.39999962 | AN72: 11.07500076 | AO72: 4.555020826 | AP72: 7.549999714 | AQ72: 5.398308277 | AR72: 2.051568747 | AS72: 0.2283333391 | AT72: 0.05555552244 | AU72: U | AV72: 0 | AW72: 15.44999969 | AX72: 25 | AY72: 36 | AZ72: 36 | BA72: 0 | BB72: 0 | BC72: 30 | BD72: 16.5 | BE72: 194.8000031 | BF72: 104.3777771 | BG72: 47.77180662 | BH72: 120.5083313 | BI72: 3.399183512 | BJ72: 30.70672035 | BK72: 0.2283333391 | BL72: 0.03608941287 | BM72: N | BN72: 0 | BO72: 72.15618552 | BP72: 74.99999845 | BQ72: 36 | BR72: 36 | BS72: 0 | BT72: 0 | BU72: 30 | BV72: 6.099999905 | BW72: 17.10000038 | BX72: 11.82500076 | BY72: 3.603609443 | BZ72: 13.80000019 | CA72: 10.42228317 | CB72: 1.134588361 | CC72: 0.3425000012 | CD72: 0.09999996424 | CE72: U | CF72: 0 | CG72: 14.35000026 | CH72: 25 | CI72: 16 | CJ72: 16 | CK72: 0 | CL72: 0 | CM72: 30 | CN72: 0.1000000015 | CO72: 51.20000076 | CP72: 20.11428833 | CQ72: 13.89355328 | CR72: 4.358333111 | CS72: 1.116250515 | CT72: 18.01951027 | CU72: 0.2315722704 | CV72: 0.1272726655 | CW72: T | CX72: 0 | CY72: 75.66225649 | CZ72: 24.99998505 | DA72: 36 | DB72: 36 | DC72: 0 | DD72: 0 | DE72: 30 | DF72: 0.8999999762 | DG72: 78.59999847 | DH72: 30.13870811 | DI72: 19.21727875 | DJ72: 39.75 | DK72: 1.731605172 | DL72: 17.40506935 | DM72: 0.2460592687 | DN72: 0.08999754488 | DO72: N | DP72: 13.51351351 | DQ72: 40.82591847 | DR72: 25.00001569 | DS72: 36 | DT72: 36 | DU72: 5 | DV72: 13.51351351 | DW72: 30 | EO72: 30 | FG72: 30
A73: 31 | B73: 3.004867554 | C73: 141.5562134 | D73: 41.28347397 | E73: 33.12921922 | F73: 14.55081272 | G73: 1.631205559 | H73: 25.30856705 | I73: 0.2315722704 | J73: 0.02616649866 | K73: G | L73: 2.702702703 | M73: 16.44329534 | N73: 74.99999871 | O73: 36 | P73: 36 | Q73: 1 | R73: 2.702702703 | S73: 31 | T73: 36.52198029 | U73: 61.68104553 | V73: 48.26306915 | W73: 6.061329522 | X73: 47.00492477 | Y73: 64.8288269 | Z73: 0.744469285 | AA73: 0.2283333391 | AB73: 0.03888618946 | AC73: N | AD73: 0 | AE73: 52.35139221 | AF73: 24.99990341 | AG73: 36 | AH73: 36 | AI73: 0 | AJ73: 0 | AK73: 31 | AL73: 2.599999905 | AM73: 25.10000038 | AN73: 12.91944504 | AO73: 5.388284811 | AP73: 11.97500038 | AQ73: 5.096384048 | AR73: 2.535021782 | AS73: 0.2283333391 | AT73: 0.04537892342 | AU73: G | AV73: 0 | AW73: 16.18801699 | AX73: 25.00000364 | AY73: 36 | AZ73: 36 | BA73: 0 | BB73: 0 | BC73: 31 | BD73: 14.30000019 | BE73: 216.3999939 | BF73: 111.6342773 | BG73: 54.54251988 | BH73: 132.1916504 | BI73: 7.84539175 | BJ73: 14.22928047 | BK73: 0.2315722704 | BL73: 0.06543803215 | BM73: N | BN73: 0 | BO73: 74.84590952 | BP73: 74.99999838 | BQ73: 36 | BR73: 36 | BS73: 0 | BT73: 0 | BU73: 31 | BV73: 8.100000381 | BW73: 22.29999924 | BX73: 13.51249981 | BY73: 3.895616998 | BZ73: 12.35999966 | CA73: 13.10025215 | CB73: 1.03146863 | CC73: 0.3425000012 | CD73: 0.05691254139 | CE73: G | CF73: 0 | CG73: 15.80934768 | CH73: 24.9999143 | CI73: 16 | CJ73: 16 | CK73: 0 | CL73: 0 | CM73: 31 | CN73: 1.100000024 | CO73: 68.5 | CP73: 18.80833244 | CQ73: 17.50140114 | CR73: 6.716666698 | CS73: 1.147934675 | CT73: 16.38449669 | CU73: 0.2283333391 | CV73: 0.0439208746 | CW73: G | CX73: 0 | CY73: 26.0199663 | CZ73: 24.99937457 | DA73: 36 | DB73: 36 | DC73: 0 | DD73: 0 | DE73: 31 | DF73: 0.1000000015 | DG73: 114.1999969 | DH73: 30.49666595 | DI73: 29.03434876 | DJ73: 11.51000023 | DK73: 0.9258952141 | DL73: 32.93749237 | DM73: 0.2501266301 | DN73: 0.0621984601 | DO73: G | DP73: 16.21621622 | DQ73: 36.66909403 | DR73: 25.00051105 | DS73: 36 | DT73: 36 | DU73: 6 | DV73: 16.21621622 | DW73: 31 | EO73: 31 | FG73: 31
A74: 32 | B74: 3.282821655 | C74: 157.1793823 | D74: 44.69056702 | E74: 34.46669411 | F74: 16.10753632 | G74: 1.85237658 | H74: 24.12607002 | I74: 0.2283333391 | J74: 0.05607569218 | K74: G | L74: 0 | M74: 20.59939618 | N74: 74.99999874 | O74: 36 | P74: 36 | Q74: 0 | R74: 0 | S74: 32 | T74: 37.50666809 | U74: 62.99113846 | V74: 47.91210175 | W74: 5.344466312 | X74: 48.12519836 | Y74: 83.28272247 | Z74: 0.5752946138 | AA74: 0.2283333391 | AB74: 0.019336164 | AC74: N | AD74: 0 | AE74: 51.51691711 | AF74: 24.99983581 | AG74: 36 | AH74: 36 | AI74: 0 | AJ74: 0 | AK74: 32 | AL74: 3.599999905 | AM74: 22.70000076 | AN74: 12.28055382 | AO74: 4.908117048 | AP74: 8.375 | AQ74: 5.821195602 | AR74: 2.109627485 | AS74: 0.2283333391 | AT74: 0.05446785688 | AU74: G | AV74: 0 | AW74: 15.2281376 | AX74: 24.99999253 | AY74: 36 | AZ74: 36 | BA74: 0 | BB74: 0 | BC74: 32 | BD74: 11.80000019 | BE74: 198.3000031 | BF74: 115.8055573 | BG74: 51.2565497 | BH74: 182.7583313 | BI74: 3.305247545 | BJ74: 35.03688049 | BK74: 0.2283333391 | BL74: 0.06262946129 | BM74: N | BN74: 0 | BO74: 81.23354709 | BP74: 74.99999551 | BQ74: 36 | BR74: 36 | BS74: 0 | BT74: 0 | BU74: 32 | BV74: 7.800000191 | BW74: 19 | BX74: 12.83124828 | BY74: 3.783599502 | BZ74: 8.920000076 | CA74: 11.72614765 | CB74: 1.094242454 | CC74: 0.3425000012 | CD74: 0.07290920615 | CE74: G | CF74: 0 | CG74: 15.12190971 | CH74: 24.99999821 | CI74: 16 | CJ74: 16 | CK74: 0 | CL74: 0 | CM74: 32 | CN74: 0.3000000119 | CO74: 84.30000305 | CP74: 23.59444427 | CQ74: 18.97696132 | CR74: 21.30000114 | CS74: 1.609329104 | CT74: 14.66104412 | CU74: 0.2283333391 | CV74: 0.05868571997 | CW74: G | CX74: 0 | CY74: 32.19223383 | CZ74: 25.00002124 | DA74: 36 | DB74: 36 | DC74: 0 | DD74: 0 | DE74: 32 | DF74: 1.299999952 | DG74: 137 | DH74: 35.29411316 | DI74: 34.33569308 | DJ74: 12.60833359 | DK74: 1.130923271 | DL74: 31.20822906 | DM74: 0.2349530607 | DN74: 0.02520382404 | DO74: E | DP74: 5.405405405 | DQ74: 46.96745978 | DR74: 24.99949118 | DS74: 36 | DT74: 36 | DU74: 2 | DV74: 5.405405405 | DW74: 32 | EO74: 32 | FG74: 32
A75: 33 | B75: 2.135803223 | C75: 115.1699219 | D75: 50.42372131 | E75: 31.07470856 | F75: 49.23335266 | G75: 1.834631801 | H75: 27.48438263 | I75: 0.2315722704 | J75: 0.06926381588 | K75: N | L75: 2.702702703 | M75: 27.37949612 | N75: 74.99943679 | O75: 36 | P75: 36 | Q75: 1 | R75: 2.702702703 | S75: 33 | T75: 36.27739716 | U75: 60.09679794 | V75: 49.14442062 | W75: 6.003165046 | X75: 50.17204666 | Y75: 67.13262939 | Z75: 0.7320497036 | AA75: 0.2283333391 | AB75: 0.02993541956 | AC75: N | AD75: 0 | AE75: 53.19343987 | AF75: 25.00028607 | AG75: 36 | AH75: 36 | AI75: 0 | AJ75: 0 | AK75: 33 | AL75: 5 | AM75: 26.70000076 | AN75: 13.01388836 | AO75: 5.699079861 | AP75: 6.808333397 | AQ75: 5.417749405 | AR75: 2.402083874 | AS75: 0.2283333391 | AT75: 0.09086298943 | AU75: N | AV75: 0 | AW75: 16.85786194 | AX75: 24.99998536 | AY75: 36 | AZ75: 36 | BA75: 0 | BB75: 0 | BC75: 33 | BD75: 11.89999962 | BE75: 217.6999969 | BF75: 114.7055664 | BG75: 51.96251795 | BH75: 131.9499969 | BI75: 3.671549797 | BJ75: 31.24172974 | BK75: 0.2283333391 | BL75: 0.0779940784 | BM75: N | BN75: 0 | BO75: 79.65738486 | BP75: 74.99999743 | BQ75: 36 | BR75: 36 | BS75: 0 | BT75: 0 | BU75: 33 | BV75: 6.5 | BW75: 26.70000076 | BX75: 13.08125019 | BY75: 6.387406189 | BZ75: 8.520000458 | CA75: 4.889138699 | CB75: 2.675573587 | CC75: 0.3425000012 | CD75: 0.08552157879 | CE75: G | CF75: 0 | CG75: 16.4446111 | CH75: 24.99999487 | CI75: 16 | CJ75: 16 | CK75: 0 | CL75: 0 | CM75: 33 | CN75: 0.3000000119 | CO75: 61.20000076 | CP75: 22.22499847 | CQ75: 14.9840751 | CR75: 15.52500057 | CS75: 1.516085505 | CT75: 14.65946198 | CU75: 0.2283333391 | CV75: 0.06277751923 | CW75: N | CX75: 0 | CY75: 32.33145709 | CZ75: 25.0003106 | DA75: 36 | DB75: 36 | DC75: 0 | DD75: 0 | DE75: 33 | DF75: 0.3000000119 | DG75: 119.5 | DH75: 38.875 | DI75: 29.86810811 | DJ75: 10.23333359 | DK75: 1.005336165 | DL75: 38.66865921 | DM75: 0.2421840727 | DN75: 0.06002238393 | DO75: G | DP75: 10.81081081 | DQ75: 49.45485568 | DR75: 24.99999215 | DS75: 36 | DT75: 36 | DU75: 4 | DV75: 10.81081081 | DW75: 33 | EO75: 33 | FG75: 33
A76: 34 | B76: 7.165039062 | C76: 258.0742188 | D76: 64.99150085 | E76: 51.26734891 | F76: 28.07413673 | G76: 1.963824391 | H76: 33.09435654 | I76: 0.2283333391 | J76: 0.02532464266 | K76: G | L76: 0 | M76: 30.93568132 | N76: 74.99999772 | O76: 36 | P76: 36 | Q76: 0 | R76: 0 | S76: 34 | T76: 32.83128357 | U76: 62.00967026 | V76: 46.9806633 | W76: 7.221504512 | X76: 44.98894501 | Y76: 42.89299393 | Z76: 1.095299244 | AA76: 0.2283333391 | AB76: 0.02901440859 | AC76: G | AD76: 0 | AE76: 51.59995932 | AF76: 24.99981306 | AG76: 36 | AH76: 36 | AI76: 0 | AJ76: 0 | AK76: 34 | AL76: 4.300000191 | AM76: 31.10000038 | AN76: 13.71388912 | AO76: 5.986850316 | AP76: 19.93333435 | AQ76: 4.872901917 | AR76: 2.81431675 | AS76: 0.2283333391 | AT76: 0.06121681631 | AU76: N | AV76: 0 | AW76: 17.75204571 | AX76: 24.99953604 | AY76: 36 | AZ76: 36 | BA76: 0 | BB76: 0 | BC76: 34 | BD76: 22.20000076 | BE76: 236.3999939 | BF76: 128.3771515 | BG76: 52.42685101 | BH76: 111.4499969 | BI76: 95.05528259 | BJ76: 1.350552559 | BK76: 0.2315722704 | BL76: 0.01904767752 | BM76: T | BN76: 0 | BO76: 91.33275319 | BP76: 74.99999835 | BQ76: 36 | BR76: 36 | BS76: 0 | BT76: 0 | BU76: 34 | BV76: 5.800000191 | BW76: 31.10000038 | BX76: 14.94374943 | BY76: 6.955570365 | BZ76: 18.45000076 | CA76: 4.658973694 | CB76: 3.207519531 | CC76: 0.3425000012 | CD76: 0.05250638723 | CE76: G | CF76: 0 | CG76: 18.85794574 | CH76: 25.00000687 | CI76: 16 | CJ76: 16 | CK76: 0 | CL76: 0 | CM76: 34 | CN76: 1.5 | CO76: 127.5999985 | CP76: 30.11428642 | CQ76: 23.40044075 | CR76: 12.00833321 | CS76: 2.043913126 | CT76: 14.73364258 | CU76: 0.2315722704 | CV76: 0.07210713625 | CW76: G | CX76: 2.702702703 | CY76: 39.92395935 | CZ76: 25.00006177 | DA76: 36 | DB76: 36 | DC76: 1 | DD76: 2.702702703 | DE76: 34 | DF76: 0.5 | DG76: 249.6000061 | DH76: 51.2914238 | DI76: 49.25696681 | DJ76: 21.25833321 | DK76: 1.192295909 | DL76: 43.01903915 | DM76: 0.2315722704 | DN76: 0.06462079287 | DO76: E | DP76: 2.702702703 | DQ76: 69.6997019 | DR76: 24.99998893 | DS76: 36 | DT76: 36 | DU76: 1 | DV76: 2.702702703 | DW76: 34 | EO76: 34 | FG76: 34
A77: 35 | B77: 14.32543945 | C77: 167.9414062 | D77: 71.2015152 | E77: 34.44940633 | F77: 52.72943115 | G77: 4.359665871 | H77: 16.33187485 | I77: 0.2283333391 | J77: 0.03830987215 | K77: G | L77: 0 | M77: 46.26224442 | N77: 74.99999274 | O77: 36 | P77: 36 | Q77: 0 | R77: 0 | S77: 35 | T77: 34.99423599 | U77: 57.28755188 | V77: 43.97981262 | W77: 5.189454595 | X77: 44.2831192 | Y77: 75.28031921 | Z77: 0.5842139721 | AA77: 0.2283333391 | AB77: 0.04655975103 | AC77: G | AD77: 0 | AE77: 47.28451084 | AF77: 24.99956528 | AG77: 36 | AH77: 36 | AI77: 0 | AJ77: 0 | AK77: 35 | AL77: 7 | AM77: 24.39999962 | AN77: 15.17777634 | AO77: 4.788445338 | AP77: 17.14999962 | AQ77: 9.506548882 | AR77: 1.596560121 | AS77: 0.2283333391 | AT77: 0.06916731596 | AU77: N | AV77: 0 | AW77: 18.40753966 | AX77: 24.99996005 | AY77: 36 | AZ77: 36 | BA77: 0 | BB77: 0 | BC77: 35 | BD77: 22.60000038 | BE77: 230.1000061 | BF77: 134.8722076 | BG77: 55.09626031 | BH77: 178.2250061 | BI77: 4.474108219 | BJ77: 30.14504814 | BK77: 0.2283333391 | BL77: 0.05268549919 | BM77: N | BN77: 0 | BO77: 97.71035209 | BP77: 74.99999579 | BQ77: 36 | BR77: 36 | BS77: 0 | BT77: 0 | BU77: 35 | BV77: 8.100000381 | BW77: 22.60000038 | BX77: 16.39375114 | BY77: 4.262779768 | BZ77: 18.25 | CA77: 13.7787571 | CB77: 1.189784408 | CC77: 0.3425000012 | CD77: 0.05724292994 | CE77: N | CF77: 0 | CG77: 19.2689548 | CH77: 24.99998211 | CI77: 16 | CJ77: 16 | CK77: 0 | CL77: 0 | CM77: 35 | CN77: 2 | CO77: 75.59999847 | CP77: 32.62778091 | CQ77: 17.1806476 | CR77: 32.66666412 | CS77: 2.885768652 | CT77: 11.30644417 | CU77: 0.2283333391 | CV77: 0.03942847252 | CW77: N | CX77: 0 | CY77: 44.21601616 | CZ77: 24.99988064 | DA77: 36 | DB77: 36 | DC77: 0 | DD77: 0 | DE77: 35 | DF77: 8.100000381 | DG77: 159 | DH77: 58.61427689 | DI77: 33.21986527 | DJ77: 45.82500076 | DK77: 3.225558281 | DL77: 18.1718235 | DM77: 0.2315722704 | DN77: 0.0549120754 | DO77: G | DP77: 2.702702703 | DQ77: 75.31733576 | DR77: 25.00002982 | DS77: 36 | DT77: 36 | DU77: 1 | DV77: 2.702702703 | DW77: 35 | EO77: 35 | FG77: 35
A78: 36 | B78: 4.570129395 | C78: 207.7993164 | D78: 70.76903534 | E78: 48.89175354 | F78: 55.37742615 | G78: 1.955210567 | H78: 36.19509506 | I78: 0.2283333391 | J78: 0.05002662539 | K78: G | L78: 0 | M78: 33.60637675 | N78: 74.99992095 | O78: 36 | P78: 36 | Q78: 0 | R78: 0 | S78: 36 | T78: 34.07921219 | U78: 58.0039978 | V78: 47.04891205 | W78: 5.658831434 | X78: 44.04787445 | Y78: 70.69476318 | Z78: 0.6655218601 | AA78: 0.2283333391 | AB78: 0.05629634857 | AC78: G | AD78: 0 | AE78: 50.69275447 | AF78: 24.9995899 | AG78: 36 | AH78: 36 | AI78: 0 | AJ78: 0 | AK78: 36 | AL78: 8.5 | AM78: 25.10000038 | AN78: 15.73610973 | AO78: 3.807822814 | AP78: 15.41666698 | AQ78: 17.22622871 | AR78: 0.9134970903 | AS78: 0.2283333391 | AT78: 0.0357170701 | AU78: N | AV78: 0 | AW78: 18.30445023 | AX78: 24.99997468 | AY78: 36 | AZ78: 36 | BA78: 0 | BB78: 0 | BC78: 36 | BD78: 21.10000038 | BE78: 233.3000031 | BF78: 129.5471954 | BG78: 61.12338436 | BH78: 144.8833466 | BI78: 3.20523262 | BJ78: 40.41740799 | BK78: 0.2283333391 | BL78: 0.05555561185 | BM78: U | BN78: 0 | BO78: 74.15000105 | BP78: 75 | BQ78: 36 | BR78: 36 | BS78: 0 | BT78: 0 | BU78: 36 | BV78: 8.5 | BW78: 25.10000038 | BX78: 16.03125 | BY78: 4.606765681 | BZ78: 20.12000084 | CA78: 12.25399208 | CB78: 1.308247089 | CC78: 0.3425000012 | CD78: 0.04013633728 | CE78: N | CF78: 0 | CG78: 19.13846734 | CH78: 24.99999237 | CI78: 16 | CJ78: 16 | CK78: 0 | CL78: 0 | CM78: 36 | CN78: 2.799999952 | CO78: 107.0999985 | CP78: 33.41389084 | CQ78: 24.4505702 | CR78: 28.875 | CS78: 1.841704965 | CT78: 18.14291191 | CU78: 0.2283333391 | CV78: 0.0361456871 | CW78: G | CX78: 0 | CY78: 45.22778813 | CZ78: 24.99974784 | DA78: 36 | DB78: 36 | DC78: 0 | DD78: 0 | DE78: 36 | DF78: 2.299999952 | DG78: 168.3000031 | DH78: 56.46286011 | DI78: 44.53825329 | DJ78: 43.80000305 | DK78: 1.273894429 | DL78: 44.32302856 | DM78: 0.2315722704 | DN78: 0.111199975 | DO78: G | DP78: 2.702702703 | DQ78: 76.50681041 | DR78: 25.00052941 | DS78: 36 | DT78: 36 | DU78: 1 | DV78: 2.702702703 | DW78: 36 | EO78: 36 | FG78: 36
A79: 37 | B79: 8.650634766 | C79: 99.85546875 | D79: 42.36692429 | E79: 24.64718326 | F79: 16.2510376 | G79: 2.653445005 | H79: 15.96676159 | I79: 0.2283333391 | J79: 0.03860110044 | K79: G | L79: 0 | M79: 23.24307793 | N79: 75.00011329 | O79: 36 | P79: 36 | Q79: 0 | R79: 0 | S79: 37 | T79: 14.00045013 | U79: 32.2027359 | V79: 23.81434822 | W79: 4.294955182 | X79: 24.61845016 | Y79: 30.17924309 | Z79: 0.7890969515 | AA79: 0.2283333391 | AB79: 0.01950252056 | AC79: N | AD79: 0 | AE79: 26.7112336 | AF79: 25.0001322 | AG79: 36 | AH79: 36 | AI79: 0 | AJ79: 0 | AK79: 37 | AL79: 3.400000095 | AM79: 15.30000019 | AN79: 9.063889503 | AO79: 2.720835445 | AP79: 6.375 | AQ79: 11.47570038 | AR79: 0.7898332477 | AS79: 0.2283333391 | AT79: 0.05193457007 | AU79: G | AV79: 0 | AW79: 10.6974349 | AX79: 24.99999269 | AY79: 36 | AZ79: 36 | BA79: 0 | BB79: 0 | BC79: 37 | BD79: 10.5 | BE79: 119.0999985 | BF79: 68.9750061 | BG79: 32.37853089 | BH79: 73.84999847 | BI79: 3.023290873 | BJ79: 22.81454468 | BK79: 0.2283333391 | BL79: 0.07210610062 | BM79: N | BN79: 0 | BO79: 47.13604486 | BP79: 74.99997452 | BQ79: 36 | BR79: 36 | BS79: 0 | BT79: 0 | BU79: 37 | BV79: 6.599999905 | BW79: 15 | BX79: 9.793749809 | BY79: 2.528627615 | BZ79: 9.119999886 | CA79: 16.73927879 | CB79: 0.5850759745 | CC79: 0.3425000012 | CD79: 0.1029294133 | CE79: G | CF79: 0 | CG79: 11.28497047 | CH79: 24.99999622 | CI79: 16 | CJ79: 16 | CK79: 0 | CL79: 0 | CM79: 37 | CN79: 1.100000024 | CO79: 52.09999847 | CP79: 17.86111069 | CQ79: 13.13808581 | CR79: 13.85000038 | CS79: 1.507775307 | CT79: 11.84600258 | CU79: 0.2283333391 | CV79: 0.06472277641 | CW79: G | CX79: 0 | CY79: 24.45356272 | CZ79: 24.9999441 | DA79: 36 | DB79: 36 | DC79: 0 | DD79: 0 | DE79: 37 | DF79: 0.3000000119 | DG79: 95.5 | DH79: 34.32352829 | DI79: 24.80492372 | DJ79: 8.233333588 | DK79: 1.177687049 | DL79: 29.14486313 | DM79: 0.2349530607 | DN79: 0.05169342458 | DO79: T | DP79: 5.405405405 | DQ79: 48.64243499 | DR79: 25.0000236 | DS79: 36 | DT79: 36 | DU79: 2 | DV79: 5.405405405 | DW79: 37 | EO79: 37 | FG79: 37
A80: Ponto: | B80: =B42+1 -> 3 | C80: Componente hídrica: | G80: Precipitação (P) | L80: Ponto 3 lat-19,875 lon-50,625 | S80: Ponto: | T80: =B80 -> 3 | U80: Componente hídrica: | Y80: Evapotranspiração de referência (ETo) | AD80: =L80 -> Ponto 3 lat-19,875 lon-50,625 | AK80: Ponto: | AL80: 3 | AM80: Componente hídrica: | AV80: Ponto 3 lat-19,875 lon-50,625 | BC80: Ponto: | BD80: 3 | BE80: Componente hídrica: | BN80: Ponto 3 lat-19,875 lon-50,625 | BU80: Ponto: | BV80: 3 | BW80: Componente hídrica: | CF80: Ponto 3 lat-19,875 lon-50,625 | CM80: Ponto: | CN80: 3 | CO80: Componente hídrica: | CX80: Ponto 3 lat-19,875 lon-50,625 | DE80: Ponto: | DF80: 3 | DG80: Componente hídrica: | DP80: Ponto 3 lat-19,875 lon-50,625 | DW80: Ponto: | DX80: =B80 -> 3 | DY80: Componente hídrica: | EC80: Temperatura mínima (Tmin) | EH80: =L80 -> Ponto 3 lat-19,875 lon-50,625 | EO80: Ponto: | EP80: =B80 -> 3 | EQ80: Componente hídrica: | EU80: Temperatura máxima (Tmax) | EZ80: =L80 -> Ponto 3 lat-19,875 lon-50,625 | FG80: Ponto: | FH80: =B80 -> 3 | FI80: Componente hídrica: | FM80: Temperatura média (Tmed) | FR80: =L80 -> Ponto 3 lat-19,875 lon-50,625
A81: 1 | B81: 19.36868286 | C81: 209.7753906 | D81: 88.01422882 | E81: 50.69040913 | F81: 66.9703598 | G81: 3.01880002 | H81: 29.1553688 | I81: 0.2283333391 | J81: 0.0414083004 | K81: G | L81: 0 | M81: 50.79392764 | N81: 74.99995044 | O81: 36 | P81: 36 | Q81: 0 | R81: 0 | S81: 1 | T81: 33.20558167 | U81: 54.80664062 | V81: 44.04156876 | W81: 5.788885569 | X81: 49.40637589 | Y81: 58.8687439 | Z81: 0.7481316328 | AA81: 0.2283333391 | AB81: 0.05555564165 | AC81: U | AD81: 0 | AE81: 49.40637589 | AF81: 25 | AG81: 36 | AH81: 36 | AI81: 0 | AJ81: 0 | AK81: 1 | AL81: 17.20000076 | AM81: 54.79999924 | AN81: 34.32778168 | AO81: 9.318233492 | AP81: 39.1333313 | AQ81: 13.25434971 | AR81: 2.589925766 | AS81: 0.2283333391 | AT81: 0.02652579546 | AU81: G | AV81: 0 | AW81: 40.13248955 | AX81: 25.00001319 | AY81: 36 | AZ81: 36 | BA81: 0 | BB81: 0 | BC81: 1 | BD81: 11.19999981 | BE81: 33.09999847 | BF81: 17.93611145 | BG81: 4.806552134 | BH81: 16.67499924 | BI81: 16.39756966 | BJ81: 1.093827486 | BK81: 0.2283333391 | BL81: 0.08419549465 | BM81: G | BN81: 0 | BO81: 14.78407325 | BP81: 74.99999112 | BQ81: 36 | BR81: 36 | BS81: 0 | BT81: 0 | BU81: 1 | BV81: 24.10000038 | BW81: 50.5 | BX81: 35.71875381 | BY81: 7.239541501 | BZ81: 42.57999802 | CA81: 25.74636078 | CB81: 1.387332082 | CC81: 0.3425000012 | CD81: 0.0943620801 | CE81: N | CF81: 0 | CG81: 40.60189066 | CH81: 24.99938414 | CI81: 16 | CJ81: 16 | CK81: 0 | CL81: 0 | CM81: 1 | CN81: 6.800000191 | CO81: 112.6999969 | CP81: 30.05832863 | CQ81: 20.67092351 | CR81: 15.625 | CS81: 2.620244741 | CT81: 11.47157288 | CU81: 0.2283333391 | CV81: 0.03211283684 | CW81: G | CX81: 0 | CY81: 39.69117286 | CZ81: 24.9999681 | DA81: 36 | DB81: 36 | DC81: 0 | DD81: 0 | DE81: 1 | DF81: 2.299999952 | DG81: 166.6000061 | DH81: 53.85555267 | DI81: 46.13655322 | DJ81: 15.99166775 | DK81: 1.287248135 | DL81: 41.83773804 | DM81: 0.2283333391 | DN81: 0.03706875443 | DO81: G | DP81: 0 | DQ81: 74.24472447 | DR81: 25.00000672 | DS81: 36 | DT81: 36 | DU81: 0 | DV81: 0 | DW81: 1 | EO81: 1 | FG81: 1 | FH81: tmed
A82: 2 | B82: 19.45410156 | C82: 271.574707 | D82: 87.0344696 | E82: 56.9865921 | F82: 40.46414948 | G82: 2.533682823 | H82: 34.35097122 | I82: 0.2283333391 | J82: 0.02538216114 | K82: G | L82: 0 | M82: 46.82683631 | N82: 75.00003938 | O82: 36 | P82: 36 | Q82: 0 | R82: 0 | S82: 2 | T82: 30.64162445 | U82: 61.08203125 | V82: 45.38908386 | W82: 6.915906964 | X82: 48.39852905 | Y82: 43.93759537 | Z82: 1.033035278 | AA82: 0.2283333391 | AB82: 0.039754197 | AC82: N | AD82: 0 | AE82: 50.05376807 | AF82: 25.00011096 | AG82: 36 | AH82: 36 | AI82: 0 | AJ82: 0 | AK82: 2 | AL82: 18.10000038 | AM82: 52.29999924 | AN82: 32.73611069 | AO82: 8.217581662 | AP82: 38.04999924 | AQ82: 16.55184746 | AR82: 1.977791905 | AS82: 0.2283333391 | AT82: 0.03590866923 | AU82: N | AV82: 0 | AW82: 38.27874216 | AX82: 25.00016677 | AY82: 36 | AZ82: 36 | BA82: 0 | BB82: 0 | BC82: 2 | BD82: 10 | BE82: 36.09999847 | BF82: 18.08888817 | BG82: 6.460994181 | BH82: 16.52499962 | BI82: 8.669898033 | BJ82: 2.086401463 | BK82: 0.2283333391 | BL82: 0.02907848358 | BM82: G | BN82: 0 | BO82: 13.65728848 | BP82: 74.9998687 | BQ82: 36 | BR82: 36 | BS82: 0 | BT82: 0 | BU82: 2 | BV82: 22.10000038 | BW82: 42.09999847 | BX82: 32.82500076 | BY82: 5.937283482 | BZ82: 40.09999847 | CA82: 30.35448837 | CB82: 1.081388712 | CC82: 0.3425000012 | CD82: 0.05920243263 | CE82: N | CF82: 0 | CG82: 36.82964107 | CH82: 24.99998154 | CI82: 16 | CJ82: 16 | CK82: 0 | CL82: 0 | CM82: 2 | CN82: 0.8999999762 | CO82: 115.4000015 | CP82: 28.97499847 | CQ82: 21.27781455 | CR82: 10.4416666 | CS82: 1.863328815 | CT82: 15.55012608 | CU82: 0.2283333391 | CV82: 0.04010003805 | CW82: G | CX82: 0 | CY82: 39.19029831 | CZ82: 24.99999063 | DA82: 36 | DB82: 36 | DC82: 0 | DD82: 0 | DE82: 2 | DF82: 0.6000000238 | DG82: 230 | DH82: 57.49713516 | DI82: 50.79563979 | DJ82: 19.71666718 | DK82: 1.065247774 | DL82: 53.97536469 | DM82: 0.2315722704 | DN82: 0.05237019062 | DO82: G | DP82: 2.702702703 | DQ82: 78.13287979 | DR82: 25.00000603 | DS82: 36 | DT82: 36 | DU82: 1 | DV82: 2.702702703 | DW82: 2 | EO82: 2 | FG82: 2
A83: 3 | B83: 17.14562988 | C83: 206.1721191 | D83: 90.41885376 | E83: 51.64470483 | F83: 95.90666962 | G83: 2.840034723 | H83: 31.8372345 | I83: 0.2283333391 | J83: 0.05633738637 | K83: G | L83: 0 | M83: 50.98062892 | N83: 74.99975352 | O83: 36 | P83: 36 | Q83: 0 | R83: 0 | S83: 3 | T83: 30.03225327 | U83: 55.1497879 | V83: 43.40112686 | W83: 6.962777217 | X83: 48.87040329 | Y83: 38.41388321 | Z83: 1.129829168 | AA83: 0.2283333391 | AB83: 0.07046920061 | AC83: N | AD83: 0 | AE83: 48.09741834 | AF83: 25.0001387 | AG83: 36 | AH83: 36 | AI83: 0 | AJ83: 0 | AK83: 3 | AL83: 15.39999962 | AM83: 51.5 | AN83: 31.8805542 | AO83: 8.152574902 | AP83: 36.45833206 | AQ83: 15.34405422 | AR83: 2.077713966 | AS83: 0.2283333391 | AT83: 0.02202528715 | AU83: N | AV83: 0 | AW83: 37.37939541 | AX83: 24.99994933 | AY83: 36 | AZ83: 36 | BA83: 0 | BB83: 0 | BC83: 3 | BD83: 10 | BE83: 34.5 | BF83: 19.06944656 | BG83: 6.639527713 | BH83: 12.04166698 | BI83: 8.99834156 | BJ83: 2.119217873 | BK83: 0.2283333391 | BL83: 0.05159987509 | BM83: G | BN83: 0 | BO83: 14.48735693 | BP83: 74.99995345 | BQ83: 36 | BR83: 36 | BS83: 0 | BT83: 0 | BU83: 3 | BV83: 15.39999962 | BW83: 44.5 | BX83: 30.06249809 | BY83: 7.948573761 | BZ83: 35.77000046 | CA83: 14.16229916 | CB83: 2.122713089 | CC83: 0.3425000012 | CD83: 0.02868366241 | CE83: N | CF83: 0 | CG83: 35.4237318 | CH83: 24.99999131 | CI83: 16 | CJ83: 16 | CK83: 0 | CL83: 0 | CM83: 3 | CN83: 1.899999976 | CO83: 88.59999847 | CP83: 32.75 | CQ83: 22.06046863 | CR83: 23.57499886 | CS83: 1.921673775 | CT83: 17.04243469 | CU83: 0.2283333391 | CV83: 0.04884283245 | CW83: G | CX83: 0 | CY83: 44.20866964 | CZ83: 24.99967383 | DA83: 36 | DB83: 36 | DC83: 0 | DD83: 0 | DE83: 3 | DF83: 0.3000000119 | DG83: 152.8000031 | DH83: 60.85588455 | DI83: 43.5648874 | DJ83: 13.00833416 | DK83: 1.401484966 | DL83: 43.42243195 | DM83: 0.2349530607 | DN83: 0.0644595921 | DO83: G | DP83: 5.405405405 | DQ83: 80.77914067 | DR83: 25.00004337 | DS83: 36 | DT83: 36 | DU83: 2 | DV83: 5.405405405 | DW83: 3 | EO83: 3 | FG83: 3
A84: 4 | B84: 1.180175781 | C84: 282.3554688 | D84: 67.09610748 | E84: 51.23039354 | F84: 24.6114502 | G84: 1.632678986 | H84: 41.09571457 | I84: 0.2283333391 | J84: 0.06273072958 | K84: G | L84: 0 | M84: 28.67665873 | N84: 74.99996339 | O84: 36 | P84: 36 | Q84: 0 | R84: 0 | S84: 4 | T84: 29.97205544 | U84: 64.93359375 | V84: 45.23649597 | W84: 7.408060488 | X84: 50.36628723 | Y84: 38.5880661 | Z84: 1.172292352 | AA84: 0.2283333391 | AB84: 0.03281986713 | AC84: N | AD84: 0 | AE84: 50.23312012 | AF84: 25.00015753 | AG84: 36 | AH84: 36 | AI84: 0 | AJ84: 0 | AK84: 4 | AL84: 2.599999905 | AM84: 52 | AN84: 28.79999733 | AO84: 10.55551296 | AP84: 31.41666794 | AQ84: 4.594541073 | AR84: 6.268307686 | AS84: 0.2283333391 | AT84: 0.03968256712 | AU84: T | AV84: 0 | AW84: 36.05645592 | AX84: 24.99925712 | AY84: 36 | AZ84: 36 | BA84: 0 | BB84: 0 | BC84: 4 | BD84: 10 | BE84: 30.70000076 | BF84: 17.98333549 | BG84: 5.22939453 | BH84: 15.17500019 | BI84: 12.63807297 | BJ84: 1.422949195 | BK84: 0.2283333391 | BL84: 0.03663963079 | BM84: G | BN84: 0 | BO84: 14.3638228 | BP84: 75.00000362 | BQ84: 36 | BR84: 36 | BS84: 0 | BT84: 0 | BU84: 4 | BV84: 2.599999905 | BW84: 52 | BX84: 29.88749886 | BY84: 13.95511243 | BZ84: 37.18000031 | CA84: 2.49831152 | CB84: 11.96307945 | CC84: 0.3425000012 | CD84: 0.1392857432 | CE84: T | CF84: 0 | CG84: 38.47125102 | CH84: 25.00000716 | CI84: 16 | CJ84: 16 | CK84: 0 | CL84: 0 | CM84: 4 | CN84: 1.5 | CO84: 57.29999924 | CP84: 21.7694416 | CQ84: 13.97401251 | CR84: 15.45000076 | CS84: 2.049512148 | CT84: 10.621768 | CU84: 0.2283333391 | CV84: 0.04918605089 | CW84: G | CX84: 0 | CY84: 29.26036469 | CZ84: 24.99983189 | DA84: 36 | DB84: 36 | DC84: 0 | DD84: 0 | DE84: 4 | DF84: 1.200000048 | DG84: 218.1999969 | DH84: 40.14411926 | DI84: 41.51148332 | DJ84: 19.28333473 | DK84: 1.132173181 | DL84: 35.45757675 | DM84: 0.2349530607 | DN84: 0.03685677052 | DO84: G | DP84: 5.405405405 | DQ84: 53.46283867 | DR84: 25.00000552 | DS84: 36 | DT84: 36 | DU84: 2 | DV84: 5.405405405 | DW84: 4 | EO84: 4 | FG84: 4
A85: 5 | B85: 0.8210449219 | C85: 191.4082031 | D85: 66.44538879 | E85: 42.81302891 | F85: 48.46783447 | G85: 1.886100531 | H85: 35.22897339 | I85: 0.2283333391 | J85: 0.08717960119 | K85: G | L85: 0 | M85: 30.93810724 | N85: 75.00000109 | O85: 36 | P85: 36 | Q85: 0 | R85: 0 | S85: 5 | T85: 35.5585022 | U85: 55.15967178 | V85: 44.55805588 | W85: 5.254960759 | X85: 46.99251938 | Y85: 73.83693695 | Z85: 0.6034656763 | AA85: 0.2283333391 | AB85: 0.03480027616 | AC85: G | AD85: 0 | AE85: 47.93755238 | AF85: 24.99956517 | AG85: 36 | AH85: 36 | AI85: 0 | AJ85: 0 | AK85: 5 | AL85: 1.799999952 | AM85: 50.70000076 | AN85: 28.56110954 | AO85: 10.10200281 | AP85: 22.17500114 | AQ85: 5.182134628 | AR85: 5.51145649 | AS85: 0.2283333391 | AT85: 0.03687605262 | AU85: N | AV85: 0 | AW85: 35.37481051 | AX85: 24.99998865 | AY85: 36 | AZ85: 36 | BA85: 0 | BB85: 0 | BC85: 5 | BD85: 10 | BE85: 32 | BF85: 20.32222176 | BG85: 7.186420127 | BH85: 11.83333302 | BI85: 8.056019783 | BJ85: 2.522613287 | BK85: 0.2283333391 | BL85: 0.07511231303 | BM85: G | BN85: 0 | BO85: 15.14903436 | BP85: 75.0000055 | BQ85: 36 | BR85: 36 | BS85: 0 | BT85: 0 | BU85: 5 | BV85: 9.899999619 | BW85: 49.90000153 | BX85: 27.95624924 | BY85: 10.56364588 | BZ85: 21.89999962 | CA85: 6.932064533 | CB85: 4.032889366 | CC85: 0.3425000012 | CD85: 0.05323681235 | CE85: N | CF85: 0 | CG85: 35.08131578 | CH85: 25.00001303 | CI85: 16 | CJ85: 16 | CK85: 0 | CL85: 0 | CM85: 5 | CN85: 0.5 | CO85: 99.40000153 | CP85: 23.61944199 | CQ85: 20.04708356 | CR85: 25.22500038 | CS85: 1.376084924 | CT85: 17.16423225 | CU85: 0.2283333391 | CV85: 0.1098161042 | CW85: G | CX85: 0 | CY85: 32.47538956 | CZ85: 24.99998343 | DA85: 36 | DB85: 36 | DC85: 0 | DD85: 0 | DE85: 5 | DF85: 0.3000000119 | DG85: 148.1999969 | DH85: 41.1852951 | DI85: 35.40462437 | DJ85: 12.625 | DK85: 1.180679679 | DL85: 34.88270187 | DM85: 0.2349530607 | DN85: 0.04949450493 | DO85: G | DP85: 5.405405405 | DQ85: 54.83724824 | DR85: 25.00000143 | DS85: 36 | DT85: 36 | DU85: 2 | DV85: 5.405405405 | DW85: 5 | EO85: 5 | FG85: 5
A86: 6 | B86: 9.436790466 | C86: 162.0996094 | D86: 64.60308075 | E86: 40.00044708 | F86: 47.6024971 | G86: 2.404645205 | H86: 26.86595154 | I86: 0.2283333391 | J86: 0.02995598316 | K86: G | L86: 0 | M86: 33.96815276 | N86: 74.99998515 | O86: 36 | P86: 36 | Q86: 0 | R86: 0 | S86: 6 | T86: 36.18664169 | U86: 52.22859192 | V86: 43.93532562 | W86: 4.867548015 | X86: 48.21810532 | Y86: 82.08603668 | Z86: 0.5352350473 | AA86: 0.2283333391 | AB86: 0.08333344758 | AC86: U | AD86: 0 | AE86: 48.21810436 | AF86: 25 | AG86: 36 | AH86: 36 | AI86: 0 | AJ86: 0 | AK86: 6 | AL86: 7.300000191 | AM86: 40.59999847 | AN86: 23.01111221 | AO86: 7.550431387 | AP86: 21.17499924 | AQ86: 8.925234795 | AR86: 2.57820797 | AS86: 0.2283333391 | AT86: 0.03377938271 | AU86: G | AV86: 0 | AW86: 27.63621788 | AX86: 24.99945064 | AY86: 36 | AZ86: 36 | BA86: 0 | BB86: 0 | BC86: 6 | BD86: 11.5 | BE86: 138.1000061 | BF86: 58.31388855 | BG86: 33.95285356 | BH86: 22.04999924 | BI86: 2.767585039 | BJ86: 21.07031441 | BK86: 0.2283333391 | BL86: 0.05481359363 | BM86: G | BN86: 0 | BO86: 32.54463472 | BP86: 74.99991768 | BQ86: 36 | BR86: 36 | BS86: 0 | BT86: 0 | BU86: 6 | BV86: 7.300000191 | BW86: 34.09999847 | BX86: 23.25624847 | BY86: 7.144132124 | BZ86: 20.69999886 | CA86: 8.797828674 | CB86: 2.643407822 | CC86: 0.3425000012 | CD86: 0.06823801994 | CE86: N | CF86: 0 | CG86: 28.07498551 | CH86: 24.99958568 | CI86: 16 | CJ86: 16 | CK86: 0 | CL86: 0 | CM86: 6 | CN86: 0.400000006 | CO86: 66.19999695 | CP86: 25.12221527 | CQ86: 16.09108272 | CR86: 5.883333206 | CS86: 1.38883841 | CT86: 18.08865166 | CU86: 0.2283333391 | CV86: 0.05987890065 | CW86: N | CX86: 0 | CY86: 35.97548779 | CZ86: 24.99999575 | DA86: 36 | DB86: 36 | DC86: 0 | DD86: 0 | DE86: 6 | DF86: 0.200000003 | DG86: 141.6999969 | DH86: 42.77713776 | DI86: 35.26230358 | DJ86: 11.99166584 | DK86: 1.024979711 | DL86: 41.73461914 | DM86: 0.2315722704 | DN86: 0.07714489102 | DO86: E | DP86: 2.702702703 | DQ86: 58.12939479 | DR86: 25.00015217 | DS86: 36 | DT86: 36 | DU86: 1 | DV86: 2.702702703 | DW86: 6 | EO86: 6 | FG86: 6
A87: 7 | B87: 5.075073242 | C87: 347.3671875 | D87: 67.60095215 | E87: 65.16137195 | F87: 33.59941864 | G87: 1.348766923 | H87: 50.12055969 | I87: 0.2283333391 | J87: 0.02836865187 | K87: G | L87: 0 | M87: 25.30766566 | N87: 74.99999373 | O87: 36 | P87: 36 | Q87: 0 | R87: 0 | S87: 7 | T87: 26.72525215 | U87: 52.58976746 | V87: 42.98997116 | W87: 6.674553148 | X87: 50.43439102 | Y87: 39.40246201 | Z87: 1.091047883 | AA87: 0.2283333391 | AB87: 0.04292935133 | AC87: T | AD87: 0 | AE87: 48.17095947 | AF87: 25.00011031 | AG87: 36 | AH87: 36 | AI87: 0 | AJ87: 0 | AK87: 7 | AL87: 3.299999952 | AM87: 33 | AN87: 19.17777824 | AO87: 8.256499071 | AP87: 20.625 | AQ87: 4.108698845 | AR87: 4.66760397 | AS87: 0.2283333391 | AT87: 0.05731762946 | AU87: N | AV87: 0 | AW87: 24.74670123 | AX87: 25.00000387 | AY87: 36 | AZ87: 36 | BA87: 0 | BB87: 0 | BC87: 7 | BD87: 12.60000038 | BE87: 267.6000061 | BF87: 107.3222275 | BG87: 63.8291673 | BH87: 118.8499985 | BI87: 2.223446369 | BJ87: 48.26841354 | BK87: 0.2283333391 | BL87: 0.0421846509 | BM87: N | BN87: 0 | BO87: 64.27130622 | BP87: 74.99940364 | BQ87: 36 | BR87: 36 | BS87: 0 | BT87: 0 | BU87: 7 | BV87: 3.700000048 | BW87: 32.90000153 | BX87: 20.51249886 | BY87: 8.619116504 | BZ87: 29.98000145 | CA87: 4.02744627 | CB87: 5.093177319 | CC87: 0.3425000012 | CD87: 0.05910497904 | CE87: N | CF87: 0 | CG87: 26.32578681 | CH87: 25.00080295 | CI87: 16 | CJ87: 16 | CK87: 0 | CL87: 0 | CM87: 7 | CN87: 1.100000024 | CO87: 191.1000061 | CP87: 31.472229 | CQ87: 34.15090663 | CR87: 16.93333435 | CS87: 1.09276402 | CT87: 28.80057144 | CU87: 0.2283333391 | CV87: 0.06878566742 | CW87: G | CX87: 0 | CY87: 43.58419643 | CZ87: 24.99967328 | DA87: 36 | DB87: 36 | DC87: 0 | DD87: 0 | DE87: 7 | DF87: 0.6000000238 | DG87: 345.7000122 | DH87: 53.40302277 | DI87: 64.76318414 | DJ87: 29.35833549 | DK87: 0.8618276119 | DL87: 61.96485519 | DM87: 0.2384863943 | DN87: 0.03145563602 | DO87: G | DP87: 8.108108108 | DQ87: 69.09428157 | DR87: 25.00022388 | DS87: 36 | DT87: 36 | DU87: 3 | DV87: 8.108108108 | DW87: 7 | EO87: 7 | FG87: 7
A88: 8 | B88: 3.557228088 | C88: 136.6442871 | D88: 61.24184799 | E88: 35.71959925 | F88: 103.3725281 | G88: 2.330000162 | H88: 26.2840538 | I88: 0.2283333391 | J88: 0.08948618174 | K88: G | L88: 0 | M88: 31.74130557 | N88: 74.99999662 | O88: 36 | P88: 36 | Q88: 0 | R88: 0 | S88: 8 | T88: 28.98167992 | U88: 47.97786331 | V88: 40.02109146 | W88: 4.545420201 | X88: 36.89675522 | Y88: 78.19961548 | Z88: 0.5117811561 | AA88: 0.2283333391 | AB88: 0.04447305202 | AC88: N | AD88: 0 | AE88: 43.08687266 | AF88: 25.00040645 | AG88: 36 | AH88: 36 | AI88: 0 | AJ88: 0 | AK88: 8 | AL88: 6 | AM88: 27.5 | AN88: 14.4972229 | AO88: 5.85239819 | AP88: 11.375 | AQ88: 6.680134773 | AR88: 2.170199156 | AS88: 0.2283333391 | AT88: 0.04873085022 | AU88: G | AV88: 0 | AW88: 17.78770862 | AX88: 25.00000841 | AY88: 36 | AZ88: 36 | BA88: 0 | BB88: 0 | BC88: 8 | BD88: 15.80000019 | BE88: 212 | BF88: 113.9499893 | BG88: 62.26748154 | BH88: 195.6500092 | BI88: 2.524541616 | BJ88: 45.13690186 | BK88: 0.2283333391 | BL88: 0.02777779102 | BM88: U | BN88: 0 | BO88: 64.85000014 | BP88: 75 | BQ88: 36 | BR88: 36 | BS88: 0 | BT88: 0 | BU88: 8 | BV88: 7.699999809 | BW88: 27.5 | BX88: 15.20000076 | BY88: 6.132970801 | BZ88: 9.680000305 | CA88: 6.98692894 | CB88: 2.175490856 | CC88: 0.3425000012 | CD88: 0.08111253381 | CE88: G | CF88: 0 | CG88: 18.58663269 | CH88: 25.00040921 | CI88: 16 | CJ88: 16 | CK88: 0 | CL88: 0 | CM88: 8 | CN88: 1.299999952 | CO88: 81.69999695 | CP88: 26.87222099 | CQ88: 18.14509174 | CR88: 21.39999962 | CS88: 1.804752111 | CT88: 14.88970184 | CU88: 0.2283333391 | CV88: 0.09483017027 | CW88: G | CX88: 0 | CY88: 36.41875715 | CZ88: 25.00046078 | DA88: 36 | DB88: 36 | DC88: 0 | DD88: 0 | DE88: 8 | DF88: 0.6999999881 | DG88: 140.3000031 | DH88: 48.06471634 | DI88: 35.92198374 | DJ88: 12.33333302 | DK88: 1.254659414 | DL88: 38.30897522 | DM88: 0.2349530607 | DN88: 0.1233084798 | DO88: E | DP88: 5.405405405 | DQ88: 63.95961576 | DR88: 25.00066595 | DS88: 36 | DT88: 36 | DU88: 2 | DV88: 5.405405405 | DW88: 8 | EO88: 8 | FG88: 8
A89: 9 | B89: 0.02838134766 | C89: 106.7750244 | D89: 43.3709259 | E89: 30.3365089 | F89: 62.29725647 | G89: 1.232482195 | H89: 35.18989944 | I89: 0.2283333391 | J89: 0.06555429101 | K89: N | L89: 0 | M89: 22.909261 | N89: 75.00000062 | O89: 36 | P89: 36 | Q89: 0 | R89: 0 | S89: 9 | T89: 25.58445358 | U89: 48.34742355 | V89: 39.404953 | W89: 4.520145042 | X89: 38.862854 | Y89: 74.42073059 | Z89: 0.5294889212 | AA89: 0.2283333391 | AB89: 0.06445968151 | AC89: G | AD89: 0 | AE89: 42.38228906 | AF89: 24.99966494 | AG89: 36 | AH89: 36 | AI89: 0 | AJ89: 0 | AK89: 9 | AL89: 0.8999999762 | AM89: 26.10000038 | AN89: 12.26388931 | AO89: 4.76128172 | AP89: 11.40000057 | AQ89: 4.621231556 | AR89: 2.653814077 | AS89: 0.2283333391 | AT89: 0.06104511023 | AU89: N | AV89: 0 | AW89: 15.47532492 | AX89: 25.00000071 | AY89: 36 | AZ89: 36 | BA89: 0 | BB89: 0 | BC89: 9 | BD89: 16.5 | BE89: 227 | BF89: 106.4833374 | BG89: 56.53157174 | BH89: 104.2083282 | BI89: 2.885070324 | BJ89: 36.90840149 | BK89: 0.2283333391 | BL89: 0.07660970092 | BM89: N | BN89: 0 | BO89: 68.35337657 | BP89: 74.99999726 | BQ89: 36 | BR89: 36 | BS89: 0 | BT89: 0 | BU89: 9 | BV89: 8.800000191 | BW89: 25.89999962 | BX89: 14.59375095 | BY89: 3.881145649 | BZ89: 13.93000031 | CA89: 17.65482712 | CB89: 0.8266153336 | CC89: 0.3425000012 | CD89: 0.1044642925 | CE89: G | CF89: 0 | CG89: 16.76268672 | CH89: 25.000657 | CI89: 16 | CJ89: 16 | CK89: 0 | CL89: 0 | CM89: 9 | CN89: 0.8999999762 | CO89: 58.70000076 | CP89: 22.8257122 | CQ89: 16.12656318 | CR89: 15.34999943 | CS89: 1.364806414 | CT89: 16.72450447 | CU89: 0.2315722704 | CV89: 0.07140928507 | CW89: G | CX89: 2.702702703 | CY89: 30.86554553 | CZ89: 24.99943457 | DA89: 36 | DB89: 36 | DC89: 1 | DD89: 2.702702703 | DE89: 9 | DF89: 1.799999952 | DG89: 87.69999695 | DH89: 40.60344696 | DI89: 26.55752021 | DJ89: 10.39000034 | DK89: 1.801262975 | DL89: 22.54165459 | DM89: 0.2544026077 | DN89: 0.09168165922 | DO89: G | DP89: 18.91891892 | DQ89: 48.76179225 | DR89: 25.00000423 | DS89: 36 | DT89: 36 | DU89: 7 | DV89: 18.91891892 | DW89: 9 | EO89: 9 | FG89: 9
A90: 10 | B90: 0.1173095703 | C90: 107.9223328 | D90: 32.31817245 | E90: 29.81047515 | F90: 9.101061821 | G90: 0.9148008227 | H90: 35.3280983 | I90: 0.2283333391 | J90: 0.05007261038 | K90: E | L90: 0 | M90: 9.297382029 | N90: 74.99994616 | O90: 36 | P90: 36 | Q90: 0 | R90: 0 | S90: 10 | T90: 30.90793991 | U90: 46.73262024 | V90: 39.0263176 | W90: 4.415460146 | X90: 40.13900375 | Y90: 78.81539917 | Z90: 0.4951610863 | AA90: 0.2283333391 | AB90: 0.03785330057 | AC90: N | AD90: 0 | AE90: 42.00445632 | AF90: 25.00031584 | AG90: 36 | AH90: 36 | AI90: 0 | AJ90: 0 | AK90: 10 | AL90: 1 | AM90: 19.60000038 | AN90: 9.341668129 | AO90: 4.411697159 | AP90: 11.85000038 | AQ90: 3.275271654 | AR90: 2.852181196 | AS90: 0.2283333391 | AT90: 0.05747906864 | AU90: N | AV90: 0 | AW90: 12.31731422 | AX90: 24.99998865 | AY90: 36 | AZ90: 36 | BA90: 0 | BB90: 0 | BC90: 10 | BD90: 9.100000381 | BE90: 239.3000031 | BF90: 95.84999847 | BG90: 58.98343749 | BH90: 28.28333473 | BI90: 2.106848478 | BJ90: 45.49449158 | BK90: 0.2283333391 | BL90: 0.08838385344 | BM90: T | BN90: 0 | BO90: 48.42824794 | BP90: 74.99999731 | BQ90: 36 | BR90: 36 | BS90: 0 | BT90: 0 | BU90: 10 | BV90: 1 | BW90: 18.60000038 | BX90: 8.743750572 | BY90: 3.973070811 | BZ90: 9.800000191 | CA90: 3.648010492 | CB90: 2.396854639 | CC90: 0.3425000012 | CD90: 0.07157677412 | CE90: N | CF90: 0 | CG90: 11.42356009 | CH90: 24.99988821 | CI90: 16 | CJ90: 16 | CK90: 0 | CL90: 0 | CM90: 10 | CN90: 0.8000000119 | CO90: 46.90000153 | CP90: 16.48611259 | CQ90: 13.82819341 | CR90: 4.641666889 | CS90: 1.109657168 | CT90: 14.85694218 | CU90: 0.2283333391 | CV90: 0.05239272118 | CW90: G | CX90: 0 | CY90: 22.82397775 | CZ90: 24.99991315 | DA90: 36 | DB90: 36 | DC90: 0 | DD90: 0 | DE90: 10 | DF90: 0.1000000015 | DG90: 98.30000305 | DH90: 28.06666946 | DI90: 27.32372146 | DJ90: 9.92000103 | DK90: 0.6741387844 | DL90: 41.63336945 | DM90: 0.2501266301 | DN90: 0.06171041727 | DO90: E | DP90: 16.21621622 | DQ90: 33.94317181 | DR90: 24.99967764 | DS90: 36 | DT90: 36 | DU90: 6 | DV90: 16.21621622 | DW90: 10 | EO90: 10 | FG90: 10
A91: 11 | B91: 0.197265625 | C91: 124.6306152 | D91: 35.71873474 | E91: 27.95951205 | F91: 10.56671143 | G91: 1.063326359 | H91: 33.59150696 | I91: 0.2349530607 | J91: 0.07001847029 | K91: N | L91: 5.405405405 | M91: 12.8932774 | N91: 75.00001146 | O91: 36 | P91: 36 | Q91: 2 | R91: 5.405405405 | S91: 11 | T91: 29.19150734 | U91: 44.45891953 | V91: 37.03045273 | W91: 3.79698878 | X91: 35.55292892 | Y91: 97.6080246 | Z91: 0.3793791831 | AA91: 0.2283333391 | AB91: 0.06302732229 | AC91: N | AD91: 0 | AE91: 39.591463 | AF91: 25.00016518 | AG91: 36 | AH91: 36 | AI91: 0 | AJ91: 0 | AK91: 11 | AL91: 0.200000003 | AM91: 21 | AN91: 7.213889122 | AO91: 4.257910603 | AP91: 5.400000095 | AQ91: 2.185827494 | AR91: 3.300301313 | AS91: 0.2283333391 | AT91: 0.04611414671 | AU91: N | AV91: 0 | AW91: 10.08580502 | AX91: 25.00000865 | AY91: 36 | AZ91: 36 | BA91: 0 | BB91: 0 | BC91: 11 | BD91: 10 | BE91: 194.6000061 | BF91: 100.0722351 | BG91: 58.6779832 | BH91: 25.38333511 | BI91: 2.132999182 | BJ91: 46.91621017 | BK91: 0.2283333391 | BL91: 0.08333331347 | BM91: U | BN91: 0 | BO91: 56.15000153 | BP91: 75 | BQ91: 36 | BR91: 36 | BS91: 0 | BT91: 0 | BU91: 11 | BV91: 1 | BW91: 15.10000038 | BX91: 7.843750477 | BY91: 3.599809 | BZ91: 5.230000496 | CA91: 3.762727261 | CB91: 2.084591866 | CC91: 0.3425000012 | CD91: 0.08220624924 | CE91: G | CF91: 0 | CG91: 10.06826905 | CH91: 25.00000457 | CI91: 16 | CJ91: 16 | CK91: 0 | CL91: 0 | CM91: 11 | CN91: 0.200000003 | CO91: 51.20000076 | CP91: 18.63142967 | CQ91: 13.8596073 | CR91: 4.449999809 | CS91: 1.124186397 | CT91: 16.57325745 | CU91: 0.2315722704 | CV91: 0.1004329175 | CW91: T | CX91: 2.702702703 | CY91: 26.44883375 | CZ91: 25.00001858 | DA91: 36 | DB91: 36 | DC91: 1 | DD91: 2.702702703 | DE91: 11 | DF91: 0.1000000015 | DG91: 93.30000305 | DH91: 31.29310226 | DI91: 23.95344988 | DJ91: 9.42000103 | DK91: 1.086534262 | DL91: 28.80084229 | DM91: 0.2544026077 | DN91: 0.07439398766 | DO91: G | DP91: 18.91891892 | DQ91: 37.0447133 | DR91: 24.99999683 | DS91: 36 | DT91: 36 | DU91: 7 | DV91: 18.91891892 | DW91: 11 | EO91: 11 | FG91: 11
A92: 12 | B92: 0.02659606934 | C92: 69.30029297 | D92: 17.85258293 | E92: 18.30064243 | F92: 5.799404144 | G92: 0.708221972 | H92: 25.20760918 | I92: 0.2421840727 | J92: 0.08026576042 | K92: E | L92: 10.81081081 | M92: 3.093347264 | N92: 75.00000214 | O92: 36 | P92: 36 | Q92: 4 | R92: 10.81081081 | S92: 12 | T92: 28.30136871 | U92: 41.52390289 | V92: 35.69165039 | W92: 3.170562924 | X92: 38.21826935 | Y92: 125.1310577 | Z92: 0.2852341533 | AA92: 0.2283333391 | AB92: 0.04124379158 | AC92: N | AD92: 0 | AE92: 37.83020777 | AF92: 24.99954713 | AG92: 36 | AH92: 36 | AI92: 0 | AJ92: 0 | AK92: 12 | AL92: 0.8000000119 | AM92: 14.30000019 | AN92: 6.394444466 | AO92: 4.013330895 | AP92: 1.924999952 | AQ92: 1.99109292 | AR92: 3.211524963 | AS92: 0.2283333391 | AT92: 0.06903895736 | AU92: N | AV92: 0 | AW92: 9.101364515 | AX92: 25.00024153 | AY92: 36 | AZ92: 36 | BA92: 0 | BB92: 0 | BC92: 12 | BD92: 10.19999981 | BE92: 182.6999969 | BF92: 88.2638855 | BG92: 45.35192789 | BH92: 82.07499695 | BI92: 2.523309708 | BJ92: 34.97941208 | BK92: 0.2283333391 | BL92: 0.07597052306 | BM92: N | BN92: 0 | BO92: 57.67469527 | BP92: 74.99984565 | BQ92: 36 | BR92: 36 | BS92: 0 | BT92: 0 | BU92: 12 | BV92: 0.8999999762 | BW92: 12.5 | BX92: 6.812500477 | BY92: 4.186625375 | BZ92: 11.34000015 | CA92: 1.829789162 | CB92: 3.723106861 | CC92: 0.3425000012 | CD92: 0.1573972106 | CE92: N | CF92: 0 | CG92: 9.636333644 | CH92: 25.00002077 | CI92: 16 | CJ92: 16 | CK92: 0 | CL92: 0 | CM92: 12 | CN92: 0.1000000015 | CO92: 33.09999847 | CP92: 11.81666851 | CQ92: 10.44882812 | CR92: 2.849999666 | CS92: 0.9838230014 | CT92: 12.01097012 | CU92: 0.2283333391 | CV92: 0.07335561514 | CW92: E | CX92: 0 | CY92: 16.38166301 | CZ92: 24.99940322 | DA92: 36 | DB92: 36 | DC92: 0 | DD92: 0 | DE92: 12 | DF92: 0.5 | DG92: 53 | DH92: 17.61200142 | DI92: 15.28769515 | DJ92: 5.75 | DK92: 1.169289708 | DL92: 15.06213665 | DM92: 0.273999989 | DN92: 0.04115402699 | DO92: G | DP92: 29.72972973 | DQ92: 18.59200553 | DR92: 24.99998744 | DS92: 36 | DT92: 36 | DU92: 11 | DV92: 29.72972973 | DW92: 12 | EO92: 12 | FG92: 12
A93: 13 | B93: 0.001448631287 | C93: 55.49346924 | D93: 15.15942955 | E93: 14.17574142 | F93: 4.62578392 | G93: 0.4771070778 | H93: 31.77364159 | I93: 0.2421840727 | J93: 0.04963129759 | K93: E | L93: 10.81081081 | M93: 2.626694864 | N93: 75.00002765 | O93: 36 | P93: 36 | Q93: 4 | R93: 10.81081081 | S93: 13 | T93: 26.95715332 | U93: 39.63661957 | V93: 32.33138275 | W93: 3.172075087 | X93: 32.24026489 | Y93: 107.1988983 | Z93: 0.3016018271 | AA93: 0.2283333391 | AB93: 0.05604451895 | AC93: N | AD93: 0 | AE93: 34.47084365 | AF93: 25.00071362 | AG93: 36 | AH93: 36 | AI93: 0 | AJ93: 0 | AK93: 13 | AL93: 0.1000000015 | AM93: 11 | AN93: 3.942424536 | AO93: 2.817693027 | AP93: 4.641666889 | AQ93: 1.462968707 | AR93: 2.694811344 | AS93: 0.2384863943 | AT93: 0.07069861889 | AU93: N | AV93: 8.108108108 | AW93: 5.651644741 | AX93: 24.99986029 | AY93: 36 | AZ93: 36 | BA93: 3 | BB93: 8.108108108 | BC93: 13 | BD93: 1 | BE93: 174.6000061 | BF93: 90.1222229 | BG93: 51.76537975 | BH93: 160.1333313 | BI93: 1.727602243 | BJ93: 52.16607285 | BK93: 0.2283333391 | BL93: 0.02777779102 | BM93: U | BN93: 0 | BO93: 44.40000153 | BP93: 75 | BQ93: 36 | BR93: 36 | BS93: 0 | BT93: 0 | BU93: 13 | BV93: 0.1000000015 | BW93: 10.39999962 | BX93: 3.678571463 | BY93: 2.538072692 | BZ93: 3.189999819 | CA93: 1.662865281 | CB93: 2.212188482 | CC93: 0.340793103 | CD93: 0.05442649126 | CE93: N | CF93: 11.76470588 | CG93: 5.132808308 | CH93: 24.99995814 | CI93: 16 | CJ93: 16 | CK93: 2 | CL93: 11.76470588 | CM93: 13 | CN93: 0.1000000015 | CO93: 25.29999924 | CP93: 9.612119675 | CQ93: 8.45963712 | CR93: 2.199999809 | CS93: 0.7238816023 | CT93: 13.27857971 | CU93: 0.2384863943 | CV93: 0.1196453571 | CW93: E | CX93: 8.108108108 | CY93: 12.51241334 | CZ93: 25.00009943 | DA93: 36 | DB93: 36 | DC93: 3 | DD93: 8.108108108 | DE93: 13 | DF93: 0.1000000015 | DG93: 42.29999924 | DH93: 14.63333416 | DI93: 12.3365374 | DJ93: 4.319999695 | DK93: 0.884070456 | DL93: 16.55222702 | DM93: 0.2796500921 | DN93: 0.08055955172 | DO93: E | DP93: 32.43243243 | DQ93: 14.54931503 | DR93: 24.99984748 | DS93: 36 | DT93: 36 | DU93: 12 | DV93: 32.43243243 | DW93: 13 | EO93: 13 | FG93: 13
A94: 14 | B94: 0.02719116211 | C94: 74.10687256 | D94: 16.27781677 | E94: 20.31365006 | F94: 6.200498104 | G94: 0.5687689185 | H94: 28.61938477 | I94: 0.2421840727 | J94: 0.03001403809 | K94: G | L94: 10.81081081 | M94: 0.9406122353 | N94: 75.00004518 | O94: 36 | P94: 36 | Q94: 4 | R94: 10.81081081 | S94: 14 | T94: 24.17805672 | U94: 37.77945328 | V94: 29.8488636 | W94: 3.316899096 | X94: 29.84530449 | Y94: 84.95388794 | Z94: 0.3513537049 | AA94: 0.2283333391 | AB94: 0.03590855002 | AC94: N | AD94: 0 | AE94: 32.08603115 | AF94: 25.00044926 | AG94: 36 | AH94: 36 | AI94: 0 | AJ94: 0 | AK94: 14 | AL94: 0.200000003 | AM94: 11.69999981 | AN94: 3.769696951 | AO94: 2.780117361 | AP94: 3.075000048 | AQ94: 1.78863883 | AR94: 2.107578516 | AS94: 0.2384863943 | AT94: 0.03292614222 | AU94: G | AV94: 8.108108108 | AW94: 4.877998055 | AX94: 25.00023415 | AY94: 36 | AZ94: 36 | BA94: 3 | BB94: 8.108108108 | BC94: 14 | BD94: 10 | BE94: 191.1999969 | BF94: 90.95277405 | BG94: 46.4022252 | BH94: 115.6999969 | BI94: 2.726353645 | BJ94: 33.36059189 | BK94: 0.2283333391 | BL94: 0.06027391553 | BM94: N | BN94: 0 | BO94: 59.65499058 | BP94: 74.99997136 | BQ94: 36 | BR94: 36 | BS94: 0 | BT94: 0 | BU94: 14 | BV94: 0.5 | BW94: 9.800000191 | BX94: 4.018750191 | BY94: 2.550089767 | BZ94: 3.289999962 | CA94: 2.129469872 | CB94: 1.887206912 | CC94: 0.3425000012 | CD94: 0.06748318672 | CE94: G | CF94: 0 | CG94: 5.387394406 | CH94: 25.00007207 | CI94: 16 | CJ94: 16 | CK94: 0 | CL94: 0 | CM94: 14 | CN94: 0.3000000119 | CO94: 53.59999847 | CP94: 9.364516258 | CQ94: 11.91085062 | CR94: 5.630000114 | CS94: 0.7592294216 | CT94: 12.33423805 | CU94: 0.2460592687 | CV94: 0.02237445116 | CW94: G | CX94: 13.51351351 | CY94: 11.3624687 | CZ94: 24.9997618 | DA94: 36 | DB94: 36 | DC94: 5 | DD94: 13.51351351 | DE94: 14 | DF94: 0.1000000015 | DG94: 72.19999695 | DH94: 18.42499924 | DI94: 21.71346608 | DJ94: 7.309999466 | DK94: 0.6123462319 | DL94: 30.08918571 | DM94: 0.3063413203 | DN94: 0.04203921556 | DO94: E | DP94: 43.24324324 | DQ94: 15.10596646 | DR94: 25.00090896 | DS94: 36 | DT94: 36 | DU94: 16 | DV94: 43.24324324 | DW94: 14 | EO94: 14 | FG94: 14
A95: 15 | B95: 0.144317627 | C95: 107.8887939 | D95: 26.00725555 | E95: 26.73181333 | F95: 10.91876507 | G95: 0.7821154594 | H95: 33.25244904 | I95: 0.2501266301 | J95: 0.0294803977 | K95: G | L95: 16.21621622 | M95: 1.737410125 | N95: 75.00009718 | O95: 36 | P95: 36 | Q95: 6 | R95: 16.21621622 | S95: 15 | T95: 20.48131943 | U95: 33.62626648 | V95: 27.71153641 | W95: 3.447369089 | X95: 28.14920425 | Y95: 64.81655121 | Z95: 0.4275379777 | AA95: 0.2283333391 | AB95: 0.05389934778 | AC95: G | AD95: 0 | AE95: 29.94911292 | AF95: 24.99964212 | AG95: 36 | AH95: 36 | AI95: 0 | AJ95: 0 | AK95: 15 | AL95: 1.299999952 | AM95: 8.899999619 | AN95: 3.766666651 | AO95: 2.086813639 | AP95: 3.199999809 | AQ95: 3.596790552 | AR95: 1.047229886 | AS95: 0.2384863943 | AT95: 0.0778542161 | AU95: G | AV95: 8.108108108 | AW95: 4.693470907 | AX95: 24.99999549 | AY95: 36 | AZ95: 36 | BA95: 3 | BB95: 8.108108108 | BC95: 15 | BD95: 16.60000038 | BE95: 195.6000061 | BF95: 97.7555542 | BG95: 47.71220588 | BH95: 121.0166702 | BI95: 3.289886236 | BJ95: 29.71396255 | BK95: 0.2283333391 | BL95: 0.06422570348 | BM95: N | BN95: 0 | BO95: 65.57422766 | BP95: 74.99995519 | BQ95: 36 | BR95: 36 | BS95: 0 | BT95: 0 | BU95: 15 | BV95: 1.299999952 | BW95: 6.199999809 | BX95: 3.130769253 | BY95: 1.529370614 | BZ95: 1.789999962 | CA95: 4.36647892 | CB95: 0.7170009017 | CC95: 0.3584900796 | CD95: 0.1351821125 | CE95: G | CF95: 17.64705882 | CG95: 3.694974043 | CH95: 24.99999419 | CI95: 16 | CJ95: 16 | CK95: 3 | CL95: 17.64705882 | CM95: 15 | CN95: 0.8000000119 | CO95: 53.40000153 | CP95: 14.23636341 | CQ95: 14.15575955 | CR95: 5.183333874 | CS95: 1.00845027 | CT95: 14.1170702 | CU95: 0.2384863943 | CV95: 0.04323810339 | CW95: E | CX95: 8.108108108 | CY95: 18.53174326 | CZ95: 25.00045194 | DA95: 36 | DB95: 36 | DC95: 3 | DD95: 8.108108108 | DE95: 15 | DF95: 1.700000048 | DG95: 98.80000305 | DH95: 24.41110992 | DI95: 26.16642317 | DJ95: 11.40999985 | DK95: 0.9783034921 | DL95: 24.95249176 | DM95: 0.2636566162 | DN95: 0.03430551291 | DO95: G | DP95: 24.32432432 | DQ95: 26.96738916 | DR95: 24.99997435 | DS95: 36 | DT95: 36 | DU95: 9 | DV95: 24.32432432 | DW95: 15 | EO95: 15 | FG95: 15
A96: 16 | B96: 0.001216888428 | C96: 72.82208252 | D96: 17.16218948 | E96: 20.7815672 | F96: 7.283303261 | G96: 0.3884341121 | H96: 44.18301392 | I96: 0.2460592687 | J96: 0.06852126122 | K96: G | L96: 13.51351351 | M96: 0.180496437 | N96: 75.00032378 | O96: 36 | P96: 36 | Q96: 5 | R96: 13.51351351 | S96: 16 | T96: 17.36867523 | U96: 32.02551651 | V96: 26.96464729 | W96: 3.059386403 | X96: 28.36130714 | Y96: 73.35205841 | Z96: 0.367605865 | AA96: 0.2283333391 | AB96: 0.04246294498 | AC96: N | AD96: 0 | AE96: 29.02820537 | AF96: 24.99965407 | AG96: 36 | AH96: 36 | AI96: 0 | AJ96: 0 | AK96: 16 | AL96: 0.5 | AM96: 7.900000095 | AN96: 3.143749714 | AO96: 2.135557316 | AP96: 1.116666675 | AQ96: 2.199195862 | AR96: 1.429499626 | AS96: 0.2421840727 | AT96: 0.06190025806 | AU96: G | AV96: 10.81081081 | AW96: 3.968900698 | AX96: 24.99918854 | AY96: 36 | AZ96: 36 | BA96: 4 | BB96: 10.81081081 | BC96: 16 | BD96: 10 | BE96: 181.8999939 | BF96: 92.73887634 | BG96: 48.5416622 | BH96: 81.625 | BI96: 2.487798214 | BJ96: 37.27749252 | BK96: 0.2283333391 | BL96: 0.05034336448 | BM96: N | BN96: 0 | BO96: 59.99803437 | BP96: 74.99999238 | BQ96: 36 | BR96: 36 | BS96: 0 | BT96: 0 | BU96: 16 | BV96: 0.5 | BW96: 8 | BX96: 3.384615421 | BY96: 2.545861259 | BZ96: 1.25 | CA96: 1.718160748 | CB96: 1.969906092 | CC96: 0.3584900796 | CD96: 0.06031554937 | CE96: G | CF96: 17.64705882 | CG96: 4.104796867 | CH96: 24.999632 | CI96: 16 | CJ96: 16 | CK96: 3 | CL96: 17.64705882 | CM96: 16 | CN96: 0.3000000119 | CO96: 45.20000076 | CP96: 11.07096672 | CQ96: 10.99921796 | CR96: 4.790000439 | CS96: 0.7959833145 | CT96: 13.90854073 | CU96: 0.2460592687 | CV96: 0.07167845964 | CW96: E | CX96: 13.51351351 | CY96: 13.74031135 | CZ96: 25.00000494 | DA96: 36 | DB96: 36 | DC96: 5 | DD96: 13.51351351 | DE96: 16 | DF96: 0.5 | DG96: 63.90000153 | DH96: 23.98420906 | DI96: 19.52093634 | DJ96: 19.52000046 | DK96: 1.046210527 | DL96: 22.92484093 | DM96: 0.3142995536 | DN96: 0.09252870083 | DO96: N | DP96: 45.94594595 | DQ96: 25.82105794 | DR96: 25.00088159 | DS96: 36 | DT96: 36 | DU96: 17 | DV96: 45.94594595 | DW96: 16 | EO96: 16 | FG96: 16
A97: 17 | B97: 0.001216888428 | C97: 67.90924072 | D97: 8.445971489 | E97: 14.53974938 | F97: 6.792019367 | G97: 0.3532432616 | H97: 23.90978813 | I97: 0.2686791122 | J97: 0.01874399185 | K97: G | L97: 27.02702703 | M97: 0 | N97: 72.97297297 | O97: 36 | P97: 36 | Q97: 10 | R97: 27.02702703 | S97: 17 | T97: 21.28335381 | U97: 33.88671875 | V97: 27.44275856 | W97: 3.105805615 | X97: 28.63531685 | Y97: 80.10573578 | Z97: 0.3425816894 | AA97: 0.2283333391 | AB97: 0.03695493937 | AC97: G | AD97: 0 | AE97: 29.44403137 | AF97: 24.99951771 | AG97: 36 | AH97: 36 | AI97: 0 | AJ97: 0 | AK97: 17 | AL97: 0.1000000015 | AM97: 7.800000191 | AN97: 2.266666412 | AO97: 2.017992153 | AP97: 0.7416667342 | AQ97: 1.256090045 | AR97: 1.804541349 | AS97: 0.2384863943 | AT97: 0.03553277254 | AU97: G | AV97: 8.108108108 | AW97: 2.957408368 | AX97: 24.99997858 | AY97: 36 | AZ97: 36 | BA97: 3 | BB97: 8.108108108 | BC97: 17 | BD97: 10 | BE97: 151 | BF97: 83.6194458 | BG97: 44.68697142 | BH97: 115.75 | BI97: 2.507818699 | BJ97: 33.34349823 | BK97: 0.2283333391 | BL97: 0.08333337307 | BM97: U | BN97: 0 | BO97: 45.25 | BP97: 75 | BQ97: 36 | BR97: 36 | BS97: 0 | BT97: 0 | BU97: 17 | BV97: 0.1000000015 | BW97: 7.800000191 | BX97: 2.700000286 | BY97: 2.465765489 | BZ97: 0.8700000644 | CA97: 1.110019803 | CB97: 2.432389259 | CC97: 0.340793103 | CD97: 0.06882852316 | CE97: E | CF97: 11.76470588 | CG97: 3.405055628 | CH97: 24.99999094 | CI97: 16 | CJ97: 16 | CK97: 2 | CL97: 11.76470588 | CM97: 17 | CN97: 0.1000000015 | CO97: 33.5 | CP97: 5.074193001 | CQ97: 7.115240541 | CR97: 3.439999819 | CS97: 0.7117156386 | CT97: 7.1295228 | CU97: 0.2460592687 | CV97: 0.02060055733 | CW97: G | CX97: 13.51351351 | CY97: 6.10754147 | CZ97: 24.9999964 | DA97: 36 | DB97: 36 | DC97: 5 | DD97: 13.51351351 | DE97: 17 | DF97: 2.099999905 | DG97: 60.09999847 | DH97: 13.77500057 | DI97: 15.78360083 | DJ97: 7.899999619 | DK97: 1.306926489 | DL97: 10.53999615 | DM97: 0.3776043057 | DN97: 0.1178794503 | DO97: E | DP97: 64.86486486 | DQ97: 4.687989633 | DR97: 24.99999735 | DS97: 36 | DT97: 36 | DU97: 24 | DV97: 64.86486486 | DW97: 17 | EO97: 17 | FG97: 17
A98: 18 | B98: 0.0006084442139 | C98: 81.09765625 | D98: 13.72699738 | E98: 20.99557303 | F98: 8.110313416 | G98: 0.3772188127 | H98: 36.39001083 | I98: 0.2856647372 | J98: 0.06012886763 | K98: G | L98: 35.13513514 | M98: 0 | N98: 64.86486486 | O98: 36 | P98: 36 | Q98: 13 | R98: 35.13513514 | S98: 18 | T98: 21.70729065 | U98: 34.32137299 | V98: 27.49280357 | W98: 3.061255689 | X98: 26.96315765 | Y98: 84.30789185 | Z98: 0.3260999918 | AA98: 0.2283333391 | AB98: 0.02820044756 | AC98: G | AD98: 0 | AE98: 29.44888286 | AF98: 24.99948147 | AG98: 36 | AH98: 36 | AI98: 0 | AJ98: 0 | AK98: 18 | AL98: 0.3000000119 | AM98: 8.899999619 | AN98: 2.967742205 | AO98: 2.358585352 | AP98: 1.159999967 | AQ98: 1.440438271 | AR98: 2.060305119 | AS98: 0.2460592687 | AT98: 0.06186068058 | AU98: E | AV98: 13.51351351 | AW98: 3.683303874 | AX98: 24.99998005 | AY98: 36 | AZ98: 36 | BA98: 5 | BB98: 13.51351351 | BC98: 18 | BD98: 14 | BE98: 144.6000061 | BF98: 80.67778778 | BG98: 44.17792534 | BH98: 133.7166748 | BI98: 2.607352972 | BJ98: 30.94241142 | BK98: 0.2283333391 | BL98: 0.08333337307 | BM98: U | BN98: 0 | BO98: 46.65000153 | BP98: 75 | BQ98: 36 | BR98: 36 | BS98: 0 | BT98: 0 | BU98: 18 | BV98: 0.3000000119 | BW98: 8.899999619 | BX98: 3.446153879 | BY98: 3.137306548 | BZ98: 1.159999967 | CA98: 1.057983518 | CB98: 3.257285118 | CC98: 0.3584900796 | CD98: 0.113707304 | CE98: E | CF98: 17.64705882 | CG98: 4.108296227 | CH98: 24.9999707 | CI98: 16 | CJ98: 16 | CK98: 3 | CL98: 17.64705882 | CM98: 18 | CN98: 0.1000000015 | CO98: 48 | CP98: 7.003332615 | CQ98: 10.36284725 | CR98: 4.889999866 | CS98: 0.6352922916 | CT98: 11.02379608 | CU98: 0.2501266301 | CV98: 0.04587739706 | CW98: G | CX98: 16.21621622 | CY98: 8.013730788 | CZ98: 25.00005753 | DA98: 36 | DB98: 36 | DC98: 6 | DD98: 16.21621622 | DE98: 18 | DF98: 0.5 | DG98: 78.40000153 | DH98: 18.8538475 | DI98: 23.23211179 | DJ98: 8.289999962 | DK98: 0.7275181413 | DL98: 25.91529465 | DM98: 0.3584900796 | DN98: 0.03697025776 | DO98: G | DP98: 62.16216216 | DQ98: 5.895611605 | DR98: 25.00009723 | DS98: 36 | DT98: 36 | DU98: 23 | DV98: 62.16216216 | DW98: 18 | EO98: 18 | FG98: 18
A99: 19 | B99: 0.003200531006 | C99: 53.77629852 | D99: 6.442120552 | E99: 12.14368438 | F99: 5.38051033 | G99: 0.3817337155 | H99: 16.87595367 | I99: 0.3142995536 | J99: 0.1396858692 | K99: G | L99: 45.94594595 | M99: 0 | N99: 54.05405405 | O99: 36 | P99: 36 | Q99: 17 | R99: 45.94594595 | S99: 19 | T99: 21.81933594 | U99: 39.86349487 | V99: 29.39140511 | W99: 3.530234672 | X99: 26.33037567 | Y99: 73.34596252 | Z99: 0.4007228911 | AA99: 0.2283333391 | AB99: 0.05272403359 | AC99: G | AD99: 0 | AE99: 31.62775528 | AF99: 24.99959917 | AG99: 36 | AH99: 36 | AI99: 0 | AJ99: 0 | AK99: 19 | AL99: 0.1000000015 | AM99: 9.300000191 | AN99: 2.582143068 | AO99: 2.215275798 | AP99: 1.019999981 | AQ99: 1.238920212 | AR99: 2.084188461 | AS99: 0.2589056492 | AT99: 0.07346096635 | AU99: G | AV99: 21.62162162 | AW99: 2.999598237 | AX99: 24.99939521 | AY99: 36 | AZ99: 36 | BA99: 8 | BB99: 21.62162162 | BC99: 19 | BD99: 10 | BE99: 143.6000061 | BF99: 72.65833282 | BG99: 43.46358816 | BH99: 132.4666748 | BI99: 2.122011423 | BJ99: 34.24031067 | BK99: 0.2283333391 | BL99: 0.05555555224 | BM99: U | BN99: 0 | BO99: 43.40000153 | BP99: 75 | BQ99: 36 | BR99: 36 | BS99: 0 | BT99: 0 | BU99: 19 | BV99: 0.400000006 | BW99: 5.300000191 | BX99: 2.483333111 | BY99: 1.616861946 | BZ99: 0.8899999857 | CA99: 2.19523263 | CB99: 1.131239176 | CC99: 0.3776043057 | CD99: 0.06727284193 | CE99: G | CF99: 23.52941176 | CG99: 2.878350412 | CH99: 24.9999863 | CI99: 16 | CJ99: 16 | CK99: 4 | CL99: 23.52941176 | CM99: 19 | CN99: 0.1000000015 | CO99: 14.60000038 | CP99: 3.234782696 | CQ99: 3.632505867 | CR99: 1.550000072 | CS99: 0.9702870846 | CT99: 3.333840847 | CU99: 0.2856647372 | CV99: 0.03218829632 | CW99: G | CX99: 35.13513514 | CY99: 3.06505633 | CZ99: 25.00000336 | DA99: 36 | DB99: 36 | DC99: 13 | DD99: 35.13513514 | DE99: 19 | DF99: 1.299999952 | DG99: 37.70000076 | DH99: 13.5 | DI99: 16.50313192 | DJ99: 4.940000057 | DK99: 0.9138478041 | DL99: 14.77270031 | DM99: 0.639952898 | DN99: 0.1354411244 | DO99: E | DP99: 86.48648649 | DQ99: 0 | DR99: 13.51351351 | DS99: 36 | DT99: 36 | DU99: 32 | DV99: 86.48648649 | DW99: 19 | EO99: 19 | FG99: 19
A100: 20 | B100: 0.1906738281 | C100: 51.37109375 | D100: 7.818426132 | E100: 13.16811939 | F100: 5.30871582 | G100: 0.5531920791 | H100: 14.13329411 | I100: 0.2796500921 | J100: 0.0851392746 | K100: G | L100: 32.43243243 | M100: 0 | N100: 67.56756757 | O100: 36 | P100: 36 | Q100: 12 | R100: 32.43243243 | S100: 20 | T100: 24.69124413 | U100: 37.77479172 | V100: 30.63018799 | W100: 3.278771182 | X100: 27.9621315 | Y100: 90.09212494 | Z100: 0.3399873972 | AA100: 0.2283333391 | AB100: 0.066952914 | AC100: G | AD100: 0 | AE100: 32.74075247 | AF100: 24.99943757 | AG100: 36 | AH100: 36 | AI100: 0 | AJ100: 0 | AK100: 20 | AL100: 0.3000000119 | AM100: 5.400000095 | AN100: 2.1517241 | AO100: 1.583535918 | AP100: 0.8100000024 | AQ100: 1.746179461 | AR100: 1.232246876 | AS100: 0.2544026077 | AT100: 0.07749283314 | AU100: E | AV100: 18.91891892 | AW100: 2.531676929 | AX100: 24.99982964 | AY100: 36 | AZ100: 36 | BA100: 7 | BB100: 18.91891892 | BC100: 20 | BD100: 10 | BE100: 140 | BF100: 75.43333435 | BG100: 43.03638569 | BH100: 129.1666565 | BI100: 2.259919405 | BJ100: 33.37877274 | BK100: 0.2283333391 | BL100: 0.05555558205 | BM100: U | BN100: 0 | BO100: 42.5 | BP100: 75 | BQ100: 36 | BR100: 36 | BS100: 0 | BT100: 0 | BU100: 20 | BV100: 0.3000000119 | BW100: 4.900000095 | BX100: 2.086666584 | BY100: 1.604843798 | BZ100: 0.7599999905 | CA100: 1.584985495 | CB100: 1.316520929 | CC100: 0.3243176043 | CD100: 0.07764798403 | CE100: G | CF100: 5.882352941 | CG100: 2.750450282 | CH100: 25.0000092 | CI100: 16 | CJ100: 16 | CK100: 1 | CL100: 5.882352941 | CM100: 20 | CN100: 0.3000000119 | CO100: 18.29999924 | CP100: 3.862500906 | CQ100: 4.683162259 | CR100: 2.099999905 | CS100: 0.8432899117 | CT100: 4.580276489 | CU100: 0.2796500921 | CV100: 0.06172460318 | CW100: G | CX100: 32.43243243 | CY100: 3.710258144 | CZ100: 25.0000044 | DA100: 36 | DB100: 36 | DC100: 12 | DD100: 32.43243243 | DE100: 20 | DF100: 1 | DG100: 30.29999924 | DH100: 9.018181801 | DI100: 9.458839392 | DJ100: 3.929999828 | DK100: 1.052401185 | DL100: 8.569148064 | DM100: 0.3983826041 | DN100: 0.04527521133 | DO100: E | DP100: 67.56756757 | DQ100: 2.347258718 | DR100: 25.00005983 | DS100: 36 | DT100: 36 | DU100: 25 | DV100: 67.56756757 | DW100: 20 | EO100: 20 | FG100: 20
A101: 21 | B101: 0.08657073975 | C101: 81.06549072 | D101: 10.89083862 | E101: 18.7346902 | F101: 8.184462547 | G101: 0.4876131117 | H101: 22.33499908 | I101: 0.2920849919 | J101: 0.03014826775 | K101: G | L101: 37.83783784 | M101: 0 | N101: 62.16216216 | O101: 36 | P101: 36 | Q101: 14 | R101: 37.83783784 | S101: 21 | T101: 25.22119141 | U101: 41.11652374 | V101: 32.4753952 | W101: 4.217084542 | X101: 31.84424591 | Y101: 61.63506699 | Z101: 0.5268980265 | AA101: 0.2283333391 | AB101: 0.0382937789 | AC101: G | AD101: 0 | AE101: 35.16167654 | AF101: 24.99967972 | AG101: 36 | AH101: 36 | AI101: 0 | AJ101: 0 | AK101: 21 | AL101: 0.1000000015 | AM101: 13.30000019 | AN101: 3.226923227 | AO101: 3.446106004 | AP101: 1.420000076 | AQ101: 0.886294663 | AR101: 3.640914679 | AS101: 0.2686791122 | AT101: 0.03867030144 | AU101: G | AV101: 27.02702703 | AW101: 3.394796606 | AX101: 24.99999044 | AY101: 36 | AZ101: 36 | BA101: 10 | BB101: 27.02702703 | BC101: 21 | BD101: 10 | BE101: 203.8000031 | BF101: 79.08570862 | BG101: 45.87391433 | BH101: 123.0499954 | BI101: 3.836179495 | BJ101: 20.61574745 | BK101: 0.2315722704 | BL101: 0.08724981546 | BM101: N | BN101: 0 | BO101: 48.14536219 | BP101: 74.99921127 | BQ101: 36 | BR101: 36 | BS101: 0 | BT101: 0 | BU101: 21 | BV101: 0.1000000015 | BW101: 8.300000191 | BX101: 2.225000143 | BY101: 2.433898809 | BZ101: 0.9200000167 | CA101: 0.8538752198 | CB101: 2.60576725 | CC101: 0.3776043057 | CD101: 0.03038406372 | CE101: G | CF101: 23.52941176 | CG101: 2.437275966 | CH101: 24.99998528 | CI101: 16 | CJ101: 16 | CK101: 4 | CL101: 23.52941176 | CM101: 21 | CN101: 0.200000003 | CO101: 35.40000153 | CP101: 7.019048214 | CQ101: 10.00223059 | CR101: 3.720000267 | CS101: 0.5973113775 | CT101: 11.75107098 | CU101: 0.2989585102 | CV101: 0.08775168657 | CW101: G | CX101: 40.54054054 | CY101: 5.034223771 | CZ101: 24.9999972 | DA101: 36 | DB101: 36 | DC101: 15 | DD101: 40.54054054 | DE101: 21 | DF101: 0.1000000015 | DG101: 71 | DH101: 17.96999931 | DI101: 22.3250263 | DJ101: 7.190000057 | DK101: 0.5727912784 | DL101: 31.37268257 | DM101: 0.4211426675 | DN101: 0.04203033447 | DO101: E | DP101: 70.27027027 | DQ101: 3.113714868 | DR101: 24.99996918 | DS101: 36 | DT101: 36 | DU101: 26 | DV101: 70.27027027 | DW101: 21 | EO101: 21 | FG101: 21
A102: 22 | B102: 0.001448631287 | C102: 33.95550537 | D102: 6.582135677 | E102: 8.776210221 | F102: 3.396854401 | G102: 0.3176257014 | H102: 20.72293091 | I102: 0.3063413203 | J102: 0.03889805079 | K102: E | L102: 43.24324324 | M102: 0 | N102: 56.75675676 | O102: 36 | P102: 36 | Q102: 16 | R102: 43.24324324 | S102: 22 | T102: 27.76002121 | U102: 45.44929886 | V102: 36.36724854 | W102: 4.209428676 | X102: 38.07876587 | Y102: 75.40872955 | Z102: 0.4822684228 | AA102: 0.2283333391 | AB102: 0.04701486975 | AC102: N | AD102: 0 | AE102: 39.20650974 | AF102: 24.99966249 | AG102: 36 | AH102: 36 | AI102: 0 | AJ102: 0 | AK102: 22 | AL102: 0.1000000015 | AM102: 9.100000381 | AN102: 2.53928566 | AO102: 2.61652031 | AP102: 1 | AQ102: 0.8498478532 | AR102: 2.987929821 | AS102: 0.2589056492 | AT102: 0.05561083555 | AU102: G | AV102: 21.62162162 | AW102: 2.846808836 | AX102: 24.99970779 | AY102: 36 | AZ102: 36 | BA102: 8 | BB102: 21.62162162 | BC102: 22 | BD102: 10 | BE102: 158.6999969 | BF102: 74.03889465 | BG102: 44.65914337 | BH102: 47.17499924 | BI102: 2.135617256 | BJ102: 34.66861725 | BK102: 0.2283333391 | BL102: 0.08031713963 | BM102: G | BN102: 0 | BO102: 36.80319237 | BP102: 75.00009622 | BQ102: 36 | BR102: 36 | BS102: 0 | BT102: 0 | BU102: 22 | BV102: 0.1000000015 | BW102: 9.100000381 | BX102: 2.154545546 | BY102: 2.695686823 | BZ102: 1 | CA102: 0.7172843814 | CB102: 3.003753662 | CC102: 0.3983826041 | CD102: 0.04146283865 | CE102: G | CF102: 29.41176471 | CG102: 2.091504897 | CH102: 25.00040961 | CI102: 16 | CJ102: 16 | CK102: 5 | CL102: 29.41176471 | CM102: 22 | CN102: 0.1000000015 | CO102: 17.5 | CP102: 2.886956692 | CQ102: 4.037022206 | CR102: 1.840000033 | CS102: 0.8284175992 | CT102: 3.484905005 | CU102: 0.2856647372 | CV102: 0.06755787134 | CW102: G | CX102: 35.13513514 | CY102: 2.635282381 | CZ102: 25.00002121 | DA102: 36 | DB102: 36 | DC102: 13 | DD102: 35.13513514 | DE102: 22 | DF102: 0.1000000015 | DG102: 26.70000076 | DH102: 5.177777767 | DI102: 8.57959461 | DJ102: 2.75999999 | DK102: 0.482804358 | DL102: 10.72438049 | DM102: 0.4463027716 | DN102: 0.08140057325 | DO102: G | DP102: 72.97297297 | DQ102: 0.03911473216 | DR102: 25.00000899 | DS102: 36 | DT102: 36 | DU102: 27 | DV102: 72.97297297 | DW102: 22 | EO102: 22 | FG102: 22
A103: 23 | B103: 0.03564453125 | C103: 50.68823242 | D103: 7.021215916 | E103: 13.29099309 | F103: 5.100903511 | G103: 0.3614269495 | H103: 19.42637634 | I103: 0.3142995536 | J103: 0.1126195788 | K103: G | L103: 45.94594595 | M103: 0 | N103: 54.05405405 | O103: 36 | P103: 36 | Q103: 17 | R103: 45.94594595 | S103: 23 | T103: 29.90731812 | U103: 50.73761749 | V103: 39.59609604 | W103: 4.990705625 | X103: 42.05832672 | Y103: 64.39195251 | Z103: 0.6149230599 | AA103: 0.2283333391 | AB103: 0.01893013716 | AC103: G | AD103: 0 | AE103: 42.80339167 | AF103: 24.9996394 | AG103: 36 | AH103: 36 | AI103: 0 | AJ103: 0 | AK103: 23 | AL103: 0.1000000015 | AM103: 16.5 | AN103: 2.669230223 | AO103: 3.902283264 | AP103: 1.74000001 | AQ103: 0.6412489414 | AR103: 4.162549019 | AS103: 0.2686791122 | AT103: 0.04877156019 | AU103: G | AV103: 27.02702703 | AW103: 2.615838042 | AX103: 25.00000152 | AY103: 36 | AZ103: 36 | BA103: 10 | BB103: 27.02702703 | BC103: 23 | BD103: 10 | BE103: 146.8999939 | BF103: 72.43333435 | BG103: 42.826821 | BH103: 44.22499847 | BI103: 2.126631737 | BJ103: 34.06011963 | BK103: 0.2283333391 | BL103: 0.08333331347 | BM103: U | BN103: 0 | BO103: 44.22499847 | BP103: 75 | BQ103: 36 | BR103: 36 | BS103: 0 | BT103: 0 | BU103: 23 | BV103: 0.1000000015 | BW103: 16.5 | BX103: 3.059999943 | BY103: 5.492864141 | BZ103: 1.74000001 | CA103: 0.4858931005 | CB103: 6.297681332 | CC103: 0.4211426675 | CD103: 0.09135234356 | CE103: G | CF103: 35.29411765 | CG103: 2.261085993 | CH103: 25.00004133 | CI103: 16 | CJ103: 16 | CK103: 6 | CL103: 35.29411765 | CM103: 23 | CN103: 0.1000000015 | CO103: 32.5 | CP103: 3.052173853 | CQ103: 6.889707336 | CR103: 3.339999914 | CS103: 0.540337503 | CT103: 5.648643494 | CU103: 0.2856647372 | CV103: 0.04070305824 | CW103: G | CX103: 35.13513514 | CY103: 2.389916054 | CZ103: 25.00001021 | DA103: 36 | DB103: 36 | DC103: 13 | DD103: 35.13513514 | DE103: 23 | DF103: 0.1000000015 | DG103: 47.70000076 | DH103: 17.64999962 | DI103: 22.1331579 | DJ103: 4.860000134 | DK103: 0.4415611625 | DL103: 39.9718132 | DM103: 0.639952898 | DN103: 0.1321205497 | DO103: E | DP103: 86.48648649 | DQ103: 0 | DR103: 13.51351351 | DS103: 36 | DT103: 36 | DU103: 32 | DV103: 86.48648649 | DW103: 23 | EO103: 23 | FG103: 23
A104: 24 | B104: 0.001825332642 | C104: 45.84133911 | D104: 14.23519135 | E104: 15.1437796 | F104: 4.585776806 | G104: 0.5249239802 | H104: 27.11857605 | I104: 0.3063413203 | J104: 0.04662835598 | K104: E | L104: 43.24324324 | M104: 0 | N104: 56.75675676 | O104: 36 | P104: 36 | Q104: 16 | R104: 43.24324324 | S104: 24 | T104: 28.52886391 | U104: 50.6098938 | V104: 41.33738708 | W104: 5.941032242 | X104: 45.08963776 | Y104: 45.82017136 | Z104: 0.9021657109 | AA104: 0.2283333391 | AB104: 0.08400377631 | AC104: N | AD104: 0 | AE104: 45.34453069 | AF104: 25.00011635 | AG104: 36 | AH104: 36 | AI104: 0 | AJ104: 0 | AK104: 24 | AL104: 0.200000003 | AM104: 13.10000038 | AN104: 5.345454693 | AO104: 4.082917303 | AP104: 1.490000129 | AQ104: 1.130801678 | AR104: 4.727137089 | AS104: 0.2920849919 | AT104: 0.09442353249 | AU104: N | AV104: 37.83783784 | AW104: 6.356790037 | AX104: 25.00060067 | AY104: 36 | AZ104: 36 | BA104: 14 | BB104: 37.83783784 | BC104: 24 | BD104: 10 | BE104: 160.3999939 | BF104: 72.7638855 | BG104: 41.37595 | BH104: 22.53333282 | BI104: 2.464621305 | BJ104: 29.52335358 | BK104: 0.2283333391 | BL104: 0.05110432208 | BM104: N | BN104: 0 | BO104: 44.8563107 | BP104: 74.99993904 | BQ104: 36 | BR104: 36 | BS104: 0 | BT104: 0 | BU104: 24 | BV104: 0.200000003 | BW104: 10.10000038 | BX104: 4.1875 | BY104: 3.963201293 | BZ104: 1.190000057 | CA104: 0.8607256413 | CB104: 4.865080833 | CC104: 0.474429369 | CD104: 0.1430852413 | CE104: G | CF104: 47.05882353 | CG104: 2.968436644 | CH104: 24.99904798 | CI104: 16 | CJ104: 16 | CK104: 8 | CL104: 47.05882353 | CM104: 24 | CN104: 0.200000003 | CO104: 34.20000076 | CP104: 6.45909071 | CQ104: 8.854305156 | CR104: 3.600000143 | CS104: 0.6327303052 | CT104: 10.20828438 | CU104: 0.2920849919 | CV104: 0.0439516902 | CW104: G | CX104: 37.83783784 | CY104: 5.091527363 | CZ104: 24.99997912 | DA104: 36 | DB104: 36 | DC104: 14 | DD104: 37.83783784 | DE104: 24 | DF104: 0.400000006 | DG104: 49.29999924 | DH104: 17.01000023 | DI104: 15.474025 | DJ104: 5.289999962 | DK104: 0.9584649801 | DL104: 17.74712753 | DM104: 0.4211426675 | DN104: 0.06999325752 | DO104: E | DP104: 70.27027027 | DQ104: 2.947368413 | DR104: 24.9999759 | DS104: 36 | DT104: 36 | DU104: 26 | DV104: 70.27027027 | DW104: 24 | EO104: 24 | FG104: 24
A105: 25 | B105: 0.007415771484 | C105: 69.60595703 | D105: 17.17957306 | E105: 21.16705362 | F105: 6.967269897 | G105: 0.45499143 | H105: 37.75801468 | I105: 0.2636566162 | J105: 0.05760782957 | K105: G | L105: 24.32432432 | M105: 0.0009087240877 | N105: 74.99913864 | O105: 36 | P105: 36 | Q105: 9 | R105: 24.32432432 | S105: 25 | T105: 28.14621162 | U105: 56.77204132 | V105: 43.73124313 | W105: 7.377185045 | X105: 44.84461212 | Y105: 33.83599091 | Z105: 1.292447567 | AA105: 0.2283333391 | AB105: 0.06423616409 | AC105: N | AD105: 0 | AE105: 48.7071016 | AF105: 24.99990192 | AG105: 36 | AH105: 36 | AI105: 0 | AJ105: 0 | AK105: 25 | AL105: 0.1000000015 | AM105: 18.29999924 | AN105: 5.058620453 | AO105: 4.867275672 | AP105: 1.919999957 | AQ105: 0.7981099486 | AR105: 6.33825016 | AS105: 0.2544026077 | AT105: 0.05034834146 | AU105: E | AV105: 18.91891892 | AW105: 5.951663702 | AX105: 25.00087347 | AY105: 36 | AZ105: 36 | BA105: 7 | BB105: 18.91891892 | BC105: 25 | BD105: 10 | BE105: 192.3999939 | BF105: 78.8722229 | BG105: 49.49736617 | BH105: 86 | BI105: 2.077119827 | BJ105: 37.9719162 | BK105: 0.2283333391 | BL105: 0.0668182373 | BM105: N | BN105: 0 | BO105: 45.48725752 | BP105: 74.99967851 | BQ105: 36 | BR105: 36 | BS105: 0 | BT105: 0 | BU105: 25 | BV105: 0.1000000015 | BW105: 11 | BX105: 4.472726822 | BY105: 3.936265177 | BZ105: 1.190000057 | CA105: 0.7324346304 | CB105: 6.106656551 | CC105: 0.3983826041 | CD105: 0.08956760168 | CE105: E | CF105: 29.41176471 | CG105: 4.642673331 | CH105: 24.99978731 | CI105: 16 | CJ105: 16 | CK105: 5 | CL105: 29.41176471 | CM105: 25 | CN105: 0.1000000015 | CO105: 41.90000153 | CP105: 7.965384483 | CQ105: 10.30630696 | CR105: 4.28000021 | CS105: 0.6082152128 | CT105: 13.09632587 | CU105: 0.2686791122 | CV105: 0.01600396633 | CW105: G | CX105: 27.02702703 | CY105: 7.68656683 | CZ105: 25.00018728 | DA105: 36 | DB105: 36 | DC105: 10 | DD105: 27.02702703 | DE105: 25 | DF105: 1.5 | DG105: 61.90000153 | DH105: 18.76922989 | DI105: 18.08615433 | DJ105: 7.539999962 | DK105: 1.126926303 | DL105: 16.65524101 | DM105: 0.3584900796 | DN105: 0.03792724013 | DO105: G | DP105: 62.16216216 | DQ105: 8.459884194 | DR105: 24.99999873 | DS105: 36 | DT105: 36 | DU105: 23 | DV105: 62.16216216 | DW105: 25 | EO105: 25 | FG105: 25
A106: 26 | B106: 0.04501342773 | C106: 69.96289062 | D106: 23.63992882 | E106: 21.40328447 | F106: 7.036801338 | G106: 0.6980888844 | H106: 33.86378098 | I106: 0.2636566162 | J106: 0.05997365713 | K106: E | L106: 24.32432432 | M106: 0.2120175372 | N106: 75.00000375 | O106: 36 | P106: 36 | Q106: 9 | R106: 24.32432432 | S106: 26 | T106: 31.02107048 | U106: 60.3235054 | V106: 45.49784851 | W106: 8.308497792 | X106: 38.34667969 | Y106: 30.41402817 | Z106: 1.495949388 | AA106: 0.2283333391 | AB106: 0.05555558205 | AC106: U | AD106: 0 | AE106: 52.99789667 | AF106: 25 | AG106: 36 | AH106: 36 | AI106: 0 | AJ106: 0 | AK106: 26 | AL106: 0.1000000015 | AM106: 15.80000019 | AN106: 7.216666698 | AO106: 5.267733822 | AP106: 1.670000076 | AQ106: 1.104026198 | AR106: 6.536680698 | AS106: 0.2501266301 | AT106: 0.1321781874 | AU106: G | AV106: 16.21621622 | AW106: 8.777571694 | AX106: 24.99998792 | AY106: 36 | AZ106: 36 | BA106: 6 | BB106: 16.21621622 | BC106: 26 | BD106: 4.400000095 | BE106: 191.8000031 | BF106: 84.1555481 | BG106: 50.16626166 | BH106: 82.4833374 | BI106: 1.991369724 | BJ106: 42.26013184 | BK106: 0.2283333391 | BL106: 0.05742967129 | BM106: N | BN106: 0 | BO106: 50.32006589 | BP106: 74.99927338 | BQ106: 36 | BR106: 36 | BS106: 0 | BT106: 0 | BU106: 26 | BV106: 0.1000000015 | BW106: 14.30000019 | BX106: 7.546153545 | BY106: 5.520962389 | BZ106: 12.88000107 | CA106: 1.072165132 | CB106: 7.038238049 | CC106: 0.3584900796 | CD106: 0.226452589 | CE106: N | CF106: 17.64705882 | CG106: 10.38491046 | CH106: 24.99937212 | CI106: 16 | CJ106: 16 | CK106: 3 | CL106: 17.64705882 | CM106: 26 | CN106: 0.200000003 | CO106: 49.29999924 | CP106: 14.94231033 | CQ106: 13.36868508 | CR106: 5.109999657 | CS106: 0.8376438618 | CT106: 17.83850098 | CU106: 0.2686791122 | CV106: 0.05535709858 | CW106: E | CX106: 27.02702703 | CY106: 16.00639867 | CZ106: 25.0000052 | DA106: 36 | DB106: 36 | DC106: 10 | DD106: 27.02702703 | DE106: 26 | DF106: 1.399999976 | DG106: 63.70000076 | DH106: 24.15789413 | DI106: 20.11711013 | DJ106: 7.630000114 | DK106: 1.246111155 | DL106: 19.3866291 | DM106: 0.3142995536 | DN106: 0.06935870647 | DO106: G | DP106: 45.94594595 | DQ106: 19.85393778 | DR106: 24.9999839 | DS106: 36 | DT106: 36 | DU106: 17 | DV106: 45.94594595 | DW106: 26 | EO106: 26 | FG106: 26
A107: 27 | B107: 0.08655929565 | C107: 75.56318665 | D107: 22.92182732 | E107: 21.33841255 | F107: 6.3762784 | G107: 0.622427702 | H107: 36.82648849 | I107: 0.2315722704 | J107: 0.04696011543 | K107: E | L107: 2.702702703 | M107: 5.966172959 | N107: 74.99997145 | O107: 36 | P107: 36 | Q107: 1 | R107: 2.702702703 | S107: 27 | T107: 32.40390778 | U107: 60.44388199 | V107: 45.70861053 | W107: 7.874385265 | X107: 44.08723068 | Y107: 34.42140198 | Z107: 1.327912569 | AA107: 0.2283333391 | AB107: 0.03795653582 | AC107: G | AD107: 0 | AE107: 50.69500231 | AF107: 24.99990684 | AG107: 36 | AH107: 36 | AI107: 0 | AJ107: 0 | AK107: 27 | AL107: 0.1000000015 | AM107: 18.89999962 | AN107: 8.225000381 | AO107: 5.767909809 | AP107: 1.666666627 | AQ107: 1.200275302 | AR107: 6.852594852 | AS107: 0.2283333391 | AT107: 0.07787939906 | AU107: N | AV107: 0 | AW107: 12.11541827 | AX107: 24.99987968 | AY107: 36 | AZ107: 36 | BA107: 0 | BB107: 0 | BC107: 27 | BD107: 14.5 | BE107: 208.5 | BF107: 88.56111908 | BG107: 54.2725665 | BH107: 63 | BI107: 2.29306078 | BJ107: 38.62135696 | BK107: 0.2283333391 | BL107: 0.05253088474 | BM107: G | BN107: 0 | BO107: 45.56081922 | BP107: 74.99997853 | BQ107: 36 | BR107: 36 | BS107: 0 | BT107: 0 | BU107: 27 | BV107: 1.600000024 | BW107: 18.89999962 | BX107: 8.918749809 | BY107: 5.405579807 | BZ107: 3.329999924 | CA107: 2.440378904 | CB107: 3.654657841 | CC107: 0.3425000012 | CD107: 0.06167829037 | CE107: G | CF107: 0 | CG107: 11.83980797 | CH107: 24.99969524 | CI107: 16 | CJ107: 16 | CK107: 0 | CL107: 0 | CM107: 27 | CN107: 0.6999999881 | CO107: 35.5 | CP107: 13.73666763 | CQ107: 10.57982736 | CR107: 4.179999828 | CS107: 1.324754834 | CT107: 10.36921501 | CU107: 0.2501266301 | CV107: 0.07541292906 | CW107: G | CX107: 16.21621622 | CY107: 16.81318935 | CZ107: 25.00000258 | DA107: 36 | DB107: 36 | DC107: 6 | DD107: 16.21621622 | DE107: 27 | DF107: 0.1000000015 | DG107: 53.79999924 | DH107: 19.19583321 | DI107: 16.13468985 | DJ107: 5.46999979 | DK107: 1.004613996 | DL107: 19.10766983 | DM107: 0.2796500921 | DN107: 0.08060139418 | DO107: E | DP107: 32.43243243 | DQ107: 19.08556572 | DR107: 24.99991546 | DS107: 36 | DT107: 36 | DU107: 12 | DV107: 32.43243243 | DW107: 27 | EO107: 27 | FG107: 27
A108: 28 | B108: 0.01528930664 | C108: 97.29248047 | D108: 22.19513702 | E108: 23.33137693 | F108: 8.121722221 | G108: 0.7945176363 | H108: 27.93536186 | I108: 0.2283333391 | J108: 0.04481047392 | K108: G | L108: 0 | M108: 4.90245039 | N108: 75.00003247 | O108: 36 | P108: 36 | Q108: 0 | R108: 0 | S108: 28 | T108: 30.51798248 | U108: 59.35900497 | V108: 46.08950424 | W108: 6.220628311 | X108: 42.53507614 | Y108: 54.5341835 | Z108: 0.8451488614 | AA108: 0.2283333391 | AB108: 0.08961206675 | AC108: N | AD108: 0 | AE108: 50.28527872 | AF108: 24.99987514 | AG108: 36 | AH108: 36 | AI108: 0 | AJ108: 0 | AK108: 28 | AL108: 1.5 | AM108: 19.60000038 | AN108: 9.122858047 | AO108: 4.681257236 | AP108: 6.025000095 | AQ108: 3.211205959 | AR108: 2.840944529 | AS108: 0.2315722704 | AT108: 0.09523808956 | AU108: T | AV108: 2.702702703 | AW108: 11.65441087 | AX108: 24.99968833 | AY108: 36 | AZ108: 36 | BA108: 1 | BB108: 2.702702703 | BC108: 28 | BD108: 10.30000019 | BE108: 197.8999939 | BF108: 84.8583374 | BG108: 52.18364273 | BH108: 25.93333435 | BI108: 2.318954706 | BJ108: 36.59335709 | BK108: 0.2283333391 | BL108: 0.06623339653 | BM108: G | BN108: 0 | BO108: 43.8849611 | BP108: 74.99999681 | BQ108: 36 | BR108: 36 | BS108: 0 | BT108: 0 | BU108: 28 | BV108: 2.299999952 | BW108: 19.60000038 | BX108: 10.57999897 | BY108: 4.850949751 | BZ108: 10.94999981 | CA108: 4.128293514 | CB108: 2.562802076 | CC108: 0.3243176043 | CD108: 0.03253424168 | CE108: N | CF108: 5.882352941 | CG108: 13.6170845 | CH108: 25.00056831 | CI108: 16 | CJ108: 16 | CK108: 1 | CL108: 5.882352941 | CM108: 28 | CN108: 0.6000000238 | CO108: 49.09999847 | CP108: 14.79354763 | CQ108: 12.60634632 | CR108: 5.449999809 | CS108: 1.078552008 | CT108: 13.71611881 | CU108: 0.2460592687 | CV108: 0.08767324686 | CW108: E | CX108: 13.51351351 | CY108: 18.36045684 | CZ108: 24.99999635 | DA108: 36 | DB108: 36 | DC108: 5 | DD108: 13.51351351 | DE108: 28 | DF108: 0.200000003 | DG108: 81.69999695 | DH108: 22.5086956 | DI108: 19.67171289 | DJ108: 8.349999428 | DK108: 0.8317261934 | DL108: 27.06262589 | DM108: 0.2856647372 | DN108: 0.04105973244 | DO108: E | DP108: 35.13513514 | DQ108: 21.46056913 | DR108: 24.99989204 | DS108: 36 | DT108: 36 | DU108: 13 | DV108: 35.13513514 | DW108: 28 | EO108: 28 | FG108: 28
A109: 29 | B109: 0.3037109375 | C109: 110.9924622 | D109: 25.27231026 | E109: 24.7025839 | F109: 9.527773857 | G109: 0.952778101 | H109: 26.5248642 | I109: 0.2283333391 | J109: 0.03853577375 | K109: E | L109: 0 | M109: 7.270386574 | N109: 75.00001192 | O109: 36 | P109: 36 | Q109: 0 | R109: 0 | S109: 29 | T109: 40.11228561 | U109: 61.8671875 | V109: 48.63697815 | W109: 5.770023477 | X109: 45.55101013 | Y109: 74.1352005 | Z109: 0.6560578346 | AA109: 0.2283333391 | AB109: 0.06200999022 | AC109: G | AD109: 0 | AE109: 52.31868769 | AF109: 24.9995705 | AG109: 36 | AH109: 36 | AI109: 0 | AJ109: 0 | AK109: 29 | AL109: 0.6000000238 | AM109: 23.29999924 | AN109: 9.616664886 | AO109: 6.14066072 | AP109: 6.275000095 | AQ109: 2.034447432 | AR109: 4.726917267 | AS109: 0.2283333391 | AT109: 0.04493719339 | AU109: G | AV109: 0 | AW109: 12.9322428 | AX109: 24.9998726 | AY109: 36 | AZ109: 36 | BA109: 0 | BB109: 0 | BC109: 29 | BD109: 11.80000019 | BE109: 193.3000031 | BF109: 86.48612213 | BG109: 48.88377329 | BH109: 57.17499924 | BI109: 2.446583271 | BJ109: 35.34975433 | BK109: 0.2283333391 | BL109: 0.07248234749 | BM109: N | BN109: 0 | BO109: 53.5149592 | BP109: 74.99971325 | BQ109: 36 | BR109: 36 | BS109: 0 | BT109: 0 | BU109: 29 | BV109: 0.6000000238 | BW109: 23.29999924 | BX109: 11.03750134 | BY109: 7.038359307 | BZ109: 11.94999981 | CA109: 1.687565088 | CB109: 6.540489197 | CC109: 0.3425000012 | CD109: 0.0632225275 | CE109: N | CF109: 0 | CG109: 15.78481088 | CH109: 24.99996239 | CI109: 16 | CJ109: 16 | CK109: 0 | CL109: 0 | CM109: 29 | CN109: 0.3000000119 | CO109: 50.20000076 | CP109: 13.58125019 | CQ109: 11.757344 | CR109: 4.458333492 | CS109: 1.174440861 | CT109: 11.56401348 | CU109: 0.2421840727 | CV109: 0.02277672291 | CW109: G | CX109: 10.81081081 | CY109: 17.34767341 | CZ109: 25.0000348 | DA109: 36 | DB109: 36 | DC109: 4 | DD109: 10.81081081 | DE109: 29 | DF109: 0.3000000119 | DG109: 108.8000031 | DH109: 20.38332939 | DI109: 23.24133664 | DJ109: 11.15000057 | DK109: 0.8795533776 | DL109: 23.17463684 | DM109: 0.2796500921 | DN109: 0.04176276922 | DO109: G | DP109: 32.43243243 | DQ109: 19.76395506 | DR109: 24.99994271 | DS109: 36 | DT109: 36 | DU109: 12 | DV109: 32.43243243 | DW109: 29 | EO109: 29 | FG109: 29
A110: 30 | B110: 3.427459717 | C110: 94.31396484 | D110: 39.21014786 | E110: 23.4890137 | F110: 26.149086 | G110: 2.192870378 | H110: 17.88074112 | I110: 0.2283333391 | J110: 0.0462962985 | K110: T | L110: 0 | M110: 26.14909046 | N110: 74.99999019 | O110: 36 | P110: 36 | Q110: 0 | R110: 0 | S110: 30 | T110: 38.01256561 | U110: 57.69981766 | V110: 48.06481171 | W110: 5.066295943 | X110: 46.21558762 | Y110: 92.38734436 | Z110: 0.5202531815 | AA110: 0.2283333391 | AB110: 0.03376799822 | AC110: G | AD110: 0 | AE110: 51.33666923 | AF110: 24.99942909 | AG110: 36 | AH110: 36 | AI110: 0 | AJ110: 0 | AK110: 30 | AL110: 3.299999952 | AM110: 20.39999962 | AN110: 11.29999924 | AO110: 4.913421832 | AP110: 7.574999809 | AQ110: 4.749547005 | AR110: 2.379173994 | AS110: 0.2283333391 | AT110: 0.05555558205 | AU110: U | AV110: 0 | AW110: 16.1249997 | AX110: 25 | AY110: 36 | AZ110: 36 | BA110: 0 | BB110: 0 | BC110: 30 | BD110: 14.60000038 | BE110: 199.8000031 | BF110: 96.21665955 | BG110: 50.36308356 | BH110: 122.6333313 | BI110: 2.877812862 | BJ110: 33.43395233 | BK110: 0.2283333391 | BL110: 0.06070196629 | BM110: N | BN110: 0 | BO110: 62.24863511 | BP110: 74.99914237 | BQ110: 36 | BR110: 36 | BS110: 0 | BT110: 0 | BU110: 30 | BV110: 6.599999905 | BW110: 20.39999962 | BX110: 12.24375057 | BY110: 3.866948654 | BZ110: 13.5 | CA110: 10.56516552 | CB110: 1.158879161 | CC110: 0.3425000012 | CD110: 0.06462144852 | CE110: N | CF110: 0 | CG110: 14.85196733 | CH110: 25.00000393 | CI110: 16 | CJ110: 16 | CK110: 0 | CL110: 0 | CM110: 30 | CN110: 0.1000000015 | CO110: 49.29999924 | CP110: 20.62000275 | CQ110: 13.46876246 | CR110: 20.60000038 | CS110: 1.146874666 | CT110: 17.97929955 | CU110: 0.2315722704 | CV110: 0.04835027456 | CW110: N | CX110: 2.702702703 | CY110: 29.41236319 | CZ110: 24.99993276 | DA110: 36 | DB110: 36 | DC110: 1 | DD110: 2.702702703 | DE110: 30 | DF110: 0.3000000119 | DG110: 86 | DH110: 31.76451683 | DI110: 21.000295 | DJ110: 26.00999832 | DK110: 1.463516712 | DL110: 21.70423889 | DM110: 0.2460592687 | DN110: 0.05501316488 | DO110: N | DP110: 13.51351351 | DQ110: 43.44338023 | DR110: 24.9999129 | DS110: 36 | DT110: 36 | DU110: 5 | DV110: 13.51351351 | DW110: 30 | EO110: 30 | FG110: 30
A111: 31 | B111: 4.788162231 | C111: 136.0816345 | D111: 41.20742035 | E111: 30.48539009 | F111: 37.6115303 | G111: 1.931048274 | H111: 21.33940506 | I111: 0.2315722704 | J111: 0.08943766356 | K111: G | L111: 2.702702703 | M111: 18.26270005 | N111: 74.99991292 | O111: 36 | P111: 36 | Q111: 1 | R111: 2.702702703 | S111: 31 | T111: 36.7640419 | U111: 61.90818787 | V111: 48.18412781 | W111: 5.956271404 | X111: 47.24076843 | Y111: 67.10804749 | Z111: 0.7180082202 | AA111: 0.2283333391 | AB111: 0.02471204102 | AC111: N | AD111: 0 | AE111: 52.2016349 | AF111: 24.99966343 | AG111: 36 | AH111: 36 | AI111: 0 | AJ111: 0 | AK111: 31 | AL111: 2.200000048 | AM111: 23.60000038 | AN111: 13.63611031 | AO111: 5.239964658 | AP111: 18.25 | AQ111: 5.281751633 | AR111: 2.581740141 | AS111: 0.2283333391 | AT111: 0.06084060669 | AU111: N | AV111: 0 | AW111: 17.17040746 | AX111: 25.00003214 | AY111: 36 | AZ111: 36 | BA111: 0 | BB111: 0 | BC111: 31 | BD111: 14.30000019 | BE111: 201.6999969 | BF111: 100.2527771 | BG111: 54.49804012 | BH111: 154.8500061 | BI111: 2.632217884 | BJ111: 38.08680725 | BK111: 0.2283333391 | BL111: 0.07947838306 | BM111: N | BN111: 0 | BO111: 63.49441114 | BP111: 74.99999796 | BQ111: 36 | BR111: 36 | BS111: 0 | BT111: 0 | BU111: 31 | BV111: 8.300000191 | BW111: 22.29999924 | BX111: 14.36874962 | BY111: 4.261723897 | BZ111: 9.699999809 | CA111: 11.52673626 | CB111: 1.246558428 | CC111: 0.3425000012 | CD111: 0.1076036096 | CE111: G | CF111: 0 | CG111: 16.9532716 | CH111: 25.00032675 | CI111: 16 | CJ111: 16 | CK111: 0 | CL111: 0 | CM111: 31 | CN111: 1.100000024 | CO111: 71.5 | CP111: 19.28333282 | CQ111: 15.69193719 | CR111: 18.70000076 | CS111: 1.381662488 | CT111: 13.9566164 | CU111: 0.2283333391 | CV111: 0.07783702016 | CW111: G | CX111: 0 | CY111: 26.50886429 | CZ111: 25.00000803 | DA111: 36 | DB111: 36 | DC111: 0 | DD111: 0 | DE111: 31 | DF111: 0.3000000119 | DG111: 108.5 | DH111: 28.6935482 | DI111: 25.46339811 | DJ111: 11.11999989 | DK111: 1.241435647 | DL111: 23.11319733 | DM111: 0.2460592687 | DN111: 0.06805419922 | DO111: E | DP111: 13.51351351 | DQ111: 35.61192042 | DR111: 24.99999709 | DS111: 36 | DT111: 36 | DU111: 5 | DV111: 13.51351351 | DW111: 31 | EO111: 31 | FG111: 31
A112: 32 | B112: 3.046554565 | C112: 126.7385254 | D112: 42.3873558 | E112: 29.61876809 | F112: 33.96954727 | G112: 1.925074577 | H112: 22.01855278 | I112: 0.2283333391 | J112: 0.09147529304 | K112: G | L112: 0 | M112: 19.95987509 | N112: 74.99997169 | O112: 36 | P112: 36 | Q112: 0 | R112: 0 | S112: 32 | T112: 37.35564423 | U112: 62.96789932 | V112: 48.04451752 | W112: 5.285602649 | X112: 48.02741623 | Y112: 85.54802704 | Z112: 0.5616087317 | AA112: 0.2283333391 | AB112: 0.02640527487 | AC112: N | AD112: 0 | AE112: 51.60952897 | AF112: 25.00044103 | AG112: 36 | AH112: 36 | AI112: 0 | AJ112: 0 | AK112: 32 | AL112: 3.299999952 | AM112: 23 | AN112: 12.49166489 | AO112: 5.097415097 | AP112: 14.79166603 | AQ112: 5.32469511 | AR112: 2.345986843 | AS112: 0.2283333391 | AT112: 0.05733853579 | AU112: N | AV112: 0 | AW112: 15.92981805 | AX112: 25.00000667 | AY112: 36 | AZ112: 36 | BA112: 0 | BB112: 0 | BC112: 32 | BD112: 11.69999981 | BE112: 197.1999969 | BF112: 107.0972214 | BG112: 54.97231192 | BH112: 181.7416687 | BI112: 2.640906096 | BJ112: 40.55321121 | BK112: 0.2283333391 | BL112: 0.05555555224 | BM112: U | BN112: 0 | BO112: 58.07499909 | BP112: 75 | BQ112: 36 | BR112: 36 | BS112: 0 | BT112: 0 | BU112: 32 | BV112: 6.5 | BW112: 17.70000076 | BX112: 12.44375038 | BY112: 3.550205633 | BZ112: 14.34000111 | CA112: 11.20622921 | CB112: 1.110431552 | CC112: 0.3425000012 | CD112: 0.1303571612 | CE112: T | CF112: 0 | CG112: 14.63276362 | CH112: 24.99985123 | CI112: 16 | CJ112: 16 | CK112: 0 | CL112: 0 | CM112: 32 | CN112: 0.400000006 | CO112: 67.40000153 | CP112: 21.66110992 | CQ112: 16.16693765 | CR112: 5.983333588 | CS112: 1.547942162 | CT112: 13.99348831 | CU112: 0.2283333391 | CV112: 0.04057079554 | CW112: G | CX112: 0 | CY112: 29.61632012 | CZ112: 24.99970996 | DA112: 36 | DB112: 36 | DC112: 0 | DD112: 0 | DE112: 32 | DF112: 0.6000000238 | DG112: 104.4000015 | DH112: 32.74705887 | DI112: 29.82459095 | DJ112: 9.250000954 | DK112: 1.016195536 | DL112: 32.22515488 | DM112: 0.2349530607 | DN112: 0.04045587778 | DO112: G | DP112: 5.405405405 | DQ112: 43.58752318 | DR112: 24.99995635 | DS112: 36 | DT112: 36 | DU112: 2 | DV112: 5.405405405 | DW112: 32 | EO112: 32 | FG112: 32
A113: 33 | B113: 0.001502037048 | C113: 107.6757812 | D113: 45.07868576 | E113: 28.93486232 | F113: 44.86578369 | G113: 1.080928683 | H113: 41.70366287 | I113: 0.2283333391 | J113: 0.05622559786 | K113: N | L113: 0 | M113: 25.56294714 | N113: 74.99941854 | O113: 36 | P113: 36 | Q113: 0 | R113: 0 | S113: 33 | T113: 36.19750595 | U113: 60.5258255 | V113: 49.23826981 | W113: 5.981957328 | X113: 50.38902664 | Y113: 67.95165253 | Z113: 0.724607408 | AA113: 0.2283333391 | AB113: 0.02906131744 | AC113: N | AD113: 0 | AE113: 53.27298248 | AF113: 25.00029873 | AG113: 36 | AH113: 36 | AI113: 0 | AJ113: 0 | AK113: 33 | AL113: 4 | AM113: 24.29999924 | AN113: 12.96944427 | AO113: 5.242454374 | AP113: 15.84166622 | AQ113: 5.689605713 | AR113: 2.279497862 | AS113: 0.2283333391 | AT113: 0.04512861371 | AU113: N | AV113: 0 | AW113: 16.50547953 | AX113: 24.99967562 | AY113: 36 | AZ113: 36 | BA113: 0 | BB113: 0 | BC113: 33 | BD113: 11.19999981 | BE113: 223 | BF113: 104.5805511 | BG113: 53.77323716 | BH113: 134.75 | BI113: 3.151540518 | BJ113: 33.1839447 | BK113: 0.2283333391 | BL113: 0.07819011807 | BM113: N | BN113: 0 | BO113: 68.31105596 | BP113: 74.99999875 | BQ113: 36 | BR113: 36 | BS113: 0 | BT113: 0 | BU113: 33 | BV113: 4.599999905 | BW113: 24.29999924 | BX113: 12.83124924 | BY113: 5.943144033 | BZ113: 10.50999928 | CA113: 4.896907806 | CB113: 2.620275736 | CC113: 0.3425000012 | CD113: 0.08894574642 | CE113: G | CF113: 0 | CG113: 16.12833986 | CH113: 24.99982628 | CI113: 16 | CJ113: 16 | CK113: 0 | CL113: 0 | CM113: 33 | CN113: 0.8999999762 | CO113: 61.79999924 | CP113: 19.58333397 | CQ113: 14.36669841 | CR113: 5.974999905 | CS113: 1.376681566 | CT113: 14.22502804 | CU113: 0.2283333391 | CV113: 0.09153926373 | CW113: E | CX113: 0 | CY113: 27.14826191 | CZ113: 25.00000452 | DA113: 36 | DB113: 36 | DC113: 0 | DD113: 0 | DE113: 33 | DF113: 0.3000000119 | DG113: 111.9000015 | DH113: 37.09000015 | DI113: 26.6831783 | DJ113: 11.46000004 | DK113: 1.375207186 | DL113: 26.97048187 | DM113: 0.2501266301 | DN113: 0.03887334466 | DO113: G | DP113: 16.21621622 | DQ113: 45.428952 | DR113: 24.99998288 | DS113: 36 | DT113: 36 | DU113: 6 | DV113: 16.21621622 | DW113: 33 | EO113: 33 | FG113: 33
A114: 34 | B114: 10.74996948 | C114: 237.5507812 | D114: 62.44029236 | E114: 49.53488256 | F114: 29.65003777 | G114: 1.903172731 | H114: 32.80852509 | I114: 0.2283333391 | J114: 0.01658082008 | K114: G | L114: 0 | M114: 29.21789106 | N114: 75.00088858 | O114: 36 | P114: 36 | Q114: 0 | R114: 0 | S114: 34 | T114: 33.14337158 | U114: 61.51823425 | V114: 47.11567688 | W114: 7.217702814 | X114: 44.9662323 | Y114: 43.08818436 | Z114: 1.093470931 | AA114: 0.2283333391 | AB114: 0.05116742849 | AC114: G | AD114: 0 | AE114: 51.738286 | AF114: 24.99980809 | AG114: 36 | AH114: 36 | AI114: 0 | AJ114: 0 | AK114: 34 | AL114: 4.300000191 | AM114: 30.29999924 | AN114: 13.98333263 | AO114: 6.207714622 | AP114: 19.46666527 | AQ114: 4.615083694 | AR114: 3.029919624 | AS114: 0.2283333391 | AT114: 0.05506771803 | AU114: N | AV114: 0 | AW114: 18.17030705 | AX114: 25.00033513 | AY114: 36 | AZ114: 36 | BA114: 0 | BB114: 0 | BC114: 34 | BD114: 23.5 | BE114: 242.8999939 | BF114: 116.5249939 | BG114: 54.88158417 | BH114: 151.4833374 | BI114: 3.95059967 | BJ114: 29.49551964 | BK114: 0.2283333391 | BL114: 0.04841423035 | BM114: N | BN114: 0 | BO114: 79.50903122 | BP114: 74.99936115 | BQ114: 36 | BR114: 36 | BS114: 0 | BT114: 0 | BU114: 34 | BV114: 5.199999809 | BW114: 30.29999924 | BX114: 14.96250057 | BY114: 6.77563075 | BZ114: 12.72999954 | CA114: 5.01770401 | CB114: 2.9819417 | CC114: 0.3425000012 | CD114: 0.05527627468 | CE114: G | CF114: 0 | CG114: 18.77099701 | CH114: 24.99998662 | CI114: 16 | CJ114: 16 | CK114: 0 | CL114: 0 | CM114: 34 | CN114: 0.8000000119 | CO114: 111.9000015 | CP114: 27.16666985 | CQ114: 22.3697872 | CR114: 10.0583334 | CS114: 1.674028635 | CT114: 16.22831917 | CU114: 0.2283333391 | CV114: 0.02447867393 | CW114: E | CX114: 0 | CY114: 37.66102308 | CZ114: 24.99997988 | DA114: 36 | DB114: 36 | DC114: 0 | DD114: 0 | DE114: 34 | DF114: 5.599999905 | DG114: 225.5 | DH114: 49.85293961 | DI114: 47.79046163 | DJ114: 23.92500114 | DK114: 1.453437328 | DL114: 34.30002594 | DM114: 0.2349530607 | DN114: 0.04252034426 | DO114: E | DP114: 5.405405405 | DQ114: 66.33943976 | DR114: 25.00054604 | DS114: 36 | DT114: 36 | DU114: 2 | DV114: 5.405405405 | DW114: 34 | EO114: 34 | FG114: 34
A115: 35 | B115: 18.09335327 | C115: 147.5805664 | D115: 69.83940887 | E115: 36.3036897 | F115: 28.88395309 | G115: 3.645656824 | H115: 19.15687943 | I115: 0.2283333391 | J115: 0.05556476116 | K115: G | L115: 0 | M115: 43.01768311 | N115: 74.99960758 | O115: 36 | P115: 36 | Q115: 0 | R115: 0 | S115: 35 | T115: 35.1087532 | U115: 57.31798172 | V115: 44.14014816 | W115: 5.176041414 | X115: 44.36259842 | Y115: 76.13872528 | Z115: 0.5797331929 | AA115: 0.2283333391 | AB115: 0.02224896848 | AC115: G | AD115: 0 | AE115: 47.43883189 | AF115: 24.99955603 | AG115: 36 | AH115: 36 | AI115: 0 | AJ115: 0 | AK115: 35 | AL115: 6.300000191 | AM115: 23.60000038 | AN115: 15.32499886 | AO115: 4.772802532 | AP115: 19.27500153 | AQ115: 8.836666107 | AR115: 1.734251261 | AS115: 0.2283333391 | AT115: 0.06716623157 | AU115: N | AV115: 0 | AW115: 18.54420372 | AX115: 25.00001016 | AY115: 36 | AZ115: 36 | BA115: 0 | BB115: 0 | BC115: 35 | BD115: 23.20000076 | BE115: 234.3000031 | BF115: 125.5555725 | BG115: 58.689763 | BH115: 146.3416748 | BI115: 3.868713379 | BJ115: 32.45409012 | BK115: 0.2283333391 | BL115: 0.06878879666 | BM115: N | BN115: 0 | BO115: 85.97023427 | BP115: 74.99983467 | BQ115: 36 | BR115: 36 | BS115: 0 | BT115: 0 | BU115: 35 | BV115: 6.199999809 | BW115: 21.39999962 | BX115: 16.03125 | BY115: 4.366954272 | BZ115: 19.87999916 | CA115: 11.18573666 | CB115: 1.433186769 | CC115: 0.3425000012 | CD115: 0.08611124754 | CE115: T | CF115: 0 | CG115: 18.68807379 | CH115: 24.99999944 | CI115: 16 | CJ115: 16 | CK115: 0 | CL115: 0 | CM115: 35 | CN115: 2.200000048 | CO115: 86.80000305 | CP115: 31.72221947 | CQ115: 18.09033171 | CR115: 37.45000076 | CS115: 2.457207203 | CT115: 12.90986729 | CU115: 0.2283333391 | CV115: 0.03994973004 | CW115: N | CX115: 0 | CY115: 43.92385724 | CZ115: 25.00018539 | DA115: 36 | DB115: 36 | DC115: 0 | DD115: 0 | DE115: 35 | DF115: 0.200000003 | DG115: 139.6999969 | DH115: 55.03889084 | DI115: 35.82882515 | DJ115: 35.07500076 | DK115: 1.586721301 | DL115: 34.68718338 | DM115: 0.2283333391 | DN115: 0.06018054485 | DO115: G | DP115: 0 | DQ115: 75.15293333 | DR115: 25.00001548 | DS115: 36 | DT115: 36 | DU115: 0 | DV115: 0 | DW115: 35 | EO115: 35 | FG115: 35
A116: 36 | B116: 4.514541626 | C116: 195.4951172 | D116: 68.43108368 | E116: 45.94910302 | F116: 52.25968552 | G116: 2.07937479 | H116: 32.90945053 | I116: 0.2283333391 | J116: 0.04876917601 | K116: G | L116: 0 | M116: 33.56132776 | N116: 75.00001304 | O116: 36 | P116: 36 | Q116: 0 | R116: 0 | S116: 36 | T116: 34.3963356 | U116: 58.19489288 | V116: 47.17729568 | W116: 5.698089467 | X116: 44.31240082 | Y116: 70.20023346 | Z116: 0.672039032 | AA116: 0.2283333391 | AB116: 0.05099952221 | AC116: G | AD116: 0 | AE116: 50.84343561 | AF116: 24.99959365 | AG116: 36 | AH116: 36 | AI116: 0 | AJ116: 0 | AK116: 36 | AL116: 8.199999809 | AM116: 26.39999962 | AN116: 15.85000134 | AO116: 4.630612242 | AP116: 12.75 | AQ116: 12.04295921 | AR116: 1.316121817 | AS116: 0.2283333391 | AT116: 0.0348238349 | AU116: G | AV116: 0 | AW116: 18.64645655 | AX116: 25.00035613 | AY116: 36 | AZ116: 36 | BA116: 0 | BB116: 0 | BC116: 36 | BD116: 15.30000019 | BE116: 240.8000031 | BF116: 123.8371353 | BG116: 64.8665886 | BH116: 146.8416595 | BI116: 5.897363663 | BJ116: 20.9987278 | BK116: 0.2315722704 | BL116: 0.0576788038 | BM116: N | BN116: 0 | BO116: 80.08528155 | BP116: 75.00000227 | BQ116: 36 | BR116: 36 | BS116: 0 | BT116: 0 | BU116: 36 | BV116: 8.199999809 | BW116: 26.39999962 | BX116: 16.33125114 | BY116: 5.394036051 | BZ116: 20.93999863 | CA116: 9.11191082 | CB116: 1.792297125 | CC116: 0.3425000012 | CD116: 0.07157461345 | CE116: N | CF116: 0 | CG116: 19.96947136 | CH116: 25.00001066 | CI116: 16 | CJ116: 16 | CK116: 0 | CL116: 0 | CM116: 36 | CN116: 1.799999952 | CO116: 103.6999969 | CP116: 32.04444504 | CQ116: 23.55364192 | CR116: 27.27499962 | CS116: 1.769568205 | CT116: 18.1086235 | CU116: 0.2283333391 | CV116: 0.04255464673 | CW116: G | CX116: 0 | CY116: 43.48216218 | CZ116: 24.99918465 | DA116: 36 | DB116: 36 | DC116: 0 | DD116: 0 | DE116: 36 | DF116: 0.3000000119 | DG116: 168.6999969 | DH116: 52.46666336 | DI116: 41.99385098 | DJ116: 42.39999771 | DK116: 1.00579834 | DL116: 52.16419601 | DM116: 0.2283333391 | DN116: 0.1025289893 | DO116: E | DP116: 0 | DQ116: 72.7339206 | DR116: 25.00015198 | DS116: 36 | DT116: 36 | DU116: 0 | DV116: 0 | DW116: 36 | EO116: 36 | FG116: 36
A117: 37 | B117: 7.864257812 | C117: 108.625 | D117: 44.42019272 | E117: 26.46024666 | F117: 16.26098633 | G117: 2.516102076 | H117: 17.65436745 | I117: 0.2283333391 | J117: 0.04157704115 | K117: G | L117: 0 | M117: 23.82756048 | N117: 75.0000011 | O117: 36 | P117: 36 | Q117: 0 | R117: 0 | S117: 37 | T117: 14.07025433 | U117: 32.74082184 | V117: 23.92347908 | W117: 4.410314322 | X117: 24.96141815 | Y117: 28.9633503 | Z117: 0.8259914517 | AA117: 0.2283333391 | AB117: 0.01937693357 | AC117: N | AD117: 0 | AE117: 26.89818389 | AF117: 25.00005042 | AG117: 36 | AH117: 36 | AI117: 0 | AJ117: 0 | AK117: 37 | AL117: 3.5 | AM117: 15.80000019 | AN117: 9.754284859 | AO117: 2.996924572 | AP117: 6.574999809 | AQ117: 36.44014359 | AR117: 0.2676796615 | AS117: 0.2315722704 | AT117: 0.07454240322 | AU117: N | AV117: 0 | AW117: 11.77562691 | AX117: 25.00056048 | AY117: 36 | AZ117: 36 | BA117: 0 | BB117: 0 | BC117: 37 | BD117: 9.899999619 | BE117: 130.8000031 | BF117: 65.08610535 | BG117: 33.09956644 | BH117: 100.5750046 | BI117: 2.920261621 | BJ117: 22.2877655 | BK117: 0.2283333391 | BL117: 0.0899014473 | BM117: G | BN117: 0 | BO117: 37.09488382 | BP117: 74.99965759 | BQ117: 36 | BR117: 36 | BS117: 0 | BT117: 0 | BU117: 37 | BV117: 6.900000095 | BW117: 15.5 | BX117: 10.25000095 | BY117: 2.729102408 | BZ117: 7.760000229 | CA117: 15.54390717 | CB117: 0.6594223976 | CC117: 0.3425000012 | CD117: 0.09330937266 | CE117: G | CF117: 0 | CG117: 11.86382037 | CH117: 25.0001062 | CI117: 16 | CJ117: 16 | CK117: 0 | CL117: 0 | CM117: 37 | CN117: 0.6000000238 | CO117: 56.79999924 | CP117: 19.26666832 | CQ117: 13.89717324 | CR117: 5.283333302 | CS117: 1.497421861 | CT117: 12.86655998 | CU117: 0.2283333391 | CV117: 0.06313128769 | CW117: T | CX117: 0 | CY117: 29.89619351 | CZ117: 25.00019398 | DA117: 36 | DB117: 36 | DC117: 0 | DD117: 0 | DE117: 37 | DF117: 0.200000003 | DG117: 97.90000153 | DH117: 37.53332901 | DI117: 26.45111181 | DJ117: 8.341666222 | DK117: 1.40830946 | DL117: 26.65133667 | DM117: 0.2384863943 | DN117: 0.06060606241 | DO117: T | DP117: 5.405405405 | DQ117: 49.81180701 | DR117: 25.00015381 | DS117: 36 | DT117: 36 | DU117: 2 | DV117: 5.405405405 | DW117: 37 | EO117: 37 | FG117: 37
A118: Ponto: | B118: =B80+1 -> 4 | C118: Componente hídrica: | G118: Precipitação (P) | L118: Ponto 4 lat-20,125 lon-47,375 | S118: Ponto: | T118: =B118 -> 4 | U118: Componente hídrica: | Y118: Evapotranspiração de referência (ETo) | AD118: =L118 -> Ponto 4 lat-20,125 lon-47,375 | AK118: Ponto: | AL118: 4 | AM118: Componente hídrica: | AV118: Ponto 4 lat-20,125 lon-47,375 | BC118: Ponto: | BD118: 4 | BE118: Componente hídrica: | BN118: Ponto 4 lat-20,125 lon-47,375 | BU118: Ponto: | BV118: 4 | BW118: Componente hídrica: | CF118: Ponto 4 lat-20,125 lon-47,375 | CM118: Ponto: | CN118: 4 | CO118: Componente hídrica: | CX118: Ponto 4 lat-20,125 lon-47,375 | DE118: Ponto: | DF118: 4 | DG118: Componente hídrica: | DP118: Ponto 4 lat-20,125 lon-47,375 | DW118: Ponto: | DX118: =B118 -> 4 | DY118: Componente hídrica: | EC118: Temperatura mínima (Tmin) | EH118: =L118 -> Ponto 4 lat-20,125 lon-47,375 | EO118: Ponto: | EP118: =B118 -> 4 | EQ118: Componente hídrica: | EU118: Temperatura máxima (Tmax) | EZ118: =L118 -> Ponto 4 lat-20,125 lon-47,375 | FG118: Ponto: | FH118: =B118 -> 4 | FI118: Componente hídrica: | FM118: Temperatura média (Tmed) | FR118: =L118 -> Ponto 4 lat-20,125 lon-47,375
A119: 1 | B119: 16.31278992 | C119: 382.1015625 | D119: 120.0360641 | E119: 82.32400439 | F119: 46.7951889 | G119: 2.091312647 | H119: 57.3974762 | I119: 0.2283333391 | J119: 0.05857223272 | K119: G | L119: 0 | M119: 59.04208689 | N119: 75.00002531 | O119: 36 | P119: 36 | Q119: 0 | R119: 0 | S119: 1 | T119: 28.36742783 | U119: 56.40625 | V119: 39.78658676 | W119: 6.656579811 | X119: 40.05027008 | Y119: 37.31877136 | Z119: 1.066128016 | AA119: 0.2283333391 | AB119: 0.05031818151 | AC119: G | AD119: 0 | AE119: 43.9647799 | AF119: 24.99992318 | AG119: 36 | AH119: 36 | AI119: 0 | AJ119: 0 | AK119: 1 | AL119: 14.60000038 | AM119: 52.5 | AN119: 32.88332748 | AO119: 9.138036325 | AP119: 36.70833206 | AQ119: 12.04173756 | AR119: 2.730779171 | AS119: 0.2283333391 | AT119: 0.02852551639 | AU119: N | AV119: 0 | AW119: 39.04684024 | AX119: 24.9999968 | AY119: 36 | AZ119: 36 | BA119: 0 | BB119: 0 | BC119: 1 | BD119: 13 | BE119: 24.20000076 | BF119: 17.94444466 | BG119: 3.15888278 | BH119: 17.66666794 | BI119: 33.70142365 | BJ119: 0.5324535966 | BK119: 0.2283333391 | BL119: 0.06146281958 | BM119: G | BN119: 0 | BO119: 15.77432525 | BP119: 74.99999799 | BQ119: 36 | BR119: 36 | BS119: 0 | BT119: 0 | BU119: 1 | BV119: 14.60000038 | BW119: 52.5 | BX119: 32.88610458 | BY119: 9.13664986 | BZ119: 36.70833206 | CA119: 12.04547691 | CB119: 2.730162144 | CC119: 0.2283333391 | CD119: 0.02852551639 | CE119: N | CF119: 0 | CG119: 39.04869148 | CH119: 24.99996447 | CI119: 36 | CJ119: 36 | CK119: 0 | CL119: 0 | CM119: 1 | CN119: 1.5 | CO119: 233 | CP119: 43.13055801 | CQ119: 43.1646076 | CR119: 20.79166603 | CS119: 1.472779393 | CT119: 29.28514481 | CU119: 0.2283333391 | CV119: 0.03525936604 | CW119: G | CX119: 0 | CY119: 59.11831704 | CZ119: 25.00000173 | DA119: 36 | DB119: 36 | DC119: 0 | DD119: 0 | DE119: 1 | DF119: 0.400000006 | DG119: 362.7999878 | DH119: 87.84444427 | DI119: 78.59945618 | DJ119: 30.59999847 | DK119: 1.056372166 | DL119: 83.15672302 | DM119: 0.2283333391 | DN119: 0.04289016128 | DO119: E | DP119: 0 | DQ119: 121.7781929 | DR119: 25.00001845 | DS119: 36 | DT119: 36 | DU119: 0 | DV119: 0 | DW119: 1 | EO119: 1 | FG119: 1 | FH119: tmed
A120: 2 | B120: 4.734802246 | C120: 202.03125 | D120: 88.44957733 | E120: 56.54816592 | F120: 86.94165039 | G120: 1.99086237 | H120: 44.42777252 | I120: 0.2283333391 | J120: 0.0610383153 | K120: G | L120: 0 | M120: 42.40955896 | N120: 75.00000071 | O120: 36 | P120: 36 | Q120: 0 | R120: 0 | S120: 2 | T120: 25.84568977 | U120: 64.58203125 | V120: 42.3144989 | W120: 8.626419614 | X120: 41.98583221 | Y120: 25.07959938 | Z120: 1.687207937 | AA120: 0.2283333391 | AB120: 0.0172162056 | AC120: G | AD120: 0 | AE120: 47.66666759 | AF120: 24.9999993 | AG120: 36 | AH120: 36 | AI120: 0 | AJ120: 0 | AK120: 2 | AL120: 7.199999809 | AM120: 48.20000076 | AN120: 31.96111298 | AO120: 9.786062988 | AP120: 31.11666679 | AQ120: 7.232852459 | AR120: 4.418880939 | AS120: 0.2283333391 | AT120: 0.09012822807 | AU120: N | AV120: 0 | AW120: 38.56170883 | AX120: 25.00001082 | AY120: 36 | AZ120: 36 | BA120: 0 | BB120: 0 | BC120: 2 | BD120: 13 | BE120: 31.29999924 | BF120: 17.30833435 | BG120: 4.663804448 | BH120: 14.52499962 | BI120: 16.27812576 | BJ120: 1.063287854 | BK120: 0.2283333391 | BL120: 0.1138688922 | BM120: G | BN120: 0 | BO120: 14.25501978 | BP120: 75.00000922 | BQ120: 36 | BR120: 36 | BS120: 0 | BT120: 0 | BU120: 2 | BV120: 7.199999809 | BW120: 48.20000076 | BX120: 31.98055649 | BY120: 9.782866031 | BZ120: 31.11666679 | CA120: 7.237122059 | CB120: 4.418960571 | CC120: 0.2283333391 | CD120: 0.09012822807 | CE120: N | CF120: 0 | CG120: 38.57899246 | CH120: 25.00002238 | CI120: 36 | CJ120: 36 | CK120: 0 | CL120: 0 | CM120: 2 | CN120: 0.8999999762 | CO120: 103.4000015 | CP120: 28.11111069 | CQ120: 20.91420331 | CR120: 26.52500153 | CS120: 1.723564386 | CT120: 16.30986977 | CU120: 0.2283333391 | CV120: 0.08356970549 | CW120: G | CX120: 0 | CY120: 38.20479936 | CZ120: 24.99980926 | DA120: 36 | DB120: 36 | DC120: 0 | DD120: 0 | DE120: 2 | DF120: 0.6999999881 | DG120: 172.1000061 | DH120: 60.19999313 | DI120: 49.61886228 | DJ120: 14.98333359 | DK120: 1.214012504 | DL120: 49.5876236 | DM120: 0.2315722704 | DN120: 0.06175029278 | DO120: G | DP120: 2.702702703 | DQ120: 81.66356883 | DR120: 25.00091648 | DS120: 36 | DT120: 36 | DU120: 1 | DV120: 2.702702703 | DW120: 2 | EO120: 2 | FG120: 2
A121: 3 | B121: 28.83569336 | C121: 284.3535156 | D121: 112.6968994 | E121: 69.83898544 | F121: 50.12884521 | G121: 2.70068717 | H121: 41.72897339 | I121: 0.2283333391 | J121: 0.04751715064 | K121: G | L121: 0 | M121: 62.27712447 | N121: 75.00000033 | O121: 36 | P121: 36 | Q121: 0 | R121: 0 | S121: 3 | T121: 24.75050735 | U121: 53.07941437 | V121: 39.82396317 | W121: 7.934979617 | X121: 41.27570343 | Y121: 24.98690605 | Z121: 1.593793273 | AA121: 0.2283333391 | AB121: 0.0578019619 | AC121: G | AD121: 0 | AE121: 44.86978767 | AF121: 24.99994851 | AG121: 36 | AH121: 36 | AI121: 0 | AJ121: 0 | AK121: 3 | AL121: 14 | AM121: 53.90000153 | AN121: 32.10277557 | AO121: 8.23263433 | AP121: 30.625 | AQ121: 15.22038937 | AR121: 2.109195471 | AS121: 0.2283333391 | AT121: 0.02065002918 | AU121: G | AV121: 0 | AW121: 37.2053751 | AX121: 24.99994935 | AY121: 36 | AZ121: 36 | BA121: 0 | BB121: 0 | BC121: 3 | BD121: 13 | BE121: 33 | BF121: 19.09444618 | BG121: 5.550595521 | BH121: 14.66666698 | BI121: 13.24719048 | BJ121: 1.441395879 | BK121: 0.2283333391 | BL121: 0.05981636047 | BM121: G | BN121: 0 | BO121: 15.34444721 | BP121: 75.00002669 | BQ121: 36 | BR121: 36 | BS121: 0 | BT121: 0 | BU121: 3 | BV121: 14 | BW121: 53.90000153 | BX121: 32.14167023 | BY121: 8.219258688 | BZ121: 30.625 | CA121: 15.28190136 | CB121: 2.103250742 | CC121: 0.2283333391 | CD121: 0.01860791445 | CE121: G | CF121: 0 | CG121: 37.24114158 | CH121: 25.00010319 | CI121: 36 | CJ121: 36 | CK121: 0 | CL121: 0 | CM121: 3 | CN121: 4.199999809 | CO121: 102 | CP121: 31.45714569 | CQ121: 21.27594421 | CR121: 28.64999771 | CS121: 3.720062017 | CT121: 8.45608139 | CU121: 0.2315722704 | CV121: 0.08839428425 | CW121: N | CX121: 0 | CY121: 45.80707229 | CZ121: 25.00071648 | DA121: 36 | DB121: 36 | DC121: 0 | DD121: 0 | DE121: 3 | DF121: 2.700000048 | DG121: 244.6000061 | DH121: 77.5 | DI121: 64.31070439 | DJ121: 22.85833549 | DK121: 1.316702247 | DL121: 58.85916901 | DM121: 0.2283333391 | DN121: 0.03449755907 | DO121: G | DP121: 0 | DQ121: 106.749861 | DR121: 25.00000432 | DS121: 36 | DT121: 36 | DU121: 0 | DV121: 0 | DW121: 3 | EO121: 3 | FG121: 3
A122: 4 | B122: 7.569335938 | C122: 282.4492188 | D122: 91.65420532 | E122: 69.37267029 | F122: 30.4759922 | G122: 1.897214413 | H122: 48.30988312 | I122: 0.2315722704 | J122: 0.04241997004 | K122: E | L122: 2.702702703 | M122: 23.85642048 | N122: 74.99968909 | O122: 36 | P122: 36 | Q122: 1 | R122: 2.702702703 | S122: 4 | T122: 27.39265823 | U122: 64.44140625 | V122: 42.18283463 | W122: 7.893768712 | X122: 42.82963562 | Y122: 29.39663315 | Z122: 1.434954643 | AA122: 0.2283333391 | AB122: 0.03659743071 | AC122: N | AD122: 0 | AE122: 47.50709963 | AF122: 25.00000437 | AG122: 36 | AH122: 36 | AI122: 0 | AJ122: 0 | AK122: 4 | AL122: 0.8999999762 | AM122: 46.70000076 | AN122: 29.125 | AO122: 9.967299592 | AP122: 35.25 | AQ122: 4.308218479 | AR122: 6.760334969 | AS122: 0.2283333391 | AT122: 0.03615349531 | AU122: N | AV122: 0 | AW122: 35.84784689 | AX122: 24.99998252 | AY122: 36 | AZ122: 36 | BA122: 0 | BB122: 0 | BC122: 4 | BD122: 13 | BE122: 33 | BF122: 17.83055496 | BG122: 4.996331013 | BH122: 14.66666698 | BI122: 15.27687168 | BJ122: 1.167160034 | BK122: 0.2283333391 | BL122: 0.1271964312 | BM122: G | BN122: 0 | BO122: 14.57942003 | BP122: 75.00003582 | BQ122: 36 | BR122: 36 | BS122: 0 | BT122: 0 | BU122: 4 | BV122: 0.8999999762 | BW122: 46.70000076 | BX122: 29.13611221 | BY122: 9.985880611 | BZ122: 35.25 | CA122: 4.302239418 | CB122: 6.772313118 | CC122: 0.2283333391 | CD122: 0.03615349531 | CE122: N | CF122: 0 | CG122: 35.87167132 | CH122: 24.99941131 | CI122: 36 | CJ122: 36 | CK122: 0 | CL122: 0 | CM122: 4 | CN122: 0.8999999762 | CO122: 75.69999695 | CP122: 28.70833015 | CQ122: 21.18081857 | CR122: 19.59999847 | CS122: 1.642349958 | CT122: 17.48003197 | CU122: 0.2283333391 | CV122: 0.04273271561 | CW122: G | CX122: 0 | CY122: 39.12537031 | CZ122: 25.00000956 | DA122: 36 | DB122: 36 | DC122: 0 | DD122: 0 | DE122: 4 | DF122: 0.400000006 | DG122: 232.8999939 | DH122: 62.15143585 | DI122: 61.8899327 | DJ122: 19.77499962 | DK122: 0.9162956476 | DL122: 67.82901764 | DM122: 0.2315722704 | DN122: 0.03350040317 | DO122: G | DP122: 2.702702703 | DQ122: 84.37005408 | DR122: 25.00000476 | DS122: 36 | DT122: 36 | DU122: 1 | DV122: 2.702702703 | DW122: 4 | EO122: 4 | FG122: 4
A123: 5 | B123: 4.598510742 | C123: 152.168457 | D123: 76.67683411 | E123: 42.76736758 | F123: 41.49099731 | G123: 2.516667843 | H123: 30.46760178 | I123: 0.2283333391 | J123: 0.08333333582 | K123: U | L123: 0 | M123: 41.49099731 | N123: 75 | O123: 36 | P123: 36 | Q123: 0 | R123: 0 | S123: 5 | T123: 32.02410507 | U123: 54.02104187 | V123: 41.58861923 | W123: 5.556602009 | X123: 44.85565186 | Y123: 56.43292999 | Z123: 0.7369565964 | AA123: 0.2283333391 | AB123: 0.05336503685 | AC123: G | AD123: 0 | AE123: 45.17701776 | AF123: 24.99969658 | AG123: 36 | AH123: 36 | AI123: 0 | AJ123: 0 | AK123: 5 | AL123: 7.400000095 | AM123: 50.20000076 | AN123: 28.98888779 | AO123: 9.461857166 | AP123: 32.36666489 | AQ123: 8.227679253 | AR123: 3.523337126 | AS123: 0.2283333391 | AT123: 0.009366214275 | AU123: N | AV123: 0 | AW123: 35.37086219 | AX123: 24.99983635 | AY123: 36 | AZ123: 36 | BA123: 0 | BB123: 0 | BC123: 5 | BD123: 13 | BE123: 31.39999962 | BF123: 19.03055763 | BG123: 4.888342572 | BH123: 14.53333282 | BI123: 16.85218239 | BJ123: 1.129263639 | BK123: 0.2283333391 | BL123: 0.0569152534 | BM123: G | BN123: 0 | BO123: 15.73344067 | BP123: 75.00000473 | BQ123: 36 | BR123: 36 | BS123: 0 | BT123: 0 | BU123: 5 | BV123: 7.400000095 | BW123: 50.20000076 | BX123: 28.99166489 | BY123: 9.471411806 | BZ123: 32.36666489 | CA123: 8.212788582 | CB123: 3.530063391 | CC123: 0.2283333391 | CD123: 0.009366214275 | CE123: N | CF123: 0 | CG123: 35.38003405 | CH123: 25.00000341 | CI123: 36 | CJ123: 36 | CK123: 0 | CL123: 0 | CM123: 5 | CN123: 0.6000000238 | CO123: 50 | CP123: 24.97777557 | CQ123: 14.10094463 | CR123: 29.41666794 | CS123: 1.845859647 | CT123: 13.53178501 | CU123: 0.2283333391 | CV123: 0.05354211479 | CW123: N | CX123: 0 | CY123: 34.48871396 | CZ123: 25.00000955 | DA123: 36 | DB123: 36 | DC123: 0 | DD123: 0 | DE123: 5 | DF123: 0.1000000015 | DG123: 126.3000031 | DH123: 51.10555267 | DI123: 39.46064594 | DJ123: 10.61666775 | DK123: 1.039099455 | DL123: 49.18254089 | DM123: 0.2283333391 | DN123: 0.08655780554 | DO123: G | DP123: 0 | DQ123: 70.82270855 | DR123: 25.00090486 | DS123: 36 | DT123: 36 | DU123: 0 | DV123: 0 | DW123: 5 | EO123: 5 | FG123: 5
A124: 6 | B124: 8.288757324 | C124: 216.4814453 | D124: 61.48324966 | E124: 39.66084704 | F124: 60.33692932 | G124: 2.764658689 | H124: 22.23900223 | I124: 0.2283333391 | J124: 0.04025238752 | K124: G | L124: 0 | M124: 34.29885353 | N124: 75.00001232 | O124: 36 | P124: 36 | Q124: 0 | R124: 0 | S124: 6 | T124: 30.01831818 | U124: 54.45484924 | V124: 41.88732529 | W124: 5.807107372 | X124: 44.27296066 | Y124: 51.94114685 | Z124: 0.8064382076 | AA124: 0.2283333391 | AB124: 0.04625409842 | AC124: N | AD124: 0 | AE124: 45.80415571 | AF124: 25.00002176 | AG124: 36 | AH124: 36 | AI124: 0 | AJ124: 0 | AK124: 6 | AL124: 8.800000191 | AM124: 45.09999847 | AN124: 24.88055611 | AO124: 8.257665137 | AP124: 23.92499924 | AQ124: 9.054566383 | AR124: 2.747846127 | AS124: 0.2283333391 | AT124: 0.04005584121 | AU124: G | AV124: 0 | AW124: 29.85043721 | AX124: 25.00035035 | AY124: 36 | AZ124: 36 | BA124: 0 | BB124: 0 | BC124: 6 | BD124: 13 | BE124: 131.6999969 | BF124: 34.28888321 | BG124: 26.0418681 | BH124: 22.89166641 | BI124: 2.403060198 | BJ124: 14.26884079 | BK124: 0.2283333391 | BL124: 0.05540692806 | BM124: E | BN124: 0 | BO124: 9.864296362 | BP124: 75.00000136 | BQ124: 36 | BR124: 36 | BS124: 0 | BT124: 0 | BU124: 6 | BV124: 8.800000191 | BW124: 45.09999847 | BX124: 24.88888931 | BY124: 8.248628445 | BZ124: 23.92499924 | CA124: 9.090467453 | CB124: 2.737910748 | CC124: 0.2283333391 | CD124: 0.0392510891 | CE124: G | CF124: 0 | CG124: 29.8520789 | CH124: 25.00011789 | CI124: 36 | CJ124: 36 | CK124: 0 | CL124: 0 | CM124: 6 | CN124: 0.5 | CO124: 60.59999847 | CP124: 18.28333282 | CQ124: 11.68330969 | CR124: 15.52499962 | CS124: 1.852286816 | CT124: 9.870681763 | CU124: 0.2283333391 | CV124: 0.05331665277 | CW124: N | CX124: 0 | CY124: 26.16352146 | CZ124: 25.00022846 | DA124: 36 | DB124: 36 | DC124: 0 | DD124: 0 | DE124: 6 | DF124: 1.100000024 | DG124: 167.8000031 | DH124: 35.5399971 | DI124: 33.24185976 | DJ124: 14.99166775 | DK124: 1.186678767 | DL124: 29.94913101 | DM124: 0.2315722704 | DN124: 0.0306225419 | DO124: G | DP124: 2.702702703 | DQ124: 48.23453565 | DR124: 24.99983999 | DS124: 36 | DT124: 36 | DU124: 1 | DV124: 2.702702703 | DW124: 6 | EO124: 6 | FG124: 6
A125: 7 | B125: 2.170150757 | C125: 232.3476562 | D125: 70.34728241 | E125: 49.01234249 | F125: 59.71453094 | G125: 1.754376173 | H125: 40.09817505 | I125: 0.2283333391 | J125: 0.04611003399 | K125: G | L125: 0 | M125: 31.42101226 | N125: 74.99999873 | O125: 36 | P125: 36 | Q125: 0 | R125: 0 | S125: 7 | T125: 24.43498421 | U125: 54.73844147 | V125: 39.7237854 | W125: 6.564935723 | X125: 42.11199951 | Y125: 34.77870941 | Z125: 1.14218688 | AA125: 0.2283333391 | AB125: 0.04615199566 | AC125: N | AD125: 0 | AE125: 44.15176747 | AF125: 24.99999898 | AG125: 36 | AH125: 36 | AI125: 0 | AJ125: 0 | AK125: 7 | AL125: 5.199999809 | AM125: 45.5 | AN125: 24.12499809 | AO125: 9.250369915 | AP125: 28.70833397 | AQ125: 5.368597984 | AR125: 4.493723869 | AS125: 0.2283333391 | AT125: 0.03046745062 | AU125: N | AV125: 0 | AW125: 30.36401078 | AX125: 25.00091724 | AY125: 36 | AZ125: 36 | BA125: 0 | BB125: 0 | BC125: 7 | BD125: 13 | BE125: 222.3000031 | BF125: 63.6083374 | BG125: 54.44524692 | BH125: 30.44166756 | BI125: 1.470684767 | BJ125: 43.2508316 | BK125: 0.2283333391 | BL125: 0.0513817668 | BM125: E | BN125: 0 | BO125: 18.29917704 | BP125: 74.9997657 | BQ125: 36 | BR125: 36 | BS125: 0 | BT125: 0 | BU125: 7 | BV125: 5.199999809 | BW125: 45.5 | BX125: 24.13611031 | BY125: 9.253143189 | BZ125: 28.70833397 | CA125: 5.361981869 | CB125: 4.501341343 | CC125: 0.2283333391 | CD125: 0.03038917482 | CE125: N | CF125: 0 | CG125: 30.37724299 | CH125: 25.00006028 | CI125: 36 | CJ125: 36 | CK125: 0 | CL125: 0 | CM125: 7 | CN125: 1.299999952 | CO125: 97 | CP125: 23.99444389 | CQ125: 19.03889179 | CR125: 9.274999619 | CS125: 1.708708286 | CT125: 14.04244614 | CU125: 0.2283333391 | CV125: 0.040325284 | CW125: G | CX125: 0 | CY125: 32.62640715 | CZ125: 25.0001664 | DA125: 36 | DB125: 36 | DC125: 0 | DD125: 0 | DE125: 7 | DF125: 0.1000000015 | DG125: 216.1999969 | DH125: 48.11714554 | DI125: 45.85946284 | DJ125: 18.10833359 | DK125: 0.8940005302 | DL125: 53.82227707 | DM125: 0.2315722704 | DN125: 0.05596110225 | DO125: G | DP125: 2.702702703 | DQ125: 65.28431381 | DR125: 24.99999764 | DS125: 36 | DT125: 36 | DU125: 1 | DV125: 2.702702703 | DW125: 7 | EO125: 7 | FG125: 7
A126: 8 | B126: 7.063323975 | C126: 133.7255859 | D126: 69.51077271 | E126: 32.61933844 | F126: 59.83926392 | G126: 3.6715734 | H126: 18.93214798 | I126: 0.2283333391 | J126: 0.0404073596 | K126: N | L126: 0 | M126: 47.50863153 | N126: 75.00071285 | O126: 36 | P126: 36 | Q126: 0 | R126: 0 | S126: 8 | T126: 24.90234375 | U126: 47.6484375 | V126: 36.74370575 | W126: 4.468189978 | X126: 34.37988281 | Y126: 66.91189575 | Z126: 0.5491356254 | AA126: 0.2283333391 | AB126: 0.04994045943 | AC126: N | AD126: 0 | AE126: 39.7574565 | AF126: 24.99998285 | AG126: 36 | AH126: 36 | AI126: 0 | AJ126: 0 | AK126: 8 | AL126: 4.400000095 | AM126: 31.70000076 | AN126: 18.11666679 | AO126: 8.054545892 | AP126: 20.32500076 | AQ126: 4.305243492 | AR126: 4.208046913 | AS126: 0.2283333391 | AT126: 0.05555553734 | AU126: U | AV126: 0 | AW126: 24.8750006 | AX126: 25 | AY126: 36 | AZ126: 36 | BA126: 0 | BB126: 0 | BC126: 8 | BD126: 13 | BE126: 190.5 | BF126: 73.3777771 | BG126: 56.06220823 | BH126: 27.79166794 | BI126: 1.568437457 | BJ126: 46.7840004 | BK126: 0.2283333391 | BL126: 0.0879624486 | BM126: E | BN126: 0 | BO126: 21.1094549 | BP126: 75.00001644 | BQ126: 36 | BR126: 36 | BS126: 0 | BT126: 0 | BU126: 8 | BV126: 4.300000191 | BW126: 31.60000038 | BX126: 18.125 | BY126: 8.040553304 | BZ126: 29.32500076 | CA126: 4.312607288 | CB126: 4.202794075 | CC126: 0.2283333391 | CD126: 0.02777785063 | CE126: U | CF126: 0 | CG126: 24.77500033 | CH126: 25 | CI126: 36 | CJ126: 36 | CK126: 0 | CL126: 0 | CM126: 8 | CN126: 2 | CO126: 61.59999847 | CP126: 24.43055153 | CQ126: 13.54423172 | CR126: 16.89999962 | CS126: 2.535995007 | CT126: 9.633517265 | CU126: 0.2283333391 | CV126: 0.04559768736 | CW126: G | CX126: 0 | CY126: 32.3392745 | CZ126: 24.99997106 | DA126: 36 | DB126: 36 | DC126: 0 | DD126: 0 | DE126: 8 | DF126: 0.5 | DG126: 132.1999969 | DH126: 48.98888397 | DI126: 33.84010866 | DJ126: 11.47499943 | DK126: 1.416007638 | DL126: 34.59648132 | DM126: 0.2283333391 | DN126: 0.07323229313 | DO126: T | DP126: 0 | DQ126: 69.15341492 | DR126: 25.00000663 | DS126: 36 | DT126: 36 | DU126: 0 | DV126: 0 | DW126: 8 | EO126: 8 | FG126: 8
A127: 9 | B127: 0.6490631104 | C127: 239.734375 | D127: 53.61129761 | E127: 43.9919454 | F127: 60.4203949 | G127: 1.353750229 | H127: 39.60205841 | I127: 0.2283333391 | J127: 0.0767544508 | K127: G | L127: 0 | M127: 20.12645631 | N127: 74.99999597 | O127: 36 | P127: 36 | Q127: 0 | R127: 0 | S127: 9 | T127: 22.94967842 | U127: 49.35977173 | V127: 37.5349884 | W127: 4.813501625 | X127: 38.35556793 | Y127: 57.98266602 | Z127: 0.6473484635 | AA127: 0.2283333391 | AB127: 0.05709385872 | AC127: N | AD127: 0 | AE127: 40.78164565 | AF127: 25.00000171 | AG127: 36 | AH127: 36 | AI127: 0 | AJ127: 0 | AK127: 9 | AL127: 2.799999952 | AM127: 37 | AN127: 14.87221909 | AO127: 8.726990009 | AP127: 5.649999619 | AQ127: 2.887732029 | AR127: 5.150138378 | AS127: 0.2283333391 | AT127: 0.0631313026 | AU127: T | AV127: 0 | AW127: 20.62799575 | AX127: 25.00000183 | AY127: 36 | AZ127: 36 | BA127: 0 | BB127: 0 | BC127: 9 | BD127: 14 | BE127: 166.6999969 | BF127: 67.03055573 | BG127: 48.88053687 | BH127: 26.72499847 | BI127: 1.807229757 | BJ127: 37.09022522 | BK127: 0.2283333391 | BL127: 0.08751910925 | BM127: E | BN127: 0 | BO127: 19.28397224 | BP127: 74.99945952 | BQ127: 36 | BR127: 36 | BS127: 0 | BT127: 0 | BU127: 9 | BV127: 2.799999952 | BW127: 36.90000153 | BX127: 14.8888855 | BY127: 8.706607143 | BZ127: 5.641666412 | CA127: 2.907407761 | CB127: 5.121017456 | CC127: 0.2283333391 | CD127: 0.0631313026 | CE127: T | CF127: 0 | CG127: 20.57580786 | CH127: 25.00018574 | CI127: 36 | CJ127: 36 | CK127: 0 | CL127: 0 | CM127: 9 | CN127: 1.799999952 | CO127: 68.5 | CP127: 23.08055496 | CQ127: 13.61444131 | CR127: 18.47500038 | CS127: 2.555987358 | CT127: 9.029995918 | CU127: 0.2283333391 | CV127: 0.03753197193 | CW127: N | CX127: 0 | CY127: 32.26335536 | CZ127: 25.00000168 | DA127: 36 | DB127: 36 | DC127: 0 | DD127: 0 | DE127: 9 | DF127: 0.200000003 | DG127: 186.8999939 | DH127: 40.71389008 | DI127: 37.15225155 | DJ127: 15.75833225 | DK127: 1.021749854 | DL127: 39.84721756 | DM127: 0.2283333391 | DN127: 0.06943073869 | DO127: E | DP127: 0 | DQ127: 56.44142286 | DR127: 25.00000821 | DS127: 36 | DT127: 36 | DU127: 0 | DV127: 0 | DW127: 9 | EO127: 9 | FG127: 9
A128: 10 | B128: 4.980255127 | C128: 150.236908 | D128: 42.27815247 | E128: 31.08610734 | F128: 41.29441833 | G128: 2.024051905 | H128: 20.88788033 | I128: 0.2283333391 | J128: 0.03871420026 | K128: G | L128: 0 | M128: 20.44843067 | N128: 75.00000226 | O128: 36 | P128: 36 | Q128: 0 | R128: 0 | S128: 10 | T128: 27.65091324 | U128: 45.22761536 | V128: 36.68090439 | W128: 4.414280709 | X128: 34.97454071 | Y128: 70.65241241 | Z128: 0.519174099 | AA128: 0.2283333391 | AB128: 0.03233361244 | AC128: N | AD128: 0 | AE128: 39.6582557 | AF128: 25.00025756 | AG128: 36 | AH128: 36 | AI128: 0 | AJ128: 0 | AK128: 10 | AL128: 2.599999905 | AM128: 28.89999962 | AN128: 11.85277843 | AO128: 7.967523219 | AP128: 4.791666508 | AQ128: 2.132728577 | AR128: 5.557565212 | AS128: 0.2283333391 | AT128: 0.07890886068 | AU128: G | AV128: 0 | AW128: 15.88774717 | AX128: 25.00000462 | AY128: 36 | AZ128: 36 | BA128: 0 | BB128: 0 | BC128: 10 | BD128: 13.19999981 | BE128: 179.8999939 | BF128: 67.3722229 | BG128: 49.51431591 | BH128: 27.09166718 | BI128: 1.736097455 | BJ128: 38.80670547 | BK128: 0.2283333391 | BL128: 0.07308787107 | BM128: E | BN128: 0 | BO128: 19.38176813 | BP128: 75.000014 | BQ128: 36 | BR128: 36 | BS128: 0 | BT128: 0 | BU128: 10 | BV128: 2.5 | BW128: 28.79999924 | BX128: 11.85833359 | BY128: 7.948921457 | BZ128: 4.691666603 | CA128: 2.13974905 | CB128: 5.541927338 | CC128: 0.2283333391 | CD128: 0.075519979 | CE128: G | CF128: 0 | CG128: 15.89150733 | CH128: 25.00016706 | CI128: 36 | CJ128: 36 | CK128: 0 | CL128: 0 | CM128: 10 | CN128: 3.799999952 | CO128: 86.69999695 | CP128: 20.27222252 | CQ128: 14.95678692 | CR128: 10.70833302 | CS128: 2.559303284 | CT128: 7.920992851 | CU128: 0.2283333391 | CV128: 0.05766683817 | CW128: G | CX128: 0 | CY128: 26.81634053 | CZ128: 25.00009684 | DA128: 36 | DB128: 36 | DC128: 0 | DD128: 0 | DE128: 10 | DF128: 0.1000000015 | DG128: 140.5 | DH128: 31.80277443 | DI128: 28.44368387 | DJ128: 11.80000019 | DK128: 1.077614546 | DL128: 29.5121994 | DM128: 0.2283333391 | DN128: 0.02904248238 | DO128: E | DP128: 0 | DQ128: 44.08675303 | DR128: 25.00098565 | DS128: 36 | DT128: 36 | DU128: 0 | DV128: 0 | DW128: 10 | EO128: 10 | FG128: 10
